Workbook

Sheet notes (hidden)
A1: FY25 Notes
A3: PROJa | C3: date | D3: sheet | E3: comments
A4: x | C4: 2024-01-21 | D4: codes | E4: updated
D5: charterinfo | E5: chalocsend input, rest formula; the low income group is incorrect for silver lake and kingston; the low income groups were updated 12/21 in ch 70 formula and not updated in charter formula
D6: distinfo | E6: the low income groups are incorrect for kingston and silver lake; also if changes were made in the ch 70 rates then the FB rates for each lea must also be updated; waf checked and match ch 70 file; abv fnd % will chnge when abv fnd 24 changes
A7: x | C7: 2024-01-21 | D7: fnd enro explain | E7: added explanation used in summary posted
D8: fnd enro | E8: updated from fnd enro file/dataout; indistrict sped factor updated; if there are change in foundenro file then this will need updating for FY25 (b); the silverlake and kingston groups are incorrect
A9: x | C9: 2024-01-21 | D9: abvfnd23 | E9: chked against 23 Q4
D10: abvfnd24 | E10: look at retd tchr factor in formula (column U); needs updating for updates in EOYR; for the next update for the House the latest version should be used and that should be used in FY24 Q3. ROD - this should be run from the database.
D11: transp | E11: data doesn't match what is in 23 EOYR; the cell references are all correct; columns Y to AD are exported to transptn file. Not sure what that transptn file is; columns BI and BH are the same; guessing this is 22 eoyr data | G11: LIST OF HEADERS TO UPDATE QTRLY
A12: x | C12: 2024-01-21 | D12: fnd base rates | E12: done | G12: charterinfo | I12: 2023-04-07
A13: x | C13: 2024-01-21 | D13: inflat | E13: done | G13: fnd enro | I13: 2023-04-07
C14: 2024-01-21 | D14: pre fnd budg | E14: done; this will change if there are changes in low income groups | G14: abvfnd current year | I14: 2023-06-28
D15: lowincgroup | E15: percentages don’t match what is in ch 70 file (looks like enro got % updated but charterrate didn't) and the groups for silver lake and kingston must be updated because of ch 70 update 12/21/23 | G15: transp | I15: 2023-04-07
C16: 2024-01-21 | D16: fnd budget | E16: done; will change with updates to low income groups | G16: extract
A17: x | C17: 2024-01-21 | D17: sum enro | E17: HIDE - updated except for labels | G17: foundation budget | I17: 2023-04-07
A18: x | C18: 2024-01-21 | D18: extract | E18: HIDE - checked using the 23 eoyr | G18: sum enro | I18: 2023-04-07
A19: x | C19: 2024-01-21 | D19: line match | E19: HIDE - updated using the 23 eoyr | G19: fnd enro explain | I19: 2023-04-07
A20: x | C20: 2024-01-21 | D20: rate check | E20: HIDE - chalocsend and rates updated, not sure what box is or what the orderfirst and last do
C21: 2024-01-21 | D21: dist enro | E21: HIDE - Updated from FY25 prelim ch 70; only tied to sumenro - that is hidden sheet
C22: Do not forget to update RTHI in ABVFND23 see file:
C23: link to folder for 23 - RTHI.xlsx
A24: NTU = Need to update
A26: 2023-11-17 | C26: Created file.
A31: FY24
A32: PROJf
A33: 2023-11-02 | C33: Created file, no change to data.
A35: PROJe
A36: 2023-07-31 | C36: Conf Cmte Budget signed.
C37: Facilities raised $100 over FY23, to $1,188. Reimb raised $400K, to $230,682,538.
A41: 2023-07-19 | C41: Conference Cmtee budget is to be posted today, which may require rerunning projections. The change,
C42: if any, will be to the reimbursement line item. No changes to this file will be required.
C44: Did not change the data citations for PROJd sources in many of the sheets, as there is no fte or rate
C45: changes between iteration D and E.
A47: PROJd
A48: 2023-06-28 | C48: Prep file for iteration. Per RO email will use the higher $1,138 for facilities.
C50: Updated ABVFND23 with 23Q4 data. In spot checking the changes, the average FY24 AFP is lower than
C51: in the 23Q4 file. This is due to the change in 312 Warwick's status as a newly operating district in FY24. The avg in
C52: FY23 file is 144.54.
A64: PROJc
A65: 2023-05-09 | B65: SWM is proposing the higher facilities rate of $1,138.
B66: Checked the Warwick issue, and there is foundation enrollment for 312 at 414 Four Rivers.
B67: File updated.
B69: DISTINFO has 312 Warwick as operating, with foundation and facilities rates. ABVFND23 has Warwick
B70: as non-op, because technically this is FY23 budget data. This returns a 0 for the Above Foundation Rate.
A73: PROJb
A74: 2023-04-13 | C74: Changed facilities rate back to $1088, per HWM proposal.
A76: 2023-04-07 | C76: What to do about stand alone Worcester rate for 3519 Worcester Cultural Academy?
C77: HBC decided NOT to include it in the charterinfo ranges, but to present it as separate.
C78: In the CALC file, the chalocsend will be folded into the CHARTERINFO, but herein
C79: it will be presented in the same sheet, but set apart at the bottom of the listing.
A81: 2023-04-06 | C81: Finished updating file and porting info into web file.
C82: What to do about stand alone Worcester rate for 3519 Worcester Cultural Academy? Done
A84: 2023-04-05 | C84: Completed updating DISTINFO, fixed outside link file error.
A86: 2023-04-04 | C86: Updated DISTINFO foundation rates, etc. Checked WAF for changes.
C87: Formula link error on file needs to be fixed
A89: 2023-03-28 | C89: Continued updating file. Finished the INFLAT sheet. Emailed Kerrie Anastas about an LEA for the new
C90: charter school in Worcestah.
C92: Effective this iteration, Rob Hanna / ch70 analyst will generate first year foundation rates for new schools.
C93: Rob O forwarded me RH's email.
A115: 2023-03-21 | C115: Asked AH about LEA for new Worcester charter. None yet.
A117: 2023-03-01 | C117: Per RO, the district foundation information is pre benefits increase, as is the charter. Need to
C118: update to version approved in House1.
A121: PROJa
A122: capped inflation
A123: 2023-02-03 | C123: Updated foundation enrollment, delta checked base rates - no change, reviewed chalocsends
C124: with big, negative swings in rates.
C127: Rate Changes
C128: LEA | D128: School | E128: Issue
C129: 163 | D129: Lynn | E129: Lynn's low inc group changed, affecting a great many rates. They went from 12 to 11, lowering rates
C130: 493 | D130: Phoenix Chelsea | E130: Their Lynn rate declined >500. Lynn's low inc group changed when they amended their SIMS
C131: 432 | D131: Cape Cod Light | E131: They have a 2 pupil rate for 172 Mashpee that went from 50% low income to 0%. Rate declined nearly $3K.
A135: TM
A136: capped inflation
A137: 2022-12-22 | C137: Saved uncapped rate file to this, capped rate file. Updated FND BASE RATES based on c7024prelim_capped.xlsm
C138: Checked WAF's and found that errors occurred after 352, but not for everyone. But some. Reimported data.
C139: Updated foundation rates from the capped ch70 file.
A141: 2022-12-21 | C141: Finished updating PRE FND BUDG, ran rate check. All looks good.
C143: Something sketchy was happening with lowincome group. Checked this file and FND ENRO workbook against the source file.
C145: Fixed FND ENRO formula affecting voke enro. Was being halved, like PK.
C147: My analysis of BEA statistics is a 1000th of a point off: 9.27 for uncapped. Per RO, I should use the following.
A153: 2022-12-19 | C153: Created file for Tom Moreau EOE packet.
A156: FY23
A157: Q2
A158: 2022-12-16 | C158: Updated Q2 FTE om ABVFND23.
A161: Q2 - pre 3501 fix
A162: 2022-12-15 | C162: Adding final touches. Discussed big decrease in AFPs with RO.
C164: Boston is higher, but overall apx 80 pct of districts have lower rates.
A170: 2022-12-13 | C170: Ran the EOY extract5022 file twice. First time odd numbers came up for vokes, as well as for transportation
C171: like wrong columns of data, specifically for transportation. A deep review was not made due to time constraints.
C173: Late in the evening RO confirmed the Dec 12 tempqfiles and nss summary data were good.
A175: 2022-12-09 | C175: Confirmed cell refs for ABVFND23. Updated RTHI formula to 60%
C177: 23 PROJb and c both use Q2 above found pcts.
A180: 2022-12-08 | C180: Began updating file
A183: PROJf
A184: 2022-11-17 | C184: RTHI, will now be 60%.
A186: 2022-11-09 | C186: No change to rates.
A189: PROJe
A190: 2022-08-19 | C190: The update to the 3518 Phoenix Acad Lawrence found enro increased their Lawrence and Methun rates. The small population of
C191: the Methuen found enro means the correction has a large affect on the rate. The rate run in PROJd included 16.7% voke,
C192: but with the correction, is now 20% voke.
C204: Also made changes to the inflation sheet. The summary and graph were showing the actual inflation of 5+%. The web file posted in early
C205: August had this fix to it. I did not update the PROJd source file, as is my custom. Whatever was done needs to be recorded as done
C206: when it was done. Updated the FND ENRO EXPLAIN sheet to reflect changes, and need for correction.
A209: 2022-08-08 | C209: Found error in 3518's foundation enrollment, voke enrollment was not deducted from reg ed enrollment.
C210: Also, INFLATsheet shows actual inflation, and not the 4.5 cap. The PROJd web file will have the correction shown herein.
A222: PROJd
A223: 2022-07-07 | C223: Imported revised foundation enrollment, with voke enro now included at 3518 Phoenix Academy Lawrence.
C224: One rate went up, the other went down.
A236: 2022-04-25 | B236: Created file for SWM run.
A239: PROJc
A240: 2022-04-06 | C240: Finished updating file.
A256: PROJb
A257: 2022-01-06 | B257: Finished updating file. Ran rate check.
A259: 2022-01-04 | B259: Per RO, PROJa base rates are a smidge lower (email dated 12-28-21, .06 lower). RH made these changes after RO and I ran PROJa/PROJar.
B260: Updated file.
C261: Checked incoming WAF, Lowinc group, foundation rates. 157 Lincoln's lowinc group changed from 2 to 4.
C262: Looks like all the District foundation rates were FY22. This affects the AFR, as well. Fortunately the HOUSE1 set uses no district rates.
C263: The error had not financial impact on the result.
C264: The chalocsends in the FND ENRO sheet yellow section were all one chalocsesnd, fixed this. This error was pushed out to other areas.
C265: But again, like the district found rates, it had no impact on the tuition result.
C266: Updated district fnd enro, three districts had changes:
A278: PROJa
A279: 2021-12-23 | B279: Imported revised FND ENRO. No change to EL or LI. | L279: =938/1088 -> 0.8621323529
B280: Per RO, TM requested the facilities rate be run at $1,088. a 12.37% incr, asked RO source of change. | L280: =(1088/938)/938*100 -> 0.1236582849
B281: TM didn't give any background, RO didn't ask?
B282: Finalized file for this EOE run.
A285: 2021-12-20 | B285: Created file.
A288: FY22
A289: Q2
A290: 2021-12-16 | C290: Reviewed AFPs. Fixed 21Q4/22PROJj AFPs in the historical section.
C291: An error in the summary section of PROJj ABVFND22 sheet let to an error herein. Fixed
C292: Reviewed negative and positive AFP changes.
C295: - Negatives / 5 with largest losses below
D297: Growth in foundation budget out paced growth in NSS
A311: 2021-12-14 | C311: Imported December 6 EOY data. Boston's AFP is 2.2 pts lower than FY21.
C312: No review done, other than to fix FY22's foundation budget column, it had CH70, not FB data.
A314: 2021-11-01 | C314: Finished LINE MATCH update and review, revised cell refs in ABVFND22 and TRANSP.
A316: 2021-10-29 | C316: Updated RTHI in the ABVFND22 sheet. Need to confirm EOY cell refs for above foundation and transportation extracts.
C317: Began working on line match.
A320: 2021-10-27 | C320: Began updating.
C321: Sent RO an email about RTHI. It doesn't look like there will be an update in FY22, like there wasn't in FY21.
A324: 2021-10-26 | B324: Created file.
A327: PROJj
A328: 2021-08-31 | B328: The only changes are for 441 Springfield International's name change, as well as adding summary rates to FND BASE RATES..
A331: PROJi
A332: 2021-08-31 | B332: No file for this iteration.
A334: PROJh
A335: 2021-08-04 | B335: Legislature overrode Governor's veto. No change to calculation, only Transition Reimbursement.
A338: PROJg
A339: 2021-07-09 | B339: Conference Committee budget made no changes to the foundation budget. Only update is to above foundation rates and
B340: transportation.
A343: PROJf
A344: 2021-04-21 | B344: SWM test run using the HWM rates. No change to file.
A348: PROJe
A349: 2021-04-06 | B349: HWM estimate using the 1/6 model of PROJd. The only change is fixing the ABVFND good/bad issue, updating the AFPs.
A354: PROJd
A355: 2021-03-16 | C355: Updated file to the SOA 1/6th implementation, in place of the 1/7th. That is SOA rate changes are 1/6 of the total
C356: SOA implementation, so it's final in 6 years, not 7. This affects found enro spec ed perc for the increment.
C358: Provincetown had another change in it's lowincgroup.
C360: In reviewing PK enro, it came to HC's attention that there is an error in charter foundation enrollment
C361: The original FND ENRO file is correct, it is only within the CHARATE file that the error occurs. HBC erroneously
C362: included PK enrollment in the special ed column, rather than K2. PK enro is not included in the the spec ed increment.
C363: Fixed. (Came up when reviewing PK for Jwuflson email inquiry in Feb.)
A366: PROJc
A367: 2021-01-22 | B367: Updated file. NO change to chalocsend rates, only district.
B369: Updated district Foundation Budget enrollment and rates with latest found_SOA. Due to the sharp turnaround
B370: request in PROJb, these were not incorporated. There were changes to district HS enro and the increment enro columns.
B372: No change to base rates. However, there are found enro changes between the last iteration at the district level.
B373: Repulled data from latest ch70 file, found22_SOA, saved with todays date in chamisc folder.
B374: Provincetown has a diff lowinc group. Eight districts have lower foundation rates. Most nominal.
A391: PROJb
A392: 2020-12-31 | C392: Reviewed 210 Northampton rates. This is one of two districts, including Somerset, that has
C393: a couple of chalocsends with lower rates in PROJb. The chalocsends with lower rates have very small
C394: populations, so that the loss in the lowinc group (from 6 to 5) is has a greater proportional impact
C395: on the rate. Rates with lower percentage of low income have higher rates in PROJb.
C397: 450086210 | D397: 0.06831578105 | E397: Hilltown's low income population represents 7% of the rate
C398: 453137210 | D398: 0.3046638846 | E398: Holyoke's low income population represents 30% of the rate
C400: Updated FND BUDGET sheet.
C401: Imported a portion of FND ENRO again, to pick up the new lowincgroups.
C403: Found a vlookup error in CHARTERINFO leading to the wrong lowincgroup being pulled into FND BUDGET.
C404: It appears to have no impact on the rate. PROJa has this error.
A406: 2020-12-30 | C406: Updated base rates, emailed RH a question about the HS and voke guidance rates not increasing. Ran rate check.
C407: Per RH, those two items have reached there SOA goals, so the only increase is inflation.
C409: Updated foundation enrollment, checked against PROJa.
C411: Found minor, missing updates in updates above from PROJa.
A413: PROJa
A414: 2020-12-28 | C414: Found a different structure in FND ENRO for ELL PK between the prior years fnd enro file and last year's FND ENRO sheet.
C415: I think this was an artifact of quick turnarounds in data runs. Fixed this. Very little impact on file.
C417: My inflation adjusted rates are NOT matching RH's. Emailed RO.
C418: I was pulling from the wrong file. My rates are still a smidge different, but not significantly so. Not sure why, tho.
C419: Changed formulas to the way Rob H does them, but there is no change. #s still off.
A423: FY21
A424: Q3
A425: 2020-12-21 | B425: Prepped file for next iteration.
A427: Q2
A428: 2020-12-16 | B428: Updated enro column of ABVFND21
A430: 2020-12-10 | B430: Rounded FacilitiesTuition to 938.
A432: 2020-12-09 | B432: Updated budget NSS. Some districts are considered bad, that were good, including Peabody, Lunenburg, & Martha's Vineyard.
A434: 2020-12-08 | B434: Changes in NSS
... 746 more rows

Sheet codes (hidden)
F1: =COUNTIF(H10:H99,"=open") -> 68 | H1: =COUNTA(H10:H99) -> 71
A6: 2022-12-16 | B6: code 436 | F6: 2023-03-28 | G6: code cha
H8: Operating
A9: LEA | B9: DISTRICT | C9: op | D9: chng | F9: Lea | G9: Charter | H9: Status
A10: 1 | B10: ABINGTON | C10: 1 | F10: 409 | G10: ALMA DEL MAR | H10: open
A11: 2 | B11: ACTON | C11: 0 | D11: fy15 | F11: 410 | G11: EXCEL ACADEMY | H11: open
A12: 3 | B12: ACUSHNET | C12: 1 | F12: 412 | G12: ACADEMY OF THE PACIFIC RIM | H12: open
A13: 4 | B13: ADAMS | C13: 0 | F13: 413 | G13: FOUR RIVERS | H13: open
A14: 5 | B14: AGAWAM | C14: 1 | F14: 414 | G14: BERKSHIRE ARTS AND TECHNOLOGY | H14: open
A15: 6 | B15: ALFORD | C15: 0 | F15: 416 | G15: BOSTON PREPARATORY | H15: open
A16: 7 | B16: AMESBURY | C16: 1 | F16: 417 | G16: BRIDGE BOSTON | H16: open
A17: 8 | B17: AMHERST | C17: 1 | F17: 418 | G17: CHRISTA MCAULIFFE | H17: open
A18: 9 | B18: ANDOVER | C18: 1 | F18: 420 | G18: BENJAMIN BANNEKER | H18: open
A19: 10 | B19: ARLINGTON | C19: 1 | F19: 428 | G19: BROOKE | H19: open
A20: 11 | B20: ASHBURNHAM | C20: 0 | F20: 429 | G20: KIPP ACADEMY LYNN | H20: open
A21: 12 | B21: ASHBY | C21: 0 | F21: 430 | G21: ADVANCED MATH AND SCIENCE ACADEMY | H21: open
A22: 13 | B22: ASHFIELD | C22: 0 | F22: 432 | G22: CAPE COD LIGHTHOUSE | H22: open
A23: 14 | B23: ASHLAND | C23: 1 | F23: 435 | G23: INNOVATION ACADEMY | H23: open
A24: 15 | B24: ATHOL | C24: 0 | F24: 436 | G24: COMMUNITY CS OF CAMBRIDGE | H24: open
A25: 16 | B25: ATTLEBORO | C25: 1 | F25: 437 | G25: CITY ON A HILL | H25: open
A26: 17 | B26: AUBURN | C26: 1 | F26: 438 | G26: CODMAN ACADEMY | H26: open
A27: 18 | B27: AVON | C27: 1 | F27: 439 | G27: CONSERVATORY LAB | H27: open
A28: 19 | B28: AYER | C28: 0 | D28: fy12 | F28: 440 | G28: COMMUNITY DAY | H28: open
A29: 20 | B29: BARNSTABLE | C29: 1 | F29: 441 | G29: SPRINGFIELD INTERNATIONAL | H29: open
A30: 21 | B30: BARRE | C30: 0 | F30: 444 | G30: NEIGHBORHOOD HOUSE | H30: open
A31: 22 | B31: BECKET | C31: 0 | F31: 445 | G31: ABBY KELLEY FOSTER | H31: open
A32: 23 | B32: BEDFORD | C32: 1 | F32: 446 | G32: FOXBOROUGH REGIONAL | H32: open
A33: 24 | B33: BELCHERTOWN | C33: 1 | F33: 447 | G33: BENJAMIN FRANKLIN CLASSICAL | H33: open
A34: 25 | B34: BELLINGHAM | C34: 1 | F34: 449 | G34: BOSTON COLLEGIATE | H34: open
A35: 26 | B35: BELMONT | C35: 1 | F35: 450 | G35: HILLTOWN COOPERATIVE | H35: open
A36: 27 | B36: BERKLEY | C36: 1 | D36: fy12 | F36: 453 | G36: HOLYOKE COMMUNITY | H36: open
A37: 28 | B37: BERLIN | C37: 0 | D37: fy20 | F37: 454 | G37: LAWRENCE FAMILY DEVELOPMENT | H37: open
A38: 29 | B38: BERNARDSTON | C38: 0 | F38: 455 | G38: HILL VIEW MONTESSORI | H38: open
A39: 30 | B39: BEVERLY | C39: 1 | F39: 456 | G39: LOWELL COMMUNITY | H39: open
A40: 31 | B40: BILLERICA | C40: 1 | F40: 458 | G40: LOWELL MIDDLESEX ACADEMY | H40: open
A41: 32 | B41: BLACKSTONE | C41: 0 | F41: 463 | G41: KIPP ACADEMY BOSTON | H41: open
A42: 33 | B42: BLANDFORD | C42: 0 | F42: 464 | G42: MARBLEHEAD COMMUNITY | H42: open
A43: 34 | B43: BOLTON | C43: 0 | F43: 466 | G43: MARTHA'S VINEYARD | H43: open
A44: 35 | B44: BOSTON | C44: 1 | F44: 469 | G44: MATCH | H44: open
A45: 36 | B45: BOURNE | C45: 1 | F45: 470 | G45: MYSTIC VALLEY REGIONAL | H45: open
A46: 37 | B46: BOXBOROUGH | C46: 0 | D46: fy15 | F46: 474 | G46: SIZER SCHOOL, A NORTH CENTRAL CHARTER ESSENTIAL SCHOOL | H46: open
A47: 38 | B47: BOXFORD | C47: 1 | F47: 478 | G47: FRANCIS W. PARKER CHARTER ESSENTIAL | H47: open
A48: 39 | B48: BOYLSTON | C48: 0 | D48: fy20 | F48: 479 | G48: PIONEER VALLEY PERFORMING ARTS | H48: open
A49: 40 | B49: BRAINTREE | C49: 1 | F49: 481 | G49: BOSTON RENAISSANCE | H49: open
A50: 41 | B50: BREWSTER | C50: 1 | F50: 482 | G50: RIVER VALLEY | H50: open
A51: 42 | B51: BRIDGEWATER | C51: 0 | F51: 483 | G51: RISING TIDE | H51: open
A52: 43 | B52: BRIMFIELD | C52: 1 | F52: 484 | G52: ROXBURY PREPARATORY | H52: open
A53: 44 | B53: BROCKTON | C53: 1 | F53: 485 | G53: SALEM ACADEMY | H53: open
A54: 45 | B54: BROOKFIELD | C54: 1 | F54: 486 | G54: LEARNING FIRST | H54: open
A55: 46 | B55: BROOKLINE | C55: 1 | F55: 487 | G55: PROSPECT HILL ACADEMY | H55: open
A56: 47 | B56: BUCKLAND | C56: 0 | F56: 488 | G56: SOUTH SHORE | H56: open
A57: 48 | B57: BURLINGTON | C57: 1 | F57: 489 | G57: STURGIS | H57: open
A58: 49 | B58: CAMBRIDGE | C58: 1 | F58: 491 | G58: ATLANTIS | H58: open
A59: 50 | B59: CANTON | C59: 1 | F59: 492 | G59: MARTIN LUTHER KING JR CS OF EXCELLENCE | H59: open
A60: 51 | B60: CARLISLE | C60: 1 | F60: 493 | G60: PHOENIX ACADEMY CHELSEA | H60: open
A61: 52 | B61: CARVER | C61: 1 | F61: 494 | G61: PIONEER CS OF SCIENCE | H61: open
A62: 53 | B62: CHARLEMONT | C62: 0 | F62: 496 | G62: GLOBAL LEARNING | H62: open
A63: 54 | B63: CHARLTON | C63: 0 | F63: 497 | G63: PIONEER VALLEY CHINESE IMMERSION | H63: open
A64: 55 | B64: CHATHAM | C64: 0 | D64: fy13 | F64: 498 | G64: VERITAS PREPARATORY | H64: open
A65: 56 | B65: CHELMSFORD | C65: 1 | F65: 499 | G65: HAMPDEN CS OF SCIENCE | H65: open
A66: 57 | B66: CHELSEA | C66: 1 | F66: 3501 | G66: PAULO FREIRE SOCIAL JUSTICE | H66: closed | I66: merged E and W 6/30/24
A67: 58 | B67: CHESHIRE | C67: 0 | F67: 3502 | G67: BAYSTATE ACADEMY | H67: open
A68: 59 | B68: CHESTER | C68: 0 | F68: 3503 | G68: COLLEGIATE CS OF LOWELL | H68: open
A69: 60 | B69: CHESTERFIELD | C69: 0 | F69: 3506 | G69: PIONEER CS OF SCIENCE II | H69: open
A70: 61 | B70: CHICOPEE | C70: 1 | F70: 3508 | G70: PHOENIX ACADEMY SPRINGFIELD | H70: open
A71: 62 | B71: CHILMARK | C71: 0 | F71: 3509 | G71: ARGOSY COLLEGIATE | H71: open
A72: 63 | B72: CLARKSBURG | C72: 1 | F72: 3510 | G72: SPRINGFIELD PREPARATORY | H72: open
A73: 64 | B73: CLINTON | C73: 1 | F73: 3513 | G73: NEW HEIGHTS CS OF BROCKTON | H73: open
A74: 65 | B74: COHASSET | C74: 1 | F74: 3514 | G74: LIBERTAS ACADEMY | H74: open
A75: 66 | B75: COLRAIN | C75: 0 | F75: 3515 | G75: OLD STURBRIDGE ACADEMY | H75: open
A76: 67 | B76: CONCORD | C76: 1 | F76: 3517 | G76: MAP ACADEMY | H76: open
A77: 68 | B77: CONWAY | C77: 1 | F77: 3518 | G77: PHOENIX ACADEMY LAWRENCE | H77: open
A78: 69 | B78: CUMMINGTON | C78: 0 | F78: 3519 | G78: WORCESTER CULTURAL ACADEMY | H78: open
A79: 70 | B79: DALTON | C79: 0
A80: 71 | B80: DANVERS | C80: 1
A81: 72 | B81: DARTMOUTH | C81: 1
A82: 73 | B82: DEDHAM | C82: 1
A83: 74 | B83: DEERFIELD | C83: 1
A84: 75 | B84: DENNIS | C84: 0
A85: 76 | B85: DIGHTON | C85: 0 | F85: 3516 | G85: HAMPDEN CS OF SCIENCE WEST | H85: closed | I85: closed following merger E & W
A86: 77 | B86: DOUGLAS | C86: 1 | F86: 419 | G86: HELEN Y. DAVIS LEADERSHIP ACADEMY | H86: CLOSED
A87: 78 | B87: DOVER | C87: 1
A88: 79 | B88: DRACUT | C88: 1
A89: 80 | B89: DUDLEY | C89: 0
A90: 81 | B90: DUNSTABLE | C90: 0
A91: 82 | B91: DUXBURY | C91: 1
A92: 83 | B92: EAST BRIDGEWATER | C92: 1
A93: 84 | B93: EAST BROOKFIELD | C93: 0
A94: 85 | B94: EASTHAM | C94: 1
A95: 86 | B95: EASTHAMPTON | C95: 1
A96: 87 | B96: EAST LONGMEADOW | C96: 1
A97: 88 | B97: EASTON | C97: 1
A98: 89 | B98: EDGARTOWN | C98: 1
A99: 90 | B99: EGREMONT | C99: 0
A100: 91 | B100: ERVING | C100: 1
A101: 92 | B101: ESSEX | C101: 0
A102: 93 | B102: EVERETT | C102: 1
A103: 94 | B103: FAIRHAVEN | C103: 1
A104: 95 | B104: FALL RIVER | C104: 1
A105: 96 | B105: FALMOUTH | C105: 1
A106: 97 | B106: FITCHBURG | C106: 1
A107: 98 | B107: FLORIDA | C107: 1
A108: 99 | B108: FOXBOROUGH | C108: 1
A109: 100 | B109: FRAMINGHAM | C109: 1
A110: 101 | B110: FRANKLIN | C110: 1
A111: 102 | B111: FREETOWN | C111: 0 | D111: fy12
A112: 103 | B112: GARDNER | C112: 1
A113: 104 | B113: AQUINNAH | C113: 0
A114: 105 | B114: GEORGETOWN | C114: 1
A115: 106 | B115: GILL | C115: 0
A116: 107 | B116: GLOUCESTER | C116: 1
A117: 108 | B117: GOSHEN | C117: 0
A118: 109 | B118: GOSNOLD | C118: 0
A119: 110 | B119: GRAFTON | C119: 1
A120: 111 | B120: GRANBY | C120: 1
A121: 112 | B121: GRANVILLE | C121: 0 | D121: fy13
A122: 113 | B122: GREAT BARRINGTON | C122: 0
A123: 114 | B123: GREENFIELD | C123: 1
A124: 115 | B124: GROTON | C124: 0
A125: 116 | B125: GROVELAND | C125: 0
A126: 117 | B126: HADLEY | C126: 1
A127: 118 | B127: HALIFAX | C127: 1
A128: 119 | B128: HAMILTON | C128: 0
A129: 120 | B129: HAMPDEN | C129: 0
A130: 121 | B130: HANCOCK | C130: 1
A131: 122 | B131: HANOVER | C131: 1
A132: 123 | B132: HANSON | C132: 0
A133: 124 | B133: HARDWICK | C133: 0
A134: 125 | B134: HARVARD | C134: 1
A135: 126 | B135: HARWICH | C135: 0 | D135: fy13
A136: 127 | B136: HATFIELD | C136: 1
A137: 128 | B137: HAVERHILL | C137: 1
A138: 129 | B138: HAWLEY | C138: 0
A139: 130 | B139: HEATH | C139: 0
A140: 131 | B140: HINGHAM | C140: 1
A141: 132 | B141: HINSDALE | C141: 0
A142: 133 | B142: HOLBROOK | C142: 1
A143: 134 | B143: HOLDEN | C143: 0
A144: 135 | B144: HOLLAND | C144: 1
A145: 136 | B145: HOLLISTON | C145: 1
A146: 137 | B146: HOLYOKE | C146: 1
A147: 138 | B147: HOPEDALE | C147: 1
A148: 139 | B148: HOPKINTON | C148: 1
A149: 140 | B149: HUBBARDSTON | C149: 0
A150: 141 | B150: HUDSON | C150: 1
A151: 142 | B151: HULL | C151: 1
A152: 143 | B152: HUNTINGTON | C152: 0
A153: 144 | B153: IPSWICH | C153: 1
A154: 145 | B154: KINGSTON | C154: 1
A155: 146 | B155: LAKEVILLE | C155: 0 | D155: fy12
A156: 147 | B156: LANCASTER | C156: 0
A157: 148 | B157: LANESBOROUGH | C157: 0 | D157: fy19
A158: 149 | B158: LAWRENCE | C158: 1
A159: 150 | B159: LEE | C159: 1
A160: 151 | B160: LEICESTER | C160: 1
A161: 152 | B161: LENOX | C161: 1
A162: 153 | B162: LEOMINSTER | C162: 1
A163: 154 | B163: LEVERETT | C163: 1
A164: 155 | B164: LEXINGTON | C164: 1
A165: 156 | B165: LEYDEN | C165: 0
A166: 157 | B166: LINCOLN | C166: 1
A167: 158 | B167: LITTLETON | C167: 1
A168: 159 | B168: LONGMEADOW | C168: 1
A169: 160 | B169: LOWELL | C169: 1
A170: 161 | B170: LUDLOW | C170: 1
A171: 162 | B171: LUNENBURG | C171: 1
A172: 163 | B172: LYNN | C172: 1
A173: 164 | B173: LYNNFIELD | C173: 1
A174: 165 | B174: MALDEN | C174: 1
A175: 166 | B175: MANCHESTER | C175: 0
A176: 167 | B176: MANSFIELD | C176: 1
A177: 168 | B177: MARBLEHEAD | C177: 1
A178: 169 | B178: MARION | C178: 1
A179: 170 | B179: MARLBOROUGH | C179: 1
A180: 171 | B180: MARSHFIELD | C180: 1
A181: 172 | B181: MASHPEE | C181: 1
A182: 173 | B182: MATTAPOISETT | C182: 1
A183: 174 | B183: MAYNARD | C183: 1
A184: 175 | B184: MEDFIELD | C184: 1
A185: 176 | B185: MEDFORD | C185: 1
A186: 177 | B186: MEDWAY | C186: 1
A187: 178 | B187: MELROSE | C187: 1
A188: 179 | B188: MENDON | C188: 0
A189: 180 | B189: MERRIMAC | C189: 0
A190: 181 | B190: METHUEN | C190: 1
A191: 182 | B191: MIDDLEBOROUGH | C191: 1
A192: 183 | B192: MIDDLEFIELD | C192: 0
A193: 184 | B193: MIDDLETON | C193: 1
A194: 185 | B194: MILFORD | C194: 1
A195: 186 | B195: MILLBURY | C195: 1
A196: 187 | B196: MILLIS | C196: 1
A197: 188 | B197: MILLVILLE | C197: 0
A198: 189 | B198: MILTON | C198: 1
A199: 190 | B199: MONROE | C199: 0
A200: 191 | B200: MONSON | C200: 1
A201: 192 | B201: MONTAGUE | C201: 0
A202: 193 | B202: MONTEREY | C202: 0
A203: 194 | B203: MONTGOMERY | C203: 0
A204: 195 | B204: MOUNT WASHINGTON | C204: 0
A205: 196 | B205: NAHANT | C205: 1
... 243 more rows

Sheet charterinfo
D1: Input fnd enro chalocsend | J1: 1
C2: standalone rate for 3519 Worcester Cultural Academy
K6: FY24 Q4
A7: Cha | B7: Order | E7: Cha | F7: Campus | G7: Send | H7: # of District/ | I7: Wage Adj | J7: low income | K7: Above | L7: Found | M7: Above | N7: Fac
A8: Lea | B8: # | C8: Drop Down Menu Chalocsend | D8: chalocsend | E8: Lea | F8: Lea | G8: Lea | H8: Campuses | I8: Factor | J8: group | K8: Fnd % | L8: Rate | M8: Fnd Rate | N8: Rate
B9: a | D9: b
A10: =IF(VALUE(MID(D10,1,1))=4,VALUE(MID(D10,1,3)),VALUE(MID(D10,1,4))) -> 409 | B10: 1 | C10: =IF(H10=1,A10 & " - " &VLOOKUP(A10,codeCHA,2)&" Charter School - "&VLOOKUP(G10,code436,2)&" pupils",IF(OR(A10=450,A10=466),A10 & " - " &VLOOKUP(A10,codeCHA,2)&" Charter School - "&VLOOKUP(F10,code436,2)&" District - "&VLOOKUP(G10,code436,2)&" pupils",A10 & " - " &VLOOKUP(A10,codeCHA,2)&" Charter School - "&VLOOKUP(F10,code436,2)&" Campus - "&VLOOKUP(G10,code436,2)&" pupils")) -> 409 - ALMA DEL MAR Charter School - ACUSHNET pupils | D10: 409201003 | E10: =A10 -> 409 | F10: =IF(VALUE(MID(D10,1,1))=4,VALUE(MID(D10,4,3)),VALUE(MID(D10,5,3))) -> 201 | G10: =IF(VALUE(MID(D10,1,1))=4,VALUE(MID(D10,7,3)),VALUE(MID(D10,8,3))) -> 3 | H10: =IF(OR(A10=410,A10=466,A10=487,A10=499),2,1) -> 1 | I10: =VLOOKUP(F10,distinfo,4) -> 1 | J10: =VLOOKUP(D10,enro_chafnd,16) -> 7 | K10: =VLOOKUP(G10,distinfo,6) -> 105.8549371 | L10: =IF(VLOOKUP(D10,rate_chafnd,40,FALSE)>0,VLOOKUP(D10,rate_chafnd,40),VLOOKUP(G10,distinfo,7)) -> 11037 | M10: =ROUND((L10*K10/100)-L10,0) -> 646 | N10: =VLOOKUP(G10,distinfo,9) -> 1188
A11: 409 | B11: 2 | C11: 409 - ALMA DEL MAR Charter School - DARTMOUTH pupils | D11: 409201072 | E11: 409 | F11: 201 | G11: 72 | H11: =IF(OR(A11=410,A11=466,A11=487,A11=499),2,1) -> 1 | I11: 1 | J11: 6 | K11: 125.2345587 | L11: 19153 | M11: =ROUND((L11*K11/100)-L11,0) -> 4833 | N11: 1188
A12: 409 | B12: 3 | C12: 409 - ALMA DEL MAR Charter School - FALL RIVER pupils | D12: 409201095 | E12: 409 | F12: 201 | G12: 95 | H12: 1 | I12: 1 | J12: 12 | K12: 100.9534948 | L12: 19178 | M12: 183 | N12: 1188
A13: 409 | B13: 4 | C13: 409 - ALMA DEL MAR Charter School - NEW BEDFORD pupils | D13: 409201201 | E13: 409 | F13: 201 | G13: 201 | H13: 1 | I13: 1 | J13: 12 | K13: 100.5245174 | L13: 18552 | M13: 97 | N13: 1188
A14: 409 | B14: 5 | C14: 409 - ALMA DEL MAR Charter School - WESTPORT pupils | D14: 409201331 | E14: 409 | F14: 201 | G14: 331 | H14: 1 | I14: 1 | J14: 7 | K14: 119.0811251 | L14: 16684 | M14: 3183 | N14: 1188
A15: 410 | B15: 6 | C15: 410 - EXCEL ACADEMY Charter School - BOSTON Campus - BOSTON pupils | D15: 410035035 | E15: 410 | F15: 35 | G15: 35 | H15: 2 | I15: 1.087 | J15: 11 | K15: 137.8639369 | L15: 19286 | M15: 7302 | N15: 1188
A16: 410 | B16: 7 | C16: 410 - EXCEL ACADEMY Charter School - BOSTON Campus - BROCKTON pupils | D16: 410035044 | E16: 410 | F16: 35 | G16: 44 | H16: 2 | I16: 1.087 | J16: 11 | K16: 103.4876437 | L16: 12407 | M16: 433 | N16: 1188
A17: 410 | B17: 8 | C17: 410 - EXCEL ACADEMY Charter School - BOSTON Campus - CHELSEA pupils | D17: 410035057 | E17: 410 | F17: 35 | G17: 57 | H17: 2 | I17: 1.087 | J17: 12 | K17: 101.740524 | L17: 19746 | M17: 344 | N17: 1188
A18: 410 | B18: 9 | C18: 410 - EXCEL ACADEMY Charter School - BOSTON Campus - EVERETT pupils | D18: 410035093 | E18: 410 | F18: 35 | G18: 93 | H18: 2 | I18: 1.087 | J18: 11 | K18: 100 | L18: 20939 | M18: 0 | N18: 1188
A19: 410 | B19: 10 | C19: 410 - EXCEL ACADEMY Charter School - BOSTON Campus - LEOMINSTER pupils | D19: 410035153 | E19: 410 | F19: 35 | G19: 153 | H19: 2 | I19: 1.087 | J19: 10 | K19: 100.1294538 | L19: 21152 | M19: 27 | N19: 1188
A20: 410 | B20: 11 | C20: 410 - EXCEL ACADEMY Charter School - BOSTON Campus - LOWELL pupils | D20: 410035160 | E20: 410 | F20: 35 | G20: 160 | H20: 2 | I20: 1.087 | J20: 11 | K20: 101.5606882 | L20: 13434 | M20: 210 | N20: 1188
A21: 410 | B21: 12 | C21: 410 - EXCEL ACADEMY Charter School - BOSTON Campus - LYNN pupils | D21: 410035163 | E21: 410 | F21: 35 | G21: 163 | H21: 2 | I21: 1.087 | J21: 11 | K21: 100 | L21: 19885 | M21: 0 | N21: 1188
A22: 410 | B22: 13 | C22: 410 - EXCEL ACADEMY Charter School - BOSTON Campus - MALDEN pupils | D22: 410035165 | E22: 410 | F22: 35 | G22: 165 | H22: 2 | I22: 1.087 | J22: 10 | K22: 100 | L22: 19462 | M22: 0 | N22: 1188
A23: 410 | B23: 14 | C23: 410 - EXCEL ACADEMY Charter School - BOSTON Campus - MEDFORD pupils | D23: 410035176 | E23: 410 | F23: 35 | G23: 176 | H23: 2 | I23: 1.087 | J23: 8 | K23: 125.1151069 | L23: 20196 | M23: 5072 | N23: 1188
A24: 410 | B24: 15 | C24: 410 - EXCEL ACADEMY Charter School - BOSTON Campus - PEABODY pupils | D24: 410035229 | E24: 410 | F24: 35 | G24: 229 | H24: 2 | I24: 1.087 | J24: 9 | K24: 108.6112492 | L24: 13434 | M24: 1157 | N24: 1188
A25: 410 | B25: 16 | C25: 410 - EXCEL ACADEMY Charter School - BOSTON Campus - RANDOLPH pupils | D25: 410035244 | E25: 410 | F25: 35 | G25: 244 | H25: 2 | I25: 1.087 | J25: 10 | K25: 128.6167973 | L25: 17293 | M25: 4949 | N25: 1188
A26: 410 | B26: 17 | C26: 410 - EXCEL ACADEMY Charter School - BOSTON Campus - REVERE pupils | D26: 410035248 | E26: 410 | F26: 35 | G26: 248 | H26: 2 | I26: 1.087 | J26: 11 | K26: 103.2263412 | L26: 17980 | M26: 580 | N26: 1188
A27: 410 | B27: 18 | C27: 410 - EXCEL ACADEMY Charter School - BOSTON Campus - SAUGUS pupils | D27: 410035262 | E27: 410 | F27: 35 | G27: 262 | H27: 2 | I27: 1.087 | J27: 9 | K27: 112.5350999 | L27: 15244 | M27: 1911 | N27: 1188
A28: 410 | B28: 19 | C28: 410 - EXCEL ACADEMY Charter School - BOSTON Campus - WINTHROP pupils | D28: 410035346 | E28: 410 | F28: 35 | G28: 346 | H28: 2 | I28: 1.087 | J28: 8 | K28: 110.8491835 | L28: 15840 | M28: 1719 | N28: 1188
A29: 410 | B29: 20 | C29: 410 - EXCEL ACADEMY Charter School - CHELSEA Campus - BOSTON pupils | D29: 410057035 | E29: 410 | F29: 57 | G29: 35 | H29: 2 | I29: 1.04 | J29: 11 | K29: 137.8639369 | L29: 19540 | M29: 7399 | N29: 1188
A30: 410 | B30: 21 | C30: 410 - EXCEL ACADEMY Charter School - CHELSEA Campus - CHELSEA pupils | D30: 410057057 | E30: 410 | F30: 57 | G30: 57 | H30: 2 | I30: 1.04 | J30: 12 | K30: 101.740524 | L30: 18562 | M30: 323 | N30: 1188
A31: 410 | B31: 22 | C31: 410 - EXCEL ACADEMY Charter School - CHELSEA Campus - EVERETT pupils | D31: 410057093 | E31: 410 | F31: 57 | G31: 93 | H31: 2 | I31: 1.04 | J31: 11 | K31: 100 | L31: 16793 | M31: 0 | N31: 1188
A32: 410 | B32: 23 | C32: 410 - EXCEL ACADEMY Charter School - CHELSEA Campus - LOWELL pupils | D32: 410057160 | E32: 410 | F32: 57 | G32: 160 | H32: 2 | I32: 1.04 | J32: 11 | K32: 101.5606882 | L32: 10993 | M32: 172 | N32: 1188
A33: 410 | B33: 24 | C33: 410 - EXCEL ACADEMY Charter School - CHELSEA Campus - LYNN pupils | D33: 410057163 | E33: 410 | F33: 57 | G33: 163 | H33: 2 | I33: 1.04 | J33: 11 | K33: 100 | L33: 15052 | M33: 0 | N33: 1188
A34: 410 | B34: 25 | C34: 410 - EXCEL ACADEMY Charter School - CHELSEA Campus - REVERE pupils | D34: 410057248 | E34: 410 | F34: 57 | G34: 248 | H34: 2 | I34: 1.04 | J34: 11 | K34: 103.2263412 | L34: 18396 | M34: 594 | N34: 1188
A35: 412 | B35: 26 | C35: 412 - ACADEMY OF THE PACIFIC RIM Charter School - BOSTON pupils | D35: 412035035 | E35: 412 | F35: 35 | G35: 35 | H35: 1 | I35: 1.087 | J35: 11 | K35: 137.8639369 | L35: 18913 | M35: 7161 | N35: 1188
A36: 412 | B36: 27 | C36: 412 - ACADEMY OF THE PACIFIC RIM Charter School - BROCKTON pupils | D36: 412035044 | E36: 412 | F36: 35 | G36: 44 | H36: 1 | I36: 1.087 | J36: 11 | K36: 103.4876437 | L36: 17269 | M36: 602 | N36: 1188
A37: 412 | B37: 28 | C37: 412 - ACADEMY OF THE PACIFIC RIM Charter School - CANTON pupils | D37: 412035050 | E37: 412 | F37: 35 | G37: 50 | H37: 1 | I37: 1.087 | J37: 5 | K37: 142.1590565 | L37: 19393 | M37: 8176 | N37: 1188
A38: 412 | B38: 29 | C38: 412 - ACADEMY OF THE PACIFIC RIM Charter School - DEDHAM pupils | D38: 412035073 | E38: 412 | F38: 35 | G38: 73 | H38: 1 | I38: 1.087 | J38: 6 | K38: 176.1314334 | L38: 19407 | M38: 14775 | N38: 1188
A39: 412 | B39: 30 | C39: 412 - ACADEMY OF THE PACIFIC RIM Charter School - FALL RIVER pupils | D39: 412035095 | E39: 412 | F39: 35 | G39: 95 | H39: 1 | I39: 1.087 | J39: 12 | K39: 100.9534948 | L39: 22607 | M39: 216 | N39: 1188
A40: 412 | B40: 31 | C40: 412 - ACADEMY OF THE PACIFIC RIM Charter School - MILTON pupils | D40: 412035189 | E40: 412 | F40: 35 | G40: 189 | H40: 1 | I40: 1.087 | J40: 3 | K40: 134.1550068 | L40: 17851 | M40: 6097 | N40: 1188
A41: 412 | B41: 32 | C41: 412 - ACADEMY OF THE PACIFIC RIM Charter School - NEWTON pupils | D41: 412035207 | E41: 412 | F41: 35 | G41: 207 | H41: 1 | I41: 1.087 | J41: 3 | K41: 172.3510892 | L41: 16240 | M41: 11750 | N41: 1188
A42: 412 | B42: 33 | C42: 412 - ACADEMY OF THE PACIFIC RIM Charter School - NORWOOD pupils | D42: 412035220 | E42: 412 | F42: 35 | G42: 220 | H42: 1 | I42: 1.087 | J42: 8 | K42: 132.965226 | L42: 18655 | M42: 6150 | N42: 1188
A43: 412 | B43: 34 | C43: 412 - ACADEMY OF THE PACIFIC RIM Charter School - QUINCY pupils | D43: 412035243 | E43: 412 | F43: 35 | G43: 243 | H43: 1 | I43: 1.087 | J43: 9 | K43: 110.7391276 | L43: 11379 | M43: 1222 | N43: 1188
A44: 412 | B44: 35 | C44: 412 - ACADEMY OF THE PACIFIC RIM Charter School - RANDOLPH pupils | D44: 412035244 | E44: 412 | F44: 35 | G44: 244 | H44: 1 | I44: 1.087 | J44: 10 | K44: 128.6167973 | L44: 12407 | M44: 3550 | N44: 1188
A45: 412 | B45: 36 | C45: 412 - ACADEMY OF THE PACIFIC RIM Charter School - SOMERVILLE pupils | D45: 412035274 | E45: 412 | F45: 35 | G45: 274 | H45: 1 | I45: 1.087 | J45: 10 | K45: 144.2990824 | L45: 21152 | M45: 9370 | N45: 1188
A46: 412 | B46: 37 | C46: 412 - ACADEMY OF THE PACIFIC RIM Charter School - STOUGHTON pupils | D46: 412035285 | E46: 412 | F46: 35 | G46: 285 | H46: 1 | I46: 1.087 | J46: 9 | K46: 118.9049697 | L46: 16027 | M46: 3030 | N46: 1188
A47: 412 | B47: 38 | C47: 412 - ACADEMY OF THE PACIFIC RIM Charter School - TAUNTON pupils | D47: 412035293 | E47: 412 | F47: 35 | G47: 293 | H47: 1 | I47: 1.087 | J47: 10 | K47: 103.4677668 | L47: 16883 | M47: 585 | N47: 1188
A48: 412 | B48: 39 | C48: 412 - ACADEMY OF THE PACIFIC RIM Charter School - BRIDGEWATER RAYNHAM pupils | D48: 412035625 | E48: 412 | F48: 35 | G48: 625 | H48: 1 | I48: 1.087 | J48: 6 | K48: 108.6473148 | L48: 17186 | M48: 1486 | N48: 1188
A49: 413 | B49: 40 | C49: 413 - FOUR RIVERS Charter School - ERVING pupils | D49: 413114091 | E49: 413 | F49: 114 | G49: 91 | H49: 1 | I49: 1 | J49: 9 | K49: 213.2082214 | L49: 12565 | M49: 14225 | N49: 1188
A50: 413 | B50: 41 | C50: 413 - FOUR RIVERS Charter School - GREENFIELD pupils | D50: 413114114 | E50: 413 | F50: 114 | G50: 114 | H50: 1 | I50: 1 | J50: 10 | K50: 120.1742246 | L50: 14485 | M50: 2922 | N50: 1188
A51: 413 | B51: 42 | C51: 413 - FOUR RIVERS Charter School - HATFIELD pupils | D51: 413114127 | E51: 413 | F51: 114 | G51: 127 | H51: 1 | I51: 1 | J51: 4 | K51: 197.5314038 | L51: 12565 | M51: 12255 | N51: 1188
A52: 413 | B52: 43 | C52: 413 - FOUR RIVERS Charter School - NORTHAMPTON pupils | D52: 413114210 | E52: 413 | F52: 114 | G52: 210 | H52: 1 | I52: 1 | J52: 6 | K52: 131.1605212 | L52: 12565 | M52: 3915 | N52: 1188
A53: 413 | B53: 44 | C53: 413 - FOUR RIVERS Charter School - ROWE pupils | D53: 413114253 | E53: 413 | F53: 114 | G53: 253 | H53: 1 | I53: 1 | J53: 10 | K53: 298.6397065 | L53: 12565 | M53: 24959 | N53: 1188
A54: 413 | B54: 45 | C54: 413 - FOUR RIVERS Charter School - WARWICK pupils | D54: 413114312 | E54: 413 | F54: 114 | G54: 312 | H54: 1 | I54: 1 | J54: 8 | K54: 130.92272 | L54: 11615 | M54: 3592 | N54: 1188
A55: 413 | B55: 46 | C55: 413 - FOUR RIVERS Charter School - AMHERST PELHAM pupils | D55: 413114605 | E55: 413 | F55: 114 | G55: 605 | H55: 1 | I55: 1 | J55: 6 | K55: 163.6223144 | L55: 16054 | M55: 10214 | N55: 1188
A56: 413 | B56: 47 | C56: 413 - FOUR RIVERS Charter School - BERKSHIRE HILLS pupils | D56: 413114618 | E56: 413 | F56: 114 | G56: 618 | H56: 1 | I56: 1 | J56: 8 | K56: 201.6074105 | L56: 12565 | M56: 12767 | N56: 1188
A57: 413 | B57: 48 | C57: 413 - FOUR RIVERS Charter School - FRONTIER pupils | D57: 413114670 | E57: 413 | F57: 114 | G57: 670 | H57: 1 | I57: 1 | J57: 6 | K57: 175.8131004 | L57: 13556 | M57: 10277 | N57: 1188
A58: 413 | B58: 49 | C58: 413 - FOUR RIVERS Charter School - GILL MONTAGUE pupils | D58: 413114674 | E58: 413 | F58: 114 | G58: 674 | H58: 1 | I58: 1 | J58: 10 | K58: 138.3151183 | L58: 15329 | M58: 5873 | N58: 1188
A59: 413 | B59: 50 | C59: 413 - FOUR RIVERS Charter School - MOHAWK TRAIL pupils | D59: 413114717 | E59: 413 | F59: 114 | G59: 717 | H59: 1 | I59: 1 | J59: 9 | K59: 147.7089861 | L59: 15772 | M59: 7525 | N59: 1188
A60: 413 | B60: 51 | C60: 413 - FOUR RIVERS Charter School - PIONEER pupils | D60: 413114750 | E60: 413 | F60: 114 | G60: 750 | H60: 1 | I60: 1 | J60: 7 | K60: 157.2410928 | L60: 14735 | M60: 8434 | N60: 1188
A61: 413 | B61: 52 | C61: 413 - FOUR RIVERS Charter School - RALPH C MAHAR pupils | D61: 413114755 | E61: 413 | F61: 114 | G61: 755 | H61: 1 | I61: 1 | J61: 10 | K61: 151.8673184 | L61: 13207 | M61: 6850 | N61: 1188
A62: 414 | B62: 53 | C62: 414 - BERKSHIRE ARTS AND TECHNOLOGY Charter School - CLARKSBURG pupils | D62: 414603063 | E62: 414 | F62: 603 | G62: 63 | H62: 1 | I62: 1 | J62: 8 | K62: 135.4567369 | L62: 14658 | M62: 5197 | N62: 1188
A63: 414 | B63: 54 | C63: 414 - BERKSHIRE ARTS AND TECHNOLOGY Charter School - FLORIDA pupils | D63: 414603098 | E63: 414 | F63: 603 | G63: 98 | H63: 1 | I63: 1 | J63: 8 | K63: 171.3396897 | L63: 16941 | M63: 12086 | N63: 1188
A64: 414 | B64: 55 | C64: 414 - BERKSHIRE ARTS AND TECHNOLOGY Charter School - HANCOCK pupils | D64: 414603121 | E64: 414 | F64: 603 | G64: 121 | H64: 1 | I64: 1 | J64: 9 | K64: 171.241798 | L64: 17384 | M64: 12385 | N64: 1188
A65: 414 | B65: 56 | C65: 414 - BERKSHIRE ARTS AND TECHNOLOGY Charter School - LEE pupils | D65: 414603150 | E65: 414 | F65: 603 | G65: 150 | H65: 1 | I65: 1 | J65: 8 | K65: 153.1627603 | L65: 10664 | M65: 5669 | N65: 1188
A66: 414 | B66: 57 | C66: 414 - BERKSHIRE ARTS AND TECHNOLOGY Charter School - NORTH ADAMS pupils | D66: 414603209 | E66: 414 | F66: 603 | G66: 209 | H66: 1 | I66: 1 | J66: 11 | K66: 119.6783926 | L66: 17449 | M66: 3434 | N66: 1188
A67: 414 | B67: 58 | C67: 414 - BERKSHIRE ARTS AND TECHNOLOGY Charter School - PITTSFIELD pupils | D67: 414603236 | E67: 414 | F67: 603 | G67: 236 | H67: 1 | I67: 1 | J67: 11 | K67: 113.681008 | L67: 17150 | M67: 2346 | N67: 1188
A68: 414 | B68: 59 | C68: 414 - BERKSHIRE ARTS AND TECHNOLOGY Charter School - SAVOY pupils | D68: 414603263 | E68: 414 | F68: 603 | G68: 263 | H68: 1 | I68: 1 | J68: 11 | K68: 171.3797979 | L68: 12565 | M68: 8969 | N68: 1188
A69: 414 | B69: 60 | C69: 414 - BERKSHIRE ARTS AND TECHNOLOGY Charter School - HOOSAC VALLEY pupils | D69: 414603603 | E69: 414 | F69: 603 | G69: 603 | H69: 1 | I69: 1 | J69: 10 | K69: 112.9619629 | L69: 15826 | M69: 2051 | N69: 1188
A70: 414 | B70: 61 | C70: 414 - BERKSHIRE ARTS AND TECHNOLOGY Charter School - CENTRAL BERKSHIRE pupils | D70: 414603635 | E70: 414 | F70: 603 | G70: 635 | H70: 1 | I70: 1 | J70: 8 | K70: 127.2207222 | L70: 14177 | M70: 3859 | N70: 1188
A71: 414 | B71: 62 | C71: 414 - BERKSHIRE ARTS AND TECHNOLOGY Charter School - MOUNT GREYLOCK pupils | D71: 414603715 | E71: 414 | F71: 603 | G71: 715 | H71: 1 | I71: 1 | J71: 6 | K71: 150.1472979 | L71: 14310 | M71: 7176 | N71: 1188
A72: 416 | B72: 63 | C72: 416 - BOSTON PREPARATORY Charter School - AVON pupils | D72: 416035018 | E72: 416 | F72: 35 | G72: 18 | H72: 1 | I72: 1.087 | J72: 9 | K72: 132.9199711 | L72: 20674 | M72: 6806 | N72: 1188
A73: 416 | B73: 64 | C73: 416 - BOSTON PREPARATORY Charter School - BEVERLY pupils | D73: 416035030 | E73: 416 | F73: 35 | G73: 30 | H73: 1 | I73: 1.087 | J73: 7 | K73: 120.3288823 | L73: 17663 | M73: 3591 | N73: 1188
A74: =IF(VALUE(MID(D74,1,1))=4,VALUE(MID(D74,1,3)),VALUE(MID(D74,1,4))) -> 416 | B74: 65 | C74: =IF(H74=1,A74 & " - " &VLOOKUP(A74,codeCHA,2)&" Charter School - "&VLOOKUP(G74,code436,2)&" pupils",IF(OR(A74=450,A74=466),A74 & " - " &VLOOKUP(A74,codeCHA,2)&" Charter School - "&VLOOKUP(F74,code436,2)&" District - "&VLOOKUP(G74,code436,2)&" pupils",A74 & " - " &VLOOKUP(A74,codeCHA,2)&" Charter School - "&VLOOKUP(F74,code436,2)&" Campus - "&VLOOKUP(G74,code436,2)&" pupils")) -> 416 - BOSTON PREPARATORY Charter School - BOSTON pupils | D74: 416035035 | E74: =A74 -> 416 | F74: =IF(VALUE(MID(D74,1,1))=4,VALUE(MID(D74,4,3)),VALUE(MID(D74,5,3))) -> 35 | G74: =IF(VALUE(MID(D74,1,1))=4,VALUE(MID(D74,7,3)),VALUE(MID(D74,8,3))) -> 35 | H74: 1 | I74: =VLOOKUP(F74,distinfo,4) -> 1.087 | J74: =VLOOKUP(D74,enro_chafnd,16) -> 11 | K74: =VLOOKUP(G74,distinfo,6) -> 137.8639369 | L74: =IF(VLOOKUP(D74,rate_chafnd,40,FALSE)>0,VLOOKUP(D74,rate_chafnd,40),VLOOKUP(G74,distinfo,7)) -> 19528 | M74: =ROUND((L74*K74/100)-L74,0) -> 7394 | N74: =VLOOKUP(G74,distinfo,9) -> 1188
A75: 416 | B75: 66 | C75: 416 - BOSTON PREPARATORY Charter School - BROCKTON pupils | D75: 416035044 | E75: 416 | F75: 35 | G75: 44 | H75: =IF(OR(A75=410,A75=466,A75=487,A75=499),2,1) -> 1 | I75: 1.087 | J75: 11 | K75: 103.4876437 | L75: 18299 | M75: 638 | N75: 1188
A76: 416 | B76: 67 | C76: 416 - BOSTON PREPARATORY Charter School - CANTON pupils | D76: 416035050 | E76: 416 | F76: 35 | G76: 50 | H76: 1 | I76: 1.087 | J76: 5 | K76: 142.1590565 | L76: 19860 | M76: 8373 | N76: 1188
A77: 416 | B77: 68 | C77: 416 - BOSTON PREPARATORY Charter School - DEDHAM pupils | D77: 416035073 | E77: 416 | F77: 35 | G77: 73 | H77: 1 | I77: 1.087 | J77: 6 | K77: 176.1314334 | L77: 13434 | M77: 10227 | N77: 1188
A78: 416 | B78: 69 | C78: 416 - BOSTON PREPARATORY Charter School - HOLBROOK pupils | D78: 416035133 | E78: 416 | F78: 35 | G78: 133 | H78: 1 | I78: 1.087 | J78: 9 | K78: 104.3114226 | L78: 14602 | M78: 630 | N78: 1188
A79: 416 | B79: 70 | C79: 416 - BOSTON PREPARATORY Charter School - MILTON pupils | D79: 416035189 | E79: 416 | F79: 35 | G79: 189 | H79: 1 | I79: 1.087 | J79: 3 | K79: 134.1550068 | L79: 17267 | M79: 5898 | N79: 1188
A80: 416 | B80: 71 | C80: 416 - BOSTON PREPARATORY Charter School - QUINCY pupils | D80: 416035243 | E80: 416 | F80: 35 | G80: 243 | H80: 1 | I80: 1.087 | J80: 9 | K80: 110.7391276 | L80: 16027 | M80: 1721 | N80: 1188
A81: 416 | B81: 72 | C81: 416 - BOSTON PREPARATORY Charter School - RANDOLPH pupils | D81: 416035244 | E81: 416 | F81: 35 | G81: 244 | H81: 1 | I81: 1.087 | J81: 10 | K81: 128.6167973 | L81: 20123 | M81: 5759 | N81: 1188
A82: 416 | B82: 73 | C82: 416 - BOSTON PREPARATORY Charter School - SOMERVILLE pupils | D82: 416035274 | E82: 416 | F82: 35 | G82: 274 | H82: 1 | I82: 1.087 | J82: 10 | K82: 144.2990824 | L82: 21152 | M82: 9370 | N82: 1188
A83: 416 | B83: 74 | C83: 416 - BOSTON PREPARATORY Charter School - STOUGHTON pupils | D83: 416035285 | E83: 416 | F83: 35 | G83: 285 | H83: 1 | I83: 1.087 | J83: 9 | K83: 118.9049697 | L83: 13434 | M83: 2540 | N83: 1188
A84: 417 | B84: 75 | C84: 417 - BRIDGE BOSTON Charter School - BOSTON pupils | D84: 417035035 | E84: 417 | F84: 35 | G84: 35 | H84: 1 | I84: 1.087 | J84: 11 | K84: 137.8639369 | L84: 19510 | M84: 7387 | N84: 1188
A85: 417 | B85: 76 | C85: 417 - BRIDGE BOSTON Charter School - BRAINTREE pupils | D85: 417035040 | E85: 417 | F85: 35 | G85: 40 | H85: 1 | I85: 1.087 | J85: 6 | K85: 126.440754 | L85: 17600 | M85: 4654 | N85: 1188
A86: 417 | B86: 77 | C86: 417 - BRIDGE BOSTON Charter School - BROCKTON pupils | D86: 417035044 | E86: 417 | F86: 35 | G86: 44 | H86: 1 | I86: 1.087 | J86: 11 | K86: 103.4876437 | L86: 11794 | M86: 411 | N86: 1188
A87: 417 | B87: 78 | C87: 417 - BRIDGE BOSTON Charter School - FRAMINGHAM pupils | D87: 417035100 | E87: 417 | F87: 35 | G87: 100 | H87: 1 | I87: 1.087 | J87: 10 | K87: 125.245701 | L87: 19373 | M87: 4891 | N87: 1188
A88: 417 | B88: 79 | C88: 417 - BRIDGE BOSTON Charter School - HOLBROOK pupils | D88: 417035133 | E88: 417 | F88: 35 | G88: 133 | H88: 1 | I88: 1.087 | J88: 9 | K88: 104.3114226 | L88: 11656 | M88: 503 | N88: 1188
A89: 417 | B89: 80 | C89: 417 - BRIDGE BOSTON Charter School - RANDOLPH pupils | D89: 417035244 | E89: 417 | F89: 35 | G89: 244 | H89: 1 | I89: 1.087 | J89: 10 | K89: 128.6167973 | L89: 16796 | M89: 4806 | N89: 1188
A90: 417 | B90: 81 | C90: 417 - BRIDGE BOSTON Charter School - STOUGHTON pupils | D90: 417035285 | E90: 417 | F90: 35 | G90: 285 | H90: 1 | I90: 1.087 | J90: 9 | K90: 118.9049697 | L90: 14257 | M90: 2695 | N90: 1188
A91: 418 | B91: 82 | C91: 418 - CHRISTA MCAULIFFE Charter School - ASHLAND pupils | D91: 418100014 | E91: 418 | F91: 100 | G91: 14 | H91: 1 | I91: 1.017 | J91: 5 | K91: 122.9745182 | L91: 10804 | M91: 2482 | N91: 1188
A92: 418 | B92: 83 | C92: 418 - CHRISTA MCAULIFFE Charter School - FRAMINGHAM pupils | D92: 418100100 | E92: 418 | F92: 100 | G92: 100 | H92: 1 | I92: 1.017 | J92: 10 | K92: 125.245701 | L92: 15201 | M92: 3838 | N92: 1188
A93: 418 | B93: 84 | C93: 418 - CHRISTA MCAULIFFE Charter School - HOLLISTON pupils | D93: 418100136 | E93: 418 | F93: 100 | G93: 136 | H93: 1 | I93: 1.017 | J93: 3 | K93: 132.2922875 | L93: 11949 | M93: 3859 | N93: 1188
A94: 418 | B94: 85 | C94: 418 - CHRISTA MCAULIFFE Charter School - MARLBOROUGH pupils | D94: 418100170 | E94: 418 | F94: 100 | G94: 170 | H94: 1 | I94: 1.017 | J94: 10 | K94: 105.5317585 | L94: 13713 | M94: 759 | N94: 1188
A95: 418 | B95: 86 | C95: 418 - CHRISTA MCAULIFFE Charter School - NATICK pupils | D95: 418100198 | E95: 418 | F95: 100 | G95: 198 | H95: 1 | I95: 1.017 | J95: 3 | K95: 152.1479944 | L95: 10804 | M95: 5634 | N95: 1188
A96: 418 | B96: 87 | C96: 418 - CHRISTA MCAULIFFE Charter School - SOUTHBOROUGH pupils | D96: 418100276 | E96: 418 | F96: 100 | G96: 276 | H96: 1 | I96: 1.017 | J96: 2 | K96: 191.8002844 | L96: 10804 | M96: 9918 | N96: 1188
A97: 418 | B97: 88 | C97: 418 - CHRISTA MCAULIFFE Charter School - WALTHAM pupils | D97: 418100308 | E97: 418 | F97: 100 | G97: 308 | H97: 1 | I97: 1.017 | J97: 10 | K97: 126.8136302 | L97: 10804 | M97: 2897 | N97: 1188
A98: 418 | B98: 89 | C98: 418 - CHRISTA MCAULIFFE Charter School - WAYLAND pupils | D98: 418100315 | E98: 418 | F98: 100 | G98: 315 | H98: 1 | I98: 1.017 | J98: 2 | K98: 165.5293024 | L98: 10804 | M98: 7080 | N98: 1188
A99: 418 | B99: 90 | C99: 418 - CHRISTA MCAULIFFE Charter School - WESTBOROUGH pupils | D99: 418100321 | E99: 418 | F99: 100 | G99: 321 | H99: 1 | I99: 1.017 | J99: 4 | K99: 151.4444391 | L99: 10804 | M99: 5558 | N99: 1188
A100: 418 | B100: 91 | C100: 418 - CHRISTA MCAULIFFE Charter School - WORCESTER pupils | D100: 418100348 | E100: 418 | F100: 100 | G100: 348 | H100: 1 | I100: 1.017 | J100: 11 | K100: 100.3824887 | L100: 14783 | M100: 57 | N100: 1188
A101: 418 | B101: 92 | C101: 418 - CHRISTA MCAULIFFE Charter School - KING PHILIP pupils | D101: 418100690 | E101: 418 | F101: 100 | G101: 690 | H101: 1 | I101: 1.017 | J101: 4 | K101: 150.6029655 | L101: 10804 | M101: 5467 | N101: 1188
A102: 420 | B102: 93 | C102: 420 - BENJAMIN BANNEKER Charter School - ARLINGTON pupils | D102: 420049010 | E102: 420 | F102: 49 | G102: 10 | H102: 1 | I102: 1.112 | J102: 3 | K102: 141.9712105 | L102: 15209 | M102: 6383 | N102: 1188
A103: 420 | B103: 94 | C103: 420 - BENJAMIN BANNEKER Charter School - ATTLEBORO pupils | D103: 420049016 | E103: 420 | F103: 49 | G103: 16 | H103: 1 | I103: 1.112 | J103: 8 | K103: 101.0866456 | L103: 18699 | M103: 203 | N103: 1188
A104: 420 | B104: 95 | C104: 420 - BENJAMIN BANNEKER Charter School - BELMONT pupils | D104: 420049026 | E104: 420 | F104: 49 | G104: 26 | H104: 1 | I104: 1.112 | J104: 3 | K104: 132.1647799 | L104: 13251 | M104: 4262 | N104: 1188
A105: 420 | B105: 96 | C105: 420 - BENJAMIN BANNEKER Charter School - BILLERICA pupils | D105: 420049031 | E105: 420 | F105: 49 | G105: 31 | H105: 1 | I105: 1.112 | J105: 5 | K105: 144.8845911 | L105: 12011 | M105: 5391 | N105: 1188
A106: 420 | B106: 97 | C106: 420 - BENJAMIN BANNEKER Charter School - BOSTON pupils | D106: 420049035 | E106: 420 | F106: 49 | G106: 35 | H106: 1 | I106: 1.112 | J106: 11 | K106: 137.8639369 | L106: 17359 | M106: 6573 | N106: 1188
A107: 420 | B107: 98 | C107: 420 - BENJAMIN BANNEKER Charter School - BROCKTON pupils | D107: 420049044 | E107: 420 | F107: 49 | G107: 44 | H107: 1 | I107: 1.112 | J107: 11 | K107: 103.4876437 | L107: 18422 | M107: 642 | N107: 1188
A108: 420 | B108: 99 | C108: 420 - BENJAMIN BANNEKER Charter School - CAMBRIDGE pupils | D108: 420049049 | E108: 420 | F108: 49 | G108: 49 | H108: 1 | I108: 1.112 | J108: 7 | K108: 225.2108124 | L108: 17259 | M108: 21610 | N108: 1188
A109: 420 | B109: 100 | C109: 420 - BENJAMIN BANNEKER Charter School - CHELSEA pupils | D109: 420049057 | E109: 420 | F109: 49 | G109: 57 | H109: 1 | I109: 1.112 | J109: 12 | K109: 101.740524 | L109: 12011 | M109: 209 | N109: 1188
A110: 420 | B110: 101 | C110: 420 - BENJAMIN BANNEKER Charter School - EVERETT pupils | D110: 420049093 | E110: 420 | F110: 49 | G110: 93 | H110: 1 | I110: 1.112 | J110: 11 | K110: 100 | L110: 15733 | M110: 0 | N110: 1188
A111: 420 | B111: 102 | C111: 420 - BENJAMIN BANNEKER Charter School - FITCHBURG pupils | D111: 420049097 | E111: 420 | F111: 49 | G111: 97 | H111: 1 | I111: 1.112 | J111: 11 | K111: 100 | L111: 20571 | M111: 0 | N111: 1188
A112: 420 | B112: 103 | C112: 420 - BENJAMIN BANNEKER Charter School - HAVERHILL pupils | D112: 420049128 | E112: 420 | F112: 49 | G112: 128 | H112: 1 | I112: 1.112 | J112: 10 | K112: 103.6071537 | L112: 19888 | M112: 717 | N112: 1188
A113: 420 | B113: 104 | C113: 420 - BENJAMIN BANNEKER Charter School - LEOMINSTER pupils | D113: 420049153 | E113: 420 | F113: 49 | G113: 153 | H113: 1 | I113: 1.112 | J113: 10 | K113: 100.1294538 | L113: 14617 | M113: 19 | N113: 1188
A114: 420 | B114: 105 | C114: 420 - BENJAMIN BANNEKER Charter School - LEXINGTON pupils | D114: 420049155 | E114: 420 | F114: 49 | G114: 155 | H114: 1 | I114: 1.112 | J114: 2 | K114: 179.7375535 | L114: 10059 | M114: 8021 | N114: 1188
A115: 420 | B115: 106 | C115: 420 - BENJAMIN BANNEKER Charter School - LYNN pupils | D115: 420049163 | E115: 420 | F115: 49 | G115: 163 | H115: 1 | I115: 1.112 | J115: 11 | K115: 100 | L115: 12011 | M115: 0 | N115: 1188
A116: 420 | B116: 107 | C116: 420 - BENJAMIN BANNEKER Charter School - MALDEN pupils | D116: 420049165 | E116: 420 | F116: 49 | G116: 165 | H116: 1 | I116: 1.112 | J116: 10 | K116: 100 | L116: 14937 | M116: 0 | N116: 1188
A117: 420 | B117: 108 | C117: 420 - BENJAMIN BANNEKER Charter School - MAYNARD pupils | D117: 420049174 | E117: 420 | F117: 49 | G117: 174 | H117: 1 | I117: 1.112 | J117: 5 | K117: 159.0983473 | L117: 12011 | M117: 7098 | N117: 1188
A118: 420 | B118: 109 | C118: 420 - BENJAMIN BANNEKER Charter School - MEDFORD pupils | D118: 420049176 | E118: 420 | F118: 49 | G118: 176 | H118: 1 | I118: 1.112 | J118: 8 | K118: 125.1151069 | L118: 13795 | M118: 3465 | N118: 1188
A119: 420 | B119: 110 | C119: 420 - BENJAMIN BANNEKER Charter School - METHUEN pupils | D119: 420049181 | E119: 420 | F119: 49 | G119: 181 | H119: 1 | I119: 1.112 | J119: 10 | K119: 100.853742 | L119: 19888 | M119: 170 | N119: 1188
A120: 420 | B120: 111 | C120: 420 - BENJAMIN BANNEKER Charter School - NEEDHAM pupils | D120: 420049199 | E120: 420 | F120: 49 | G120: 199 | H120: 1 | I120: 1.112 | J120: 2 | K120: 173.5187394 | L120: 16769 | M120: 12328 | N120: 1188
A121: 420 | B121: 112 | C121: 420 - BENJAMIN BANNEKER Charter School - NEWTON pupils | D121: 420049207 | E121: 420 | F121: 49 | G121: 207 | H121: 1 | I121: 1.112 | J121: 3 | K121: 172.3510892 | L121: 11585 | M121: 8382 | N121: 1188
A122: 420 | B122: 113 | C122: 420 - BENJAMIN BANNEKER Charter School - QUINCY pupils | D122: 420049243 | E122: 420 | F122: 49 | G122: 243 | H122: 1 | I122: 1.112 | J122: 9 | K122: 110.7391276 | L122: 11951 | M122: 1283 | N122: 1188
A123: 420 | B123: 114 | C123: 420 - BENJAMIN BANNEKER Charter School - REVERE pupils | D123: 420049248 | E123: 420 | F123: 49 | G123: 248 | H123: 1 | I123: 1.112 | J123: 11 | K123: 103.2263412 | L123: 14465 | M123: 467 | N123: 1188
A124: 420 | B124: 115 | C124: 420 - BENJAMIN BANNEKER Charter School - SAUGUS pupils | D124: 420049262 | E124: 420 | F124: 49 | G124: 262 | H124: 1 | I124: 1.112 | J124: 9 | K124: 112.5350999 | L124: 13858 | M124: 1737 | N124: 1188
A125: 420 | B125: 116 | C125: 420 - BENJAMIN BANNEKER Charter School - STONEHAM pupils | D125: 420049284 | E125: 420 | F125: 49 | G125: 284 | H125: 1 | I125: 1.112 | J125: 5 | K125: 142.1387744 | L125: 17378 | M125: 7323 | N125: 1188
A126: 420 | B126: 117 | C126: 420 - BENJAMIN BANNEKER Charter School - TEWKSBURY pupils | D126: 420049295 | E126: 420 | F126: 49 | G126: 295 | H126: 1 | I126: 1.112 | J126: 5 | K126: 149.3943804 | L126: 17135 | M126: 8464 | N126: 1188
A127: 420 | B127: 118 | C127: 420 - BENJAMIN BANNEKER Charter School - WAKEFIELD pupils | D127: 420049305 | E127: 420 | F127: 49 | G127: 305 | H127: 1 | I127: 1.112 | J127: 4 | K127: 141.1638964 | L127: 12011 | M127: 4944 | N127: 1188
A128: 420 | B128: 119 | C128: 420 - BENJAMIN BANNEKER Charter School - WINCHESTER pupils | D128: 420049344 | E128: 420 | F128: 49 | G128: 344 | H128: 1 | I128: 1.112 | J128: 2 | K128: 137.9803612 | L128: 16769 | M128: 6369 | N128: 1188
A129: 420 | B129: 120 | C129: 420 - BENJAMIN BANNEKER Charter School - WINTHROP pupils | D129: 420049346 | E129: 420 | F129: 49 | G129: 346 | H129: 1 | I129: 1.112 | J129: 8 | K129: 110.8491835 | L129: 11951 | M129: 1297 | N129: 1188
A130: 420 | B130: 121 | C130: 420 - BENJAMIN BANNEKER Charter School - WOBURN pupils | D130: 420049347 | E130: 420 | F130: 49 | G130: 347 | H130: 1 | I130: 1.112 | J130: 8 | K130: 142.2503008 | L130: 18893 | M130: 7982 | N130: 1188
A131: 420 | B131: 122 | C131: 420 - BENJAMIN BANNEKER Charter School - AYER SHIRLEY pupils | D131: 420049616 | E131: 420 | F131: 49 | G131: 616 | H131: 1 | I131: 1.112 | J131: 7 | K131: 118.9879046 | L131: 18395 | M131: 3493 | N131: 1188
A132: 420 | B132: 123 | C132: 420 - BENJAMIN BANNEKER Charter School - BRIDGEWATER RAYNHAM pupils | D132: 420049625 | E132: 420 | F132: 49 | G132: 625 | H132: 1 | I132: 1.112 | J132: 6 | K132: 108.6473148 | L132: 12011 | M132: 1039 | N132: 1188
A133: 428 | B133: 124 | C133: 428 - BROOKE Charter School - ATTLEBORO pupils | D133: 428035016 | E133: 428 | F133: 35 | G133: 16 | H133: 1 | I133: 1.087 | J133: 8 | K133: 101.0866456 | L133: 12064 | M133: 131 | N133: 1188
A134: 428 | B134: 125 | C134: 428 - BROOKE Charter School - AVON pupils | D134: 428035018 | E134: 428 | F134: 35 | G134: 18 | H134: 1 | I134: 1.087 | J134: 9 | K134: 132.9199711 | L134: 18975 | M134: 6247 | N134: 1188
A135: 428 | B135: 126 | C135: 428 - BROOKE Charter School - BOSTON pupils | D135: 428035035 | E135: 428 | F135: 35 | G135: 35 | H135: 1 | I135: 1.087 | J135: 11 | K135: 137.8639369 | L135: 18403 | M135: 6968 | N135: 1188
A136: 428 | B136: 127 | C136: 428 - BROOKE Charter School - BROCKTON pupils | D136: 428035044 | E136: 428 | F136: 35 | G136: 44 | H136: 1 | I136: 1.087 | J136: 11 | K136: 103.4876437 | L136: 17716 | M136: 618 | N136: 1188
A137: 428 | B137: 128 | C137: 428 - BROOKE Charter School - CHELSEA pupils | D137: 428035057 | E137: 428 | F137: 35 | G137: 57 | H137: 1 | I137: 1.087 | J137: 12 | K137: 101.740524 | L137: 19159 | M137: 333 | N137: 1188
A138: =IF(VALUE(MID(D138,1,1))=4,VALUE(MID(D138,1,3)),VALUE(MID(D138,1,4))) -> 428 | B138: 129 | C138: =IF(H138=1,A138 & " - " &VLOOKUP(A138,codeCHA,2)&" Charter School - "&VLOOKUP(G138,code436,2)&" pupils",IF(OR(A138=450,A138=466),A138 & " - " &VLOOKUP(A138,codeCHA,2)&" Charter School - "&VLOOKUP(F138,code436,2)&" District - "&VLOOKUP(G138,code436,2)&" pupils",A138 & " - " &VLOOKUP(A138,codeCHA,2)&" Charter School - "&VLOOKUP(F138,code436,2)&" Campus - "&VLOOKUP(G138,code436,2)&" pupils")) -> 428 - BROOKE Charter School - DEDHAM pupils | D138: 428035073 | E138: =A138 -> 428 | F138: =IF(VALUE(MID(D138,1,1))=4,VALUE(MID(D138,4,3)),VALUE(MID(D138,5,3))) -> 35 | G138: =IF(VALUE(MID(D138,1,1))=4,VALUE(MID(D138,7,3)),VALUE(MID(D138,8,3))) -> 73 | H138: 1 | I138: =VLOOKUP(F138,distinfo,4) -> 1.087 | J138: =VLOOKUP(D138,enro_chafnd,16) -> 6 | K138: =VLOOKUP(G138,distinfo,6) -> 176.1314334 | L138: =IF(VLOOKUP(D138,rate_chafnd,40,FALSE)>0,VLOOKUP(D138,rate_chafnd,40),VLOOKUP(G138,distinfo,7)) -> 16032 | M138: =ROUND((L138*K138/100)-L138,0) -> 12205 | N138: =VLOOKUP(G138,distinfo,9) -> 1188
A139: 428 | B139: 130 | C139: 428 - BROOKE Charter School - EVERETT pupils | D139: 428035093 | E139: 428 | F139: 35 | G139: 93 | H139: =IF(OR(A139=410,A139=466,A139=487,A139=499),2,1) -> 1 | I139: 1.087 | J139: 11 | K139: 100 | L139: 20838 | M139: 0 | N139: 1188
A140: 428 | B140: 131 | C140: 428 - BROOKE Charter School - HAVERHILL pupils | D140: 428035128 | E140: 428 | F140: 35 | G140: 128 | H140: 1 | I140: 1.087 | J140: 10 | K140: 103.6071537 | L140: 11794 | M140: 425 | N140: 1188
A141: 428 | B141: 132 | C141: 428 - BROOKE Charter School - HOLBROOK pupils | D141: 428035133 | E141: 428 | F141: 35 | G141: 133 | H141: 1 | I141: 1.087 | J141: 9 | K141: 104.3114226 | L141: 16027 | M141: 691 | N141: 1188
A142: 428 | B142: 133 | C142: 428 - BROOKE Charter School - LYNN pupils | D142: 428035163 | E142: 428 | F142: 35 | G142: 163 | H142: 1 | I142: 1.087 | J142: 11 | K142: 100 | L142: 18227 | M142: 0 | N142: 1188
A143: 428 | B143: 134 | C143: 428 - BROOKE Charter School - MALDEN pupils | D143: 428035165 | E143: 428 | F143: 35 | G143: 165 | H143: 1 | I143: 1.087 | J143: 10 | K143: 100 | L143: 19252 | M143: 0 | N143: 1188
A144: 428 | B144: 135 | C144: 428 - BROOKE Charter School - NORWOOD pupils | D144: 428035220 | E144: 428 | F144: 35 | G144: 220 | H144: 1 | I144: 1.087 | J144: 8 | K144: 132.965226 | L144: 18089 | M144: 5963 | N144: 1188
A145: 428 | B145: 136 | C145: 428 - BROOKE Charter School - QUINCY pupils | D145: 428035243 | E145: 428 | F145: 35 | G145: 243 | H145: 1 | I145: 1.087 | J145: 9 | K145: 110.7391276 | L145: 19561 | M145: 2101 | N145: 1188
A146: 428 | B146: 137 | C146: 428 - BROOKE Charter School - RANDOLPH pupils | D146: 428035244 | E146: 428 | F146: 35 | G146: 244 | H146: 1 | I146: 1.087 | J146: 10 | K146: 128.6167973 | L146: 14734 | M146: 4216 | N146: 1188
A147: 428 | B147: 138 | C147: 428 - BROOKE Charter School - REVERE pupils | D147: 428035248 | E147: 428 | F147: 35 | G147: 248 | H147: 1 | I147: 1.087 | J147: 11 | K147: 103.2263412 | L147: 17629 | M147: 569 | N147: 1188
A148: 428 | B148: 139 | C148: 428 - BROOKE Charter School - SALEM pupils | D148: 428035258 | E148: 428 | F148: 35 | G148: 258 | H148: 1 | I148: 1.087 | J148: 10 | K148: 124.5658576 | L148: 20331 | M148: 4994 | N148: 1188
A149: 428 | B149: 140 | C149: 428 - BROOKE Charter School - SAUGUS pupils | D149: 428035262 | E149: 428 | F149: 35 | G149: 262 | H149: 1 | I149: 1.087 | J149: 9 | K149: 112.5350999 | L149: 19442 | M149: 2437 | N149: 1188
A150: 428 | B150: 141 | C150: 428 - BROOKE Charter School - STOUGHTON pupils | D150: 428035285 | E150: 428 | F150: 35 | G150: 285 | H150: 1 | I150: 1.087 | J150: 9 | K150: 118.9049697 | L150: 12407 | M150: 2346 | N150: 1188
A151: 428 | B151: 142 | C151: 428 - BROOKE Charter School - TAUNTON pupils | D151: 428035293 | E151: 428 | F151: 35 | G151: 293 | H151: 1 | I151: 1.087 | J151: 10 | K151: 103.4677668 | L151: 20124 | M151: 698 | N151: 1188
A152: 428 | B152: 143 | C152: 428 - BROOKE Charter School - WATERTOWN pupils | D152: 428035314 | E152: 428 | F152: 35 | G152: 314 | H152: 1 | I152: 1.087 | J152: 7 | K152: 159.1404862 | L152: 11794 | M152: 6975 | N152: 1188
A153: 428 | B153: 144 | C153: 428 - BROOKE Charter School - WEYMOUTH pupils | D153: 428035336 | E153: 428 | F153: 35 | G153: 336 | H153: 1 | I153: 1.087 | J153: 8 | K153: 113.3872976 | L153: 14967 | M153: 2004 | N153: 1188
A154: 428 | B154: 145 | C154: 428 - BROOKE Charter School - WINTHROP pupils | D154: 428035346 | E154: 428 | F154: 35 | G154: 346 | H154: 1 | I154: 1.087 | J154: 8 | K154: 110.8491835 | L154: 15636 | M154: 1696 | N154: 1188
A155: 428 | B155: 146 | C155: 428 - BROOKE Charter School - WRENTHAM pupils | D155: 428035350 | E155: 428 | F155: 35 | G155: 350 | H155: 1 | I155: 1.087 | J155: 3 | K155: 153.0231285 | L155: 16654 | M155: 8830 | N155: 1188
A156: 429 | B156: 147 | C156: 429 - KIPP ACADEMY LYNN Charter School - BEVERLY pupils | D156: 429163030 | E156: 429 | F156: 163 | G156: 30 | H156: 1 | I156: 1 | J156: 7 | K156: 120.3288823 | L156: 18399 | M156: 3740 | N156: 1188
A157: 429 | B157: 148 | C157: 429 - KIPP ACADEMY LYNN Charter School - BOSTON pupils | D157: 429163035 | E157: 429 | F157: 163 | G157: 35 | H157: 1 | I157: 1 | J157: 11 | K157: 137.8639369 | L157: 20404 | M157: 7726 | N157: 1188
A158: 429 | B158: 149 | C158: 429 - KIPP ACADEMY LYNN Charter School - CHELSEA pupils | D158: 429163057 | E158: 429 | F158: 163 | G158: 57 | H158: 1 | I158: 1 | J158: 12 | K158: 101.740524 | L158: 21080 | M158: 367 | N158: 1188
A159: 429 | B159: 150 | C159: 429 - KIPP ACADEMY LYNN Charter School - DANVERS pupils | D159: 429163071 | E159: 429 | F159: 163 | G159: 71 | H159: 1 | I159: 1 | J159: 5 | K159: 141.5256052 | L159: 17065 | M159: 7086 | N159: 1188
A160: 429 | B160: 151 | C160: 429 - KIPP ACADEMY LYNN Charter School - HAVERHILL pupils | D160: 429163128 | E160: 429 | F160: 163 | G160: 128 | H160: 1 | I160: 1 | J160: 10 | K160: 103.6071537 | L160: 18201 | M160: 657 | N160: 1188
A161: 429 | B161: 152 | C161: 429 - KIPP ACADEMY LYNN Charter School - LOWELL pupils | D161: 429163160 | E161: 429 | F161: 163 | G161: 160 | H161: 1 | I161: 1 | J161: 11 | K161: 101.5606882 | L161: 20404 | M161: 318 | N161: 1188
A162: 429 | B162: 153 | C162: 429 - KIPP ACADEMY LYNN Charter School - LYNN pupils | D162: 429163163 | E162: 429 | F162: 163 | G162: 163 | H162: 1 | I162: 1 | J162: 11 | K162: 100 | L162: 17512 | M162: 0 | N162: 1188
A163: 429 | B163: 154 | C163: 429 - KIPP ACADEMY LYNN Charter School - MALDEN pupils | D163: 429163165 | E163: 429 | F163: 163 | G163: 165 | H163: 1 | I163: 1 | J163: 10 | K163: 100 | L163: 17828 | M163: 0 | N163: 1188
A164: 429 | B164: 155 | C164: 429 - KIPP ACADEMY LYNN Charter School - MARBLEHEAD pupils | D164: 429163168 | E164: 429 | F164: 163 | G164: 168 | H164: 1 | I164: 1 | J164: 3 | K164: 165.5578854 | L164: 16365 | M164: 10729 | N164: 1188
A165: 429 | B165: 156 | C165: 429 - KIPP ACADEMY LYNN Charter School - METHUEN pupils | D165: 429163181 | E165: 429 | F165: 163 | G165: 181 | H165: 1 | I165: 1 | J165: 10 | K165: 100.853742 | L165: 19729 | M165: 168 | N165: 1188
A166: 429 | B166: 157 | C166: 429 - KIPP ACADEMY LYNN Charter School - PEABODY pupils | D166: 429163229 | E166: 429 | F166: 163 | G166: 229 | H166: 1 | I166: 1 | J166: 9 | K166: 108.6112492 | L166: 14912 | M166: 1284 | N166: 1188
A167: 429 | B167: 158 | C167: 429 - KIPP ACADEMY LYNN Charter School - READING pupils | D167: 429163246 | E167: 429 | F167: 163 | G167: 246 | H167: 1 | I167: 1 | J167: 3 | K167: 136.3851634 | L167: 17077 | M167: 6213 | N167: 1188
A168: 429 | B168: 159 | C168: 429 - KIPP ACADEMY LYNN Charter School - REVERE pupils | D168: 429163248 | E168: 429 | F168: 163 | G168: 248 | H168: 1 | I168: 1 | J168: 11 | K168: 103.2263412 | L168: 19137 | M168: 617 | N168: 1188
A169: 429 | B169: 160 | C169: 429 - KIPP ACADEMY LYNN Charter School - SALEM pupils | D169: 429163258 | E169: 429 | F169: 163 | G169: 258 | H169: 1 | I169: 1 | J169: 10 | K169: 124.5658576 | L169: 17080 | M169: 4196 | N169: 1188
A170: 429 | B170: 161 | C170: 429 - KIPP ACADEMY LYNN Charter School - SAUGUS pupils | D170: 429163262 | E170: 429 | F170: 163 | G170: 262 | H170: 1 | I170: 1 | J170: 9 | K170: 112.5350999 | L170: 17920 | M170: 2246 | N170: 1188
A171: 429 | B171: 162 | C171: 429 - KIPP ACADEMY LYNN Charter School - SWAMPSCOTT pupils | D171: 429163291 | E171: 429 | F171: 163 | G171: 291 | H171: 1 | I171: 1 | J171: 5 | K171: 134.5010359 | L171: 17295 | M171: 5967 | N171: 1188
A172: 429 | B172: 163 | C172: 429 - KIPP ACADEMY LYNN Charter School - WAKEFIELD pupils | D172: 429163305 | E172: 429 | F172: 163 | G172: 305 | H172: 1 | I172: 1 | J172: 4 | K172: 141.1638964 | L172: 17262 | M172: 7106 | N172: 1188
A173: 429 | B173: 164 | C173: 429 - KIPP ACADEMY LYNN Charter School - WOBURN pupils | D173: 429163347 | E173: 429 | F173: 163 | G173: 347 | H173: 1 | I173: 1 | J173: 8 | K173: 142.2503008 | L173: 17314 | M173: 7315 | N173: 1188
A174: 430 | B174: 165 | C174: 430 - ADVANCED MATH AND SCIENCE ACADEMY Charter School - BELLINGHAM pupils | D174: 430170025 | E174: 430 | F174: 170 | G174: 25 | H174: 1 | I174: 1.02 | J174: 6 | K174: 138.4183626 | L174: 12765 | M174: 4904 | N174: 1188
A175: 430 | B175: 166 | C175: 430 - ADVANCED MATH AND SCIENCE ACADEMY Charter School - CLINTON pupils | D175: 430170064 | E175: 430 | F175: 170 | G175: 64 | H175: 1 | I175: 1.02 | J175: 10 | K175: 109.9871364 | L175: 13915 | M175: 1390 | N175: 1188
A176: 430 | B176: 167 | C176: 430 - ADVANCED MATH AND SCIENCE ACADEMY Charter School - FRAMINGHAM pupils | D176: 430170100 | E176: 430 | F176: 170 | G176: 100 | H176: 1 | I176: 1.02 | J176: 10 | K176: 125.245701 | L176: 12765 | M176: 3223 | N176: 1188
A177: 430 | B177: 168 | C177: 430 - ADVANCED MATH AND SCIENCE ACADEMY Charter School - FRANKLIN pupils | D177: 430170101 | E177: 430 | F177: 170 | G177: 101 | H177: 1 | I177: 1.02 | J177: 3 | K177: 138.892419 | L177: 11797 | M177: 4588 | N177: 1188
A178: 430 | B178: 169 | C178: 430 - ADVANCED MATH AND SCIENCE ACADEMY Charter School - GRAFTON pupils | D178: 430170110 | E178: 430 | F178: 170 | G178: 110 | H178: 1 | I178: 1.02 | J178: 4 | K178: 132.3755468 | L178: 12523 | M178: 4054 | N178: 1188
A179: 430 | B179: 170 | C179: 430 - ADVANCED MATH AND SCIENCE ACADEMY Charter School - HOLLISTON pupils | D179: 430170136 | E179: 430 | F179: 170 | G179: 136 | H179: 1 | I179: 1.02 | J179: 3 | K179: 132.2922875 | L179: 12765 | M179: 4122 | N179: 1188
A180: 430 | B180: 171 | C180: 430 - ADVANCED MATH AND SCIENCE ACADEMY Charter School - HOPKINTON pupils | D180: 430170139 | E180: 430 | F180: 170 | G180: 139 | H180: 1 | I180: 1.02 | J180: 2 | K180: 131.1670706 | L180: 12765 | M180: 3978 | N180: 1188
A181: 430 | B181: 172 | C181: 430 - ADVANCED MATH AND SCIENCE ACADEMY Charter School - HUDSON pupils | D181: 430170141 | E181: 430 | F181: 170 | G181: 141 | H181: 1 | I181: 1.02 | J181: 7 | K181: 155.0865462 | L181: 12865 | M181: 7087 | N181: 1188
A182: 430 | B182: 173 | C182: 430 - ADVANCED MATH AND SCIENCE ACADEMY Charter School - LEOMINSTER pupils | D182: 430170153 | E182: 430 | F182: 170 | G182: 153 | H182: 1 | I182: 1.02 | J182: 10 | K182: 100.1294538 | L182: 16980 | M182: 22 | N182: 1188
A183: 430 | B183: 174 | C183: 430 - ADVANCED MATH AND SCIENCE ACADEMY Charter School - LUNENBURG pupils | D183: 430170162 | E183: 430 | F183: 170 | G183: 162 | H183: 1 | I183: 1.02 | J183: 5 | K183: 120.0885362 | L183: 12765 | M183: 2564 | N183: 1188
A184: 430 | B184: 175 | C184: 430 - ADVANCED MATH AND SCIENCE ACADEMY Charter School - MARLBOROUGH pupils | D184: 430170170 | E184: 430 | F184: 170 | G184: 170 | H184: 1 | I184: 1.02 | J184: 10 | K184: 105.5317585 | L184: 13900 | M184: 769 | N184: 1188
A185: 430 | B185: 176 | C185: 430 - ADVANCED MATH AND SCIENCE ACADEMY Charter School - MAYNARD pupils | D185: 430170174 | E185: 430 | F185: 170 | G185: 174 | H185: 1 | I185: 1.02 | J185: 5 | K185: 159.0983473 | L185: 12082 | M185: 7140 | N185: 1188
A186: 430 | B186: 177 | C186: 430 - ADVANCED MATH AND SCIENCE ACADEMY Charter School - MILFORD pupils | D186: 430170185 | E186: 430 | F186: 170 | G186: 185 | H186: 1 | I186: 1.02 | J186: 10 | K186: 112.6193286 | L186: 19088 | M186: 2409 | N186: 1188
A187: 430 | B187: 178 | C187: 430 - ADVANCED MATH AND SCIENCE ACADEMY Charter School - MILLBURY pupils | D187: 430170186 | E187: 430 | F187: 170 | G187: 186 | H187: 1 | I187: 1.02 | J187: 7 | K187: 131.2466665 | L187: 12765 | M187: 3989 | N187: 1188
A188: 430 | B188: 179 | C188: 430 - ADVANCED MATH AND SCIENCE ACADEMY Charter School - NATICK pupils | D188: 430170198 | E188: 430 | F188: 170 | G188: 198 | H188: 1 | I188: 1.02 | J188: 3 | K188: 152.1479944 | L188: 12765 | M188: 6657 | N188: 1188
A189: 430 | B189: 180 | C189: 430 - ADVANCED MATH AND SCIENCE ACADEMY Charter School - SHREWSBURY pupils | D189: 430170271 | E189: 430 | F189: 170 | G189: 271 | H189: 1 | I189: 1.02 | J189: 4 | K189: 129.7637315 | L189: 12507 | M189: 3723 | N189: 1188
A190: 430 | B190: 181 | C190: 430 - ADVANCED MATH AND SCIENCE ACADEMY Charter School - WATERTOWN pupils | D190: 430170314 | E190: 430 | F190: 170 | G190: 314 | H190: 1 | I190: 1.02 | J190: 7 | K190: 159.1404862 | L190: 10829 | M190: 6404 | N190: 1188
A191: 430 | B191: 182 | C191: 430 - ADVANCED MATH AND SCIENCE ACADEMY Charter School - WESTBOROUGH pupils | D191: 430170321 | E191: 430 | F191: 170 | G191: 321 | H191: 1 | I191: 1.02 | J191: 4 | K191: 151.4444391 | L191: 15269 | M191: 7855 | N191: 1188
A192: 430 | B192: 183 | C192: 430 - ADVANCED MATH AND SCIENCE ACADEMY Charter School - WORCESTER pupils | D192: 430170348 | E192: 430 | F192: 170 | G192: 348 | H192: 1 | I192: 1.02 | J192: 11 | K192: 100.3824887 | L192: 18084 | M192: 69 | N192: 1188
A193: 430 | B193: 184 | C193: 430 - ADVANCED MATH AND SCIENCE ACADEMY Charter School - ACTON BOXBOROUGH pupils | D193: 430170600 | E193: 430 | F193: 170 | G193: 600 | H193: 1 | I193: 1.02 | J193: 3 | K193: 143.0553926 | L193: 17357 | M193: 7473 | N193: 1188
A194: 430 | B194: 185 | C194: 430 - ADVANCED MATH AND SCIENCE ACADEMY Charter School - AYER SHIRLEY pupils | D194: 430170616 | E194: 430 | F194: 170 | G194: 616 | H194: 1 | I194: 1.02 | J194: 7 | K194: 118.9879046 | L194: 11797 | M194: 2240 | N194: 1188
A195: 430 | B195: 186 | C195: 430 - ADVANCED MATH AND SCIENCE ACADEMY Charter School - BERLIN BOYLSTON pupils | D195: 430170620 | E195: 430 | F195: 170 | G195: 620 | H195: 1 | I195: 1.02 | J195: 4 | K195: 164.3256001 | L195: 13709 | M195: 8818 | N195: 1188
A196: 430 | B196: 187 | C196: 430 - ADVANCED MATH AND SCIENCE ACADEMY Charter School - GROTON DUNSTABLE pupils | D196: 430170673 | E196: 430 | F196: 170 | G196: 673 | H196: 1 | I196: 1.02 | J196: 2 | K196: 157.0384948 | L196: 12765 | M196: 7281 | N196: 1188
A197: 430 | B197: 188 | C197: 430 - ADVANCED MATH AND SCIENCE ACADEMY Charter School - KING PHILIP pupils | D197: 430170690 | E197: 430 | F197: 170 | G197: 690 | H197: 1 | I197: 1.02 | J197: 4 | K197: 150.6029655 | L197: 12765 | M197: 6459 | N197: 1188
A198: 430 | B198: 189 | C198: 430 - ADVANCED MATH AND SCIENCE ACADEMY Charter School - MENDON UPTON pupils | D198: 430170710 | E198: 430 | F198: 170 | G198: 710 | H198: 1 | I198: 1.02 | J198: 3 | K198: 143.971679 | L198: 12765 | M198: 5613 | N198: 1188
A199: 430 | B199: 190 | C199: 430 - ADVANCED MATH AND SCIENCE ACADEMY Charter School - NASHOBA pupils | D199: 430170725 | E199: 430 | F199: 170 | G199: 725 | H199: 1 | I199: 1.02 | J199: 3 | K199: 127.1749736 | L199: 12120 | M199: 3294 | N199: 1188
A200: 430 | B200: 191 | C200: 430 - ADVANCED MATH AND SCIENCE ACADEMY Charter School - NORTHBORO SOUTHBORO pupils | D200: 430170730 | E200: 430 | F200: 170 | G200: 730 | H200: 1 | I200: 1.02 | J200: 3 | K200: 147.1057316 | L200: 12765 | M200: 6013 | N200: 1188
A201: 430 | B201: 192 | C201: 430 - ADVANCED MATH AND SCIENCE ACADEMY Charter School - NORTH MIDDLESEX pupils | D201: 430170735 | E201: 430 | F201: 170 | G201: 735 | H201: 1 | I201: 1.02 | J201: 6 | K201: 129.9698163 | L201: 12765 | M201: 3826 | N201: 1188
A202: =IF(VALUE(MID(D202,1,1))=4,VALUE(MID(D202,1,3)),VALUE(MID(D202,1,4))) -> 430 | B202: 193 | C202: =IF(H202=1,A202 & " - " &VLOOKUP(A202,codeCHA,2)&" Charter School - "&VLOOKUP(G202,code436,2)&" pupils",IF(OR(A202=450,A202=466),A202 & " - " &VLOOKUP(A202,codeCHA,2)&" Charter School - "&VLOOKUP(F202,code436,2)&" District - "&VLOOKUP(G202,code436,2)&" pupils",A202 & " - " &VLOOKUP(A202,codeCHA,2)&" Charter School - "&VLOOKUP(F202,code436,2)&" Campus - "&VLOOKUP(G202,code436,2)&" pupils")) -> 430 - ADVANCED MATH AND SCIENCE ACADEMY Charter School - WACHUSETT pupils | D202: 430170775 | E202: =A202 -> 430 | F202: =IF(VALUE(MID(D202,1,1))=4,VALUE(MID(D202,4,3)),VALUE(MID(D202,5,3))) -> 170 | G202: =IF(VALUE(MID(D202,1,1))=4,VALUE(MID(D202,7,3)),VALUE(MID(D202,8,3))) -> 775 | H202: 1 | I202: =VLOOKUP(F202,distinfo,4) -> 1.02 | J202: =VLOOKUP(D202,enro_chafnd,16) -> 4 | K202: =VLOOKUP(G202,distinfo,6) -> 111.1455861 | L202: =IF(VLOOKUP(D202,rate_chafnd,40,FALSE)>0,VLOOKUP(D202,rate_chafnd,40),VLOOKUP(G202,distinfo,7)) -> 15246 | M202: =ROUND((L202*K202/100)-L202,0) -> 1699 | N202: =VLOOKUP(G202,distinfo,9) -> 1188
A203: 432 | B203: 194 | C203: 432 - CAPE COD LIGHTHOUSE Charter School - BARNSTABLE pupils | D203: 432712020 | E203: 432 | F203: 712 | G203: 20 | H203: =IF(OR(A203=410,A203=466,A203=487,A203=499),2,1) -> 1 | I203: 1 | J203: 10 | K203: 116.5051733 | L203: 13996 | M203: 2310 | N203: 1188
... 863 more rows

Sheet distinfo
D1: found25 | E1: found25 | F1: vlookup | G1: found25 | H1: derived | I1: Budget
D3: (dist435 col AD) | E3: (dist435 col BD) | G3: (dist435 col e/d)
A4: 1 | B4: 2 | C4: 3 | D4: 4 | E4: 5 | F4: 6 | G4: 7 | H4: 8 | I4: 9 | J4: 10 | K4: 11 | L4: 12 | M4: 13 | AJ4: Return to Index
H5: Above | AJ5: More about the data | BV5: 1 | BX5: 32 | CA5: 23
E6: Low | F6: Above | G6: Found | H6: Found | J6: Preliminary
C7: Op | E7: Income | F7: Fnd % | G7: Base | H7: Spending | I7: Facilites | J7: Charter
A8: Lea | B8: District | C8: Status | D8: WAF | E8: Group | F8: Used | G8: Rate | H8: Rate | I8: Rate | J8: Rate | L8: diff | AJ8: 25 foundation budget per pupil
AB9: waf | AJ9: LEA | BV9: LEA | BX9: Total Foundation Budget | CA9: Total Foundation Enrollment
A10: 1 | B10: ABINGTON | C10: 1 | D10: 1.033 | E10: 7 | F10: =IF(AND(VLOOKUP(A10,rate_abvfndNEW,34)<100,C10=1),100,IF(A10=352,VLOOKUP(125,rate_abvfndNEW,34),VLOOKUP(A10,rate_abvfndNEW,34))) -> 111.5214221 | G10: 14640 | H10: =IF(F10<>0,ROUND(G10*F10/100-G10,0),0) -> 1687 | I10: 1188 | J10: =IFERROR(ROUND(G10,0)+H10+I10,"") -> 17515 | AA10: 1 | AB10: ABINGTON | AD10: 1.033 | AF10: =+AD10-D10 -> 0 | AJ10: 1 | AK10: 14639.59334 | AM10: =+AK10-G10 -> -0.406661208 | AN10: =+AJ10-A10 -> 0 | BV10: 1 | BX10: 32218371.7 | CA10: 2202 | CD10: =+BV10-A10 -> 0 | CF10: =IF(BX10=0,0,BX10/CA10) -> 14631.41313 | CH10: =+CF10-G10 -> -8.58687351
A11: 2 | B11: ACTON | C11: 0 | D11: 1.057 | E11: 0 | F11: =IF(AND(VLOOKUP(A11,rate_abvfndNEW,34)<100,C11=1),100,IF(A11=352,VLOOKUP(125,rate_abvfndNEW,34),VLOOKUP(A11,rate_abvfndNEW,34))) -> 0 | G11: 0 | H11: 0 | I11: 1188 | J11: =IFERROR(ROUND(G11,0)+H11+I11,"") -> 1188 | AA11: 2 | AB11: ACTON | AD11: 1.057 | AF11: =+AD11-D11 -> 0 | AJ11: 2 | AK11: 0 | AM11: =+AK11-G11 -> 0 | AN11: =+AJ11-A11 -> 0 | BV11: 2 | BX11: 0 | CA11: 0 | CD11: =+BV11-A11 -> 0 | CF11: =IF(BX11=0,0,BX11/CA11) -> 0 | CH11: =+CF11-G11 -> 0
A12: 3 | B12: ACUSHNET | C12: 1 | D12: 1 | E12: 7 | F12: 105.8549371 | G12: 13319 | H12: 780 | I12: 1188 | J12: 15287 | AA12: 3 | AB12: ACUSHNET | AD12: 1 | AF12: 0 | AJ12: 3 | AK12: 13318.68867 | AM12: -0.3113299233 | AN12: 0 | BV12: 3 | BX12: 15616988.59 | CA12: 1173 | CD12: 0 | CF12: 13313.71576 | CH12: -5.284236999
A13: 4 | B13: ADAMS | C13: 0 | D13: 1 | E13: 0 | F13: 0 | G13: 0 | H13: 0 | I13: 1188 | J13: 1188 | AA13: 4 | AB13: ADAMS | AD13: 1 | AF13: 0 | AJ13: 4 | AK13: 0 | AM13: 0 | AN13: 0 | BV13: 4 | BX13: 0 | CA13: 0 | CD13: 0 | CF13: 0 | CH13: 0
A14: 5 | B14: AGAWAM | C14: 1 | D14: 1 | E14: 8 | F14: 142.7066758 | G14: 15200 | H14: 6491 | I14: 1188 | J14: 22879 | AA14: 5 | AB14: AGAWAM | AD14: 1 | AF14: 0 | AJ14: 5 | AK14: 15200.45274 | AM14: 0.4527395295 | AN14: 0 | BV14: 5 | BX14: 52963671.53 | CA14: 3486 | CD14: 0 | CF14: 15193.25058 | CH14: -6.749417671
A15: 6 | B15: ALFORD | C15: 0 | D15: 1 | E15: 0 | F15: 0 | G15: 0 | H15: 0 | I15: 1188 | J15: 1188 | AA15: 6 | AB15: ALFORD | AD15: 1 | AF15: 0 | AJ15: 6 | AK15: 0 | AM15: 0 | AN15: 0 | BV15: 6 | BX15: 0 | CA15: 0 | CD15: 0 | CF15: 0 | CH15: 0
A16: 7 | B16: AMESBURY | C16: 1 | D16: 1 | E16: 7 | F16: 149.4063164 | G16: 13960 | H16: 6897 | I16: 1188 | J16: 22045 | AA16: 7 | AB16: AMESBURY | AD16: 1 | AF16: 0 | AJ16: 7 | AK16: 13959.89371 | AM16: -0.1062908325 | AN16: 0 | BV16: 7 | BX16: 26472545.38 | CA16: 1898 | CD16: 0 | CF16: 13947.60031 | CH16: -12.39969442
A17: 8 | B17: AMHERST | C17: 1 | D17: 1 | E17: 6 | F17: 195.4128072 | G17: 13695 | H17: 13067 | I17: 1188 | J17: 27950 | AA17: 8 | AB17: AMHERST | AD17: 1 | AF17: 0 | AJ17: 8 | AK17: 13695.27418 | AM17: 0.2741768293 | AN17: 0 | BV17: 8 | BX17: 13465370.21 | CA17: 984 | CD17: 0 | CF17: 13684.31932 | CH17: -10.68068089
A18: 9 | B18: ANDOVER | C18: 1 | D18: 1.077 | E18: 3 | F18: 164.7662538 | G18: 13284 | H18: 8604 | I18: 1188 | J18: 23076 | AA18: 9 | AB18: ANDOVER | AD18: 1.077 | AF18: 0 | AJ18: 9 | AK18: 13283.63687 | AM18: -0.3631337713 | AN18: 0 | BV18: 9 | BX18: 72585434.36 | CA18: 5465 | CD18: 0 | CF18: 13281.87271 | CH18: -2.127289709
A19: 10 | B19: ARLINGTON | C19: 1 | D19: 1.043 | E19: 3 | F19: 141.9712105 | G19: 12863 | H19: 5399 | I19: 1188 | J19: 19450 | AA19: 10 | AB19: ARLINGTON | AD19: 1.043 | AF19: 0 | AJ19: 10 | AK19: 12863.21549 | AM19: 0.2154861701 | AN19: 0 | BV19: 10 | BX19: 77440051.96 | CA19: 6021 | CD19: 0 | CF19: 12861.65952 | CH19: -1.340481244
A20: 11 | B20: ASHBURNHAM | C20: 0 | D20: 1 | E20: 0 | F20: 0 | G20: 0 | H20: 0 | I20: 1188 | J20: 1188 | AA20: 11 | AB20: ASHBURNHAM | AD20: 1 | AF20: 0 | AJ20: 11 | AK20: 0 | AM20: 0 | AN20: 0 | BV20: 11 | BX20: 0 | CA20: 0 | CD20: 0 | CF20: 0 | CH20: 0
A21: 12 | B21: ASHBY | C21: 0 | D21: 1 | E21: 0 | F21: 0 | G21: 0 | H21: 0 | I21: 1188 | J21: 1188 | AA21: 12 | AB21: ASHBY | AD21: 1 | AF21: 0 | AJ21: 12 | AK21: 0 | AM21: 0 | AN21: 0 | BV21: 12 | BX21: 0 | CA21: 0 | CD21: 0 | CF21: 0 | CH21: 0
A22: 13 | B22: ASHFIELD | C22: 0 | D22: 1 | E22: 0 | F22: 0 | G22: 19709 | H22: 0 | I22: 1188 | J22: 20897 | AA22: 13 | AB22: ASHFIELD | AD22: 1 | AF22: 0 | AJ22: 13 | AK22: 19708.84091 | AM22: -0.1590909091 | AN22: 0 | BV22: 13 | BX22: 216797.25 | CA22: 11 | CD22: 0 | CF22: 19708.84091 | CH22: -0.1590909091
A23: 14 | B23: ASHLAND | C23: 1 | D23: 1 | E23: 5 | F23: 122.9745182 | G23: 13219 | H23: 3037 | I23: 1188 | J23: 17444 | AA23: 14 | AB23: ASHLAND | AD23: 1 | AF23: 0 | AJ23: 14 | AK23: 13218.53153 | AM23: -0.4684739237 | AN23: 0 | BV23: 14 | BX23: 37765344.57 | CA23: 2857 | CD23: 0 | CF23: 13218.53153 | CH23: -0.4684739237
A24: 15 | B24: ATHOL | C24: 0 | D24: 1 | E24: 0 | F24: 0 | G24: 0 | H24: 0 | I24: 1188 | J24: 1188 | AA24: 15 | AB24: ATHOL | AD24: 1 | AF24: 0 | AJ24: 15 | AK24: 0 | AM24: 0 | AN24: 0 | BV24: 15 | BX24: 0 | CA24: 0 | CD24: 0 | CF24: 0 | CH24: 0
A25: 16 | B25: ATTLEBORO | C25: 1 | D25: 1 | E25: 8 | F25: 101.0866456 | G25: 16158 | H25: 176 | I25: 1188 | J25: 17522 | AA25: 16 | AB25: ATTLEBORO | AD25: 1 | AF25: 0 | AJ25: 16 | AK25: 16157.84941 | AM25: -0.1505892603 | AN25: 0 | BV25: 16 | BX25: 101966843.3 | CA25: 6313 | CD25: 0 | CF25: 16151.88393 | CH25: -6.116070014
A26: 17 | B26: AUBURN | C26: 1 | D26: 1 | E26: 6 | F26: 118.3292762 | G26: 13718 | H26: 2514 | I26: 1188 | J26: 17420 | AA26: 17 | AB26: AUBURN | AD26: 1 | AF26: 0 | AJ26: 17 | AK26: 13717.99925 | AM26: -0.0007520067593 | AN26: 0 | BV26: 17 | BX26: 32465114.43 | CA26: 2367 | CD26: 0 | CF26: 13715.72219 | CH26: -2.277807351
A27: 18 | B27: AVON | C27: 1 | D27: 1 | E27: 9 | F27: 132.9199711 | G27: 16634 | H27: 5476 | I27: 1188 | J27: 23298 | AA27: 18 | AB27: AVON | AD27: 1 | AF27: 0 | AJ27: 18 | AK27: 16634.11105 | AM27: 0.111048951 | AN27: 0 | BV27: 18 | BX27: 9514711.52 | CA27: 572 | CD27: 0 | CF27: 16634.11105 | CH27: 0.111048951
A28: 19 | B28: AYER | C28: 0 | D28: 1 | E28: 0 | F28: 0 | G28: 0 | H28: 0 | I28: 1188 | J28: 1188 | AA28: 19 | AB28: AYER | AD28: 1 | AF28: 0 | AJ28: 19 | AK28: 0 | AM28: 0 | AN28: 0 | BV28: 19 | BX28: 0 | CA28: 0 | CD28: 0 | CF28: 0 | CH28: 0
A29: 20 | B29: BARNSTABLE | C29: 1 | D29: 1 | E29: 10 | F29: 116.5051733 | G29: 16751 | H29: 2765 | I29: 1188 | J29: 20704 | AA29: 20 | AB29: BARNSTABLE | AD29: 1 | AF29: 0 | AJ29: 20 | AK29: 16750.72153 | AM29: -0.2784677723 | AN29: 0 | BV29: 20 | BX29: 88800528.96 | CA29: 5306 | CD29: 0 | CF29: 16735.87052 | CH29: -15.1294836
A30: 21 | B30: BARRE | C30: 0 | D30: 1 | E30: 0 | F30: 0 | G30: 0 | H30: 0 | I30: 1188 | J30: 1188 | AA30: 21 | AB30: BARRE | AD30: 1 | AF30: 0 | AJ30: 21 | AK30: 0 | AM30: 0 | AN30: 0 | BV30: 21 | BX30: 0 | CA30: 0 | CD30: 0 | CF30: 0 | CH30: 0
A31: 22 | B31: BECKET | C31: 0 | D31: 1 | E31: 0 | F31: 0 | G31: 19271 | H31: 0 | I31: 1188 | J31: 20459 | AA31: 22 | AB31: BECKET | AD31: 1 | AF31: 0 | AJ31: 22 | AK31: 19270.60846 | AM31: -0.3915384615 | AN31: 0 | BV31: 22 | BX31: 250517.91 | CA31: 13 | CD31: 0 | CF31: 19270.60846 | CH31: -0.3915384615
A32: 23 | B32: BEDFORD | C32: 1 | D32: 1.082 | E32: 3 | F32: 157.8551798 | G32: 13505 | H32: 7813 | I32: 1188 | J32: 22506 | AA32: 23 | AB32: BEDFORD | AD32: 1.082 | AF32: 0 | AJ32: 23 | AK32: 13504.5384 | AM32: -0.4615953625 | AN32: 0 | BV32: 23 | BX32: 34823363.94 | CA32: 2579 | CD32: 0 | CF32: 13502.66147 | CH32: -2.338525413
A33: 24 | B33: BELCHERTOWN | C33: 1 | D33: 1 | E33: 5 | F33: 119.3136399 | G33: 13247 | H33: 2558 | I33: 1188 | J33: 16993 | AA33: 24 | AB33: BELCHERTOWN | AD33: 1 | AF33: 0 | AJ33: 24 | AK33: 13247.05205 | AM33: 0.05205128205 | AN33: 0 | BV33: 24 | BX33: 27898291.62 | CA33: 2106 | CD33: 0 | CF33: 13247.05205 | CH33: 0.05205128205
A34: 25 | B34: BELLINGHAM | C34: 1 | D34: 1 | E34: 6 | F34: 138.4183626 | G34: 13834 | H34: 5315 | I34: 1188 | J34: 20337 | AA34: 25 | AB34: BELLINGHAM | AD34: 1 | AF34: 0 | AJ34: 25 | AK34: 13833.76901 | AM34: -0.2309931034 | AN34: 0 | BV34: 25 | BX34: 30061498.64 | CA34: 2175 | CD34: 0 | CF34: 13821.37869 | CH34: -12.62131494
A35: 26 | B35: BELMONT | C35: 1 | D35: 1.043 | E35: 3 | F35: 132.1647799 | G35: 13168 | H35: 4235 | I35: 1188 | J35: 18591 | AA35: 26 | AB35: BELMONT | AD35: 1.043 | AF35: 0 | AJ35: 26 | AK35: 13168.26478 | AM35: 0.264780814 | AN35: 0 | BV35: 26 | BX35: 59519672.35 | CA35: 4521 | CD35: 0 | CF35: 13165.15646 | CH35: -2.843540288
A36: 27 | B36: BERKLEY | C36: 1 | D36: 1 | E36: 5 | F36: 113.8394408 | G36: 13043 | H36: 1805 | I36: 1188 | J36: 16036 | AA36: 27 | AB36: BERKLEY | AD36: 1 | AF36: 0 | AJ36: 27 | AK36: 13042.94658 | AM36: -0.05341642229 | AN36: 0 | BV36: 27 | BX36: 8885526.93 | CA36: 682 | CD36: 0 | CF36: 13028.63186 | CH36: -14.36813783
A37: 28 | B37: BERLIN | C37: 0 | D37: 1.026 | E37: 0 | F37: 0 | G37: 0 | H37: 0 | I37: 1188 | J37: 1188 | AA37: 28 | AB37: BERLIN | AD37: 1.026 | AF37: 0 | AJ37: 28 | AK37: 0 | AM37: 0 | AN37: 0 | BV37: 28 | BX37: 0 | CA37: 0 | CD37: 0 | CF37: 0 | CH37: 0
A38: 29 | B38: BERNARDSTON | C38: 0 | D38: 1 | E38: 0 | F38: 0 | G38: 0 | H38: 0 | I38: 1188 | J38: 1188 | AA38: 29 | AB38: BERNARDSTON | AD38: 1 | AF38: 0 | AJ38: 29 | AK38: 0 | AM38: 0 | AN38: 0 | BV38: 29 | BX38: 0 | CA38: 0 | CD38: 0 | CF38: 0 | CH38: 0
A39: 30 | B39: BEVERLY | C39: 1 | D39: 1 | E39: 7 | F39: 120.3288823 | G39: 14041 | H39: 2854 | I39: 1188 | J39: 18083 | AA39: 30 | AB39: BEVERLY | AD39: 1 | AF39: 0 | AJ39: 30 | AK39: 14040.99644 | AM39: -0.003555754589 | AN39: 0 | BV39: 30 | BX39: 61923100.55 | CA39: 4466 | CD39: 0 | CF39: 13865.45019 | CH39: -175.5498097
A40: 31 | B40: BILLERICA | C40: 1 | D40: 1 | E40: 5 | F40: 144.8845911 | G40: 13245 | H40: 5945 | I40: 1188 | J40: 20378 | AA40: 31 | AB40: BILLERICA | AD40: 1 | AF40: 0 | AJ40: 31 | AK40: 13245.15048 | AM40: 0.1504791878 | AN40: 0 | BV40: 31 | BX40: 65207959.51 | CA40: 4925 | CD40: 0 | CF40: 13240.19482 | CH40: -4.805175635
A41: 32 | B41: BLACKSTONE | C41: 0 | D41: 1 | E41: 0 | F41: 0 | G41: 18703 | H41: 0 | I41: 1188 | J41: 19891 | AA41: 32 | AB41: BLACKSTONE | AD41: 1 | AF41: 0 | AJ41: 32 | AK41: 18703.48412 | AM41: 0.4841176471 | AN41: 0 | BV41: 32 | BX41: 317959.23 | CA41: 17 | CD41: 0 | CF41: 18703.48412 | CH41: 0.4841176471
A42: 33 | B42: BLANDFORD | C42: 0 | D42: 1 | E42: 0 | F42: 0 | G42: 19271 | H42: 0 | I42: 1188 | J42: 20459 | AA42: 33 | AB42: BLANDFORD | AD42: 1 | AF42: 0 | AJ42: 33 | AK42: 19270.60846 | AM42: -0.3915384615 | AN42: 0 | BV42: 33 | BX42: 250517.91 | CA42: 13 | CD42: 0 | CF42: 19270.60846 | CH42: -0.3915384615
A43: 34 | B43: BOLTON | C43: 0 | D43: 1.04 | E43: 0 | F43: 0 | G43: 0 | H43: 0 | I43: 1188 | J43: 1188 | AA43: 34 | AB43: BOLTON | AD43: 1.04 | AF43: 0 | AJ43: 34 | AK43: 0 | AM43: 0 | AN43: 0 | BV43: 34 | BX43: 0 | CA43: 0 | CD43: 0 | CF43: 0 | CH43: 0
A44: 35 | B44: BOSTON | C44: 1 | D44: 1.087 | E44: 11 | F44: 137.8639369 | G44: 19975 | H44: 7563 | I44: 1188 | J44: 28726 | AA44: 35 | AB44: BOSTON | AD44: 1.087 | AF44: 0 | AJ44: 35 | AK44: 19975.06587 | AM44: 0.06587413429 | AN44: 0 | BV44: 35 | BX44: 1144725045 | CA44: 57369 | CD44: 0 | CF44: 19953.72143 | CH44: -21.27856866
A45: 36 | B45: BOURNE | C45: 1 | D45: 1 | E45: 7 | F45: 147.890311 | G45: 14199 | H45: 6800 | I45: 1188 | J45: 22187 | AA45: 36 | AB45: BOURNE | AD45: 1 | AF45: 0 | AJ45: 36 | AK45: 14198.73476 | AM45: -0.2652355713 | AN45: 0 | BV45: 36 | BX45: 24109451.63 | CA45: 1698 | CD45: 0 | CF45: 14198.73476 | CH45: -0.2652355713
A46: 37 | B46: BOXBOROUGH | C46: 0 | D46: 1.099 | E46: 0 | F46: 0 | G46: 18182 | H46: 0 | I46: 1188 | J46: 19370 | AA46: 37 | AB46: BOXBOROUGH | AD46: 1.099 | AF46: 0 | AJ46: 37 | AK46: 18181.78101 | AM46: -0.21899 | AN46: 0 | BV46: 37 | BX46: 90908.90505 | CA46: 5 | CD46: 0 | CF46: 18181.78101 | CH46: -0.21899
A47: 38 | B47: BOXFORD | C47: 1 | D47: 1.042 | E47: 2 | F47: 169.0555923 | G47: 12113 | H47: 8365 | I47: 1188 | J47: 21666 | AA47: 38 | AB47: BOXFORD | AD47: 1.042 | AF47: 0 | AJ47: 38 | AK47: 12113.04981 | AM47: 0.04981240268 | AN47: 0 | BV47: 38 | BX47: 9024222.11 | CA47: 745 | CD47: 0 | CF47: 12113.04981 | CH47: 0.04981240268
A48: 39 | B48: BOYLSTON | C48: 0 | D48: 1 | E48: 0 | F48: 0 | G48: 19098 | H48: 0 | I48: 1188 | J48: 20286 | AA48: 39 | AB48: BOYLSTON | AD48: 1 | AF48: 0 | AJ48: 39 | AK48: 19098.44571 | AM48: 0.4457142857 | AN48: 0 | BV48: 39 | BX48: 267378.24 | CA48: 14 | CD48: 0 | CF48: 19098.44571 | CH48: 0.4457142857
A49: 40 | B49: BRAINTREE | C49: 1 | D49: 1.048 | E49: 6 | F49: 126.440754 | G49: 14193 | H49: 3753 | I49: 1188 | J49: 19134 | AA49: 40 | AB49: BRAINTREE | AD49: 1.048 | AF49: 0 | AJ49: 40 | AK49: 14192.74441 | AM49: -0.2555864119 | AN49: 0 | BV49: 40 | BX49: 73504510.39 | CA49: 5181 | CD49: 0 | CF49: 14187.32106 | CH49: -5.678944914
A50: 41 | B50: BREWSTER | C50: 1 | D50: 1 | E50: 8 | F50: 182.1086883 | G50: 14215 | H50: 11672 | I50: 1188 | J50: 27075 | AA50: 41 | AB50: BREWSTER | AD50: 1 | AF50: 0 | AJ50: 41 | AK50: 14214.66506 | AM50: -0.3349406176 | AN50: 0 | BV50: 41 | BX50: 5978097.31 | CA50: 421 | CD50: 0 | CF50: 14199.75608 | CH50: -15.24391924
A51: 42 | B51: BRIDGEWATER | C51: 0 | D51: 1 | E51: 0 | F51: 0 | G51: 18601 | H51: 0 | I51: 1188 | J51: 19789 | AA51: 42 | AB51: BRIDGEWATER | AD51: 1 | AF51: 0 | AJ51: 42 | AK51: 18601.08667 | AM51: 0.08666666667 | AN51: 0 | BV51: 42 | BX51: 334819.56 | CA51: 18 | CD51: 0 | CF51: 18601.08667 | CH51: 0.08666666667
A52: 43 | B52: BRIMFIELD | C52: 1 | D52: 1 | E52: 7 | F52: 129.0945793 | G52: 13614 | H52: 3961 | I52: 1188 | J52: 18763 | AA52: 43 | AB52: BRIMFIELD | AD52: 1 | AF52: 0 | AJ52: 43 | AK52: 13614.22393 | AM52: 0.2239259259 | AN52: 0 | BV52: 43 | BX52: 3670007.24 | CA52: 270 | CD52: 0 | CF52: 13592.61941 | CH52: -21.38059259
A53: 44 | B53: BROCKTON | C53: 1 | D53: 1 | E53: 11 | F53: 103.4876437 | G53: 18773 | H53: 655 | I53: 1188 | J53: 20616 | AA53: 44 | AB53: BROCKTON | AD53: 1 | AF53: 0 | AJ53: 44 | AK53: 18773.11699 | AM53: 0.1169859911 | AN53: 0 | BV53: 44 | BX53: 314644677 | CA53: 16775 | CD53: 0 | CF53: 18756.76167 | CH53: -16.23833145
A54: 45 | B54: BROOKFIELD | C54: 1 | D54: 1 | E54: 7 | F54: 123.4807572 | G54: 14366 | H54: 3373 | I54: 1188 | J54: 18927 | AA54: 45 | AB54: BROOKFIELD | AD54: 1 | AF54: 0 | AJ54: 45 | AK54: 14366.49867 | AM54: 0.4986666667 | AN54: 0 | BV54: 45 | BX54: 3232462.2 | CA54: 225 | CD54: 0 | CF54: 14366.49867 | CH54: 0.4986666667
A55: 46 | B55: BROOKLINE | C55: 1 | D55: 1.044 | E55: 3 | F55: 192.2626758 | G55: 13334 | H55: 12302 | I55: 1188 | J55: 26824 | AA55: 46 | AB55: BROOKLINE | AD55: 1.044 | AF55: 0 | AJ55: 46 | AK55: 13334.36028 | AM55: 0.3602780055 | AN55: 0 | BV55: 46 | BX55: 91960933.81 | CA55: 6899 | CD55: 0 | CF55: 13329.60339 | CH55: -4.396606239
A56: 47 | B56: BUCKLAND | C56: 0 | D56: 1 | E56: 0 | F56: 0 | G56: 16860 | H56: 0 | I56: 1188 | J56: 18048 | AA56: 47 | AB56: BUCKLAND | AD56: 1 | AF56: 0 | AJ56: 47 | AK56: 16860.33 | AM56: 0.33 | AN56: 0 | BV56: 47 | BX56: 16860.33 | CA56: 1 | CD56: 0 | CF56: 16860.33 | CH56: 0.33
A57: 48 | B57: BURLINGTON | C57: 1 | D57: 1.088 | E57: 4 | F57: 181.667968 | G57: 13918 | H57: 11367 | I57: 1188 | J57: 26473 | AA57: 48 | AB57: BURLINGTON | AD57: 1.088 | AF57: 0 | AJ57: 48 | AK57: 13918.08755 | AM57: 0.08755231337 | AN57: 0 | BV57: 48 | BX57: 49023294.78 | CA57: 3523 | CD57: 0 | CF57: 13915.21282 | CH57: -2.787176316
A58: 49 | B58: CAMBRIDGE | C58: 1 | D58: 1.112 | E58: 7 | F58: 225.2108124 | G58: 16303 | H58: 20413 | I58: 1188 | J58: 37904 | AA58: 49 | AB58: CAMBRIDGE | AD58: 1.112 | AF58: 0 | AJ58: 49 | AK58: 16303.0647 | AM58: 0.06470413595 | AN58: 0 | BV58: 49 | BX58: 118880084.1 | CA58: 7297 | CD58: 0 | CF58: 16291.63822 | CH58: -11.36177943
A59: 50 | B59: CANTON | C59: 1 | D59: 1.063 | E59: 5 | F59: 142.1590565 | G59: 13674 | H59: 5765 | I59: 1188 | J59: 20627 | AA59: 50 | AB59: CANTON | AD59: 1.063 | AF59: 0 | AJ59: 50 | AK59: 13673.56223 | AM59: -0.4377689304 | AN59: 0 | BV59: 50 | BX59: 44989384.12 | CA59: 3291 | CD59: 0 | CF59: 13670.42969 | CH59: -3.570306572
A60: 51 | B60: CARLISLE | C60: 1 | D60: 1.052 | E60: 1 | F60: 200.9686931 | G60: 12003 | H60: 12119 | I60: 1188 | J60: 25310 | AA60: 51 | AB60: CARLISLE | AD60: 1.052 | AF60: 0 | AJ60: 51 | AK60: 12002.58858 | AM60: -0.4114167426 | AN60: 0 | BV60: 51 | BX60: 6853478.081 | CA60: 571 | CD60: 0 | CF60: 12002.58858 | CH60: -0.4114167426
A61: 52 | B61: CARVER | C61: 1 | D61: 1.033 | E61: 6 | F61: 136.3698991 | G61: 13963 | H61: 5078 | I61: 1188 | J61: 20229 | AA61: 52 | AB61: CARVER | AD61: 1.033 | AF61: 0 | AJ61: 52 | AK61: 13963.14575 | AM61: 0.1457538708 | AN61: 0 | BV61: 52 | BX61: 20942038.25 | CA61: 1501 | CD61: 0 | CF61: 13952.05746 | CH61: -10.94253829
A62: 53 | B62: CHARLEMONT | C62: 0 | D62: 1 | E62: 0 | F62: 0 | G62: 19709 | H62: 0 | I62: 1188 | J62: 20897 | AA62: 53 | AB62: CHARLEMONT | AD62: 1 | AF62: 0 | AJ62: 53 | AK62: 19708.84091 | AM62: -0.1590909091 | AN62: 0 | BV62: 53 | BX62: 216797.25 | CA62: 11 | CD62: 0 | CF62: 19708.84091 | CH62: -0.1590909091
A63: 54 | B63: CHARLTON | C63: 0 | D63: 1 | E63: 0 | F63: 0 | G63: 0 | H63: 0 | I63: 1188 | J63: 1188 | AA63: 54 | AB63: CHARLTON | AD63: 1 | AF63: 0 | AJ63: 54 | AK63: 0 | AM63: 0 | AN63: 0 | BV63: 54 | BX63: 0 | CA63: 0 | CD63: 0 | CF63: 0 | CH63: 0
A64: 55 | B64: CHATHAM | C64: 0 | D64: 1 | E64: 0 | F64: 0 | G64: 0 | H64: 0 | I64: 1188 | J64: 1188 | AA64: 55 | AB64: CHATHAM | AD64: 1 | AF64: 0 | AJ64: 55 | AK64: 0 | AM64: 0 | AN64: 0 | BV64: 55 | BX64: 0 | CA64: 0 | CD64: 0 | CF64: 0 | CH64: 0
A65: 56 | B65: CHELMSFORD | C65: 1 | D65: 1 | E65: 4 | F65: 129.3507406 | G65: 12910 | H65: 3789 | I65: 1188 | J65: 17887 | AA65: 56 | AB65: CHELMSFORD | AD65: 1 | AF65: 0 | AJ65: 56 | AK65: 12910.15265 | AM65: 0.1526462073 | AN65: 0 | BV65: 56 | BX65: 66873411.15 | CA65: 5181 | CD65: 0 | CF65: 12907.43315 | CH65: -2.566850029
A66: 57 | B66: CHELSEA | C66: 1 | D66: 1.04 | E66: 12 | F66: 101.740524 | G66: 20708 | H66: 360 | I66: 1188 | J66: 22256 | AA66: 57 | AB66: CHELSEA | AD66: 1.04 | AF66: 0 | AJ66: 57 | AK66: 20708.23578 | AM66: 0.2357815363 | AN66: 0 | BV66: 57 | BX66: 146607527.9 | CA66: 7095 | CD66: 0 | CF66: 20663.49936 | CH66: -44.50064468
A67: 58 | B67: CHESHIRE | C67: 0 | D67: 1 | E67: 0 | F67: 0 | G67: 16860 | H67: 0 | I67: 1188 | J67: 18048 | AA67: 58 | AB67: CHESHIRE | AD67: 1 | AF67: 0 | AJ67: 58 | AK67: 16860.33 | AM67: 0.33 | AN67: 0 | BV67: 58 | BX67: 16860.33 | CA67: 1 | CD67: 0 | CF67: 16860.33 | CH67: 0.33
A68: 59 | B68: CHESTER | C68: 0 | D68: 1 | E68: 0 | F68: 0 | G68: 16860 | H68: 0 | I68: 1188 | J68: 18048 | AA68: 59 | AB68: CHESTER | AD68: 1 | AF68: 0 | AJ68: 59 | AK68: 16860.33 | AM68: 0.33 | AN68: 0 | BV68: 59 | BX68: 118022.31 | CA68: 7 | CD68: 0 | CF68: 16860.33 | CH68: 0.33
A69: 60 | B69: CHESTERFIELD | C69: 0 | D69: 1 | E69: 0 | F69: 0 | G69: 19098 | H69: 0 | I69: 1188 | J69: 20286 | AA69: 60 | AB69: CHESTERFIELD | AD69: 1 | AF69: 0 | AJ69: 60 | AK69: 19098.44571 | AM69: 0.4457142857 | AN69: 0 | BV69: 60 | BX69: 267378.24 | CA69: 14 | CD69: 0 | CF69: 19098.44571 | CH69: 0.4457142857
A70: 61 | B70: CHICOPEE | C70: 1 | D70: 1 | E70: 11 | F70: 102.8475977 | G70: 17934 | H70: 511 | I70: 1188 | J70: 19633 | AA70: 61 | AB70: CHICOPEE | AD70: 1 | AF70: 0 | AJ70: 61 | AK70: 17933.66442 | AM70: -0.3355845598 | AN70: 0 | BV70: 61 | BX70: 129024990.3 | CA70: 7202 | CD70: 0 | CF70: 17915.16111 | CH70: -18.83888781
A71: 62 | B71: CHILMARK | C71: 0 | D71: 1 | E71: 0 | F71: 0 | G71: 0 | H71: 0 | I71: 1188 | J71: 1188 | AA71: 62 | AB71: CHILMARK | AD71: 1 | AF71: 0 | AJ71: 62 | AK71: 0 | AM71: 0 | AN71: 0 | BV71: 62 | BX71: 0 | CA71: 0 | CD71: 0 | CF71: 0 | CH71: 0
A72: 63 | B72: CLARKSBURG | C72: 1 | D72: 1 | E72: 8 | F72: 135.4567369 | G72: 14165 | H72: 5022 | I72: 1188 | J72: 20375 | AA72: 63 | AB72: CLARKSBURG | AD72: 1 | AF72: 0 | AJ72: 63 | AK72: 14165.28534 | AM72: 0.2853431373 | AN72: 0 | BV72: 63 | BX72: 2889718.21 | CA72: 204 | CD72: 0 | CF72: 14165.28534 | CH72: 0.2853431373
A73: 64 | B73: CLINTON | C73: 1 | D73: 1 | E73: 10 | F73: 109.9871364 | G73: 16438 | H73: 1642 | I73: 1188 | J73: 19268 | AA73: 64 | AB73: CLINTON | AD73: 1 | AF73: 0 | AJ73: 64 | AK73: 16438.19598 | AM73: 0.1959761337 | AN73: 0 | BV73: 64 | BX73: 34402202.62 | CA73: 2095 | CD73: 0 | CF73: 16421.0991 | CH73: -16.90089737
A74: 65 | B74: COHASSET | C74: 1 | D74: 1.036 | E74: 2 | F74: =IF(AND(VLOOKUP(A74,rate_abvfndNEW,34)<100,C74=1),100,IF(A74=352,VLOOKUP(125,rate_abvfndNEW,34),VLOOKUP(A74,rate_abvfndNEW,34))) -> 172.32976 | G74: 12449 | H74: =IF(F74<>0,ROUND(G74*F74/100-G74,0),0) -> 9004 | I74: 1188 | J74: 22641 | AA74: 65 | AB74: COHASSET | AD74: 1.036 | AF74: 0 | AJ74: 65 | AK74: 12448.74909 | AM74: -0.2509060991 | AN74: 0 | BV74: 65 | BX74: 17839057.45 | CA74: 1433 | CD74: 0 | CF74: 12448.74909 | CH74: -0.2509060991
A75: 66 | B75: COLRAIN | C75: 0 | D75: 1 | E75: 0 | F75: 0 | G75: 0 | H75: 0 | I75: 1188 | J75: =IFERROR(ROUND(G75,0)+H75+I75,"") -> 1188 | AA75: 66 | AB75: COLRAIN | AD75: 1 | AF75: =+AD75-D75 -> 0 | AJ75: 66 | AK75: 0 | AM75: =+AK75-G75 -> 0 | AN75: =+AJ75-A75 -> 0 | BV75: 66 | BX75: 0 | CA75: 0 | CD75: =+BV75-A75 -> 0 | CF75: =IF(BX75=0,0,BX75/CA75) -> 0 | CH75: =+CF75-G75 -> 0
A76: 67 | B76: CONCORD | C76: 1 | D76: 1.059 | E76: 3 | F76: 205.988233 | G76: 12435 | H76: 13180 | I76: 1188 | J76: 26803 | AA76: 67 | AB76: CONCORD | AD76: 1.059 | AF76: 0 | AJ76: 67 | AK76: 12435.09652 | AM76: 0.09652121976 | AN76: 0 | BV76: 67 | BX76: 24106981.04 | CA76: 1943 | CD76: 0 | CF76: 12407.09266 | CH76: -27.90733896
A77: 68 | B77: CONWAY | C77: 1 | D77: 1 | E77: 5 | F77: 251.7334794 | G77: 14254 | H77: 21628 | I77: 1188 | J77: 37070 | AA77: 68 | AB77: CONWAY | AD77: 1 | AF77: 0 | AJ77: 68 | AK77: 14253.60176 | AM77: -0.3982352941 | AN77: 0 | BV77: 68 | BX77: 964363.6 | CA77: 68 | CD77: 0 | CF77: 14181.81765 | CH77: -72.18235294
A78: 69 | B78: CUMMINGTON | C78: 0 | D78: 1 | E78: 0 | F78: 0 | G78: 16860 | H78: 0 | I78: 1188 | J78: 18048 | AA78: 69 | AB78: CUMMINGTON | AD78: 1 | AF78: 0 | AJ78: 69 | AK78: 16860.33 | AM78: 0.33 | AN78: 0 | BV78: 69 | BX78: 84301.65 | CA78: 5 | CD78: 0 | CF78: 16860.33 | CH78: 0.33
A79: 70 | B79: DALTON | C79: 0 | D79: 1 | E79: 0 | F79: 0 | G79: 19098 | H79: 0 | I79: 1188 | J79: 20286 | AA79: 70 | AB79: DALTON | AD79: 1 | AF79: 0 | AJ79: 70 | AK79: 19098.44571 | AM79: 0.4457142857 | AN79: 0 | BV79: 70 | BX79: 267378.24 | CA79: 14 | CD79: 0 | CF79: 19098.44571 | CH79: 0.4457142857
A80: 71 | B80: DANVERS | C80: 1 | D80: 1 | E80: 5 | F80: 141.5256052 | G80: 13236 | H80: 5496 | I80: 1188 | J80: 19920 | AA80: 71 | AB80: DANVERS | AD80: 1 | AF80: 0 | AJ80: 71 | AK80: 13236.30343 | AM80: 0.3034278889 | AN80: 0 | BV80: 71 | BX80: 44318617.54 | CA80: 3349 | CD80: 0 | CF80: 13233.38834 | CH80: -2.611663183
A81: 72 | B81: DARTMOUTH | C81: 1 | D81: 1 | E81: 6 | F81: 125.2345587 | G81: 13605 | H81: 3433 | I81: 1188 | J81: 18226 | AA81: 72 | AB81: DARTMOUTH | AD81: 1 | AF81: 0 | AJ81: 72 | AK81: 13604.91702 | AM81: -0.08298416565 | AN81: 0 | BV81: 72 | BX81: 44667767.9 | CA81: 3284 | CD81: 0 | CF81: 13601.63456 | CH81: -3.36543849
A82: 73 | B82: DEDHAM | C82: 1 | D82: 1.042 | E82: 6 | F82: 176.1314334 | G82: 14214 | H82: 10821 | I82: 1188 | J82: 26223 | AA82: 73 | AB82: DEDHAM | AD82: 1.042 | AF82: 0 | AJ82: 73 | AK82: 14214.297 | AM82: 0.2969972198 | AN82: 0 | BV82: 73 | BX82: 39060888.15 | CA82: 2748 | CD82: 0 | CF82: 14214.297 | CH82: 0.2969972198
A83: 74 | B83: DEERFIELD | C83: 1 | D83: 1 | E83: 5 | F83: 185.2055695 | G83: 12715 | H83: 10834 | I83: 1188 | J83: 24737 | AA83: 74 | AB83: DEERFIELD | AD83: 1 | AF83: 0 | AJ83: 74 | AK83: 12714.89556 | AM83: -0.1044444444 | AN83: 0 | BV83: 74 | BX83: 3547455.86 | CA83: 279 | CD83: 0 | CF83: 12714.89556 | CH83: -0.1044444444
A84: 75 | B84: DENNIS | C84: 0 | D84: 1 | E84: 0 | F84: 0 | G84: 0 | H84: 0 | I84: 1188 | J84: 1188 | AA84: 75 | AB84: DENNIS | AD84: 1 | AF84: 0 | AJ84: 75 | AK84: 0 | AM84: 0 | AN84: 0 | BV84: 75 | BX84: 0 | CA84: 0 | CD84: 0 | CF84: 0 | CH84: 0
A85: 76 | B85: DIGHTON | C85: 0 | D85: 1 | E85: 0 | F85: 0 | G85: 16860 | H85: 0 | I85: 1188 | J85: 18048 | AA85: 76 | AB85: DIGHTON | AD85: 1 | AF85: 0 | AJ85: 76 | AK85: 16860.33 | AM85: 0.33 | AN85: 0 | BV85: 76 | BX85: 16860.33 | CA85: 1 | CD85: 0 | CF85: 16860.33 | CH85: 0.33
A86: 77 | B86: DOUGLAS | C86: 1 | D86: 1 | E86: 5 | F86: 126.0370423 | G86: 13282 | H86: 3458 | I86: 1188 | J86: 17928 | AA86: 77 | AB86: DOUGLAS | AD86: 1 | AF86: 0 | AJ86: 77 | AK86: 13281.59085 | AM86: -0.4091511194 | AN86: 0 | BV86: 77 | BX86: 14237865.39 | CA86: 1072 | CD86: 0 | CF86: 13281.59085 | CH86: -0.4091511194
A87: 78 | B87: DOVER | C87: 1 | D87: 1.058 | E87: 1 | F87: 198.4966345 | G87: 12137 | H87: 11955 | I87: 1188 | J87: 25280 | AA87: 78 | AB87: DOVER | AD87: 1.058 | AF87: 0 | AJ87: 78 | AK87: 12137.31461 | AM87: 0.3146104277 | AN87: 0 | BV87: 78 | BX87: 5959421.474 | CA87: 491 | CD87: 0 | CF87: 12137.31461 | CH87: 0.3146104277
A88: 79 | B88: DRACUT | C88: 1 | D88: 1 | E88: 7 | F88: 101.0265007 | G88: 14226 | H88: 146 | I88: 1188 | J88: 15560 | AA88: 79 | AB88: DRACUT | AD88: 1 | AF88: 0 | AJ88: 79 | AK88: 14225.54258 | AM88: -0.4574172531 | AN88: 0 | BV88: 79 | BX88: 54523349.61 | CA88: 3834 | CD88: 0 | CF88: 14221.00929 | CH88: -4.99071205
A89: 80 | B89: DUDLEY | C89: 0 | D89: 1 | E89: 0 | F89: 0 | G89: 0 | H89: 0 | I89: 1188 | J89: 1188 | AA89: 80 | AB89: DUDLEY | AD89: 1 | AF89: 0 | AJ89: 80 | AK89: 0 | AM89: 0 | AN89: 0 | BV89: 80 | BX89: 0 | CA89: 0 | CD89: 0 | CF89: 0 | CH89: 0
A90: 81 | B90: DUNSTABLE | C90: 0 | D90: 1 | E90: 0 | F90: 0 | G90: 0 | H90: 0 | I90: 1188 | J90: 1188 | AA90: 81 | AB90: DUNSTABLE | AD90: 1 | AF90: 0 | AJ90: 81 | AK90: 0 | AM90: 0 | AN90: 0 | BV90: 81 | BX90: 0 | CA90: 0 | CD90: 0 | CF90: 0 | CH90: 0
A91: 82 | B91: DUXBURY | C91: 1 | D91: 1.04 | E91: 2 | F91: 144.9011201 | G91: 12661 | H91: 5685 | I91: 1188 | J91: 19534 | AA91: 82 | AB91: DUXBURY | AD91: 1.04 | AF91: 0 | AJ91: 82 | AK91: 12660.91552 | AM91: -0.08447750188 | AN91: 0 | BV91: 82 | BX91: 33652713.46 | CA91: 2658 | CD91: 0 | CF91: 12660.91552 | CH91: -0.08447750188
A92: 83 | B92: EAST BRIDGEWATER | C92: 1 | D92: 1 | E92: 6 | F92: 109.5917041 | G92: 13609 | H92: 1305 | I92: 1188 | J92: 16102 | AA92: 83 | AB92: EAST BRIDGEWATER | AD92: 1 | AF92: 0 | AJ92: 83 | AK92: 13608.50346 | AM92: -0.4965359144 | AN92: 0 | BV92: 83 | BX92: 26713492.3 | CA92: 1963 | CD92: 0 | CF92: 13608.50346 | CH92: -0.4965359144
A93: 84 | B93: EAST BROOKFIELD | C93: 0 | D93: 1 | E93: 0 | F93: 0 | G93: 19098 | H93: 0 | I93: 1188 | J93: 20286 | AA93: 84 | AB93: EAST BROOKFIELD | AD93: 1 | AF93: 0 | AJ93: 84 | AK93: 19098.44571 | AM93: 0.4457142857 | AN93: 0 | BV93: 84 | BX93: 267378.24 | CA93: 14 | CD93: 0 | CF93: 19098.44571 | CH93: 0.4457142857
A94: 85 | B94: EASTHAM | C94: 1 | D94: 1 | E94: 9 | F94: 171.7944529 | G94: 14614 | H94: 10492 | I94: 1188 | J94: 26294 | AA94: 85 | AB94: EASTHAM | AD94: 1 | AF94: 0 | AJ94: 85 | AK94: 14614.48293 | AM94: 0.4829292929 | AN94: 0 | BV94: 85 | BX94: 2893667.62 | CA94: 198 | CD94: 0 | CF94: 14614.48293 | CH94: 0.4829292929
A95: 86 | B95: EASTHAMPTON | C95: 1 | D95: 1 | E95: 8 | F95: 110.1852804 | G95: 14619 | H95: 1489 | I95: 1188 | J95: 17296 | AA95: 86 | AB95: EASTHAMPTON | AD95: 1 | AF95: 0 | AJ95: 86 | AK95: 14618.82704 | AM95: -0.1729556962 | AN95: 0 | BV95: 86 | BX95: 23097746.73 | CA95: 1580 | CD95: 0 | CF95: 14618.82704 | CH95: -0.1729556962
A96: 87 | B96: EAST LONGMEADOW | C96: 1 | D96: 1 | E96: 6 | F96: 133.2452674 | G96: 13646 | H96: 4537 | I96: 1188 | J96: 19371 | AA96: 87 | AB96: EAST LONGMEADOW | AD96: 1 | AF96: 0 | AJ96: 87 | AK96: 13646.37622 | AM96: 0.3762172879 | AN96: 0 | BV96: 87 | BX96: 34405381.24 | CA96: 2522 | CD96: 0 | CF96: 13642.102 | CH96: -3.898001586
A97: 88 | B97: EASTON | C97: 1 | D97: 1 | E97: 4 | F97: 132.2810859 | G97: 13017 | H97: 4202 | I97: 1188 | J97: 18407 | AA97: 88 | AB97: EASTON | AD97: 1 | AF97: 0 | AJ97: 88 | AK97: 13016.71402 | AM97: -0.2859811986 | AN97: 0 | BV97: 88 | BX97: 44294804.81 | CA97: 3404 | CD97: 0 | CF97: 13012.57486 | CH97: -4.425143948
A98: 89 | B98: EDGARTOWN | C98: 1 | D98: 1 | E98: 10 | F98: 198.5624239 | G98: 15472 | H98: 15250 | I98: 1188 | J98: 31910 | AA98: 89 | AB98: EDGARTOWN | AD98: 1 | AF98: 0 | AJ98: 89 | AK98: 15472.22058 | AM98: 0.2205760369 | AN98: 0 | BV98: 89 | BX98: 6714943.73 | CA98: 434 | CD98: 0 | CF98: 15472.22058 | CH98: 0.2205760369
A99: 90 | B99: EGREMONT | C99: 0 | D99: 1 | E99: 0 | F99: 0 | G99: 0 | H99: 0 | I99: 1188 | J99: 1188 | AA99: 90 | AB99: EGREMONT | AD99: 1 | AF99: 0 | AJ99: 90 | AK99: 0 | AM99: 0 | AN99: 0 | BV99: 90 | BX99: 0 | CA99: 0 | CD99: 0 | CF99: 0 | CH99: 0
A100: 91 | B100: ERVING | C100: 1 | D100: 1 | E100: 9 | F100: 213.2082214 | G100: 13511 | H100: 15296 | I100: 1188 | J100: 29995 | AA100: 91 | AB100: ERVING | AD100: 1 | AF100: 0 | AJ100: 91 | AK100: 13510.54789 | AM100: -0.4521078431 | AN100: 0 | BV100: 91 | BX100: 2756151.77 | CA100: 204 | CD100: 0 | CF100: 13510.54789 | CH100: -0.4521078431
A101: 92 | B101: ESSEX | C101: 0 | D101: 1.037 | E101: 0 | F101: 0 | G101: 0 | H101: 0 | I101: 1188 | J101: 1188 | AA101: 92 | AB101: ESSEX | AD101: 1.037 | AF101: 0 | AJ101: 92 | AK101: 0 | AM101: 0 | AN101: 0 | BV101: 92 | BX101: 0 | CA101: 0 | CD101: 0 | CF101: 0 | CH101: 0
A102: 93 | B102: EVERETT | C102: 1 | D102: 1.042 | E102: 11 | F102: 100 | G102: 20176 | H102: 0 | I102: 1188 | J102: 21364 | AA102: 93 | AB102: EVERETT | AD102: 1.042 | AF102: 0 | AJ102: 93 | AK102: 20175.94824 | AM102: -0.05176396009 | AN102: 0 | BV102: 93 | BX102: 161607819 | CA102: 8020 | CD102: 0 | CF102: 20150.60088 | CH102: -25.39912163
A103: 94 | B103: FAIRHAVEN | C103: 1 | D103: 1 | E103: 8 | F103: 102.0939578 | G103: 14795 | H103: 310 | I103: 1188 | J103: 16293 | AA103: 94 | AB103: FAIRHAVEN | AD103: 1 | AF103: 0 | AJ103: 94 | AK103: 14795.01845 | AM103: 0.01845141066 | AN103: 0 | BV103: 94 | BX103: 23585501.07 | CA103: 1595 | CD103: 0 | CF103: 14787.14801 | CH103: -7.85199373
A104: 95 | B104: FALL RIVER | C104: 1 | D104: 1 | E104: 12 | F104: 100.9534948 | G104: 19549 | H104: 186 | I104: 1188 | J104: 20923 | AA104: 95 | AB104: FALL RIVER | AD104: 1 | AF104: 0 | AJ104: 95 | AK104: 19549.03481 | AM104: 0.0348081718 | AN104: 0 | BV104: 95 | BX104: 242840295.5 | CA104: 12433 | CD104: 0 | CF104: 19531.9147 | CH104: -17.08529558
A105: 96 | B105: FALMOUTH | C105: 1 | D105: 1 | E105: 8 | F105: 154.4079515 | G105: 15059 | H105: 8193 | I105: 1188 | J105: 24440 | AA105: 96 | AB105: FALMOUTH | AD105: 1 | AF105: 0 | AJ105: 96 | AK105: 15058.69787 | AM105: -0.3021324042 | AN105: 0 | BV105: 96 | BX105: 43193356.16 | CA105: 2870 | CD105: 0 | CF105: 15049.94988 | CH105: -9.050118467
A106: 97 | B106: FITCHBURG | C106: 1 | D106: 1 | E106: 11 | F106: 100 | G106: 17975 | H106: 0 | I106: 1188 | J106: 19163 | AA106: 97 | AB106: FITCHBURG | AD106: 1 | AF106: 0 | AJ106: 97 | AK106: 17974.71837 | AM106: -0.2816308021 | AN106: 0 | BV106: 97 | BX106: 101009130.4 | CA106: 5623 | CD106: 0 | CF106: 17963.56579 | CH106: -11.43421128
A107: 98 | B107: FLORIDA | C107: 1 | D107: 1 | E107: 8 | F107: 171.3396897 | G107: 15728 | H107: 11220 | I107: 1188 | J107: 28136 | AA107: 98 | AB107: FLORIDA | AD107: 1 | AF107: 0 | AJ107: 98 | AK107: 15728.47891 | AM107: 0.4789090909 | AN107: 0 | BV107: 98 | BX107: 865066.34 | CA107: 55 | CD107: 0 | CF107: 15728.47891 | CH107: 0.4789090909
A108: 99 | B108: FOXBOROUGH | C108: 1 | D108: 1.064 | E108: 5 | F108: 145.292739 | G108: 13838 | H108: 6268 | I108: 1188 | J108: 21294 | AA108: 99 | AB108: FOXBOROUGH | AD108: 1.064 | AF108: 0 | AJ108: 99 | AK108: 13837.73799 | AM108: -0.26201452 | AN108: 0 | BV108: 99 | BX108: 35589023.05 | CA108: 2573 | CD108: 0 | CF108: 13831.72291 | CH108: -6.277088348
A109: 100 | B109: FRAMINGHAM | C109: 1 | D109: 1.017 | E109: 10 | F109: 125.245701 | G109: 17234 | H109: 4351 | I109: 1188 | J109: 22773 | AA109: 100 | AB109: FRAMINGHAM | AD109: 1.017 | AF109: 0 | AJ109: 100 | AK109: 17233.96026 | AM109: -0.0397384655 | AN109: 0 | BV109: 100 | BX109: 163975458.5 | CA109: 9521 | CD109: 0 | CF109: 17222.50379 | CH109: -11.49621373
A110: 101 | B110: FRANKLIN | C110: 1 | D110: 1.052 | E110: 3 | F110: 138.892419 | G110: 13164 | H110: 5120 | I110: 1188 | J110: 19472 | AA110: 101 | AB110: FRANKLIN | AD110: 1.052 | AF110: 0 | AJ110: 101 | AK110: 13164.20995 | AM110: 0.2099464848 | AN110: 0 | BV110: 101 | BX110: 66575133.26 | CA110: 5058 | CD110: 0 | CF110: 13162.34347 | CH110: -1.656531807
A111: 102 | B111: FREETOWN | C111: 0 | D111: 1 | E111: 0 | F111: 0 | G111: 16860 | H111: 0 | I111: 1188 | J111: 18048 | AA111: 102 | AB111: FREETOWN | AD111: 1 | AF111: 0 | AJ111: 102 | AK111: 16860.33 | AM111: 0.33 | AN111: 0 | BV111: 102 | BX111: 16860.33 | CA111: 1 | CD111: 0 | CF111: 16860.33 | CH111: 0.33
A112: 103 | B112: GARDNER | C112: 1 | D112: 1 | E112: 10 | F112: 100 | G112: 16953 | H112: 0 | I112: 1188 | J112: 18141 | AA112: 103 | AB112: GARDNER | AD112: 1 | AF112: 0 | AJ112: 103 | AK112: 16953.32581 | AM112: 0.3258051366 | AN112: 0 | BV112: 103 | BX112: 41579344.61 | CA112: 2453 | CD112: 0 | CF112: 16950.40547 | CH112: -2.594533225
A113: 104 | B113: AQUINNAH | C113: 0 | D113: 1 | E113: 0 | F113: 0 | G113: 0 | H113: 0 | I113: 1188 | J113: 1188 | AA113: 104 | AB113: AQUINNAH | AD113: 1 | AF113: 0 | AJ113: 104 | AK113: 0 | AM113: 0 | AN113: 0 | BV113: 104 | BX113: 0 | CA113: 0 | CD113: 0 | CF113: 0 | CH113: 0
A114: 105 | B114: GEORGETOWN | C114: 1 | D114: 1 | E114: 3 | F114: 148.2065107 | G114: 12624 | H114: 6086 | I114: 1188 | J114: 19898 | AA114: 105 | AB114: GEORGETOWN | AD114: 1 | AF114: 0 | AJ114: 105 | AK114: 12623.61171 | AM114: -0.3882859532 | AN114: 0 | BV114: 105 | BX114: 15093327.77 | CA114: 1196 | CD114: 0 | CF114: 12619.83927 | CH114: -4.160727425
A115: 106 | B115: GILL | C115: 0 | D115: 1 | E115: 0 | F115: 0 | G115: 0 | H115: 0 | I115: 1188 | J115: 1188 | AA115: 106 | AB115: GILL | AD115: 1 | AF115: 0 | AJ115: 106 | AK115: 0 | AM115: 0 | AN115: 0 | BV115: 106 | BX115: 0 | CA115: 0 | CD115: 0 | CF115: 0 | CH115: 0
A116: 107 | B116: GLOUCESTER | C116: 1 | D116: 1.046 | E116: 9 | F116: 130.2293912 | G116: 16115 | H116: 4871 | I116: 1188 | J116: 22174 | AA116: 107 | AB116: GLOUCESTER | AD116: 1.046 | AF116: 0 | AJ116: 107 | AK116: 16114.86515 | AM116: -0.1348496867 | AN116: 0 | BV116: 107 | BX116: 49312993.39 | CA116: 3064 | CD116: 0 | CF116: 16094.31899 | CH116: -20.68100796
A117: 108 | B117: GOSHEN | C117: 0 | D117: 1 | E117: 0 | F117: 0 | G117: 16860 | H117: 0 | I117: 1188 | J117: 18048 | AA117: 108 | AB117: GOSHEN | AD117: 1 | AF117: 0 | AJ117: 108 | AK117: 16860.33 | AM117: 0.33 | AN117: 0 | BV117: 108 | BX117: 151742.97 | CA117: 9 | CD117: 0 | CF117: 16860.33 | CH117: 0.33
A118: 109 | B118: GOSNOLD | C118: 0 | D118: 1 | E118: 0 | F118: 0 | G118: 0 | H118: 0 | I118: 1188 | J118: 1188 | AA118: 109 | AB118: GOSNOLD | AD118: 1 | AF118: 0 | AJ118: 109 | AK118: 0 | AM118: 0 | AN118: 0 | BV118: 109 | BX118: 0 | CA118: 0 | CD118: 0 | CF118: 0 | CH118: 0
A119: 110 | B119: GRAFTON | C119: 1 | D119: 1 | E119: 4 | F119: 132.3755468 | G119: 12787 | H119: 4140 | I119: 1188 | J119: 18115 | AA119: 110 | AB119: GRAFTON | AD119: 1 | AF119: 0 | AJ119: 110 | AK119: 12786.94825 | AM119: -0.05175396279 | AN119: 0 | BV119: 110 | BX119: 37093634.1 | CA119: 2902 | CD119: 0 | CF119: 12782.09307 | CH119: -4.906926258
A120: 111 | B120: GRANBY | C120: 1 | D120: 1 | E120: 8 | F120: 120.4169988 | G120: 14745 | H120: 3010 | I120: 1188 | J120: 18943 | AA120: 111 | AB120: GRANBY | AD120: 1 | AF120: 0 | AJ120: 111 | AK120: 14745.35692 | AM120: 0.3569160305 | AN120: 0 | BV120: 111 | BX120: 9651932.1 | CA120: 655 | CD120: 0 | CF120: 14735.7742 | CH120: -9.225801527
A121: 112 | B121: GRANVILLE | C121: 0 | D121: 1 | E121: 0 | F121: 0 | G121: 0 | H121: 0 | I121: 1188 | J121: 1188 | AA121: 112 | AB121: GRANVILLE | AD121: 1 | AF121: 0 | AJ121: 112 | AK121: 0 | AM121: 0 | AN121: 0 | BV121: 112 | BX121: 0 | CA121: 0 | CD121: 0 | CF121: 0 | CH121: 0
A122: 113 | B122: GREAT BARRINGTON | C122: 0 | D122: 1 | E122: 0 | F122: 0 | G122: 0 | H122: 0 | I122: 1188 | J122: 1188 | AA122: 113 | AB122: GREAT BARRINGTON | AD122: 1 | AF122: 0 | AJ122: 113 | AK122: 0 | AM122: 0 | AN122: 0 | BV122: 113 | BX122: 0 | CA122: 0 | CD122: 0 | CF122: 0 | CH122: 0
A123: 114 | B123: GREENFIELD | C123: 1 | D123: 1 | E123: 10 | F123: 120.1742246 | G123: 15896 | H123: 3207 | I123: 1188 | J123: 20291 | AA123: 114 | AB123: GREENFIELD | AD123: 1 | AF123: 0 | AJ123: 114 | AK123: 15895.93553 | AM123: -0.06446844798 | AN123: 0 | BV123: 114 | BX123: 27946623.42 | CA123: 1759 | CD123: 0 | CF123: 15887.79046 | CH123: -8.209539511
A124: 115 | B124: GROTON | C124: 0 | D124: 1 | E124: 0 | F124: 0 | G124: 0 | H124: 0 | I124: 1188 | J124: 1188 | AA124: 115 | AB124: GROTON | AD124: 1 | AF124: 0 | AJ124: 115 | AK124: 0 | AM124: 0 | AN124: 0 | BV124: 115 | BX124: 0 | CA124: 0 | CD124: 0 | CF124: 0 | CH124: 0
A125: 116 | B125: GROVELAND | C125: 0 | D125: 1 | E125: 0 | F125: 0 | G125: 16860 | H125: 0 | I125: 1188 | J125: 18048 | AA125: 116 | AB125: GROVELAND | AD125: 1 | AF125: 0 | AJ125: 116 | AK125: 16860.33 | AM125: 0.33 | AN125: 0 | BV125: 116 | BX125: 168603.3 | CA125: 10 | CD125: 0 | CF125: 16860.33 | CH125: 0.33
A126: 117 | B126: HADLEY | C126: 1 | D126: 1 | E126: 5 | F126: 151.5773293 | G126: 13832 | H126: 7134 | I126: 1188 | J126: 22154 | AA126: 117 | AB126: HADLEY | AD126: 1 | AF126: 0 | AJ126: 117 | AK126: 13832.40829 | AM126: 0.4082850779 | AN126: 0 | BV126: 117 | BX126: 6210751.32 | CA126: 449 | CD126: 0 | CF126: 13832.40829 | CH126: 0.4082850779
A127: 118 | B127: HALIFAX | C127: 1 | D127: 1.028 | E127: 6 | F127: 112.5061106 | G127: 13319 | H127: 1666 | I127: 1188 | J127: 16173 | AA127: 118 | AB127: HALIFAX | AD127: 1.028 | AF127: 0 | AJ127: 118 | AK127: 13318.72439 | AM127: -0.2756091489 | AN127: 0 | BV127: 118 | BX127: 7511760.556 | CA127: 564 | CD127: 0 | CF127: 13318.72439 | CH127: -0.2756091489
A128: 119 | B128: HAMILTON | C128: 0 | D128: 1.04 | E128: 0 | F128: 0 | G128: 0 | H128: 0 | I128: 1188 | J128: 1188 | AA128: 119 | AB128: HAMILTON | AD128: 1.04 | AF128: 0 | AJ128: 119 | AK128: 0 | AM128: 0 | AN128: 0 | BV128: 119 | BX128: 0 | CA128: 0 | CD128: 0 | CF128: 0 | CH128: 0
A129: 120 | B129: HAMPDEN | C129: 0 | D129: 1 | E129: 0 | F129: 0 | G129: 0 | H129: 0 | I129: 1188 | J129: 1188 | AA129: 120 | AB129: HAMPDEN | AD129: 1 | AF129: 0 | AJ129: 120 | AK129: 0 | AM129: 0 | AN129: 0 | BV129: 120 | BX129: 0 | CA129: 0 | CD129: 0 | CF129: 0 | CH129: 0
A130: 121 | B130: HANCOCK | C130: 1 | D130: 1 | E130: 9 | F130: 171.241798 | G130: 14949 | H130: 10650 | I130: 1188 | J130: 26787 | AA130: 121 | AB130: HANCOCK | AD130: 1 | AF130: 0 | AJ130: 121 | AK130: 14949.20871 | AM130: 0.2087058824 | AN130: 0 | BV130: 121 | BX130: 1270682.74 | CA130: 85 | CD130: 0 | CF130: 14949.20871 | CH130: 0.2087058824
A131: 122 | B131: HANOVER | C131: 1 | D131: 1.037 | E131: 3 | F131: 134.390084 | G131: 12760 | H131: 4388 | I131: 1188 | J131: 18336 | AA131: 122 | AB131: HANOVER | AD131: 1.037 | AF131: 0 | AJ131: 122 | AK131: 12759.93856 | AM131: -0.06144105327 | AN131: 0 | BV131: 122 | BX131: 31856906.4 | CA131: 2497 | CD131: 0 | CF131: 12758.07225 | CH131: -1.927754269
A132: 123 | B132: HANSON | C132: 0 | D132: 1 | E132: 0 | F132: 0 | G132: 16860 | H132: 0 | I132: 1188 | J132: 18048 | AA132: 123 | AB132: HANSON | AD132: 1 | AF132: 0 | AJ132: 123 | AK132: 16860.33 | AM132: 0.33 | AN132: 0 | BV132: 123 | BX132: 101161.98 | CA132: 6 | CD132: 0 | CF132: 16860.33 | CH132: 0.33
A133: 124 | B133: HARDWICK | C133: 0 | D133: 1 | E133: 0 | F133: 0 | G133: 0 | H133: 0 | I133: 1188 | J133: 1188 | AA133: 124 | AB133: HARDWICK | AD133: 1 | AF133: 0 | AJ133: 124 | AK133: 0 | AM133: 0 | AN133: 0 | BV133: 124 | BX133: 0 | CA133: 0 | CD133: 0 | CF133: 0 | CH133: 0
A134: 125 | B134: HARVARD | C134: 1 | D134: 1 | E134: 2 | F134: 147.1854719 | G134: 12462 | H134: 5880 | I134: 1188 | J134: 19530 | AA134: 125 | AB134: HARVARD | AD134: 1 | AF134: 0 | AJ134: 125 | AK134: 12461.806 | AM134: -0.1939954597 | AN134: 0 | BV134: 125 | BX134: 10978851.09 | CA134: 881 | CD134: 0 | CF134: 12461.806 | CH134: -0.1939954597
A135: 126 | B135: HARWICH | C135: 0 | D135: 1 | E135: 0 | F135: 0 | G135: 0 | H135: 0 | I135: 1188 | J135: 1188 | AA135: 126 | AB135: HARWICH | AD135: 1 | AF135: 0 | AJ135: 126 | AK135: 0 | AM135: 0 | AN135: 0 | BV135: 126 | BX135: 0 | CA135: 0 | CD135: 0 | CF135: 0 | CH135: 0
A136: 127 | B136: HATFIELD | C136: 1 | D136: 1 | E136: 4 | F136: 197.5314038 | G136: 13445 | H136: 13113 | I136: 1188 | J136: 27746 | AA136: 127 | AB136: HATFIELD | AD136: 1 | AF136: 0 | AJ136: 127 | AK136: 13444.751 | AM136: -0.249 | AN136: 0 | BV136: 127 | BX136: 4163176.24 | CA136: 310 | CD136: 0 | CF136: 13429.60077 | CH136: -15.39922581
A137: 128 | B137: HAVERHILL | C137: 1 | D137: 1 | E137: 10 | F137: 103.6071537 | G137: 16774 | H137: 605 | I137: 1188 | J137: 18567 | AA137: 128 | AB137: HAVERHILL | AD137: 1 | AF137: 0 | AJ137: 128 | AK137: 16774.39618 | AM137: 0.3961837876 | AN137: 0 | BV137: 128 | BX137: 140785594.1 | CA137: 8401 | CD137: 0 | CF137: 16758.19475 | CH137: -15.8052458
A138: 129 | B138: HAWLEY | C138: 0 | D138: 1 | E138: 0 | F138: =IF(AND(VLOOKUP(A138,rate_abvfndNEW,34)<100,C138=1),100,IF(A138=352,VLOOKUP(125,rate_abvfndNEW,34),VLOOKUP(A138,rate_abvfndNEW,34))) -> 0 | G138: 16860 | H138: =IF(F138<>0,ROUND(G138*F138/100-G138,0),0) -> 0 | I138: 1188 | J138: 18048 | AA138: 129 | AB138: HAWLEY | AD138: 1 | AF138: 0 | AJ138: 129 | AK138: 16860.33 | AM138: 0.33 | AN138: 0 | BV138: 129 | BX138: 67441.32 | CA138: 4 | CD138: 0 | CF138: 16860.33 | CH138: 0.33
A139: 130 | B139: HEATH | C139: 0 | D139: 1 | E139: 0 | F139: 0 | G139: 0 | H139: 0 | I139: 1188 | J139: =IFERROR(ROUND(G139,0)+H139+I139,"") -> 1188 | AA139: 130 | AB139: HEATH | AD139: 1 | AF139: =+AD139-D139 -> 0 | AJ139: 130 | AK139: 0 | AM139: =+AK139-G139 -> 0 | AN139: =+AJ139-A139 -> 0 | BV139: 130 | BX139: 0 | CA139: 0 | CD139: =+BV139-A139 -> 0 | CF139: =IF(BX139=0,0,BX139/CA139) -> 0 | CH139: =+CF139-G139 -> 0
A140: 131 | B140: HINGHAM | C140: 1 | D140: 1.053 | E140: 2 | F140: 153.6500454 | G140: 12725 | H140: 6827 | I140: 1188 | J140: 20740 | AA140: 131 | AB140: HINGHAM | AD140: 1.053 | AF140: 0 | AJ140: 131 | AK140: 12724.533 | AM140: -0.4670025097 | AN140: 0 | BV140: 131 | BX140: 45880135.11 | CA140: 3606 | CD140: 0 | CF140: 12723.27651 | CH140: -1.723486672
A141: 132 | B141: HINSDALE | C141: 0 | D141: 1 | E141: 0 | F141: 0 | G141: 16860 | H141: 0 | I141: 1188 | J141: 18048 | AA141: 132 | AB141: HINSDALE | AD141: 1 | AF141: 0 | AJ141: 132 | AK141: 16860.33 | AM141: 0.33 | AN141: 0 | BV141: 132 | BX141: 168603.3 | CA141: 10 | CD141: 0 | CF141: 16860.33 | CH141: 0.33
A142: 133 | B142: HOLBROOK | C142: 1 | D142: 1.04 | E142: 9 | F142: 104.3114226 | G142: 15704 | H142: 677 | I142: 1188 | J142: 17569 | AA142: 133 | AB142: HOLBROOK | AD142: 1.04 | AF142: 0 | AJ142: 133 | AK142: 15703.70441 | AM142: -0.2955923247 | AN142: 0 | BV142: 133 | BX142: 21264601.48 | CA142: 1355 | CD142: 0 | CF142: 15693.43283 | CH142: -10.56717255
A143: 134 | B143: HOLDEN | C143: 0 | D143: 1 | E143: 0 | F143: 0 | G143: 16860 | H143: 0 | I143: 1188 | J143: 18048 | AA143: 134 | AB143: HOLDEN | AD143: 1 | AF143: 0 | AJ143: 134 | AK143: 16860.33 | AM143: 0.33 | AN143: 0 | BV143: 134 | BX143: 33720.66 | CA143: 2 | CD143: 0 | CF143: 16860.33 | CH143: 0.33
A144: 135 | B144: HOLLAND | C144: 1 | D144: 1 | E144: 8 | F144: 127.9085576 | G144: 15113 | H144: 4218 | I144: 1188 | J144: 20519 | AA144: 135 | AB144: HOLLAND | AD144: 1 | AF144: 0 | AJ144: 135 | AK144: 15113.00064 | AM144: 0.0006369426756 | AN144: 0 | BV144: 135 | BX144: 2372741.1 | CA144: 157 | CD144: 0 | CF144: 15113.00064 | CH144: 0.0006369426756
A145: 136 | B145: HOLLISTON | C145: 1 | D145: 1.009 | E145: 3 | F145: 132.2922875 | G145: 12594 | H145: 4067 | I145: 1188 | J145: 17849 | AA145: 136 | AB145: HOLLISTON | AD145: 1.009 | AF145: 0 | AJ145: 136 | AK145: 12594.30854 | AM145: 0.3085372172 | AN145: 0 | BV145: 136 | BX145: 33400106.24 | CA145: 2652 | CD145: 0 | CF145: 12594.30854 | CH145: 0.3085372172
A146: 137 | B146: HOLYOKE | C146: 1 | D146: 1 | E146: 12 | F146: 100.6008099 | G146: 19551 | H146: 117 | I146: 1188 | J146: 20856 | AA146: 137 | AB146: HOLYOKE | AD146: 1 | AF146: 0 | AJ146: 137 | AK146: 19551.26121 | AM146: 0.261208547 | AN146: 0 | BV146: 137 | BX146: 114196080.5 | CA146: 5850 | CD146: 0 | CF146: 19520.69752 | CH146: -30.30247863
A147: 138 | B147: HOPEDALE | C147: 1 | D147: 1 | E147: 5 | F147: 148.6426149 | G147: 13477 | H147: 6556 | I147: 1188 | J147: 21221 | AA147: 138 | AB147: HOPEDALE | AD147: 1 | AF147: 0 | AJ147: 138 | AK147: 13477.03746 | AM147: 0.0374566474 | AN147: 0 | BV147: 138 | BX147: 11657637.4 | CA147: 865 | CD147: 0 | CF147: 13477.03746 | CH147: 0.0374566474
A148: 139 | B148: HOPKINTON | C148: 1 | D148: 1.038 | E148: 2 | F148: 131.1670706 | G148: 12646 | H148: 3941 | I148: 1188 | J148: 17775 | AA148: 139 | AB148: HOPKINTON | AD148: 1.038 | AF148: 0 | AJ148: 139 | AK148: 12645.55997 | AM148: -0.4400342665 | AN148: 0 | BV148: 139 | BX148: 52659810.85 | CA148: 4165 | CD148: 0 | CF148: 12643.41197 | CH148: -2.588031837
A149: 140 | B149: HUBBARDSTON | C149: 0 | D149: 1 | E149: 0 | F149: 0 | G149: 0 | H149: 0 | I149: 1188 | J149: 1188 | AA149: 140 | AB149: HUBBARDSTON | AD149: 1 | AF149: 0 | AJ149: 140 | AK149: 0 | AM149: 0 | AN149: 0 | BV149: 140 | BX149: 0 | CA149: 0 | CD149: 0 | CF149: 0 | CH149: 0
A150: 141 | B150: HUDSON | C150: 1 | D150: 1.002 | E150: 7 | F150: 155.0865462 | G150: 14701 | H150: 8098 | I150: 1188 | J150: 23987 | AA150: 141 | AB150: HUDSON | AD150: 1.002 | AF150: 0 | AJ150: 141 | AK150: 14701.30255 | AM150: 0.3025481762 | AN150: 0 | BV150: 141 | BX150: 35380191.65 | CA150: 2407 | CD150: 0 | CF150: 14698.8748 | CH150: -2.12519882
A151: 142 | B151: HULL | C151: 1 | D151: 1.031 | E151: 7 | F151: 188.6386748 | G151: 14284 | H151: 12661 | I151: 1188 | J151: 28133 | AA151: 142 | AB151: HULL | AD151: 1.031 | AF151: 0 | AJ151: 142 | AK151: 14284.17201 | AM151: 0.1720104095 | AN151: 0 | BV151: 142 | BX151: 10807124.3 | CA151: 757 | CD151: 0 | CF151: 14276.25403 | CH151: -7.745966882
A152: 143 | B152: HUNTINGTON | C152: 0 | D152: 1 | E152: 0 | F152: 0 | G152: 18554 | H152: 0 | I152: 1188 | J152: 19742 | AA152: 143 | AB152: HUNTINGTON | AD152: 1 | AF152: 0 | AJ152: 143 | AK152: 18554.03919 | AM152: 0.03918918919 | AN152: 0 | BV152: 143 | BX152: 686499.45 | CA152: 37 | CD152: 0 | CF152: 18554.03919 | CH152: 0.03918918919
A153: 144 | B153: IPSWICH | C153: 1 | D153: 1.059 | E153: 4 | F153: 173.2200236 | G153: 13563 | H153: 9931 | I153: 1188 | J153: 24682 | AA153: 144 | AB153: IPSWICH | AD153: 1.059 | AF153: 0 | AJ153: 144 | AK153: 13563.4334 | AM153: 0.4334001547 | AN153: 0 | BV153: 144 | BX153: 21026999.6 | CA153: 1551 | CD153: 0 | CF153: 13557.0597 | CH153: -5.940299574
A154: 145 | B154: KINGSTON | C154: 1 | D154: 1.034 | E154: 4 | F154: 114.4131667 | G154: 12916 | H154: 1862 | I154: 1188 | J154: 15966 | AA154: 145 | AB154: KINGSTON | AD154: 1.034 | AF154: 0 | AJ154: 145 | AK154: 12915.83684 | AM154: -0.1631638923 | AN154: 0 | BV154: 145 | BX154: 14861289.73 | CA154: 1151 | CD154: 0 | CF154: 12911.63313 | CH154: -4.366871659
A155: 146 | B155: LAKEVILLE | C155: 0 | D155: 1 | E155: 0 | F155: 0 | G155: 19098 | H155: 0 | I155: 1188 | J155: 20286 | AA155: 146 | AB155: LAKEVILLE | AD155: 1 | AF155: 0 | AJ155: 146 | AK155: 19098.44571 | AM155: 0.4457142857 | AN155: 0 | BV155: 146 | BX155: 267378.24 | CA155: 14 | CD155: 0 | CF155: 19098.44571 | CH155: 0.4457142857
A156: 147 | B156: LANCASTER | C156: 0 | D156: 1 | E156: 0 | F156: 0 | G156: 16860 | H156: 0 | I156: 1188 | J156: 18048 | AA156: 147 | AB156: LANCASTER | AD156: 1 | AF156: 0 | AJ156: 147 | AK156: 16860.33 | AM156: 0.33 | AN156: 0 | BV156: 147 | BX156: 33720.66 | CA156: 2 | CD156: 0 | CF156: 16860.33 | CH156: 0.33
A157: 148 | B157: LANESBOROUGH | C157: 0 | D157: 1 | E157: 0 | F157: 0 | G157: 0 | H157: 0 | I157: 1188 | J157: 1188 | AA157: 148 | AB157: LANESBOROUGH | AD157: 1 | AF157: 0 | AJ157: 148 | AK157: 0 | AM157: 0 | AN157: 0 | BV157: 148 | BX157: 0 | CA157: 0 | CD157: 0 | CF157: 0 | CH157: 0
A158: 149 | B158: LAWRENCE | C158: 1 | D158: 1 | E158: 12 | F158: 101.9348861 | G158: 20347 | H158: 394 | I158: 1188 | J158: 21929 | AA158: 149 | AB158: LAWRENCE | AD158: 1 | AF158: 0 | AJ158: 149 | AK158: 20346.5273 | AM158: -0.4727038337 | AN158: 0 | BV158: 149 | BX158: 301147638.3 | CA158: 14816 | CD158: 0 | CF158: 20325.83952 | CH158: -21.16048191
A159: 150 | B159: LEE | C159: 1 | D159: 1 | E159: 8 | F159: 153.1627603 | G159: 15604 | H159: 8296 | I159: 1188 | J159: 25088 | AA159: 150 | AB159: LEE | AD159: 1 | AF159: 0 | AJ159: 150 | AK159: 15603.58871 | AM159: -0.4112932605 | AN159: 0 | BV159: 150 | BX159: 8560093.52 | CA159: 549 | CD159: 0 | CF159: 15592.15577 | CH159: -11.84422587
A160: 151 | B160: LEICESTER | C160: 1 | D160: 1 | E160: 8 | F160: 115.5050427 | G160: 15218 | H160: 2360 | I160: 1188 | J160: 18766 | AA160: 151 | AB160: LEICESTER | AD160: 1 | AF160: 0 | AJ160: 151 | AK160: 15217.6813 | AM160: -0.3187046263 | AN160: 0 | BV160: 151 | BX160: 21355735.5 | CA160: 1405 | CD160: 0 | CF160: 15199.81174 | CH160: -18.18825623
A161: 152 | B161: LENOX | C161: 1 | D161: 1 | E161: 5 | F161: 257.2757958 | G161: 14157 | H161: 22266 | I161: 1188 | J161: 37611 | AA161: 152 | AB161: LENOX | AD161: 1 | AF161: 0 | AJ161: 152 | AK161: 14156.86737 | AM161: -0.1326348548 | AN161: 0 | BV161: 152 | BX161: 6818728.75 | CA161: 482 | CD161: 0 | CF161: 14146.74015 | CH161: -10.25985477
A162: 153 | B162: LEOMINSTER | C162: 1 | D162: 1 | E162: 10 | F162: 100.1294538 | G162: 17263 | H162: 22 | I162: 1188 | J162: 18473 | AA162: 153 | AB162: LEOMINSTER | AD162: 1 | AF162: 0 | AJ162: 153 | AK162: 17263.2321 | AM162: 0.2320951905 | AN162: 0 | BV162: 153 | BX162: 103670289.4 | CA162: 6009 | CD162: 0 | CF162: 17252.5028 | CH162: -10.49719587
A163: 154 | B163: LEVERETT | C163: 1 | D163: 1 | E163: 6 | F163: 236.5479736 | G163: 13401 | H163: 18299 | I163: 1188 | J163: 32888 | AA163: 154 | AB163: LEVERETT | AD163: 1 | AF163: 0 | AJ163: 154 | AK163: 13401.2659 | AM163: 0.2659047619 | AN163: 0 | BV163: 154 | BX163: 1407132.92 | CA163: 105 | CD163: 0 | CF163: 13401.2659 | CH163: 0.2659047619
A164: 155 | B164: LEXINGTON | C164: 1 | D164: 1.085 | E164: 2 | F164: 179.7375535 | G164: 13350 | H164: 10645 | I164: 1188 | J164: 25183 | AA164: 155 | AB164: LEXINGTON | AD164: 1.085 | AF164: 0 | AJ164: 155 | AK164: 13349.71799 | AM164: -0.2820138958 | AN164: 0 | BV164: 155 | BX164: 91458917.92 | CA164: 6851 | CD164: 0 | CF164: 13349.71799 | CH164: -0.2820138958
A165: 156 | B165: LEYDEN | C165: 0 | D165: 1 | E165: 0 | F165: 0 | G165: 0 | H165: 0 | I165: 1188 | J165: 1188 | AA165: 156 | AB165: LEYDEN | AD165: 1 | AF165: 0 | AJ165: 156 | AK165: 0 | AM165: 0 | AN165: 0 | BV165: 156 | BX165: 0 | CA165: 0 | CD165: 0 | CF165: 0 | CH165: 0
A166: 157 | B166: LINCOLN | C166: 1 | D166: 1.048 | E166: 4 | F166: 195.7378174 | G166: 12847 | H166: 12299 | I166: 1188 | J166: 26334 | AA166: 157 | AB166: LINCOLN | AD166: 1.048 | AF166: 0 | AJ166: 157 | AK166: 12846.77304 | AM166: -0.226961094 | AN166: 0 | BV166: 157 | BX166: 7515362.228 | CA166: 585 | CD166: 0 | CF166: 12846.77304 | CH166: -0.226961094
A167: 158 | B167: LITTLETON | C167: 1 | D167: 1 | E167: 2 | F167: 146.3390866 | G167: 12338 | H167: 5717 | I167: 1188 | J167: 19243 | AA167: 158 | AB167: LITTLETON | AD167: 1 | AF167: 0 | AJ167: 158 | AK167: 12338.38572 | AM167: 0.3857151589 | AN167: 0 | BV167: 158 | BX167: 20185599.03 | CA167: 1636 | CD167: 0 | CF167: 12338.38572 | CH167: 0.3857151589
A168: 159 | B168: LONGMEADOW | C168: 1 | D168: 1 | E168: 3 | F168: 141.6284191 | G168: 12566 | H168: 5231 | I168: 1188 | J168: 18985 | AA168: 159 | AB168: LONGMEADOW | AD168: 1 | AF168: 0 | AJ168: 159 | AK168: 12566.34805 | AM168: 0.3480499449 | AN168: 0 | BV168: 159 | BX168: 34209142.06 | CA168: 2723 | CD168: 0 | CF168: 12563.03418 | CH168: -2.965824458
A169: 160 | B169: LOWELL | C169: 1 | D169: 1 | E169: 11 | F169: 101.5606882 | G169: 18662 | H169: 291 | I169: 1188 | J169: 20141 | AA169: 160 | AB169: LOWELL | AD169: 1 | AF169: 0 | AJ169: 160 | AK169: 18662.34002 | AM169: 0.3400242336 | AN169: 0 | BV169: 160 | BX169: 307821096.1 | CA169: 16506 | CD169: 0 | CF169: 18649.04253 | CH169: -12.95746516
A170: 161 | B170: LUDLOW | C170: 1 | D170: 1 | E170: 8 | F170: 134.9097926 | G170: 15006 | H170: 5239 | I170: 1188 | J170: 21433 | AA170: 161 | AB170: LUDLOW | AD170: 1 | AF170: 0 | AJ170: 161 | AK170: 15006.03175 | AM170: 0.03174696083 | AN170: 0 | BV170: 161 | BX170: 33315843.15 | CA170: 2221 | CD170: 0 | CF170: 15000.37963 | CH170: -5.620373706
A171: 162 | B171: LUNENBURG | C171: 1 | D171: 1 | E171: 5 | F171: 120.0885362 | G171: 13199 | H171: 2651 | I171: 1188 | J171: 17038 | AA171: 162 | AB171: LUNENBURG | AD171: 1 | AF171: 0 | AJ171: 162 | AK171: 13198.56106 | AM171: -0.4389406001 | AN171: 0 | BV171: 162 | BX171: 21553250.21 | CA171: 1633 | CD171: 0 | CF171: 13198.56106 | CH171: -0.4389406001
A172: 163 | B172: LYNN | C172: 1 | D172: 1 | E172: 11 | F172: 100 | G172: 19400 | H172: 0 | I172: 1188 | J172: 20588 | AA172: 163 | AB172: LYNN | AD172: 1 | AF172: 0 | AJ172: 163 | AK172: 19399.62789 | AM172: -0.3721060464 | AN172: 0 | BV172: 163 | BX172: 351559827.6 | CA172: 18143 | CD172: 0 | CF172: 19377.16076 | CH172: -22.83924158
A173: 164 | B173: LYNNFIELD | C173: 1 | D173: 1.042 | E173: 3 | F173: 141.5212792 | G173: 12745 | H173: 5292 | I173: 1188 | J173: 19225 | AA173: 164 | AB173: LYNNFIELD | AD173: 1.042 | AF173: 0 | AJ173: 164 | AK173: 12744.89257 | AM173: -0.1074267426 | AN173: 0 | BV173: 164 | BX173: 27975039.2 | CA173: 2195 | CD173: 0 | CF173: 12744.89257 | CH173: -0.1074267426
A174: 165 | B174: MALDEN | C174: 1 | D174: 1.038 | E174: 10 | F174: 100 | G174: 17708 | H174: 0 | I174: 1188 | J174: 18896 | AA174: 165 | AB174: MALDEN | AD174: 1.038 | AF174: 0 | AJ174: 165 | AK174: 17707.67174 | AM174: -0.3282647909 | AN174: 0 | BV174: 165 | BX174: 121461101.7 | CA174: 6863 | CD174: 0 | CF174: 17697.96033 | CH174: -10.0396703
A175: 166 | B175: MANCHESTER | C175: 0 | D175: 1.043 | E175: 0 | F175: 0 | G175: 0 | H175: 0 | I175: 1188 | J175: 1188 | AA175: 166 | AB175: MANCHESTER | AD175: 1.043 | AF175: 0 | AJ175: 166 | AK175: 0 | AM175: 0 | AN175: 0 | BV175: 166 | BX175: 0 | CA175: 0 | CD175: 0 | CF175: 0 | CH175: 0
A176: 167 | B176: MANSFIELD | C176: 1 | D176: 1.056 | E176: 4 | F176: 146.3042132 | G176: 13520 | H176: 6260 | I176: 1188 | J176: 20968 | AA176: 167 | AB176: MANSFIELD | AD176: 1.056 | AF176: 0 | AJ176: 167 | AK176: 13520.38185 | AM176: 0.3818540445 | AN176: 0 | BV176: 167 | BX176: 46126612.6 | CA176: 3412 | CD176: 0 | CF176: 13518.93687 | CH176: -1.063129472
A177: 168 | B177: MARBLEHEAD | C177: 1 | D177: 1 | E177: 3 | F177: 165.5578854 | G177: 12723 | H177: 8341 | I177: 1188 | J177: 22252 | AA177: 168 | AB177: MARBLEHEAD | AD177: 1 | AF177: 0 | AJ177: 168 | AK177: 12722.63588 | AM177: -0.3641190108 | AN177: 0 | BV177: 168 | BX177: 32926181.66 | CA177: 2588 | CD177: 0 | CF177: 12722.63588 | CH177: -0.3641190108
A178: 169 | B178: MARION | C178: 1 | D178: 1 | E178: 6 | F178: 148.847196 | G178: 13159 | H178: 6428 | I178: 1188 | J178: 20775 | AA178: 169 | AB178: MARION | AD178: 1 | AF178: 0 | AJ178: 169 | AK178: 13159.3866 | AM178: 0.3865979381 | AN178: 0 | BV178: 169 | BX178: 5105842 | CA178: 388 | CD178: 0 | CF178: 13159.3866 | CH178: 0.3865979381
A179: 170 | B179: MARLBOROUGH | C179: 1 | D179: 1.02 | E179: 10 | F179: 105.5317585 | G179: 17094 | H179: 946 | I179: 1188 | J179: 19228 | AA179: 170 | AB179: MARLBOROUGH | AD179: 1.02 | AF179: 0 | AJ179: 170 | AK179: 17093.83284 | AM179: -0.1671638915 | AN179: 0 | BV179: 170 | BX179: 91235300.24 | CA179: 5345 | CD179: 0 | CF179: 17069.27975 | CH179: -24.72025433
A180: 171 | B180: MARSHFIELD | C180: 1 | D180: 1.036 | E180: 4 | F180: 125.2308529 | G180: 13554 | H180: 3420 | I180: 1188 | J180: 18162 | AA180: 171 | AB180: MARSHFIELD | AD180: 1.036 | AF180: 0 | AJ180: 171 | AK180: 13554.19316 | AM180: 0.1931559335 | AN180: 0 | BV180: 171 | BX180: 49720641.06 | CA180: 3669 | CD180: 0 | CF180: 13551.55112 | CH180: -2.448879804
A181: 172 | B181: MASHPEE | C181: 1 | D181: 1 | E181: 8 | F181: 165.4319123 | G181: 15017 | H181: 9826 | I181: 1188 | J181: 26031 | AA181: 172 | AB181: MASHPEE | AD181: 1 | AF181: 0 | AJ181: 172 | AK181: 15017.38605 | AM181: 0.3860451977 | AN181: 0 | BV181: 172 | BX181: 21252065.28 | CA181: 1416 | CD181: 0 | CF181: 15008.52068 | CH181: -8.479322034
A182: 173 | B182: MATTAPOISETT | C182: 1 | D182: 1 | E182: 5 | F182: 178.8389272 | G182: 12705 | H182: 10016 | I182: 1188 | J182: 23909 | AA182: 173 | AB182: MATTAPOISETT | AD182: 1 | AF182: 0 | AJ182: 173 | AK182: 12704.74172 | AM182: -0.2582767624 | AN182: 0 | BV182: 173 | BX182: 4861034.76 | CA182: 383 | CD182: 0 | CF182: 12691.99676 | CH182: -13.0032376
A183: 174 | B183: MAYNARD | C183: 1 | D183: 1.066 | E183: 5 | F183: 159.0983473 | G183: 14263 | H183: 8429 | I183: 1188 | J183: 23880 | AA183: 174 | AB183: MAYNARD | AD183: 1.066 | AF183: 0 | AJ183: 174 | AK183: 14263.43581 | AM183: 0.435809841 | AN183: 0 | BV183: 174 | BX183: 17943402.25 | CA183: 1258 | CD183: 0 | CF183: 14263.43581 | CH183: 0.435809841
A184: 175 | B184: MEDFIELD | C184: 1 | D184: 1.042 | E184: 2 | F184: 153.7527274 | G184: 12641 | H184: 6795 | I184: 1188 | J184: 20624 | AA184: 175 | AB184: MEDFIELD | AD184: 1.042 | AF184: 0 | AJ184: 175 | AK184: 12640.95329 | AM184: -0.04670877267 | AN184: 0 | BV184: 175 | BX184: 29962723.08 | CA184: 2371 | CD184: 0 | CF184: 12637.16705 | CH184: -3.832947035
A185: 176 | B185: MEDFORD | C185: 1 | D185: 1.052 | E185: 8 | F185: 125.1151069 | G185: 16287 | H185: 4090 | I185: 1188 | J185: 21565 | AA185: 176 | AB185: MEDFORD | AD185: 1.052 | AF185: 0 | AJ185: 176 | AK185: 16286.82704 | AM185: -0.1729562246 | AN185: 0 | BV185: 176 | BX185: 73661905.41 | CA185: 4524 | CD185: 0 | CF185: 16282.47246 | CH185: -4.527540866
A186: 177 | B186: MEDWAY | C186: 1 | D186: 1.037 | E186: 4 | F186: 137.9699267 | G186: 13112 | H186: 4979 | I186: 1188 | J186: 19279 | AA186: 177 | AB186: MEDWAY | AD186: 1.037 | AF186: 0 | AJ186: 177 | AK186: 13111.91745 | AM186: -0.08255082058 | AN186: 0 | BV186: 177 | BX186: 28282405.94 | CA186: 2157 | CD186: 0 | CF186: 13111.91745 | CH186: -0.08255082058
A187: 178 | B187: MELROSE | C187: 1 | D187: 1.035 | E187: 4 | F187: 108.1130677 | G187: 13008 | H187: 1055 | I187: 1188 | J187: 15251 | AA187: 178 | AB187: MELROSE | AD187: 1.035 | AF187: 0 | AJ187: 178 | AK187: 13007.79539 | AM187: -0.2046063473 | AN187: 0 | BV187: 178 | BX187: 53458998.81 | CA187: 4112 | CD187: 0 | CF187: 13000.72928 | CH187: -7.270716902
A188: 179 | B188: MENDON | C188: 0 | D188: 1 | E188: 0 | F188: 0 | G188: 16860 | H188: 0 | I188: 1188 | J188: 18048 | AA188: 179 | AB188: MENDON | AD188: 1 | AF188: 0 | AJ188: 179 | AK188: 16860.33 | AM188: 0.33 | AN188: 0 | BV188: 179 | BX188: 168603.3 | CA188: 10 | CD188: 0 | CF188: 16860.33 | CH188: 0.33
A189: 180 | B189: MERRIMAC | C189: 0 | D189: 1 | E189: 0 | F189: 0 | G189: 16860 | H189: 0 | I189: 1188 | J189: 18048 | AA189: 180 | AB189: MERRIMAC | AD189: 1 | AF189: 0 | AJ189: 180 | AK189: 16860.33 | AM189: 0.33 | AN189: 0 | BV189: 180 | BX189: 134882.64 | CA189: 8 | CD189: 0 | CF189: 16860.33 | CH189: 0.33
A190: 181 | B190: METHUEN | C190: 1 | D190: 1 | E190: 10 | F190: 100.853742 | G190: 16855 | H190: 144 | I190: 1188 | J190: 18187 | AA190: 181 | AB190: METHUEN | AD190: 1 | AF190: 0 | AJ190: 181 | AK190: 16854.63677 | AM190: -0.3632317784 | AN190: 0 | BV190: 181 | BX190: 115572663.1 | CA190: 6860 | CD190: 0 | CF190: 16847.32698 | CH190: -7.673017493
A191: 182 | B191: MIDDLEBOROUGH | C191: 1 | D191: 1 | E191: 8 | F191: 116.5707848 | G191: 14665 | H191: 2430 | I191: 1188 | J191: 18283 | AA191: 182 | AB191: MIDDLEBOROUGH | AD191: 1 | AF191: 0 | AJ191: 182 | AK191: 14664.88496 | AM191: -0.1150421257 | AN191: 0 | BV191: 182 | BX191: 45230728.26 | CA191: 3086 | CD191: 0 | CF191: 14656.74927 | CH191: -8.250725859
A192: 183 | B192: MIDDLEFIELD | C192: 0 | D192: 1 | E192: 0 | F192: 0 | G192: 16860 | H192: 0 | I192: 1188 | J192: 18048 | AA192: 183 | AB192: MIDDLEFIELD | AD192: 1 | AF192: 0 | AJ192: 183 | AK192: 16860.33 | AM192: 0.33 | AN192: 0 | BV192: 183 | BX192: 33720.66 | CA192: 2 | CD192: 0 | CF192: 16860.33 | CH192: 0.33
A193: 184 | B193: MIDDLETON | C193: 1 | D193: 1.045 | E193: 3 | F193: 173.3972429 | G193: 12396 | H193: 9098 | I193: 1188 | J193: 22682 | AA193: 184 | AB193: MIDDLETON | AD193: 1.045 | AF193: 0 | AJ193: 184 | AK193: 12395.72023 | AM193: -0.2797717236 | AN193: 0 | BV193: 184 | BX193: 8701795.6 | CA193: 702 | CD193: 0 | CF193: 12395.72023 | CH193: -0.2797717236
A194: 185 | B194: MILFORD | C194: 1 | D194: 1.003 | E194: 10 | F194: 112.6193286 | G194: 16936 | H194: 2137 | I194: 1188 | J194: 20261 | AA194: 185 | AB194: MILFORD | AD194: 1.003 | AF194: 0 | AJ194: 185 | AK194: 16935.93681 | AM194: -0.0631861453 | AN194: 0 | BV194: 185 | BX194: 79238636.23 | CA194: 4680 | CD194: 0 | CF194: 16931.33253 | CH194: -4.667472729
A195: 186 | B195: MILLBURY | C195: 1 | D195: 1 | E195: 7 | F195: 131.2466665 | G195: 14181 | H195: 4431 | I195: 1188 | J195: 19800 | AA195: 186 | AB195: MILLBURY | AD195: 1 | AF195: 0 | AJ195: 186 | AK195: 14180.78973 | AM195: -0.2102673147 | AN195: 0 | BV195: 186 | BX195: 23335746.68 | CA195: 1646 | CD195: 0 | CF195: 14177.24586 | CH195: -3.754143378
A196: 187 | B196: MILLIS | C196: 1 | D196: 1.036 | E196: 4 | F196: 155.5688052 | G196: 13259 | H196: 7368 | I196: 1188 | J196: 21815 | AA196: 187 | AB196: MILLIS | AD196: 1.036 | AF196: 0 | AJ196: 187 | AK196: 13259.02828 | AM196: 0.02827550644 | AN196: 0 | BV196: 187 | BX196: 14399304.71 | CA196: 1086 | CD196: 0 | CF196: 13259.02828 | CH196: 0.02827550644
A197: 188 | B197: MILLVILLE | C197: 0 | D197: 1 | E197: 0 | F197: 0 | G197: 16860 | H197: 0 | I197: 1188 | J197: 18048 | AA197: 188 | AB197: MILLVILLE | AD197: 1 | AF197: 0 | AJ197: 188 | AK197: 16860.33 | AM197: 0.33 | AN197: 0 | BV197: 188 | BX197: 84301.65 | CA197: 5 | CD197: 0 | CF197: 16860.33 | CH197: 0.33
A198: 189 | B198: MILTON | C198: 1 | D198: 1.042 | E198: 3 | F198: 134.1550068 | G198: 12939 | H198: 4419 | I198: 1188 | J198: 18546 | AA198: 189 | AB198: MILTON | AD198: 1.042 | AF198: 0 | AJ198: 189 | AK198: 12939.21321 | AM198: 0.2132064838 | AN198: 0 | BV198: 189 | BX198: 55668073.97 | CA198: 4303 | CD198: 0 | CF198: 12937.03787 | CH198: -1.962127283
A199: 190 | B199: MONROE | C199: 0 | D199: 1 | E199: 0 | F199: 0 | G199: 11333 | H199: 0 | I199: 1188 | J199: 12521 | AA199: 190 | AB199: MONROE | AD199: 1 | AF199: 0 | AJ199: 190 | AK199: 11332.79474 | AM199: -0.2052631579 | AN199: 0 | BV199: 190 | BX199: 215323.1 | CA199: 19 | CD199: 0 | CF199: 11332.79474 | CH199: -0.2052631579
A200: 191 | B200: MONSON | C200: 1 | D200: 1 | E200: 8 | F200: 128.9709703 | G200: 14475 | H200: 4194 | I200: 1188 | J200: 19857 | AA200: 191 | AB200: MONSON | AD200: 1 | AF200: 0 | AJ200: 191 | AK200: 14475.46777 | AM200: 0.4677681874 | AN200: 0 | BV200: 191 | BX200: 11727051 | CA200: 811 | CD200: 0 | CF200: 14459.9889 | CH200: -15.01109741
A201: 192 | B201: MONTAGUE | C201: 0 | D201: 1 | E201: 0 | F201: 0 | G201: 16860 | H201: 0 | I201: 1188 | J201: 18048 | AA201: 192 | AB201: MONTAGUE | AD201: 1 | AF201: 0 | AJ201: 192 | AK201: 16860.33 | AM201: 0.33 | AN201: 0 | BV201: 192 | BX201: 16860.33 | CA201: 1 | CD201: 0 | CF201: 16860.33 | CH201: 0.33
... 250 more rows

Sheet fnd enro explain
A1: Massachusetts Department of Elementary and Secondary Education | O1: Massachusetts Department of Elementary and Secondary Education
A2: Office of District and School Finance | O2: Office of District and School Finance
A3: FY25 FOUNDATION ENROLLMENT | M3: 2024-01-24 | O3: FY24 FOUNDATION ENROLLMENT | AA3: 2023-03-28 | AC3: FY23 | AO3: 2022-08-01 | AQ3: fy21 & fy 22 | BC3: 2021-03-17 | BE3: FY20 SWM Budget | BQ3: Draft at time of run, 5/7/2019 | BS3: FY20 Governor's Budget | CE3: 2019-01-14 | CG3: Prior Year | CS3: 2018-05-01
O5: Foundation enrollment is the total headcount of pupils in grades PK - 12. Pupils are further divided into program | AC5: Foundation enrollment is the total headcount of pupils in grades PK - 12. Pupils are further divided into program | AQ5: Foundation enrollment is the total headcount of pupils in grades PK - 12. Pupils are further divided into program | BE5: Foundation enrollment is the total headcount of pupils in grades PK - 12. Pupils are further divided into program | BS5: Foundation enrollment is the total headcount of pupils in grades PK - 12. Enrollment is broken into two categories, | CG5: Foundation enrollment is the total headcount of pupils in grades PK - 12. Enrollment is broken into two categories,
A6: Foundation enrollment is the total headcount of pupils in grades PK - 12. Pupils are further divided into program | O6: groups: pre-kindergarten; half-time kindergarten; full-time kindergarten; elementary, grades 1 to 5; middle school, grades 6 | AC6: groups: pre-kindergarten; half-time kindergarten; full-time kindergarten; elementary, grades 1 to 5; middle school, grades 6 | AQ6: groups: pre-kindergarten; half-time kindergarten; full-time kindergarten; elementary, grades 1 to 5; middle school, grades 6 | BE6: groups: pre-kindergarten; half-time kindergarten; full-time kindergarten; elementary, grades 1 to 5; middle school, grades 6 | BS6: regular education pupils and traditional or Path vocational pupils. Pupils are further divided into program groups: pre- | CG6: regular education pupils or English language learners (ELL). Pupils are further divided into program groups: pre-
A7: groups: pre-kindergarten; half-time kindergarten; full-time kindergarten; elementary, grades 1 to 5; middle school, grades 6 | O7: through 8; or high school, grades 9 through 12 under the Regular Education section, but reported in bulk for | AC7: through 8; or high school, grades 9 through 12 under the Regular Education section, but reported in bulk for | AQ7: through 8; or high school, grades 9 through 12 under the Regular Education section, but reported in bulk for | BE7: through 8; or high school, grades 9 through 12 under the Regular Education section, but reported in bulk for | BS7: kindergarten; half-time kindergarten; full-time kindergarten; elementary, grades 1 to 5; middle school, grades 6 | CG7: kindergarten; half-time kindergarten; full-time kindergarten; elementary, grades 1 to 5; middle school, grades 6
A8: through 8; or high school, grades 9 through 12 under the Regular Education section, but reported in bulk for | O8: Vocational programs. Voke enrollment was first incorporated in FY23. | AC8: vocational programs. | AQ8: vocational programs. | BE8: vocational programs. | BS8: through 8; or high school, grades 9 through 12 under the Regular Education section, but reported in bulk for | CG8: through 8; or high school, grades 9 through 12.
A9: Vocational programs. Voke enrollment was first incorporated in FY23. | BS9: vocational programs. The Path enrollment categories are new in FY20. See below.
O10: Foundation enrollment considers PK and K2 to be half day programs. The PK and K2 rates are essentially half the cost | AC10: Foundation enrollment considers PK and K2 to be half day programs. The PK and K2 rates are essentially half the cost | AQ10: Foundation enrollment considers PK and K2 to be half day programs. The PK and K2 rates are essentially half the cost | BE10: Foundation enrollment considers PK and K2 to be half day programs. The PK and K2 rates are essentially half the cost | CG10: Foundation enrollment considers PK and K2 to be half day programs. The PK and K2 rates are essentially half the cost
A11: Foundation enrollment considers PK and K2 to be half day programs. The PK and K2 rates are essentially half the cost | O11: of KF. The headcount is divided by two, rounded to the nearest whole number, then folded into the total enrollment. | AC11: of KF. The headcount is divided by two, rounded to the nearest whole number, then folded into the total enrollment. | AQ11: of KF. The headcount is divided by two, rounded to the nearest whole number, then folded into the total enrollment. | BE11: of KF. The headcount is divided by two, rounded to the nearest whole number, then folded into the total enrollment. | BS11: Foundation enrollment considers PK and K2 to be half day programs. The PK and K2 rates are essentially half the cost | CG11: of KF. The headcount is divided by two, rounded to the nearest whole number, then folded into the total enrollment.
A12: of KF. The headcount is divided by two, rounded to the nearest whole number, then folded into the total enrollment. | O12: PK enrollment is not included in the special education FTE increment. | AC12: PK enrollment is not included in the special education FTE increment. | AQ12: PK enrollment is not included in the special education FTE increment. | BE12: PK enrollment is not included in the special education FTE increment. | BS12: of KF. The headcount is divided by two, rounded to the nearest whole number, then folded into the total enrollment. | CG12: PK enrollment is not included in the SPED FTE increment.
A13: PK enrollment is not included in the special education FTE increment. | BS13: PK enrollment is not included in the special education FTE increment.
O14: The halftime PK also effects Ecodis and ELL. Where full enrollment is shown under the regular ed PK column, the | AC14: The halftime PK also effects Ecodis and ELL. Where full enrollment is shown under the regular ed PK column, the | AQ14: The halftime PK also effects Ecodis and ELL. Where full enrollment is shown under the regular ed PK column, the | BE14: The halftime PK also effects Ecodis and ELL. Where full enrollment is shown under the regular ed PK column, the | CG14: FY15 marks the first year all PK enrollment was included. In prior years PK enrollment included only SPED and
A15: The halftime PK also effects low income and English learner (EL) enrollment. Where full enrollment is shown under the regular ed | O15: same enrollment is presented as halved. So, total enrollment, ELL, and Ecodis all show PK/K2 enrollment as | AC15: same enrollment is presented as halved. So, total enrollment, ELL, and Ecodis all show PK/K2 enrollment as | AQ15: same enrollment is presented as halved. So, total enrollment, ELL, and Ecodis all show PK/K2 enrollment as | BE15: same enrollment is presented as halved. So, total enrollment, ELL, and Ecodis all show PK/K2 enrollment as | BS15: The halftime PK also effects Ecodis and ELL. Where full enrollment is shown under the regular ed PK column, the | CG15: role model enrollment.
A16: PK column, the same enrollment is presented as half. So, total enrollment, EL, and low income all show PK/K2 enrollment as | O16: halved. | AC16: halved. | AQ16: halved. | BE16: halved. | BS16: same enrollment is presented as halved. So, total enrollment, ELL, and Ecodis all show PK/K2 enrollment as
A17: half. | BS17: halved. | CG17: Foundation enrollment does not use actual special education enrollment. The SPED increment FTE is
O18: Foundation enrollment does not use actual special education enrollment. The spec ed increment is | AC18: Foundation enrollment does not use actual special education enrollment. The incremental FTE is | AQ18: Foundation enrollment does not use actual special education enrollment. The incremental FTE is | BE18: Foundation enrollment does not use actual special education enrollment. The incremental FTE is | CG18: determined by formula. The formula determines SPED FTE to be 3.75% of grade K - 12 enrollment. PK enrollment
A19: Foundation enrollment does not use actual special education enrollment. The spec ed increment is | O19: determined by formula. Special education is added at 3.9% of each foundation enrollment, up from 3.83% in | AC19: determined by formula. Special education FTE is set at 3.83% of grade K - 12 regular ed. PK enrollment | AQ19: determined by formula. Special education FTE is set at 3.83% of grade K - 12 regular ed. PK enrollment | BE19: determined by formula. Special education FTE is set at 3.79% of grade K - 12 regular ed. PK enrollment | BS19: Foundation enrollment does not use actual special education enrollment. The incremental FTE is | CG19: is excluded. District foundation budgets round the SPED FTE to a whole number. Charter foundation budets
A20: determined by formula. Special education is added at 3.93% of each foundation enrollment, up from 3.9% in | O20: FY23. PK enrollmentis excluded. District foundation budgets round the increment's FTE to a whole number. | AC20: is excluded. District foundation budgets round the increment's FTE to a whole number. Charter foundation budets | AQ20: is excluded. District foundation budgets round the increment's FTE to a whole number. Charter foundation budets | BE20: is excluded. District foundation budgets round the increment's FTE to a whole number. Charter foundation budets | BS20: determined by formula. Special education FTE is set at 3.75% of grade K - 12 regular ed and Path enrollment. PK enrollment | CG20: do not round, returning enrollment to the 4th decimal point, as there are many rates based on only one (1) pupil.
A21: FY23. PK enrollment is excluded. District foundation budgets round the increment's FTE to a whole number. | O21: Charter foundation budets round to the 4th decimal point, in order to capture special education tuition in rates | AC21: round to the 4th decimal point, in order to capture special education tuition in rates with only one (1) | AQ21: round to the 4th decimal point, in order to capture special education tuition in rates with only one (1) | BE21: round to the 4th decimal point, in order to capture special education tuition in rates with only one (1) | BS21: is excluded. District foundation budgets round the increment's FTE to a whole number. Charter foundation budets
A22: Charter foundation budets round to the 4th decimal point, in order to capture special education tuition in rates | O22: with only one (1) pupil. | AC22: pupil. | AQ22: pupil. | BE22: pupil. | BS22: round to the 4th decimal point, in order to capture special education tuition in rates with only one (1) | CG22: Prior to FY17 October SIMS was the sole source for foundation enrollment. In FY16 six (6) charter schools
A23: with only one (1) pupil. | BS23: pupil. | CG23: did not use SIMS to report their their low income enrollment. For these districts, prior year low income
O24: Traditionally, Commonwealth charter schools have not reported vocational enrollment. This column was always left | AC24: Traditionally, Commonwealth charter schools have not had vocational enrollment. This column was always left | BE24: FY20 Changes | CG24: percentages were used to project their low income foundation enrollment. The October SIMS was used for the remaining
A25: Traditionally, Commonwealth charter schools have not reported vocational enrollment. This column was always left | O25: blank, set to 0. Effective with the signed budget FY23 projections, voke enrollment is included. | AC25: blank, set to 0. Effective with the signed budget FY23 projections, voke enrollment is included. | AQ25: FY22 Changes | BE25: FY20 projections incorporate a revision to the recent English Language Learner remodel. The seven (7) categories used | BS25: FY20 Changes | CG25: schools.
A26: blank, set to 0. Effective with the signed budget FY23 projections, voke enrollment is included. | AQ26: FY20 projections incorporate a revision to the recent English Language Learner remodel. The seven (7) categories used | BE26: in FY19 have been pared down to three, with vocational ELL funding removed altogether. | BS26: FY20 projections incorporate a revision to the recent English Language Learner remodel. The seven (7) categories used
AC27: FY23 Changes | AQ27: in FY19 have been pared down to three, with vocational ELL funding removed altogether. | BS27: in FY19 have been pared down to three, with vocational ELL funding removed altogether. | CG27: In FY17 DESE transistioned to the ECODIS low income model. ECODIS low income is sourced from the
O28: Historic Transitions | AC28: In the truncated 7/29/22 and the full 8/9/22 projection postings, the two rates with voke enrollment | CG28: Department of Health and Human Services. Low income status is given to pupils enrolled in one or more
O29: FY23, by the December 2022 analysis, the first vocational pupils were properly included in the | AC29: were based on faulty foundation enrollment. The voke enro was not deducted from the HS reg ed column. | AQ29: Historic Transitions | BE29: Historic Transitions | BS29: There is the addition of non-chapter 74 vocational program identified as Early College Innovation Pathways enrollment. | CG29: public assistence program, specifically SNAP, TANF, Medicaid, and DCF foster care. DESE matches those
O30: foundation base rates for Methuen and Lawrence at 3518 Phoenix Academy. | AC30: Later projections, and postings, will include the correction.
O32: FY20 projections incorporate a revision to the recent English Language Learner remodel. The seven (7) categories used | AQ32: FY20 projections incorporate a revision to the recent English Language Learner remodel. The seven (7) categories used | BE32: FY15 marks the first year all PK enrollment was included. In prior years PK enrollment included only SPED and | BS32: Three categories have been set up, but only one population identified, Path1. | CG32: direct certified with each SIMS collection, October, March, and June. Foundation Enrollment low income status is
O33: in FY19 have been pared down to three, with vocational ELL funding removed altogether. | AC33: FY22 Changes | AQ33: in FY19 have been pared down to three, with vocational ELL funding removed altogether. | BE33: role model enrollment, which was set at 2 times the PK headcount. | BS33: Path enrollment is duplicately reported in the regular education high school cohort. Foundation enrollment | CG33: given to a pupil if they counted as low income in as little as one of the last four collections, current October,
AC34: FY20 projections incorporate a revision to the recent English Language Learner remodel. The seven (7) categories used | BS34: deductions the enrollment from regular education high school enrollment.
O35: FY15 marks the first year all PK enrollment was included. In prior years PK enrollment included only SPED and | AC35: in FY19 have been pared down to three, with vocational ELL funding removed altogether. | AQ35: FY15 marks the first year all PK enrollment was included. In prior years PK enrollment included only SPED and | BE35: FY17 marks the first transition year for using EcoDis in place of SIMS low income reporting. In FY16 six (6) charter schools
O36: role model enrollment, which was set at 2 times the PK headcount. | AQ36: role model enrollment, which was set at 2 times the PK headcount. | BE36: did not use SIMS to report their their low income enrollment. For these districts, prior year low income | BS36: Historic Transitions
AC37: Historic Transitions | BE37: percentages were used to project their low income foundation enrollment. The October SIMS was used for the remaining | BS37: FY15 marks the first year all PK enrollment was included. In prior years PK enrollment included only SPED and
O38: FY17 marks the first transition year for using EcoDis in place of SIMS low income reporting. In FY16 six (6) charter schools | AC38: FY20 projections incorporate a revision to the recent English Language Learner remodel. The seven (7) categories used | AQ38: FY17 marks the first transition year for using EcoDis in place of SIMS low income reporting. In FY16 six (6) charter schools | BE38: schools. In FY18 to the present all rates are set using EcoDis. ECODIS low income is sourced from the | BS38: role model enrollment, which was set at 2 times the PK headcount.
O39: did not use SIMS to report their their low income enrollment. For these districts, prior year low income | AC39: in FY19 have been pared down to three, with vocational ELL funding removed altogether. | AQ39: did not use SIMS to report their their low income enrollment. For these districts, prior year low income | BE39: Department of Health and Human Services. Low income status is given to pupils enrolled in one or more
O40: percentages were used to project their low income foundation enrollment. The October SIMS was used for the remaining | AQ40: percentages were used to project their low income foundation enrollment. The October SIMS was used for the remaining | BE40: public assistence program, specifically SNAP, TANF, Medicaid, and DCF foster care. DESE matches those | BS40: FY17 marks the first transition year for using EcoDis in place of SIMS low income reporting. In FY16 six (6) charter schools
O41: schools. In FY18 to the present all rates are set using EcoDis. ECODIS low income is sourced from the | AC41: FY15 marks the first year all PK enrollment was included. In prior years PK enrollment included only SPED and | AQ41: schools. In FY18 to the present all rates are set using EcoDis. ECODIS low income is sourced from the | BE41: direct certified with each SIMS collection, October, March, and June. Foundation Enrollment low income status is | BS41: did not use SIMS to report their their low income enrollment. For these districts, prior year low income
O42: Department of Health and Human Services. Low income status is given to pupils enrolled in one or more | AC42: role model enrollment, which was set at 2 times the PK headcount. | AQ42: Department of Health and Human Services. Low income status is given to pupils enrolled in one or more | BE42: given to a pupil if they counted as low income in as little as one of the last four collections, current October, | BS42: percentages were used to project their low income foundation enrollment. The October SIMS was used for the remaining
O43: public assistence program, specifically SNAP, TANF, Medicaid, and DCF foster care. DESE matches those | AQ43: public assistence program, specifically SNAP, TANF, Medicaid, and DCF foster care. DESE matches those | BE43: June, March, and prior year October. | BS43: schools. In FY18 to the present all rates are set using EcoDis. ECODIS low income is sourced from the
O44: direct certified with each SIMS collection, October, March, and June. Foundation Enrollment low income status is | AC44: FY17 marks the first transition year for using EcoDis in place of SIMS low income reporting. In FY16 six (6) charter schools | AQ44: direct certified with each SIMS collection, October, March, and June. Foundation Enrollment low income status is | BS44: Department of Health and Human Services. Low income status is given to pupils enrolled in one or more
O45: given to a pupil if they counted as low income in as little as one of the last four collections, current October, | AC45: did not use SIMS to report their their low income enrollment. For these districts, prior year low income | AQ45: given to a pupil if they counted as low income in as little as one of the last four collections, current October, | BE45: FY19 marks the first year ELL is transitioned from being based on standalone rates, to the increment side of the formula. | BS45: public assistence program, specifically SNAP, TANF, Medicaid, and DCF foster care. DESE matches those
O46: June, March, and prior year October. | AC46: percentages were used to project their low income foundation enrollment. The October SIMS was used for the remaining | AQ46: June, March, and prior year October. | BE46: A different rate is presented for each regular ed & chapter 74 voke cohort. | BS46: direct certified with each SIMS collection, October, March, and June. Foundation Enrollment low income status is
AC47: schools. In FY18 to the present all rates are set using EcoDis. ECODIS low income is sourced from the | BS47: given to a pupil if they counted as low income in as little as one of the last four collections, current October,
O48: FY19 marks the first year ELL is transitioned from being based on standalone rates, to the increment side of the formula. | AC48: Department of Health and Human Services. Low income status is given to pupils enrolled in one or more | AQ48: FY19 marks the first year ELL is transitioned from being based on standalone rates, to the increment side of the formula. | BS48: June, March, and prior year October.
O49: A different rate is presented for each regular ed & chapter 74 voke cohort. | AC49: public assistence program, specifically SNAP, TANF, Medicaid, and DCF foster care. DESE matches those | AQ49: A different rate is presented for each regular ed & chapter 74 voke cohort.
AC50: direct certified with each SIMS collection, October, March, and June. Foundation Enrollment low income status is | BS50: FY19 marks the first year ELL is transitioned from being based on standalone rates, to the increment side of the formula.
AC51: given to a pupil if they counted as low income in as little as one of the last four collections, current October, | BS51: A different rate is presented for each regular ed & chapter 74 voke cohort.
AC52: June, March, and prior year October.
AC54: FY19 marks the first year ELL is transitioned from being based on standalone rates, to the increment side of the formula.
AC55: A different rate is presented for each regular ed & chapter 74 voke cohort.

Sheet fnd enro (hidden)
A1: fill in lea - chalocsend, all else formulas | I1: =SUM(D10:I1066) -> 45734 | N1: =SUM(M10:O1066) -> 6538 | P1: =SUM(P10:P1066) -> 29018 | AA1: Source: 25 - PROJa fnd enro | AI1: =SUM(AD10:AI1066) -> 45736 | AJ1: =SUM(AJ10:AJ1066) -> 2 | AN1: =SUM(AK10:AN1066) -> 6622 | AS1: =SUM(AO10:AS1066) -> 29246 | AY1: hid columns az-bi
K2: 0.0393
K5: 0.0493
A6: FOUNDATION ENROLLMENT | AA6: SIMS OCTOBER 1 DATA
D7: A l l P u p i l s | J7: Voke | K7: Sped | M7: Eng Lang Learners | P7: EcoDis | Q7: Lowinc | R7: TOTAL | AD7: A l l P u p i l s | AJ7: Voke | AK7: Early ELP | AO7: EcoDis | AU7: Campus | AV7: Sending | AW7: Lowinc
A8: LEA | B8: chalocsend | C8: charter school | D8: PK | E8: K2 | F8: KF | G8: G1-5 | H8: G6-8 | I8: G9-12 | J8: Reg | K8: In | L8: Tuit | M8: PK-5 | N8: G6-8 | O8: G9-12 | P8: All | Q8: Group | R8: Enro | AA8: lea | AB8: chalocsend | AC8: charter school | AD8: PK | AE8: K2 | AF8: K | AG8: G1-5 | AH8: G6-8 | AI8: G9-12 | AJ8: Reg | AK8: PK | AL8: KF-5 | AM8: G6-8 | AN8: G9-12 | AO8: g1-8 | AP8: PK | AQ8: K2 | AR8: KF | AS8: g9-12 | AU8: LEA | AV8: LEA | AW8: Group | BB8: Formula
Q9: ROUND(ao10*0.5,0)+ROUND(ap10*0.5,0)+ROUND(SUM(an10,aq10:ar10),0) | AV9: LEA | AW9: Group | AZ9: Chalocsend | BA9: Cha Lea | BB9: Chacode | BC9: Charter School | BD9: Send Lea | BE9: Sending District | BF9: FY24 Q2b or Assumed FTE
A10: 409 | B10: 409201003 | C10: ALMA DEL MAR | D10: =ROUND(AD10,0) -> 0 | E10: =ROUND(AE10,0) -> 0 | F10: 0 | G10: 1 | H10: 0 | I10: =ROUND(AI10,0)-J10 -> 0 | J10: 0 | K10: =ROUND($K$2*(SUM(AF10:AI10)+(AE10*0.5))+$K$5*AJ10,4) -> 0.0393 | M10: =ROUND(AL10+(AK10*0.5),0) -> 0 | N10: =ROUND(AM10,0) -> 0 | O10: =ROUND(AN10,0) -> 0 | P10: =ROUND(((AP10+AQ10)*0.5)+AO10+AR10+AS10,0) -> 0 | Q10: =AW10 -> 7 | R10: =SUM(F10:I10)+ROUND(D10*0.5,0)+ROUND(J10,0) -> 1 | AA10: 409 | AB10: 409201003 | AC10: ALMA DEL MAR | AD10: 0 | AE10: 0 | AF10: 0 | AG10: 1 | AH10: 0 | AI10: 0 | AJ10: 0 | AK10: 0 | AL10: 0 | AM10: 0 | AN10: 0 | AO10: 0 | AP10: 0 | AQ10: 0 | AR10: 0 | AS10: 0 | AU10: 201 | AV10: 3 | AW10: 7 | AZ10: =AB10 -> 409201003 | BA10: =AA10 -> 409 | BC10: =AC10 -> ALMA DEL MAR | BD10: =AV10 -> 3 | BE10: =VLOOKUP(BD10,distinfo,2,FALSE) -> ACUSHNET | BF10: =SUM(AD10:AJ10) -> 1 | BN10: =+AB10-B10 -> 0
A11: 409 | B11: 409201072 | C11: ALMA DEL MAR | D11: =ROUND(AD11,0) -> 0 | E11: =ROUND(AE11,0) -> 0 | F11: =ROUND(AF11,0) -> 0 | G11: =ROUND(AG11,0) -> 1 | H11: =ROUND(AH11,0) -> 1 | I11: =ROUND(AI11,0)-J11 -> 0 | J11: =ROUND(AJ11,0) -> 0 | K11: =ROUND($K$2*(SUM(AF11:AI11)+(AE11*0.5))+$K$5*AJ11,4) -> 0.0786 | M11: =ROUND(AL11+(AK11*0.5),0) -> 1 | N11: =ROUND(AM11,0) -> 1 | O11: =ROUND(AN11,0) -> 0 | P11: =ROUND(((AP11+AQ11)*0.5)+AO11+AR11+AS11,0) -> 2 | Q11: =AW11 -> 6 | R11: =SUM(F11:I11)+ROUND(D11*0.5,0)+ROUND(J11,0) -> 2 | AA11: 409 | AB11: 409201072 | AC11: ALMA DEL MAR | AD11: 0 | AE11: 0 | AF11: 0 | AG11: 1 | AH11: 1 | AI11: 0 | AJ11: 0 | AK11: 0 | AL11: 1 | AM11: 1 | AN11: 0 | AO11: 2 | AP11: 0 | AQ11: 0 | AR11: 0 | AS11: 0 | AU11: 201 | AV11: 72 | AW11: 6 | AZ11: =AB11 -> 409201072 | BA11: =AA11 -> 409 | BC11: =AC11 -> ALMA DEL MAR | BD11: =AV11 -> 72 | BE11: DARTMOUTH | BF11: =SUM(AD11:AJ11) -> 2
A12: 409 | B12: 409201095 | C12: ALMA DEL MAR | D12: 0 | E12: 0 | F12: 0 | G12: 0 | H12: 1 | I12: 0 | J12: 0 | K12: 0.0393 | M12: 0 | N12: 0 | O12: 0 | P12: 1 | Q12: 12 | R12: 1 | AA12: 409 | AB12: 409201095 | AC12: ALMA DEL MAR | AD12: 0 | AE12: 0 | AF12: 0 | AG12: 0 | AH12: 1 | AI12: 0 | AJ12: 0 | AK12: 0 | AL12: 0 | AM12: 0 | AN12: 0 | AO12: 1 | AP12: 0 | AQ12: 0 | AR12: 0 | AS12: 0 | AU12: 201 | AV12: 95 | AW12: 12 | AZ12: 409201095 | BA12: 409 | BC12: ALMA DEL MAR | BD12: 95 | BE12: FALL RIVER | BF12: 1
A13: 409 | B13: 409201201 | C13: ALMA DEL MAR | D13: 0 | E13: 0 | F13: 100 | G13: 511 | H13: 424 | I13: 0 | J13: 0 | K13: 40.6755 | M13: 248 | N13: 47 | O13: 0 | P13: 834 | Q13: 12 | R13: 1035 | AA13: 409 | AB13: 409201201 | AC13: ALMA DEL MAR | AD13: 0 | AE13: 0 | AF13: 100 | AG13: 511 | AH13: 424 | AI13: 0 | AJ13: 0 | AK13: 0 | AL13: 248 | AM13: 47 | AN13: 0 | AO13: 751 | AP13: 0 | AQ13: 0 | AR13: 83 | AS13: 0 | AU13: 201 | AV13: 201 | AW13: 12 | AZ13: 409201201 | BA13: 409 | BC13: ALMA DEL MAR | BD13: 201 | BE13: NEW BEDFORD | BF13: 1035
A14: 409 | B14: 409201331 | C14: ALMA DEL MAR | D14: 0 | E14: 0 | F14: 0 | G14: 1 | H14: 1 | I14: 0 | J14: 0 | K14: 0.0786 | M14: 0 | N14: 0 | O14: 0 | P14: 2 | Q14: 7 | R14: 2 | AA14: 409 | AB14: 409201331 | AC14: ALMA DEL MAR | AD14: 0 | AE14: 0 | AF14: 0 | AG14: 1 | AH14: 1 | AI14: 0 | AJ14: 0 | AK14: 0 | AL14: 0 | AM14: 0 | AN14: 0 | AO14: 2 | AP14: 0 | AQ14: 0 | AR14: 0 | AS14: 0 | AU14: 201 | AV14: 331 | AW14: 7 | AZ14: 409201331 | BA14: 409 | BC14: ALMA DEL MAR | BD14: 331 | BE14: WESTPORT | BF14: 2
A15: 410 | B15: 410035035 | C15: EXCEL ACADEMY | D15: 0 | E15: 0 | F15: 0 | G15: 91 | H15: 252 | I15: 322 | J15: 0 | K15: 26.1345 | M15: 25 | N15: 41 | O15: 42 | P15: 498 | Q15: 11 | R15: 665 | AA15: 410 | AB15: 410035035 | AC15: EXCEL ACADEMY | AD15: 0 | AE15: 0 | AF15: 0 | AG15: 91 | AH15: 252 | AI15: 322 | AJ15: 0 | AK15: 0 | AL15: 25 | AM15: 41 | AN15: 42 | AO15: 273 | AP15: 0 | AQ15: 0 | AR15: 0 | AS15: 225 | AU15: 35 | AV15: 35 | AW15: 11 | AZ15: 410035035 | BA15: 410 | BC15: EXCEL ACADEMY | BD15: 35 | BE15: BOSTON | BF15: 665
A16: 410 | B16: 410035044 | C16: EXCEL ACADEMY | D16: 0 | E16: 0 | F16: 0 | G16: 0 | H16: 1 | I16: 1 | J16: 0 | K16: 0.0786 | M16: 0 | N16: 0 | O16: 0 | P16: 0 | Q16: 11 | R16: 2 | AA16: 410 | AB16: 410035044 | AC16: EXCEL ACADEMY | AD16: 0 | AE16: 0 | AF16: 0 | AG16: 0 | AH16: 1 | AI16: 1 | AJ16: 0 | AK16: 0 | AL16: 0 | AM16: 0 | AN16: 0 | AO16: 0 | AP16: 0 | AQ16: 0 | AR16: 0 | AS16: 0 | AU16: 35 | AV16: 44 | AW16: 11 | AZ16: 410035044 | BA16: 410 | BC16: EXCEL ACADEMY | BD16: 44 | BE16: BROCKTON | BF16: 2
A17: 410 | B17: 410035057 | C17: EXCEL ACADEMY | D17: 0 | E17: 0 | F17: 0 | G17: 16 | H17: 57 | I17: 237 | J17: 0 | K17: 12.183 | M17: 5 | N17: 15 | O17: 16 | P17: 216 | Q17: 12 | R17: 310 | AA17: 410 | AB17: 410035057 | AC17: EXCEL ACADEMY | AD17: 0 | AE17: 0 | AF17: 0 | AG17: 16 | AH17: 57 | AI17: 237 | AJ17: 0 | AK17: 0 | AL17: 5 | AM17: 15 | AN17: 16 | AO17: 49 | AP17: 0 | AQ17: 0 | AR17: 0 | AS17: 167 | AU17: 35 | AV17: 57 | AW17: 12 | AZ17: 410035057 | BA17: 410 | BC17: EXCEL ACADEMY | BD17: 57 | BE17: CHELSEA | BF17: 310
A18: 410 | B18: 410035093 | C18: EXCEL ACADEMY | D18: 0 | E18: 0 | F18: 0 | G18: 0 | H18: 6 | I18: 9 | J18: 0 | K18: 0.5895 | M18: 0 | N18: 1 | O18: 1 | P18: 14 | Q18: 11 | R18: 15 | AA18: 410 | AB18: 410035093 | AC18: EXCEL ACADEMY | AD18: 0 | AE18: 0 | AF18: 0 | AG18: 0 | AH18: 6 | AI18: 9 | AJ18: 0 | AK18: 0 | AL18: 0 | AM18: 1 | AN18: 1 | AO18: 6 | AP18: 0 | AQ18: 0 | AR18: 0 | AS18: 8 | AU18: 35 | AV18: 93 | AW18: 11 | AZ18: 410035093 | BA18: 410 | BC18: EXCEL ACADEMY | BD18: 93 | BE18: EVERETT | BF18: 15
A19: 410 | B19: 410035153 | C19: EXCEL ACADEMY | D19: 0 | E19: 0 | F19: 0 | G19: 0 | H19: 0 | I19: 2 | J19: 0 | K19: 0.0786 | M19: 0 | N19: 0 | O19: 0 | P19: 2 | Q19: 10 | R19: 2 | AA19: 410 | AB19: 410035153 | AC19: EXCEL ACADEMY | AD19: 0 | AE19: 0 | AF19: 0 | AG19: 0 | AH19: 0 | AI19: 2 | AJ19: 0 | AK19: 0 | AL19: 0 | AM19: 0 | AN19: 0 | AO19: 0 | AP19: 0 | AQ19: 0 | AR19: 0 | AS19: 2 | AU19: 35 | AV19: 153 | AW19: 10 | AZ19: 410035153 | BA19: 410 | BC19: EXCEL ACADEMY | BD19: 153 | BE19: LEOMINSTER | BF19: 2
A20: 410 | B20: 410035160 | C20: EXCEL ACADEMY | D20: 0 | E20: 0 | F20: 0 | G20: 0 | H20: 0 | I20: 1 | J20: 0 | K20: 0.0393 | M20: 0 | N20: 0 | O20: 0 | P20: 0 | Q20: 11 | R20: 1 | AA20: 410 | AB20: 410035160 | AC20: EXCEL ACADEMY | AD20: 0 | AE20: 0 | AF20: 0 | AG20: 0 | AH20: 0 | AI20: 1 | AJ20: 0 | AK20: 0 | AL20: 0 | AM20: 0 | AN20: 0 | AO20: 0 | AP20: 0 | AQ20: 0 | AR20: 0 | AS20: 0 | AU20: 35 | AV20: 160 | AW20: 11 | AZ20: 410035160 | BA20: 410 | BC20: EXCEL ACADEMY | BD20: 160 | BE20: LOWELL | BF20: 1
A21: 410 | B21: 410035163 | C21: EXCEL ACADEMY | D21: 0 | E21: 0 | F21: 0 | G21: 2 | H21: 6 | I21: 26 | J21: 0 | K21: 1.3362 | M21: 0 | N21: 0 | O21: 2 | P21: 27 | Q21: 11 | R21: 34 | AA21: 410 | AB21: 410035163 | AC21: EXCEL ACADEMY | AD21: 0 | AE21: 0 | AF21: 0 | AG21: 2 | AH21: 6 | AI21: 26 | AJ21: 0 | AK21: 0 | AL21: 0 | AM21: 0 | AN21: 2 | AO21: 6 | AP21: 0 | AQ21: 0 | AR21: 0 | AS21: 21 | AU21: 35 | AV21: 163 | AW21: 11 | AZ21: 410035163 | BA21: 410 | BC21: EXCEL ACADEMY | BD21: 163 | BE21: LYNN | BF21: 34
A22: 410 | B22: 410035165 | C22: EXCEL ACADEMY | D22: 0 | E22: 0 | F22: 0 | G22: 0 | H22: 2 | I22: 5 | J22: 0 | K22: 0.2751 | M22: 0 | N22: 0 | O22: 0 | P22: 6 | Q22: 10 | R22: 7 | AA22: 410 | AB22: 410035165 | AC22: EXCEL ACADEMY | AD22: 0 | AE22: 0 | AF22: 0 | AG22: 0 | AH22: 2 | AI22: 5 | AJ22: 0 | AK22: 0 | AL22: 0 | AM22: 0 | AN22: 0 | AO22: 2 | AP22: 0 | AQ22: 0 | AR22: 0 | AS22: 4 | AU22: 35 | AV22: 165 | AW22: 10 | AZ22: 410035165 | BA22: 410 | BC22: EXCEL ACADEMY | BD22: 165 | BE22: MALDEN | BF22: 7
A23: 410 | B23: 410035176 | C23: EXCEL ACADEMY | D23: 0 | E23: 0 | F23: 0 | G23: 0 | H23: 0 | I23: 1 | J23: 0 | K23: 0.0393 | M23: 0 | N23: 0 | O23: 0 | P23: 1 | Q23: 8 | R23: 1 | AA23: 410 | AB23: 410035176 | AC23: EXCEL ACADEMY | AD23: 0 | AE23: 0 | AF23: 0 | AG23: 0 | AH23: 0 | AI23: 1 | AJ23: 0 | AK23: 0 | AL23: 0 | AM23: 0 | AN23: 0 | AO23: 0 | AP23: 0 | AQ23: 0 | AR23: 0 | AS23: 1 | AU23: 35 | AV23: 176 | AW23: 8 | AZ23: 410035176 | BA23: 410 | BC23: EXCEL ACADEMY | BD23: 176 | BE23: MEDFORD | BF23: 1
A24: 410 | B24: 410035229 | C24: EXCEL ACADEMY | D24: 0 | E24: 0 | F24: 0 | G24: 0 | H24: 0 | I24: 1 | J24: 0 | K24: 0.0393 | M24: 0 | N24: 0 | O24: 0 | P24: 0 | Q24: 9 | R24: 1 | AA24: 410 | AB24: 410035229 | AC24: EXCEL ACADEMY | AD24: 0 | AE24: 0 | AF24: 0 | AG24: 0 | AH24: 0 | AI24: 1 | AJ24: 0 | AK24: 0 | AL24: 0 | AM24: 0 | AN24: 0 | AO24: 0 | AP24: 0 | AQ24: 0 | AR24: 0 | AS24: 0 | AU24: 35 | AV24: 229 | AW24: 9 | AZ24: 410035229 | BA24: 410 | BC24: EXCEL ACADEMY | BD24: 229 | BE24: PEABODY | BF24: 1
A25: 410 | B25: 410035244 | C25: EXCEL ACADEMY | D25: 0 | E25: 0 | F25: 0 | G25: 0 | H25: 0 | I25: 2 | J25: 0 | K25: 0.0786 | M25: 0 | N25: 0 | O25: 0 | P25: 1 | Q25: 10 | R25: 2 | AA25: 410 | AB25: 410035244 | AC25: EXCEL ACADEMY | AD25: 0 | AE25: 0 | AF25: 0 | AG25: 0 | AH25: 0 | AI25: 2 | AJ25: 0 | AK25: 0 | AL25: 0 | AM25: 0 | AN25: 0 | AO25: 0 | AP25: 0 | AQ25: 0 | AR25: 0 | AS25: 1 | AU25: 35 | AV25: 244 | AW25: 10 | AZ25: 410035244 | BA25: 410 | BC25: EXCEL ACADEMY | BD25: 244 | BE25: RANDOLPH | BF25: 2
A26: 410 | B26: 410035248 | C26: EXCEL ACADEMY | D26: 0 | E26: 0 | F26: 0 | G26: 6 | H26: 17 | I26: 48 | J26: 0 | K26: 2.7903 | M26: 1 | N26: 4 | O26: 4 | P26: 40 | Q26: 11 | R26: 71 | AA26: 410 | AB26: 410035248 | AC26: EXCEL ACADEMY | AD26: 0 | AE26: 0 | AF26: 0 | AG26: 6 | AH26: 17 | AI26: 48 | AJ26: 0 | AK26: 0 | AL26: 1 | AM26: 4 | AN26: 4 | AO26: 13 | AP26: 0 | AQ26: 0 | AR26: 0 | AS26: 27 | AU26: 35 | AV26: 248 | AW26: 11 | AZ26: 410035248 | BA26: 410 | BC26: EXCEL ACADEMY | BD26: 248 | BE26: REVERE | BF26: 71
A27: 410 | B27: 410035262 | C27: EXCEL ACADEMY | D27: 0 | E27: 0 | F27: 0 | G27: 0 | H27: 0 | I27: 4 | J27: 0 | K27: 0.1572 | M27: 0 | N27: 0 | O27: 0 | P27: 1 | Q27: 9 | R27: 4 | AA27: 410 | AB27: 410035262 | AC27: EXCEL ACADEMY | AD27: 0 | AE27: 0 | AF27: 0 | AG27: 0 | AH27: 0 | AI27: 4 | AJ27: 0 | AK27: 0 | AL27: 0 | AM27: 0 | AN27: 0 | AO27: 0 | AP27: 0 | AQ27: 0 | AR27: 0 | AS27: 1 | AU27: 35 | AV27: 262 | AW27: 9 | AZ27: 410035262 | BA27: 410 | BC27: EXCEL ACADEMY | BD27: 262 | BE27: SAUGUS | BF27: 4
A28: 410 | B28: 410035346 | C28: EXCEL ACADEMY | D28: 0 | E28: 0 | F28: 0 | G28: 2 | H28: 6 | I28: 8 | J28: 0 | K28: 0.6288 | M28: 0 | N28: 0 | O28: 0 | P28: 8 | Q28: 8 | R28: 16 | AA28: 410 | AB28: 410035346 | AC28: EXCEL ACADEMY | AD28: 0 | AE28: 0 | AF28: 0 | AG28: 2 | AH28: 6 | AI28: 8 | AJ28: 0 | AK28: 0 | AL28: 0 | AM28: 0 | AN28: 0 | AO28: 6 | AP28: 0 | AQ28: 0 | AR28: 0 | AS28: 2 | AU28: 35 | AV28: 346 | AW28: 8 | AZ28: 410035346 | BA28: 410 | BC28: EXCEL ACADEMY | BD28: 346 | BE28: WINTHROP | BF28: 16
A29: 410 | B29: 410057035 | C29: EXCEL ACADEMY | D29: 0 | E29: 0 | F29: 0 | G29: 0 | H29: 10 | I29: 0 | J29: 0 | K29: 0.393 | M29: 0 | N29: 4 | O29: 0 | P29: 9 | Q29: 11 | R29: 10 | AA29: 410 | AB29: 410057035 | AC29: EXCEL ACADEMY | AD29: 0 | AE29: 0 | AF29: 0 | AG29: 0 | AH29: 10 | AI29: 0 | AJ29: 0 | AK29: 0 | AL29: 0 | AM29: 4 | AN29: 0 | AO29: 9 | AP29: 0 | AQ29: 0 | AR29: 0 | AS29: 0 | AU29: 57 | AV29: 35 | AW29: 11 | AZ29: 410057035 | BA29: 410 | BC29: EXCEL ACADEMY | BD29: 35 | BE29: BOSTON | BF29: 10
A30: 410 | B30: 410057057 | C30: EXCEL ACADEMY | D30: 0 | E30: 0 | F30: 0 | G30: 54 | H30: 139 | I30: 0 | J30: 0 | K30: 7.5849 | M30: 21 | N30: 18 | O30: 0 | P30: 150 | Q30: 12 | R30: 193 | AA30: 410 | AB30: 410057057 | AC30: EXCEL ACADEMY | AD30: 0 | AE30: 0 | AF30: 0 | AG30: 54 | AH30: 139 | AI30: 0 | AJ30: 0 | AK30: 0 | AL30: 21 | AM30: 18 | AN30: 0 | AO30: 150 | AP30: 0 | AQ30: 0 | AR30: 0 | AS30: 0 | AU30: 57 | AV30: 57 | AW30: 12 | AZ30: 410057057 | BA30: 410 | BC30: EXCEL ACADEMY | BD30: 57 | BE30: CHELSEA | BF30: 193
A31: 410 | B31: 410057093 | C31: EXCEL ACADEMY | D31: 0 | E31: 0 | F31: 0 | G31: 1 | H31: 8 | I31: 0 | J31: 0 | K31: 0.3537 | M31: 0 | N31: 1 | O31: 0 | P31: 6 | Q31: 11 | R31: 9 | AA31: 410 | AB31: 410057093 | AC31: EXCEL ACADEMY | AD31: 0 | AE31: 0 | AF31: 0 | AG31: 1 | AH31: 8 | AI31: 0 | AJ31: 0 | AK31: 0 | AL31: 0 | AM31: 1 | AN31: 0 | AO31: 6 | AP31: 0 | AQ31: 0 | AR31: 0 | AS31: 0 | AU31: 57 | AV31: 93 | AW31: 11 | AZ31: 410057093 | BA31: 410 | BC31: EXCEL ACADEMY | BD31: 93 | BE31: EVERETT | BF31: 9
A32: 410 | B32: 410057160 | C32: EXCEL ACADEMY | D32: 0 | E32: 0 | F32: 0 | G32: 0 | H32: 1 | I32: 0 | J32: 0 | K32: 0.0393 | M32: 0 | N32: 0 | O32: 0 | P32: 0 | Q32: 11 | R32: 1 | AA32: 410 | AB32: 410057160 | AC32: EXCEL ACADEMY | AD32: 0 | AE32: 0 | AF32: 0 | AG32: 0 | AH32: 1 | AI32: 0 | AJ32: 0 | AK32: 0 | AL32: 0 | AM32: 0 | AN32: 0 | AO32: 0 | AP32: 0 | AQ32: 0 | AR32: 0 | AS32: 0 | AU32: 57 | AV32: 160 | AW32: 11 | AZ32: 410057160 | BA32: 410 | BC32: EXCEL ACADEMY | BD32: 160 | BE32: LOWELL | BF32: 1
A33: 410 | B33: 410057163 | C33: EXCEL ACADEMY | D33: 0 | E33: 0 | F33: 0 | G33: 0 | H33: 2 | I33: 0 | J33: 0 | K33: 0.0786 | M33: 0 | N33: 0 | O33: 0 | P33: 1 | Q33: 11 | R33: 2 | AA33: 410 | AB33: 410057163 | AC33: EXCEL ACADEMY | AD33: 0 | AE33: 0 | AF33: 0 | AG33: 0 | AH33: 2 | AI33: 0 | AJ33: 0 | AK33: 0 | AL33: 0 | AM33: 0 | AN33: 0 | AO33: 1 | AP33: 0 | AQ33: 0 | AR33: 0 | AS33: 0 | AU33: 57 | AV33: 163 | AW33: 11 | AZ33: 410057163 | BA33: 410 | BC33: EXCEL ACADEMY | BD33: 163 | BE33: LYNN | BF33: 2
A34: 410 | B34: 410057248 | C34: EXCEL ACADEMY | D34: 0 | E34: 0 | F34: 0 | G34: 3 | H34: 14 | I34: 0 | J34: 0 | K34: 0.6681 | M34: 1 | N34: 0 | O34: 0 | P34: 15 | Q34: 11 | R34: 17 | AA34: 410 | AB34: 410057248 | AC34: EXCEL ACADEMY | AD34: 0 | AE34: 0 | AF34: 0 | AG34: 3 | AH34: 14 | AI34: 0 | AJ34: 0 | AK34: 0 | AL34: 1 | AM34: 0 | AN34: 0 | AO34: 15 | AP34: 0 | AQ34: 0 | AR34: 0 | AS34: 0 | AU34: 57 | AV34: 248 | AW34: 11 | AZ34: 410057248 | BA34: 410 | BC34: EXCEL ACADEMY | BD34: 248 | BE34: REVERE | BF34: 17
A35: 412 | B35: 412035035 | C35: ACADEMY OF THE PACIFIC RIM | D35: 0 | E35: 0 | F35: 0 | G35: 27 | H35: 162 | I35: 211 | J35: 0 | K35: 15.72 | M35: 8 | N35: 23 | O35: 16 | P35: 286 | Q35: 11 | R35: 400 | AA35: 412 | AB35: 412035035 | AC35: ACADEMY OF THE PACIFIC RIM | AD35: 0 | AE35: 0 | AF35: 0 | AG35: 27 | AH35: 162 | AI35: 211 | AJ35: 0 | AK35: 0 | AL35: 8 | AM35: 23 | AN35: 16 | AO35: 145 | AP35: 0 | AQ35: 0 | AR35: 0 | AS35: 141 | AU35: 35 | AV35: 35 | AW35: 11 | AZ35: 412035035 | BA35: 412 | BC35: ACADEMY OF THE PACIFIC RIM | BD35: 35 | BE35: BOSTON | BF35: 400
A36: 412 | B36: 412035044 | C36: ACADEMY OF THE PACIFIC RIM | D36: 0 | E36: 0 | F36: 0 | G36: 1 | H36: 5 | I36: 8 | J36: 0 | K36: 0.5502 | M36: 1 | N36: 0 | O36: 1 | P36: 7 | Q36: 11 | R36: 14 | AA36: 412 | AB36: 412035044 | AC36: ACADEMY OF THE PACIFIC RIM | AD36: 0 | AE36: 0 | AF36: 0 | AG36: 1 | AH36: 5 | AI36: 8 | AJ36: 0 | AK36: 0 | AL36: 1 | AM36: 0 | AN36: 1 | AO36: 2 | AP36: 0 | AQ36: 0 | AR36: 0 | AS36: 5 | AU36: 35 | AV36: 44 | AW36: 11 | AZ36: 412035044 | BA36: 412 | BC36: ACADEMY OF THE PACIFIC RIM | BD36: 44 | BE36: BROCKTON | BF36: 14
A37: 412 | B37: 412035050 | C37: ACADEMY OF THE PACIFIC RIM | D37: 0 | E37: 0 | F37: 0 | G37: 0 | H37: 1 | I37: 1 | J37: 0 | K37: 0.0786 | M37: 0 | N37: 0 | O37: 1 | P37: 2 | Q37: 5 | R37: 2 | AA37: 412 | AB37: 412035050 | AC37: ACADEMY OF THE PACIFIC RIM | AD37: 0 | AE37: 0 | AF37: 0 | AG37: 0 | AH37: 1 | AI37: 1 | AJ37: 0 | AK37: 0 | AL37: 0 | AM37: 0 | AN37: 1 | AO37: 1 | AP37: 0 | AQ37: 0 | AR37: 0 | AS37: 1 | AU37: 35 | AV37: 50 | AW37: 5 | AZ37: 412035050 | BA37: 412 | BC37: ACADEMY OF THE PACIFIC RIM | BD37: 50 | BE37: CANTON | BF37: 2
A38: 412 | B38: 412035073 | C38: ACADEMY OF THE PACIFIC RIM | D38: 0 | E38: 0 | F38: 0 | G38: 1 | H38: 2 | I38: 0 | J38: 0 | K38: 0.1179 | M38: 1 | N38: 1 | O38: 0 | P38: 3 | Q38: 6 | R38: 3 | AA38: 412 | AB38: 412035073 | AC38: ACADEMY OF THE PACIFIC RIM | AD38: 0 | AE38: 0 | AF38: 0 | AG38: 1 | AH38: 2 | AI38: 0 | AJ38: 0 | AK38: 0 | AL38: 1 | AM38: 1 | AN38: 0 | AO38: 3 | AP38: 0 | AQ38: 0 | AR38: 0 | AS38: 0 | AU38: 35 | AV38: 73 | AW38: 6 | AZ38: 412035073 | BA38: 412 | BC38: ACADEMY OF THE PACIFIC RIM | BD38: 73 | BE38: DEDHAM | BF38: 3
A39: 412 | B39: 412035095 | C39: ACADEMY OF THE PACIFIC RIM | D39: 0 | E39: 0 | F39: 0 | G39: 0 | H39: 0 | I39: 1 | J39: 0 | K39: 0.0393 | M39: 0 | N39: 0 | O39: 0 | P39: 1 | Q39: 12 | R39: 1 | AA39: 412 | AB39: 412035095 | AC39: ACADEMY OF THE PACIFIC RIM | AD39: 0 | AE39: 0 | AF39: 0 | AG39: 0 | AH39: 0 | AI39: 1 | AJ39: 0 | AK39: 0 | AL39: 0 | AM39: 0 | AN39: 0 | AO39: 0 | AP39: 0 | AQ39: 0 | AR39: 0 | AS39: 1 | AU39: 35 | AV39: 95 | AW39: 12 | AZ39: 412035095 | BA39: 412 | BC39: ACADEMY OF THE PACIFIC RIM | BD39: 95 | BE39: FALL RIVER | BF39: 1
A40: 412 | B40: 412035189 | C40: ACADEMY OF THE PACIFIC RIM | D40: 0 | E40: 0 | F40: 0 | G40: 0 | H40: 2 | I40: 0 | J40: 0 | K40: 0.0786 | M40: 0 | N40: 1 | O40: 0 | P40: 2 | Q40: 3 | R40: 2 | AA40: 412 | AB40: 412035189 | AC40: ACADEMY OF THE PACIFIC RIM | AD40: 0 | AE40: 0 | AF40: 0 | AG40: 0 | AH40: 2 | AI40: 0 | AJ40: 0 | AK40: 0 | AL40: 0 | AM40: 1 | AN40: 0 | AO40: 2 | AP40: 0 | AQ40: 0 | AR40: 0 | AS40: 0 | AU40: 35 | AV40: 189 | AW40: 3 | AZ40: 412035189 | BA40: 412 | BC40: ACADEMY OF THE PACIFIC RIM | BD40: 189 | BE40: MILTON | BF40: 2
A41: 412 | B41: 412035207 | C41: ACADEMY OF THE PACIFIC RIM | D41: 0 | E41: 0 | F41: 0 | G41: 0 | H41: 1 | I41: 0 | J41: 0 | K41: 0.0393 | M41: 0 | N41: 0 | O41: 0 | P41: 1 | Q41: 3 | R41: 1 | AA41: 412 | AB41: 412035207 | AC41: ACADEMY OF THE PACIFIC RIM | AD41: 0 | AE41: 0 | AF41: 0 | AG41: 0 | AH41: 1 | AI41: 0 | AJ41: 0 | AK41: 0 | AL41: 0 | AM41: 0 | AN41: 0 | AO41: 1 | AP41: 0 | AQ41: 0 | AR41: 0 | AS41: 0 | AU41: 35 | AV41: 207 | AW41: 3 | AZ41: 412035207 | BA41: 412 | BC41: ACADEMY OF THE PACIFIC RIM | BD41: 207 | BE41: NEWTON | BF41: 1
A42: 412 | B42: 412035220 | C42: ACADEMY OF THE PACIFIC RIM | D42: 0 | E42: 0 | F42: 0 | G42: 0 | H42: 3 | I42: 1 | J42: 0 | K42: 0.1572 | M42: 0 | N42: 0 | O42: 0 | P42: 4 | Q42: 8 | R42: 4 | AA42: 412 | AB42: 412035220 | AC42: ACADEMY OF THE PACIFIC RIM | AD42: 0 | AE42: 0 | AF42: 0 | AG42: 0 | AH42: 3 | AI42: 1 | AJ42: 0 | AK42: 0 | AL42: 0 | AM42: 0 | AN42: 0 | AO42: 3 | AP42: 0 | AQ42: 0 | AR42: 0 | AS42: 1 | AU42: 35 | AV42: 220 | AW42: 8 | AZ42: 412035220 | BA42: 412 | BC42: ACADEMY OF THE PACIFIC RIM | BD42: 220 | BE42: NORWOOD | BF42: 4
A43: 412 | B43: 412035243 | C43: ACADEMY OF THE PACIFIC RIM | D43: 0 | E43: 0 | F43: 0 | G43: 0 | H43: 1 | I43: 0 | J43: 0 | K43: 0.0393 | M43: 0 | N43: 0 | O43: 0 | P43: 0 | Q43: 9 | R43: 1 | AA43: 412 | AB43: 412035243 | AC43: ACADEMY OF THE PACIFIC RIM | AD43: 0 | AE43: 0 | AF43: 0 | AG43: 0 | AH43: 1 | AI43: 0 | AJ43: 0 | AK43: 0 | AL43: 0 | AM43: 0 | AN43: 0 | AO43: 0 | AP43: 0 | AQ43: 0 | AR43: 0 | AS43: 0 | AU43: 35 | AV43: 243 | AW43: 9 | AZ43: 412035243 | BA43: 412 | BC43: ACADEMY OF THE PACIFIC RIM | BD43: 243 | BE43: QUINCY | BF43: 1
A44: 412 | B44: 412035244 | C44: ACADEMY OF THE PACIFIC RIM | D44: 0 | E44: 0 | F44: 0 | G44: 0 | H44: 2 | I44: 2 | J44: 0 | K44: 0.1572 | M44: 0 | N44: 0 | O44: 0 | P44: 0 | Q44: 10 | R44: 4 | AA44: 412 | AB44: 412035244 | AC44: ACADEMY OF THE PACIFIC RIM | AD44: 0 | AE44: 0 | AF44: 0 | AG44: 0 | AH44: 2 | AI44: 2 | AJ44: 0 | AK44: 0 | AL44: 0 | AM44: 0 | AN44: 0 | AO44: 0 | AP44: 0 | AQ44: 0 | AR44: 0 | AS44: 0 | AU44: 35 | AV44: 244 | AW44: 10 | AZ44: 412035244 | BA44: 412 | BC44: ACADEMY OF THE PACIFIC RIM | BD44: 244 | BE44: RANDOLPH | BF44: 4
A45: 412 | B45: 412035274 | C45: ACADEMY OF THE PACIFIC RIM | D45: 0 | E45: 0 | F45: 0 | G45: 0 | H45: 0 | I45: 1 | J45: 0 | K45: 0.0393 | M45: 0 | N45: 0 | O45: 0 | P45: 1 | Q45: 10 | R45: 1 | AA45: 412 | AB45: 412035274 | AC45: ACADEMY OF THE PACIFIC RIM | AD45: 0 | AE45: 0 | AF45: 0 | AG45: 0 | AH45: 0 | AI45: 1 | AJ45: 0 | AK45: 0 | AL45: 0 | AM45: 0 | AN45: 0 | AO45: 0 | AP45: 0 | AQ45: 0 | AR45: 0 | AS45: 1 | AU45: 35 | AV45: 274 | AW45: 10 | AZ45: 412035274 | BA45: 412 | BC45: ACADEMY OF THE PACIFIC RIM | BD45: 274 | BE45: SOMERVILLE | BF45: 1
A46: 412 | B46: 412035285 | C46: ACADEMY OF THE PACIFIC RIM | D46: 0 | E46: 0 | F46: 0 | G46: 0 | H46: 1 | I46: 1 | J46: 0 | K46: 0.0786 | M46: 0 | N46: 0 | O46: 0 | P46: 1 | Q46: 9 | R46: 2 | AA46: 412 | AB46: 412035285 | AC46: ACADEMY OF THE PACIFIC RIM | AD46: 0 | AE46: 0 | AF46: 0 | AG46: 0 | AH46: 1 | AI46: 1 | AJ46: 0 | AK46: 0 | AL46: 0 | AM46: 0 | AN46: 0 | AO46: 1 | AP46: 0 | AQ46: 0 | AR46: 0 | AS46: 0 | AU46: 35 | AV46: 285 | AW46: 9 | AZ46: 412035285 | BA46: 412 | BC46: ACADEMY OF THE PACIFIC RIM | BD46: 285 | BE46: STOUGHTON | BF46: 2
A47: 412 | B47: 412035293 | C47: ACADEMY OF THE PACIFIC RIM | D47: 0 | E47: 0 | F47: 0 | G47: 1 | H47: 0 | I47: 3 | J47: 0 | K47: 0.1572 | M47: 0 | N47: 0 | O47: 0 | P47: 2 | Q47: 10 | R47: 4 | AA47: 412 | AB47: 412035293 | AC47: ACADEMY OF THE PACIFIC RIM | AD47: 0 | AE47: 0 | AF47: 0 | AG47: 1 | AH47: 0 | AI47: 3 | AJ47: 0 | AK47: 0 | AL47: 0 | AM47: 0 | AN47: 0 | AO47: 0 | AP47: 0 | AQ47: 0 | AR47: 0 | AS47: 2 | AU47: 35 | AV47: 293 | AW47: 10 | AZ47: 412035293 | BA47: 412 | BC47: ACADEMY OF THE PACIFIC RIM | BD47: 293 | BE47: TAUNTON | BF47: 4
A48: 412 | B48: 412035625 | C48: ACADEMY OF THE PACIFIC RIM | D48: 0 | E48: 0 | F48: 0 | G48: 0 | H48: 1 | I48: 0 | J48: 0 | K48: 0.0393 | M48: 0 | N48: 0 | O48: 0 | P48: 1 | Q48: 6 | R48: 1 | AA48: 412 | AB48: 412035625 | AC48: ACADEMY OF THE PACIFIC RIM | AD48: 0 | AE48: 0 | AF48: 0 | AG48: 0 | AH48: 1 | AI48: 0 | AJ48: 0 | AK48: 0 | AL48: 0 | AM48: 0 | AN48: 0 | AO48: 1 | AP48: 0 | AQ48: 0 | AR48: 0 | AS48: 0 | AU48: 35 | AV48: 625 | AW48: 6 | AZ48: 412035625 | BA48: 412 | BC48: ACADEMY OF THE PACIFIC RIM | BD48: 625 | BE48: BRIDGEWATER RAYNHAM | BF48: 1
A49: 413 | B49: 413114091 | C49: FOUR RIVERS | D49: 0 | E49: 0 | F49: 0 | G49: 0 | H49: 0 | I49: 1 | J49: 0 | K49: 0.0393 | M49: 0 | N49: 0 | O49: 0 | P49: 0 | Q49: 9 | R49: 1 | AA49: 413 | AB49: 413114091 | AC49: FOUR RIVERS | AD49: 0 | AE49: 0 | AF49: 0 | AG49: 0 | AH49: 0 | AI49: 1 | AJ49: 0 | AK49: 0 | AL49: 0 | AM49: 0 | AN49: 0 | AO49: 0 | AP49: 0 | AQ49: 0 | AR49: 0 | AS49: 0 | AU49: 114 | AV49: 91 | AW49: 9 | AZ49: 413114091 | BA49: 413 | BC49: FOUR RIVERS | BD49: 91 | BE49: ERVING | BF49: 1
A50: 413 | B50: 413114114 | C50: FOUR RIVERS | D50: 0 | E50: 0 | F50: 0 | G50: 0 | H50: 40 | I50: 51 | J50: 0 | K50: 3.5763 | M50: 0 | N50: 0 | O50: 0 | P50: 35 | Q50: 10 | R50: 91 | AA50: 413 | AB50: 413114114 | AC50: FOUR RIVERS | AD50: 0 | AE50: 0 | AF50: 0 | AG50: 0 | AH50: 40 | AI50: 51 | AJ50: 0 | AK50: 0 | AL50: 0 | AM50: 0 | AN50: 0 | AO50: 17 | AP50: 0 | AQ50: 0 | AR50: 0 | AS50: 18 | AU50: 114 | AV50: 114 | AW50: 10 | AZ50: 413114114 | BA50: 413 | BC50: FOUR RIVERS | BD50: 114 | BE50: GREENFIELD | BF50: 91
A51: 413 | B51: 413114127 | C51: FOUR RIVERS | D51: 0 | E51: 0 | F51: 0 | G51: 0 | H51: 0 | I51: 1 | J51: 0 | K51: 0.0393 | M51: 0 | N51: 0 | O51: 0 | P51: 0 | Q51: 4 | R51: 1 | AA51: 413 | AB51: 413114127 | AC51: FOUR RIVERS | AD51: 0 | AE51: 0 | AF51: 0 | AG51: 0 | AH51: 0 | AI51: 1 | AJ51: 0 | AK51: 0 | AL51: 0 | AM51: 0 | AN51: 0 | AO51: 0 | AP51: 0 | AQ51: 0 | AR51: 0 | AS51: 0 | AU51: 114 | AV51: 127 | AW51: 4 | AZ51: 413114127 | BA51: 413 | BC51: FOUR RIVERS | BD51: 127 | BE51: HATFIELD | BF51: 1
A52: 413 | B52: 413114210 | C52: FOUR RIVERS | D52: 0 | E52: 0 | F52: 0 | G52: 0 | H52: 0 | I52: 2 | J52: 0 | K52: 0.0786 | M52: 0 | N52: 0 | O52: 0 | P52: 0 | Q52: 6 | R52: 2 | AA52: 413 | AB52: 413114210 | AC52: FOUR RIVERS | AD52: 0 | AE52: 0 | AF52: 0 | AG52: 0 | AH52: 0 | AI52: 2 | AJ52: 0 | AK52: 0 | AL52: 0 | AM52: 0 | AN52: 0 | AO52: 0 | AP52: 0 | AQ52: 0 | AR52: 0 | AS52: 0 | AU52: 114 | AV52: 210 | AW52: 6 | AZ52: 413114210 | BA52: 413 | BC52: FOUR RIVERS | BD52: 210 | BE52: NORTHAMPTON | BF52: 2
A53: 413 | B53: 413114253 | C53: FOUR RIVERS | D53: 0 | E53: 0 | F53: 0 | G53: 0 | H53: 0 | I53: 1 | J53: 0 | K53: 0.0393 | M53: 0 | N53: 0 | O53: 0 | P53: 0 | Q53: 10 | R53: 1 | AA53: 413 | AB53: 413114253 | AC53: FOUR RIVERS | AD53: 0 | AE53: 0 | AF53: 0 | AG53: 0 | AH53: 0 | AI53: 1 | AJ53: 0 | AK53: 0 | AL53: 0 | AM53: 0 | AN53: 0 | AO53: 0 | AP53: 0 | AQ53: 0 | AR53: 0 | AS53: 0 | AU53: 114 | AV53: 253 | AW53: 10 | AZ53: 413114253 | BA53: 413 | BC53: FOUR RIVERS | BD53: 253 | BE53: ROWE | BF53: 1
A54: 413 | B54: 413114312 | C54: FOUR RIVERS | D54: 0 | E54: 0 | F54: 0 | G54: 0 | H54: 1 | I54: 1 | J54: 0 | K54: 0.0786 | M54: 0 | N54: 0 | O54: 0 | P54: 0 | Q54: 8 | R54: 2 | AA54: 413 | AB54: 413114312 | AC54: FOUR RIVERS | AD54: 0 | AE54: 0 | AF54: 0 | AG54: 0 | AH54: 1 | AI54: 1 | AJ54: 0 | AK54: 0 | AL54: 0 | AM54: 0 | AN54: 0 | AO54: 0 | AP54: 0 | AQ54: 0 | AR54: 0 | AS54: 0 | AU54: 114 | AV54: 312 | AW54: 8 | AZ54: 413114312 | BA54: 413 | BC54: FOUR RIVERS | BD54: 312 | BE54: WARWICK | BF54: 2
A55: 413 | B55: 413114605 | C55: FOUR RIVERS | D55: 0 | E55: 0 | F55: 0 | G55: 0 | H55: 1 | I55: 0 | J55: 0 | K55: 0.0393 | M55: 0 | N55: 0 | O55: 0 | P55: 1 | Q55: 6 | R55: 1 | AA55: 413 | AB55: 413114605 | AC55: FOUR RIVERS | AD55: 0 | AE55: 0 | AF55: 0 | AG55: 0 | AH55: 1 | AI55: 0 | AJ55: 0 | AK55: 0 | AL55: 0 | AM55: 0 | AN55: 0 | AO55: 1 | AP55: 0 | AQ55: 0 | AR55: 0 | AS55: 0 | AU55: 114 | AV55: 605 | AW55: 6 | AZ55: 413114605 | BA55: 413 | BC55: FOUR RIVERS | BD55: 605 | BE55: AMHERST PELHAM | BF55: 1
A56: 413 | B56: 413114618 | C56: FOUR RIVERS | D56: 0 | E56: 0 | F56: 0 | G56: 0 | H56: 0 | I56: 1 | J56: 0 | K56: 0.0393 | M56: 0 | N56: 0 | O56: 0 | P56: 0 | Q56: 8 | R56: 1 | AA56: 413 | AB56: 413114618 | AC56: FOUR RIVERS | AD56: 0 | AE56: 0 | AF56: 0 | AG56: 0 | AH56: 0 | AI56: 1 | AJ56: 0 | AK56: 0 | AL56: 0 | AM56: 0 | AN56: 0 | AO56: 0 | AP56: 0 | AQ56: 0 | AR56: 0 | AS56: 0 | AU56: 114 | AV56: 618 | AW56: 8 | AZ56: 413114618 | BA56: 413 | BC56: FOUR RIVERS | BD56: 618 | BE56: BERKSHIRE HILLS | BF56: 1
A57: 413 | B57: 413114670 | C57: FOUR RIVERS | D57: 0 | E57: 0 | F57: 0 | G57: 0 | H57: 3 | I57: 13 | J57: 0 | K57: 0.6288 | M57: 0 | N57: 0 | O57: 0 | P57: 4 | Q57: 6 | R57: 16 | AA57: 413 | AB57: 413114670 | AC57: FOUR RIVERS | AD57: 0 | AE57: 0 | AF57: 0 | AG57: 0 | AH57: 3 | AI57: 13 | AJ57: 0 | AK57: 0 | AL57: 0 | AM57: 0 | AN57: 0 | AO57: 1 | AP57: 0 | AQ57: 0 | AR57: 0 | AS57: 3 | AU57: 114 | AV57: 670 | AW57: 6 | AZ57: 413114670 | BA57: 413 | BC57: FOUR RIVERS | BD57: 670 | BE57: FRONTIER | BF57: 16
A58: 413 | B58: 413114674 | C58: FOUR RIVERS | D58: 0 | E58: 0 | F58: 0 | G58: 0 | H58: 12 | I58: 29 | J58: 0 | K58: 1.6113 | M58: 0 | N58: 0 | O58: 0 | P58: 19 | Q58: 10 | R58: 41 | AA58: 413 | AB58: 413114674 | AC58: FOUR RIVERS | AD58: 0 | AE58: 0 | AF58: 0 | AG58: 0 | AH58: 12 | AI58: 29 | AJ58: 0 | AK58: 0 | AL58: 0 | AM58: 0 | AN58: 0 | AO58: 5 | AP58: 0 | AQ58: 0 | AR58: 0 | AS58: 14 | AU58: 114 | AV58: 674 | AW58: 10 | AZ58: 413114674 | BA58: 413 | BC58: FOUR RIVERS | BD58: 674 | BE58: GILL MONTAGUE | BF58: 41
A59: 413 | B59: 413114717 | C59: FOUR RIVERS | D59: 0 | E59: 0 | F59: 0 | G59: 0 | H59: 7 | I59: 14 | J59: 0 | K59: 0.8253 | M59: 0 | N59: 0 | O59: 0 | P59: 12 | Q59: 9 | R59: 21 | AA59: 413 | AB59: 413114717 | AC59: FOUR RIVERS | AD59: 0 | AE59: 0 | AF59: 0 | AG59: 0 | AH59: 7 | AI59: 14 | AJ59: 0 | AK59: 0 | AL59: 0 | AM59: 0 | AN59: 0 | AO59: 4 | AP59: 0 | AQ59: 0 | AR59: 0 | AS59: 8 | AU59: 114 | AV59: 717 | AW59: 9 | AZ59: 413114717 | BA59: 413 | BC59: FOUR RIVERS | BD59: 717 | BE59: MOHAWK TRAIL | BF59: 21
A60: 413 | B60: 413114750 | C60: FOUR RIVERS | D60: 0 | E60: 0 | F60: 0 | G60: 0 | H60: 4 | I60: 14 | J60: 0 | K60: 0.7074 | M60: 0 | N60: 0 | O60: 0 | P60: 8 | Q60: 7 | R60: 18 | AA60: 413 | AB60: 413114750 | AC60: FOUR RIVERS | AD60: 0 | AE60: 0 | AF60: 0 | AG60: 0 | AH60: 4 | AI60: 14 | AJ60: 0 | AK60: 0 | AL60: 0 | AM60: 0 | AN60: 0 | AO60: 1 | AP60: 0 | AQ60: 0 | AR60: 0 | AS60: 7 | AU60: 114 | AV60: 750 | AW60: 7 | AZ60: 413114750 | BA60: 413 | BC60: FOUR RIVERS | BD60: 750 | BE60: PIONEER | BF60: 18
A61: 413 | B61: 413114755 | C61: FOUR RIVERS | D61: 0 | E61: 0 | F61: 0 | G61: 0 | H61: 9 | I61: 9 | J61: 0 | K61: 0.7074 | M61: 0 | N61: 0 | O61: 0 | P61: 4 | Q61: 10 | R61: 18 | AA61: 413 | AB61: 413114755 | AC61: FOUR RIVERS | AD61: 0 | AE61: 0 | AF61: 0 | AG61: 0 | AH61: 9 | AI61: 9 | AJ61: 0 | AK61: 0 | AL61: 0 | AM61: 0 | AN61: 0 | AO61: 2 | AP61: 0 | AQ61: 0 | AR61: 0 | AS61: 2 | AU61: 114 | AV61: 755 | AW61: 10 | AZ61: 413114755 | BA61: 413 | BC61: FOUR RIVERS | BD61: 755 | BE61: RALPH C MAHAR | BF61: 18
A62: 414 | B62: 414603063 | C62: BERKSHIRE ARTS AND TECHNOLOGY | D62: 0 | E62: 0 | F62: 0 | G62: 0 | H62: 0 | I62: 3 | J62: 0 | K62: 0.1179 | M62: 0 | N62: 0 | O62: 0 | P62: 1 | Q62: 8 | R62: 3 | AA62: 414 | AB62: 414603063 | AC62: BERKSHIRE ARTS AND TECHNOLOGY | AD62: 0 | AE62: 0 | AF62: 0 | AG62: 0 | AH62: 0 | AI62: 3 | AJ62: 0 | AK62: 0 | AL62: 0 | AM62: 0 | AN62: 0 | AO62: 0 | AP62: 0 | AQ62: 0 | AR62: 0 | AS62: 1 | AU62: 603 | AV62: 63 | AW62: 8 | AZ62: 414603063 | BA62: 414 | BC62: BERKSHIRE ARTS AND TECHNOLOGY | BD62: 63 | BE62: CLARKSBURG | BF62: 3
A63: 414 | B63: 414603098 | C63: BERKSHIRE ARTS AND TECHNOLOGY | D63: 0 | E63: 0 | F63: 0 | G63: 0 | H63: 1 | I63: 0 | J63: 0 | K63: 0.0393 | M63: 0 | N63: 0 | O63: 0 | P63: 1 | Q63: 8 | R63: 1 | AA63: 414 | AB63: 414603098 | AC63: BERKSHIRE ARTS AND TECHNOLOGY | AD63: 0 | AE63: 0 | AF63: 0 | AG63: 0 | AH63: 1 | AI63: 0 | AJ63: 0 | AK63: 0 | AL63: 0 | AM63: 0 | AN63: 0 | AO63: 1 | AP63: 0 | AQ63: 0 | AR63: 0 | AS63: 0 | AU63: 603 | AV63: 98 | AW63: 8 | AZ63: 414603098 | BA63: 414 | BC63: BERKSHIRE ARTS AND TECHNOLOGY | BD63: 98 | BE63: FLORIDA | BF63: 1
A64: 414 | B64: 414603121 | C64: BERKSHIRE ARTS AND TECHNOLOGY | D64: 0 | E64: 0 | F64: 0 | G64: 0 | H64: 1 | I64: 0 | J64: 0 | K64: 0.0393 | M64: 0 | N64: 0 | O64: 0 | P64: 1 | Q64: 9 | R64: 1 | AA64: 414 | AB64: 414603121 | AC64: BERKSHIRE ARTS AND TECHNOLOGY | AD64: 0 | AE64: 0 | AF64: 0 | AG64: 0 | AH64: 1 | AI64: 0 | AJ64: 0 | AK64: 0 | AL64: 0 | AM64: 0 | AN64: 0 | AO64: 1 | AP64: 0 | AQ64: 0 | AR64: 0 | AS64: 0 | AU64: 603 | AV64: 121 | AW64: 9 | AZ64: 414603121 | BA64: 414 | BC64: BERKSHIRE ARTS AND TECHNOLOGY | BD64: 121 | BE64: HANCOCK | BF64: 1
A65: 414 | B65: 414603150 | C65: BERKSHIRE ARTS AND TECHNOLOGY | D65: 0 | E65: 0 | F65: 0 | G65: 0 | H65: 1 | I65: 0 | J65: 0 | K65: 0.0393 | M65: 0 | N65: 0 | O65: 0 | P65: 0 | Q65: 8 | R65: 1 | AA65: 414 | AB65: 414603150 | AC65: BERKSHIRE ARTS AND TECHNOLOGY | AD65: 0 | AE65: 0 | AF65: 0 | AG65: 0 | AH65: 1 | AI65: 0 | AJ65: 0 | AK65: 0 | AL65: 0 | AM65: 0 | AN65: 0 | AO65: 0 | AP65: 0 | AQ65: 0 | AR65: 0 | AS65: 0 | AU65: 603 | AV65: 150 | AW65: 8 | AZ65: 414603150 | BA65: 414 | BC65: BERKSHIRE ARTS AND TECHNOLOGY | BD65: 150 | BE65: LEE | BF65: 1
A66: 414 | B66: 414603209 | C66: BERKSHIRE ARTS AND TECHNOLOGY | D66: 0 | E66: 0 | F66: 0 | G66: 0 | H66: 45 | I66: 37 | J66: 0 | K66: 3.2226 | M66: 0 | N66: 0 | O66: 0 | P66: 62 | Q66: 11 | R66: 82 | AA66: 414 | AB66: 414603209 | AC66: BERKSHIRE ARTS AND TECHNOLOGY | AD66: 0 | AE66: 0 | AF66: 0 | AG66: 0 | AH66: 45 | AI66: 37 | AJ66: 0 | AK66: 0 | AL66: 0 | AM66: 0 | AN66: 0 | AO66: 37 | AP66: 0 | AQ66: 0 | AR66: 0 | AS66: 25 | AU66: 603 | AV66: 209 | AW66: 11 | AZ66: 414603209 | BA66: 414 | BC66: BERKSHIRE ARTS AND TECHNOLOGY | BD66: 209 | BE66: NORTH ADAMS | BF66: 82
A67: 414 | B67: 414603236 | C67: BERKSHIRE ARTS AND TECHNOLOGY | D67: 0 | E67: 0 | F67: 0 | G67: 0 | H67: 102 | I67: 67 | J67: 0 | K67: 6.6417 | M67: 0 | N67: 2 | O67: 2 | P67: 122 | Q67: 11 | R67: 169 | AA67: 414 | AB67: 414603236 | AC67: BERKSHIRE ARTS AND TECHNOLOGY | AD67: 0 | AE67: 0 | AF67: 0 | AG67: 0 | AH67: 102 | AI67: 67 | AJ67: 0 | AK67: 0 | AL67: 0 | AM67: 2 | AN67: 2 | AO67: 73 | AP67: 0 | AQ67: 0 | AR67: 0 | AS67: 49 | AU67: 603 | AV67: 236 | AW67: 11 | AZ67: 414603236 | BA67: 414 | BC67: BERKSHIRE ARTS AND TECHNOLOGY | BD67: 236 | BE67: PITTSFIELD | BF67: 169
A68: 414 | B68: 414603263 | C68: BERKSHIRE ARTS AND TECHNOLOGY | D68: 0 | E68: 0 | F68: 0 | G68: 0 | H68: 0 | I68: 1 | J68: 0 | K68: 0.0393 | M68: 0 | N68: 0 | O68: 0 | P68: 0 | Q68: 11 | R68: 1 | AA68: 414 | AB68: 414603263 | AC68: BERKSHIRE ARTS AND TECHNOLOGY | AD68: 0 | AE68: 0 | AF68: 0 | AG68: 0 | AH68: 0 | AI68: 1 | AJ68: 0 | AK68: 0 | AL68: 0 | AM68: 0 | AN68: 0 | AO68: 0 | AP68: 0 | AQ68: 0 | AR68: 0 | AS68: 0 | AU68: 603 | AV68: 263 | AW68: 11 | AZ68: 414603263 | BA68: 414 | BC68: BERKSHIRE ARTS AND TECHNOLOGY | BD68: 263 | BE68: SAVOY | BF68: 1
A69: 414 | B69: 414603603 | C69: BERKSHIRE ARTS AND TECHNOLOGY | D69: 0 | E69: 0 | F69: 0 | G69: 0 | H69: 43 | I69: 33 | J69: 0 | K69: 2.9868 | M69: 0 | N69: 0 | O69: 0 | P69: 46 | Q69: 10 | R69: 76 | AA69: 414 | AB69: 414603603 | AC69: BERKSHIRE ARTS AND TECHNOLOGY | AD69: 0 | AE69: 0 | AF69: 0 | AG69: 0 | AH69: 43 | AI69: 33 | AJ69: 0 | AK69: 0 | AL69: 0 | AM69: 0 | AN69: 0 | AO69: 26 | AP69: 0 | AQ69: 0 | AR69: 0 | AS69: 20 | AU69: 603 | AV69: 603 | AW69: 10 | AZ69: 414603603 | BA69: 414 | BC69: BERKSHIRE ARTS AND TECHNOLOGY | BD69: 603 | BE69: ADAMS CHESHIRE | BF69: 76
A70: 414 | B70: 414603635 | C70: BERKSHIRE ARTS AND TECHNOLOGY | D70: 0 | E70: 0 | F70: 0 | G70: 0 | H70: 7 | I70: 12 | J70: 0 | K70: 0.7467 | M70: 0 | N70: 0 | O70: 0 | P70: 7 | Q70: 8 | R70: 19 | AA70: 414 | AB70: 414603635 | AC70: BERKSHIRE ARTS AND TECHNOLOGY | AD70: 0 | AE70: 0 | AF70: 0 | AG70: 0 | AH70: 7 | AI70: 12 | AJ70: 0 | AK70: 0 | AL70: 0 | AM70: 0 | AN70: 0 | AO70: 2 | AP70: 0 | AQ70: 0 | AR70: 0 | AS70: 5 | AU70: 603 | AV70: 635 | AW70: 8 | AZ70: 414603635 | BA70: 414 | BC70: BERKSHIRE ARTS AND TECHNOLOGY | BD70: 635 | BE70: CENTRAL BERKSHIRE | BF70: 19
A71: 414 | B71: 414603715 | C71: BERKSHIRE ARTS AND TECHNOLOGY | D71: 0 | E71: 0 | F71: 0 | G71: 0 | H71: 6 | I71: 6 | J71: 0 | K71: 0.4716 | M71: 0 | N71: 0 | O71: 0 | P71: 6 | Q71: 6 | R71: 12 | AA71: 414 | AB71: 414603715 | AC71: BERKSHIRE ARTS AND TECHNOLOGY | AD71: 0 | AE71: 0 | AF71: 0 | AG71: 0 | AH71: 6 | AI71: 6 | AJ71: 0 | AK71: 0 | AL71: 0 | AM71: 0 | AN71: 0 | AO71: 4 | AP71: 0 | AQ71: 0 | AR71: 0 | AS71: 2 | AU71: 603 | AV71: 715 | AW71: 6 | AZ71: 414603715 | BA71: 414 | BC71: BERKSHIRE ARTS AND TECHNOLOGY | BD71: 715 | BE71: MOUNT GREYLOCK | BF71: 12
A72: 416 | B72: 416035018 | C72: BOSTON PREPARATORY | D72: 0 | E72: 0 | F72: 0 | G72: 0 | H72: 0 | I72: 1 | J72: 0 | K72: 0.0393 | M72: 0 | N72: 0 | O72: 0 | P72: 1 | Q72: 9 | R72: 1 | AA72: 416 | AB72: 416035018 | AC72: BOSTON PREPARATORY | AD72: 0 | AE72: 0 | AF72: 0 | AG72: 0 | AH72: 0 | AI72: 1 | AJ72: 0 | AK72: 0 | AL72: 0 | AM72: 0 | AN72: 0 | AO72: 0 | AP72: 0 | AQ72: 0 | AR72: 0 | AS72: 1 | AU72: 35 | AV72: 18 | AW72: 9 | AZ72: 416035018 | BA72: 416 | BC72: BOSTON PREPARATORY | BD72: 18 | BE72: AVON | BF72: 1
A73: 416 | B73: 416035030 | C73: BOSTON PREPARATORY | D73: 0 | E73: 0 | F73: 0 | G73: 0 | H73: 1 | I73: 0 | J73: 0 | K73: 0.0393 | M73: 0 | N73: 0 | O73: 0 | P73: 1 | Q73: 7 | R73: 1 | AA73: 416 | AB73: 416035030 | AC73: BOSTON PREPARATORY | AD73: 0 | AE73: 0 | AF73: 0 | AG73: 0 | AH73: 1 | AI73: 0 | AJ73: 0 | AK73: 0 | AL73: 0 | AM73: 0 | AN73: 0 | AO73: 1 | AP73: 0 | AQ73: 0 | AR73: 0 | AS73: 0 | AU73: 35 | AV73: 30 | AW73: 7 | AZ73: 416035030 | BA73: 416 | BC73: BOSTON PREPARATORY | BD73: 30 | BE73: BEVERLY | BF73: 1
A74: 416 | B74: 416035035 | C74: BOSTON PREPARATORY | D74: 0 | E74: 0 | F74: 0 | G74: 0 | H74: 288 | I74: 385 | J74: 0 | K74: 26.4489 | M74: 0 | N74: 61 | O74: 45 | P74: 514 | Q74: 11 | R74: 673 | AA74: 416 | AB74: 416035035 | AC74: BOSTON PREPARATORY | AD74: 0 | AE74: 0 | AF74: 0 | AG74: 0 | AH74: 288 | AI74: 385 | AJ74: 0 | AK74: 0 | AL74: 0 | AM74: 61 | AN74: 45 | AO74: 222 | AP74: 0 | AQ74: 0 | AR74: 0 | AS74: 292 | AU74: 35 | AV74: 35 | AW74: 11 | AZ74: 416035035 | BA74: 416 | BC74: BOSTON PREPARATORY | BD74: 35 | BE74: =VLOOKUP(BD74,distinfo,2,FALSE) -> BOSTON | BF74: 673
A75: 416 | B75: 416035044 | C75: BOSTON PREPARATORY | D75: =ROUND(AD75,0) -> 0 | E75: =ROUND(AE75,0) -> 0 | F75: =ROUND(AF75,0) -> 0 | G75: =ROUND(AG75,0) -> 0 | H75: =ROUND(AH75,0) -> 2 | I75: =ROUND(AI75,0)-J75 -> 2 | J75: =ROUND(AJ75,0) -> 0 | K75: =ROUND($K$2*(SUM(AF75:AI75)+(AE75*0.5))+$K$5*AJ75,4) -> 0.1572 | M75: =ROUND(AL75+(AK75*0.5),0) -> 0 | N75: =ROUND(AM75,0) -> 1 | O75: =ROUND(AN75,0) -> 1 | P75: =ROUND(((AP75+AQ75)*0.5)+AO75+AR75+AS75,0) -> 2 | Q75: =AW75 -> 11 | R75: =SUM(F75:I75)+ROUND(D75*0.5,0)+ROUND(J75,0) -> 4 | AA75: 416 | AB75: 416035044 | AC75: BOSTON PREPARATORY | AD75: 0 | AE75: 0 | AF75: 0 | AG75: 0 | AH75: 2 | AI75: 2 | AJ75: 0 | AK75: 0 | AL75: 0 | AM75: 1 | AN75: 1 | AO75: 1 | AP75: 0 | AQ75: 0 | AR75: 0 | AS75: 1 | AU75: 35 | AV75: 44 | AW75: 11 | AZ75: =AB75 -> 416035044 | BA75: =AA75 -> 416 | BC75: =AC75 -> BOSTON PREPARATORY | BD75: =AV75 -> 44 | BE75: BROCKTON | BF75: =SUM(AD75:AJ75) -> 4
A76: 416 | B76: 416035050 | C76: BOSTON PREPARATORY | D76: 0 | E76: 0 | F76: 0 | G76: 0 | H76: 1 | I76: 0 | J76: 0 | K76: 0.0393 | M76: 0 | N76: 1 | O76: 0 | P76: 1 | Q76: 5 | R76: 1 | AA76: 416 | AB76: 416035050 | AC76: BOSTON PREPARATORY | AD76: 0 | AE76: 0 | AF76: 0 | AG76: 0 | AH76: 1 | AI76: 0 | AJ76: 0 | AK76: 0 | AL76: 0 | AM76: 1 | AN76: 0 | AO76: 1 | AP76: 0 | AQ76: 0 | AR76: 0 | AS76: 0 | AU76: 35 | AV76: 50 | AW76: 5 | AZ76: 416035050 | BA76: 416 | BC76: BOSTON PREPARATORY | BD76: 50 | BE76: CANTON | BF76: 1
A77: 416 | B77: 416035073 | C77: BOSTON PREPARATORY | D77: 0 | E77: 0 | F77: 0 | G77: 0 | H77: 0 | I77: 1 | J77: 0 | K77: 0.0393 | M77: 0 | N77: 0 | O77: 0 | P77: 0 | Q77: 6 | R77: 1 | AA77: 416 | AB77: 416035073 | AC77: BOSTON PREPARATORY | AD77: 0 | AE77: 0 | AF77: 0 | AG77: 0 | AH77: 0 | AI77: 1 | AJ77: 0 | AK77: 0 | AL77: 0 | AM77: 0 | AN77: 0 | AO77: 0 | AP77: 0 | AQ77: 0 | AR77: 0 | AS77: 0 | AU77: 35 | AV77: 73 | AW77: 6 | AZ77: 416035073 | BA77: 416 | BC77: BOSTON PREPARATORY | BD77: 73 | BE77: DEDHAM | BF77: 1
A78: 416 | B78: 416035133 | C78: BOSTON PREPARATORY | D78: 0 | E78: 0 | F78: 0 | G78: 0 | H78: 1 | I78: 0 | J78: 0 | K78: 0.0393 | M78: 0 | N78: 1 | O78: 0 | P78: 0 | Q78: 9 | R78: 1 | AA78: 416 | AB78: 416035133 | AC78: BOSTON PREPARATORY | AD78: 0 | AE78: 0 | AF78: 0 | AG78: 0 | AH78: 1 | AI78: 0 | AJ78: 0 | AK78: 0 | AL78: 0 | AM78: 1 | AN78: 0 | AO78: 0 | AP78: 0 | AQ78: 0 | AR78: 0 | AS78: 0 | AU78: 35 | AV78: 133 | AW78: 9 | AZ78: 416035133 | BA78: 416 | BC78: BOSTON PREPARATORY | BD78: 133 | BE78: HOLBROOK | BF78: 1
A79: 416 | B79: 416035189 | C79: BOSTON PREPARATORY | D79: 0 | E79: 0 | F79: 0 | G79: 0 | H79: 1 | I79: 1 | J79: 0 | K79: 0.0786 | M79: 0 | N79: 0 | O79: 0 | P79: 2 | Q79: 3 | R79: 2 | AA79: 416 | AB79: 416035189 | AC79: BOSTON PREPARATORY | AD79: 0 | AE79: 0 | AF79: 0 | AG79: 0 | AH79: 1 | AI79: 1 | AJ79: 0 | AK79: 0 | AL79: 0 | AM79: 0 | AN79: 0 | AO79: 1 | AP79: 0 | AQ79: 0 | AR79: 0 | AS79: 1 | AU79: 35 | AV79: 189 | AW79: 3 | AZ79: 416035189 | BA79: 416 | BC79: BOSTON PREPARATORY | BD79: 189 | BE79: MILTON | BF79: 2
A80: 416 | B80: 416035243 | C80: BOSTON PREPARATORY | D80: 0 | E80: 0 | F80: 0 | G80: 0 | H80: 1 | I80: 1 | J80: 0 | K80: 0.0786 | M80: 0 | N80: 0 | O80: 0 | P80: 1 | Q80: 9 | R80: 2 | AA80: 416 | AB80: 416035243 | AC80: BOSTON PREPARATORY | AD80: 0 | AE80: 0 | AF80: 0 | AG80: 0 | AH80: 1 | AI80: 1 | AJ80: 0 | AK80: 0 | AL80: 0 | AM80: 0 | AN80: 0 | AO80: 0 | AP80: 0 | AQ80: 0 | AR80: 0 | AS80: 1 | AU80: 35 | AV80: 243 | AW80: 9 | AZ80: 416035243 | BA80: 416 | BC80: BOSTON PREPARATORY | BD80: 243 | BE80: QUINCY | BF80: 2
A81: 416 | B81: 416035244 | C81: BOSTON PREPARATORY | D81: 0 | E81: 0 | F81: 0 | G81: 0 | H81: 3 | I81: 4 | J81: 0 | K81: 0.2751 | M81: 0 | N81: 1 | O81: 1 | P81: 6 | Q81: 10 | R81: 7 | AA81: 416 | AB81: 416035244 | AC81: BOSTON PREPARATORY | AD81: 0 | AE81: 0 | AF81: 0 | AG81: 0 | AH81: 3 | AI81: 4 | AJ81: 0 | AK81: 0 | AL81: 0 | AM81: 1 | AN81: 1 | AO81: 3 | AP81: 0 | AQ81: 0 | AR81: 0 | AS81: 3 | AU81: 35 | AV81: 244 | AW81: 10 | AZ81: 416035244 | BA81: 416 | BC81: BOSTON PREPARATORY | BD81: 244 | BE81: RANDOLPH | BF81: 7
A82: 416 | B82: 416035274 | C82: BOSTON PREPARATORY | D82: 0 | E82: 0 | F82: 0 | G82: 0 | H82: 0 | I82: 1 | J82: 0 | K82: 0.0393 | M82: 0 | N82: 0 | O82: 0 | P82: 1 | Q82: 10 | R82: 1 | AA82: 416 | AB82: 416035274 | AC82: BOSTON PREPARATORY | AD82: 0 | AE82: 0 | AF82: 0 | AG82: 0 | AH82: 0 | AI82: 1 | AJ82: 0 | AK82: 0 | AL82: 0 | AM82: 0 | AN82: 0 | AO82: 0 | AP82: 0 | AQ82: 0 | AR82: 0 | AS82: 1 | AU82: 35 | AV82: 274 | AW82: 10 | AZ82: 416035274 | BA82: 416 | BC82: BOSTON PREPARATORY | BD82: 274 | BE82: SOMERVILLE | BF82: 1
A83: 416 | B83: 416035285 | C83: BOSTON PREPARATORY | D83: 0 | E83: 0 | F83: 0 | G83: 0 | H83: 0 | I83: 1 | J83: 0 | K83: 0.0393 | M83: 0 | N83: 0 | O83: 0 | P83: 0 | Q83: 9 | R83: 1 | AA83: 416 | AB83: 416035285 | AC83: BOSTON PREPARATORY | AD83: 0 | AE83: 0 | AF83: 0 | AG83: 0 | AH83: 0 | AI83: 1 | AJ83: 0 | AK83: 0 | AL83: 0 | AM83: 0 | AN83: 0 | AO83: 0 | AP83: 0 | AQ83: 0 | AR83: 0 | AS83: 0 | AU83: 35 | AV83: 285 | AW83: 9 | AZ83: 416035285 | BA83: 416 | BC83: BOSTON PREPARATORY | BD83: 285 | BE83: STOUGHTON | BF83: 1
A84: 417 | B84: 417035035 | C84: BRIDGE BOSTON | D84: 32 | E84: 0 | F84: 37 | G84: 180 | H84: 68 | I84: 0 | J84: 0 | K84: 11.2005 | M84: 63 | N84: 7 | O84: 0 | P84: 256 | Q84: 11 | R84: 301 | AA84: 417 | AB84: 417035035 | AC84: BRIDGE BOSTON | AD84: 32 | AE84: 0 | AF84: 37 | AG84: 180 | AH84: 68 | AI84: 0 | AJ84: 0 | AK84: 11 | AL84: 57 | AM84: 7 | AN84: 0 | AO84: 206 | AP84: 26 | AQ84: 0 | AR84: 37 | AS84: 0 | AU84: 35 | AV84: 35 | AW84: 11 | AZ84: 417035035 | BA84: 417 | BC84: BRIDGE BOSTON | BD84: 35 | BE84: BOSTON | BF84: 317
A85: 417 | B85: 417035040 | C85: BRIDGE BOSTON | D85: 0 | E85: 0 | F85: 0 | G85: 1 | H85: 0 | I85: 0 | J85: 0 | K85: 0.0393 | M85: 0 | N85: 0 | O85: 0 | P85: 1 | Q85: 6 | R85: 1 | AA85: 417 | AB85: 417035040 | AC85: BRIDGE BOSTON | AD85: 0 | AE85: 0 | AF85: 0 | AG85: 1 | AH85: 0 | AI85: 0 | AJ85: 0 | AK85: 0 | AL85: 0 | AM85: 0 | AN85: 0 | AO85: 1 | AP85: 0 | AQ85: 0 | AR85: 0 | AS85: 0 | AU85: 35 | AV85: 40 | AW85: 6 | AZ85: 417035040 | BA85: 417 | BC85: BRIDGE BOSTON | BD85: 40 | BE85: BRAINTREE | BF85: 1
A86: 417 | B86: 417035044 | C86: BRIDGE BOSTON | D86: 0 | E86: 0 | F86: 0 | G86: 1 | H86: 0 | I86: 0 | J86: 0 | K86: 0.0393 | M86: 0 | N86: 0 | O86: 0 | P86: 0 | Q86: 11 | R86: 1 | AA86: 417 | AB86: 417035044 | AC86: BRIDGE BOSTON | AD86: 0 | AE86: 0 | AF86: 0 | AG86: 1 | AH86: 0 | AI86: 0 | AJ86: 0 | AK86: 0 | AL86: 0 | AM86: 0 | AN86: 0 | AO86: 0 | AP86: 0 | AQ86: 0 | AR86: 0 | AS86: 0 | AU86: 35 | AV86: 44 | AW86: 11 | AZ86: 417035044 | BA86: 417 | BC86: BRIDGE BOSTON | BD86: 44 | BE86: BROCKTON | BF86: 1
A87: 417 | B87: 417035100 | C87: BRIDGE BOSTON | D87: 0 | E87: 0 | F87: 0 | G87: 2 | H87: 1 | I87: 0 | J87: 0 | K87: 0.1179 | M87: 0 | N87: 0 | O87: 0 | P87: 3 | Q87: 10 | R87: 3 | AA87: 417 | AB87: 417035100 | AC87: BRIDGE BOSTON | AD87: 0 | AE87: 0 | AF87: 0 | AG87: 2 | AH87: 1 | AI87: 0 | AJ87: 0 | AK87: 0 | AL87: 0 | AM87: 0 | AN87: 0 | AO87: 3 | AP87: 0 | AQ87: 0 | AR87: 0 | AS87: 0 | AU87: 35 | AV87: 100 | AW87: 10 | AZ87: 417035100 | BA87: 417 | BC87: BRIDGE BOSTON | BD87: 100 | BE87: FRAMINGHAM | BF87: 3
A88: 417 | B88: 417035133 | C88: BRIDGE BOSTON | D88: 0 | E88: 0 | F88: 0 | G88: 2 | H88: 1 | I88: 0 | J88: 0 | K88: 0.1179 | M88: 0 | N88: 0 | O88: 0 | P88: 0 | Q88: 9 | R88: 3 | AA88: 417 | AB88: 417035133 | AC88: BRIDGE BOSTON | AD88: 0 | AE88: 0 | AF88: 0 | AG88: 2 | AH88: 1 | AI88: 0 | AJ88: 0 | AK88: 0 | AL88: 0 | AM88: 0 | AN88: 0 | AO88: 0 | AP88: 0 | AQ88: 0 | AR88: 0 | AS88: 0 | AU88: 35 | AV88: 133 | AW88: 9 | AZ88: 417035133 | BA88: 417 | BC88: BRIDGE BOSTON | BD88: 133 | BE88: HOLBROOK | BF88: 3
A89: 417 | B89: 417035244 | C89: BRIDGE BOSTON | D89: 1 | E89: 0 | F89: 0 | G89: 2 | H89: 2 | I89: 0 | J89: 0 | K89: 0.1572 | M89: 2 | N89: 1 | O89: 0 | P89: 3 | Q89: 10 | R89: 5 | AA89: 417 | AB89: 417035244 | AC89: BRIDGE BOSTON | AD89: 1 | AE89: 0 | AF89: 0 | AG89: 2 | AH89: 2 | AI89: 0 | AJ89: 0 | AK89: 1 | AL89: 1 | AM89: 1 | AN89: 0 | AO89: 3 | AP89: 0 | AQ89: 0 | AR89: 0 | AS89: 0 | AU89: 35 | AV89: 244 | AW89: 10 | AZ89: 417035244 | BA89: 417 | BC89: BRIDGE BOSTON | BD89: 244 | BE89: RANDOLPH | BF89: 5
A90: 417 | B90: 417035285 | C90: BRIDGE BOSTON | D90: 0 | E90: 0 | F90: 0 | G90: 3 | H90: 1 | I90: 0 | J90: 0 | K90: 0.1572 | M90: 1 | N90: 0 | O90: 0 | P90: 1 | Q90: 9 | R90: 4 | AA90: 417 | AB90: 417035285 | AC90: BRIDGE BOSTON | AD90: 0 | AE90: 0 | AF90: 0 | AG90: 3 | AH90: 1 | AI90: 0 | AJ90: 0 | AK90: 0 | AL90: 1 | AM90: 0 | AN90: 0 | AO90: 1 | AP90: 0 | AQ90: 0 | AR90: 0 | AS90: 0 | AU90: 35 | AV90: 285 | AW90: 9 | AZ90: 417035285 | BA90: 417 | BC90: BRIDGE BOSTON | BD90: 285 | BE90: STOUGHTON | BF90: 4
A91: 418 | B91: 418100014 | C91: CHRISTA MCAULIFFE | D91: 0 | E91: 0 | F91: 0 | G91: 0 | H91: 1 | I91: 0 | J91: 0 | K91: 0.0393 | M91: 0 | N91: 0 | O91: 0 | P91: 0 | Q91: 5 | R91: 1 | AA91: 418 | AB91: 418100014 | AC91: CHRISTA MCAULIFFE | AD91: 0 | AE91: 0 | AF91: 0 | AG91: 0 | AH91: 1 | AI91: 0 | AJ91: 0 | AK91: 0 | AL91: 0 | AM91: 0 | AN91: 0 | AO91: 0 | AP91: 0 | AQ91: 0 | AR91: 0 | AS91: 0 | AU91: 100 | AV91: 14 | AW91: 5 | AZ91: 418100014 | BA91: 418 | BC91: CHRISTA MCAULIFFE | BD91: 14 | BE91: ASHLAND | BF91: 1
A92: 418 | B92: 418100100 | C92: CHRISTA MCAULIFFE | D92: 0 | E92: 0 | F92: 0 | G92: 0 | H92: 263 | I92: -1 | J92: 1 | K92: 10.3852 | M92: 0 | N92: 24 | O92: 0 | P92: 148 | Q92: 10 | R92: 263 | AA92: 418 | AB92: 418100100 | AC92: CHRISTA MCAULIFFE | AD92: 0 | AE92: 0 | AF92: 0 | AG92: 0 | AH92: 263 | AI92: 0 | AJ92: 1 | AK92: 0 | AL92: 0 | AM92: 24 | AN92: 0 | AO92: 148 | AP92: 0 | AQ92: 0 | AR92: 0 | AS92: 0 | AU92: 100 | AV92: 100 | AW92: 10 | AZ92: 418100100 | BA92: 418 | BC92: CHRISTA MCAULIFFE | BD92: 100 | BE92: FRAMINGHAM | BF92: 264
A93: 418 | B93: 418100136 | C93: CHRISTA MCAULIFFE | D93: 0 | E93: 0 | F93: 0 | G93: 0 | H93: 4 | I93: 0 | J93: 0 | K93: 0.1572 | M93: 0 | N93: 0 | O93: 0 | P93: 1 | Q93: 3 | R93: 4 | AA93: 418 | AB93: 418100136 | AC93: CHRISTA MCAULIFFE | AD93: 0 | AE93: 0 | AF93: 0 | AG93: 0 | AH93: 4 | AI93: 0 | AJ93: 0 | AK93: 0 | AL93: 0 | AM93: 0 | AN93: 0 | AO93: 1 | AP93: 0 | AQ93: 0 | AR93: 0 | AS93: 0 | AU93: 100 | AV93: 136 | AW93: 3 | AZ93: 418100136 | BA93: 418 | BC93: CHRISTA MCAULIFFE | BD93: 136 | BE93: HOLLISTON | BF93: 4
A94: 418 | B94: 418100170 | C94: CHRISTA MCAULIFFE | D94: 0 | E94: 0 | F94: 0 | G94: 0 | H94: 5 | I94: 0 | J94: 0 | K94: 0.1965 | M94: 0 | N94: 0 | O94: 0 | P94: 2 | Q94: 10 | R94: 5 | AA94: 418 | AB94: 418100170 | AC94: CHRISTA MCAULIFFE | AD94: 0 | AE94: 0 | AF94: 0 | AG94: 0 | AH94: 5 | AI94: 0 | AJ94: 0 | AK94: 0 | AL94: 0 | AM94: 0 | AN94: 0 | AO94: 2 | AP94: 0 | AQ94: 0 | AR94: 0 | AS94: 0 | AU94: 100 | AV94: 170 | AW94: 10 | AZ94: 418100170 | BA94: 418 | BC94: CHRISTA MCAULIFFE | BD94: 170 | BE94: MARLBOROUGH | BF94: 5
A95: 418 | B95: 418100198 | C95: CHRISTA MCAULIFFE | D95: 0 | E95: 0 | F95: 0 | G95: 0 | H95: 7 | I95: 0 | J95: 0 | K95: 0.2751 | M95: 0 | N95: 0 | O95: 0 | P95: 0 | Q95: 3 | R95: 7 | AA95: 418 | AB95: 418100198 | AC95: CHRISTA MCAULIFFE | AD95: 0 | AE95: 0 | AF95: 0 | AG95: 0 | AH95: 7 | AI95: 0 | AJ95: 0 | AK95: 0 | AL95: 0 | AM95: 0 | AN95: 0 | AO95: 0 | AP95: 0 | AQ95: 0 | AR95: 0 | AS95: 0 | AU95: 100 | AV95: 198 | AW95: 3 | AZ95: 418100198 | BA95: 418 | BC95: CHRISTA MCAULIFFE | BD95: 198 | BE95: NATICK | BF95: 7
A96: 418 | B96: 418100276 | C96: CHRISTA MCAULIFFE | D96: 0 | E96: 0 | F96: 0 | G96: 0 | H96: 1 | I96: 0 | J96: 0 | K96: 0.0393 | M96: 0 | N96: 0 | O96: 0 | P96: 0 | Q96: 2 | R96: 1 | AA96: 418 | AB96: 418100276 | AC96: CHRISTA MCAULIFFE | AD96: 0 | AE96: 0 | AF96: 0 | AG96: 0 | AH96: 1 | AI96: 0 | AJ96: 0 | AK96: 0 | AL96: 0 | AM96: 0 | AN96: 0 | AO96: 0 | AP96: 0 | AQ96: 0 | AR96: 0 | AS96: 0 | AU96: 100 | AV96: 276 | AW96: 2 | AZ96: 418100276 | BA96: 418 | BC96: CHRISTA MCAULIFFE | BD96: 276 | BE96: SOUTHBOROUGH | BF96: 1
A97: 418 | B97: 418100308 | C97: CHRISTA MCAULIFFE | D97: 0 | E97: 0 | F97: 0 | G97: 0 | H97: 2 | I97: 0 | J97: 0 | K97: 0.0786 | M97: 0 | N97: 0 | O97: 0 | P97: 0 | Q97: 10 | R97: 2 | AA97: 418 | AB97: 418100308 | AC97: CHRISTA MCAULIFFE | AD97: 0 | AE97: 0 | AF97: 0 | AG97: 0 | AH97: 2 | AI97: 0 | AJ97: 0 | AK97: 0 | AL97: 0 | AM97: 0 | AN97: 0 | AO97: 0 | AP97: 0 | AQ97: 0 | AR97: 0 | AS97: 0 | AU97: 100 | AV97: 308 | AW97: 10 | AZ97: 418100308 | BA97: 418 | BC97: CHRISTA MCAULIFFE | BD97: 308 | BE97: WALTHAM | BF97: 2
A98: 418 | B98: 418100315 | C98: CHRISTA MCAULIFFE | D98: 0 | E98: 0 | F98: 0 | G98: 0 | H98: 1 | I98: 0 | J98: 0 | K98: 0.0393 | M98: 0 | N98: 0 | O98: 0 | P98: 0 | Q98: 2 | R98: 1 | AA98: 418 | AB98: 418100315 | AC98: CHRISTA MCAULIFFE | AD98: 0 | AE98: 0 | AF98: 0 | AG98: 0 | AH98: 1 | AI98: 0 | AJ98: 0 | AK98: 0 | AL98: 0 | AM98: 0 | AN98: 0 | AO98: 0 | AP98: 0 | AQ98: 0 | AR98: 0 | AS98: 0 | AU98: 100 | AV98: 315 | AW98: 2 | AZ98: 418100315 | BA98: 418 | BC98: CHRISTA MCAULIFFE | BD98: 315 | BE98: WAYLAND | BF98: 1
A99: 418 | B99: 418100321 | C99: CHRISTA MCAULIFFE | D99: 0 | E99: 0 | F99: 0 | G99: 0 | H99: 1 | I99: 0 | J99: 0 | K99: 0.0393 | M99: 0 | N99: 0 | O99: 0 | P99: 0 | Q99: 4 | R99: 1 | AA99: 418 | AB99: 418100321 | AC99: CHRISTA MCAULIFFE | AD99: 0 | AE99: 0 | AF99: 0 | AG99: 0 | AH99: 1 | AI99: 0 | AJ99: 0 | AK99: 0 | AL99: 0 | AM99: 0 | AN99: 0 | AO99: 0 | AP99: 0 | AQ99: 0 | AR99: 0 | AS99: 0 | AU99: 100 | AV99: 321 | AW99: 4 | AZ99: 418100321 | BA99: 418 | BC99: CHRISTA MCAULIFFE | BD99: 321 | BE99: WESTBOROUGH | BF99: 1
A100: 418 | B100: 418100348 | C100: CHRISTA MCAULIFFE | D100: 0 | E100: 0 | F100: 0 | G100: 0 | H100: 2 | I100: 0 | J100: 0 | K100: 0.0786 | M100: 0 | N100: 0 | O100: 0 | P100: 1 | Q100: 11 | R100: 2 | AA100: 418 | AB100: 418100348 | AC100: CHRISTA MCAULIFFE | AD100: 0 | AE100: 0 | AF100: 0 | AG100: 0 | AH100: 2 | AI100: 0 | AJ100: 0 | AK100: 0 | AL100: 0 | AM100: 0 | AN100: 0 | AO100: 1 | AP100: 0 | AQ100: 0 | AR100: 0 | AS100: 0 | AU100: 100 | AV100: 348 | AW100: 11 | AZ100: 418100348 | BA100: 418 | BC100: CHRISTA MCAULIFFE | BD100: 348 | BE100: WORCESTER | BF100: 2
A101: 418 | B101: 418100690 | C101: CHRISTA MCAULIFFE | D101: 0 | E101: 0 | F101: 0 | G101: 0 | H101: 2 | I101: 0 | J101: 0 | K101: 0.0786 | M101: 0 | N101: 0 | O101: 0 | P101: 0 | Q101: 4 | R101: 2 | AA101: 418 | AB101: 418100690 | AC101: CHRISTA MCAULIFFE | AD101: 0 | AE101: 0 | AF101: 0 | AG101: 0 | AH101: 2 | AI101: 0 | AJ101: 0 | AK101: 0 | AL101: 0 | AM101: 0 | AN101: 0 | AO101: 0 | AP101: 0 | AQ101: 0 | AR101: 0 | AS101: 0 | AU101: 100 | AV101: 690 | AW101: 4 | AZ101: 418100690 | BA101: 418 | BC101: CHRISTA MCAULIFFE | BD101: 690 | BE101: KING PHILIP | BF101: 2
A102: 420 | B102: 420049010 | C102: BENJAMIN BANNEKER | D102: 0 | E102: 0 | F102: 2 | G102: 4 | H102: 1 | I102: 0 | J102: 0 | K102: 0.2751 | M102: 1 | N102: 0 | O102: 0 | P102: 4 | Q102: 3 | R102: 7 | AA102: 420 | AB102: 420049010 | AC102: BENJAMIN BANNEKER | AD102: 0 | AE102: 0 | AF102: 2 | AG102: 4 | AH102: 1 | AI102: 0 | AJ102: 0 | AK102: 0 | AL102: 1 | AM102: 0 | AN102: 0 | AO102: 3 | AP102: 0 | AQ102: 0 | AR102: 1 | AS102: 0 | AU102: 49 | AV102: 10 | AW102: 3 | AZ102: 420049010 | BA102: 420 | BC102: BENJAMIN BANNEKER | BD102: 10 | BE102: ARLINGTON | BF102: 7
A103: 420 | B103: 420049016 | C103: BENJAMIN BANNEKER | D103: 0 | E103: 0 | F103: 0 | G103: 1 | H103: 1 | I103: 0 | J103: 0 | K103: 0.0786 | M103: 0 | N103: 0 | O103: 0 | P103: 2 | Q103: 8 | R103: 2 | AA103: 420 | AB103: 420049016 | AC103: BENJAMIN BANNEKER | AD103: 0 | AE103: 0 | AF103: 0 | AG103: 1 | AH103: 1 | AI103: 0 | AJ103: 0 | AK103: 0 | AL103: 0 | AM103: 0 | AN103: 0 | AO103: 2 | AP103: 0 | AQ103: 0 | AR103: 0 | AS103: 0 | AU103: 49 | AV103: 16 | AW103: 8 | AZ103: 420049016 | BA103: 420 | BC103: BENJAMIN BANNEKER | BD103: 16 | BE103: ATTLEBORO | BF103: 2
A104: 420 | B104: 420049026 | C104: BENJAMIN BANNEKER | D104: 0 | E104: 0 | F104: 0 | G104: 4 | H104: 0 | I104: 0 | J104: 0 | K104: 0.1572 | M104: 0 | N104: 0 | O104: 0 | P104: 1 | Q104: 3 | R104: 4 | AA104: 420 | AB104: 420049026 | AC104: BENJAMIN BANNEKER | AD104: 0 | AE104: 0 | AF104: 0 | AG104: 4 | AH104: 0 | AI104: 0 | AJ104: 0 | AK104: 0 | AL104: 0 | AM104: 0 | AN104: 0 | AO104: 1 | AP104: 0 | AQ104: 0 | AR104: 0 | AS104: 0 | AU104: 49 | AV104: 26 | AW104: 3 | AZ104: 420049026 | BA104: 420 | BC104: BENJAMIN BANNEKER | BD104: 26 | BE104: BELMONT | BF104: 4
A105: 420 | B105: 420049031 | C105: BENJAMIN BANNEKER | D105: 0 | E105: 0 | F105: 0 | G105: 1 | H105: 0 | I105: 0 | J105: 0 | K105: 0.0393 | M105: 0 | N105: 0 | O105: 0 | P105: 0 | Q105: 5 | R105: 1 | AA105: 420 | AB105: 420049031 | AC105: BENJAMIN BANNEKER | AD105: 0 | AE105: 0 | AF105: 0 | AG105: 1 | AH105: 0 | AI105: 0 | AJ105: 0 | AK105: 0 | AL105: 0 | AM105: 0 | AN105: 0 | AO105: 0 | AP105: 0 | AQ105: 0 | AR105: 0 | AS105: 0 | AU105: 49 | AV105: 31 | AW105: 5 | AZ105: 420049031 | BA105: 420 | BC105: BENJAMIN BANNEKER | BD105: 31 | BE105: BILLERICA | BF105: 1
A106: 420 | B106: 420049035 | C106: BENJAMIN BANNEKER | D106: 3 | E106: 0 | F106: 1 | G106: 17 | H106: 8 | I106: 0 | J106: 0 | K106: 1.0218 | M106: 2 | N106: 0 | O106: 0 | P106: 18 | Q106: 11 | R106: 28 | AA106: 420 | AB106: 420049035 | AC106: BENJAMIN BANNEKER | AD106: 3 | AE106: 0 | AF106: 1 | AG106: 17 | AH106: 8 | AI106: 0 | AJ106: 0 | AK106: 1 | AL106: 1 | AM106: 0 | AN106: 0 | AO106: 16 | AP106: 3 | AQ106: 0 | AR106: 0 | AS106: 0 | AU106: 49 | AV106: 35 | AW106: 11 | AZ106: 420049035 | BA106: 420 | BC106: BENJAMIN BANNEKER | BD106: 35 | BE106: BOSTON | BF106: 29
A107: 420 | B107: 420049044 | C107: BENJAMIN BANNEKER | D107: 0 | E107: 0 | F107: 0 | G107: 7 | H107: 1 | I107: 0 | J107: 0 | K107: 0.3144 | M107: 0 | N107: 0 | O107: 0 | P107: 6 | Q107: 11 | R107: 8 | AA107: 420 | AB107: 420049044 | AC107: BENJAMIN BANNEKER | AD107: 0 | AE107: 0 | AF107: 0 | AG107: 7 | AH107: 1 | AI107: 0 | AJ107: 0 | AK107: 0 | AL107: 0 | AM107: 0 | AN107: 0 | AO107: 6 | AP107: 0 | AQ107: 0 | AR107: 0 | AS107: 0 | AU107: 49 | AV107: 44 | AW107: 11 | AZ107: 420049044 | BA107: 420 | BC107: BENJAMIN BANNEKER | BD107: 44 | BE107: BROCKTON | BF107: 8
A108: 420 | B108: 420049049 | C108: BENJAMIN BANNEKER | D108: 11 | E108: 0 | F108: 30 | G108: 153 | H108: 25 | I108: 0 | J108: 0 | K108: 8.1744 | M108: 17 | N108: 0 | O108: 0 | P108: 171 | Q108: 7 | R108: 214 | AA108: 420 | AB108: 420049049 | AC108: BENJAMIN BANNEKER | AD108: 11 | AE108: 0 | AF108: 30 | AG108: 153 | AH108: 25 | AI108: 0 | AJ108: 0 | AK108: 0 | AL108: 17 | AM108: 0 | AN108: 0 | AO108: 143 | AP108: 9 | AQ108: 0 | AR108: 23 | AS108: 0 | AU108: 49 | AV108: 49 | AW108: 7 | AZ108: 420049049 | BA108: 420 | BC108: BENJAMIN BANNEKER | BD108: 49 | BE108: CAMBRIDGE | BF108: 219
A109: 420 | B109: 420049057 | C109: BENJAMIN BANNEKER | D109: 0 | E109: 0 | F109: 0 | G109: 3 | H109: 0 | I109: 0 | J109: 0 | K109: 0.1179 | M109: 0 | N109: 0 | O109: 0 | P109: 0 | Q109: 12 | R109: 3 | AA109: 420 | AB109: 420049057 | AC109: BENJAMIN BANNEKER | AD109: 0 | AE109: 0 | AF109: 0 | AG109: 3 | AH109: 0 | AI109: 0 | AJ109: 0 | AK109: 0 | AL109: 0 | AM109: 0 | AN109: 0 | AO109: 0 | AP109: 0 | AQ109: 0 | AR109: 0 | AS109: 0 | AU109: 49 | AV109: 57 | AW109: 12 | AZ109: 420049057 | BA109: 420 | BC109: BENJAMIN BANNEKER | BD109: 57 | BE109: CHELSEA | BF109: 3
A110: 420 | B110: 420049093 | C110: BENJAMIN BANNEKER | D110: 0 | E110: 0 | F110: 4 | G110: 5 | H110: 3 | I110: 0 | J110: 0 | K110: 0.4716 | M110: 1 | N110: 0 | O110: 0 | P110: 5 | Q110: 11 | R110: 12 | AA110: 420 | AB110: 420049093 | AC110: BENJAMIN BANNEKER | AD110: 0 | AE110: 0 | AF110: 4 | AG110: 5 | AH110: 3 | AI110: 0 | AJ110: 0 | AK110: 0 | AL110: 1 | AM110: 0 | AN110: 0 | AO110: 3 | AP110: 0 | AQ110: 0 | AR110: 2 | AS110: 0 | AU110: 49 | AV110: 93 | AW110: 11 | AZ110: 420049093 | BA110: 420 | BC110: BENJAMIN BANNEKER | BD110: 93 | BE110: EVERETT | BF110: 12
A111: 420 | B111: 420049097 | C111: BENJAMIN BANNEKER | D111: 0 | E111: 0 | F111: 1 | G111: 0 | H111: 0 | I111: 0 | J111: 0 | K111: 0.0393 | M111: 0 | N111: 0 | O111: 0 | P111: 1 | Q111: 11 | R111: 1 | AA111: 420 | AB111: 420049097 | AC111: BENJAMIN BANNEKER | AD111: 0 | AE111: 0 | AF111: 1 | AG111: 0 | AH111: 0 | AI111: 0 | AJ111: 0 | AK111: 0 | AL111: 0 | AM111: 0 | AN111: 0 | AO111: 0 | AP111: 0 | AQ111: 0 | AR111: 1 | AS111: 0 | AU111: 49 | AV111: 97 | AW111: 11 | AZ111: 420049097 | BA111: 420 | BC111: BENJAMIN BANNEKER | BD111: 97 | BE111: FITCHBURG | BF111: 1
A112: 420 | B112: 420049128 | C112: BENJAMIN BANNEKER | D112: 0 | E112: 0 | F112: 0 | G112: 1 | H112: 0 | I112: 0 | J112: 0 | K112: 0.0393 | M112: 0 | N112: 0 | O112: 0 | P112: 1 | Q112: 10 | R112: 1 | AA112: 420 | AB112: 420049128 | AC112: BENJAMIN BANNEKER | AD112: 0 | AE112: 0 | AF112: 0 | AG112: 1 | AH112: 0 | AI112: 0 | AJ112: 0 | AK112: 0 | AL112: 0 | AM112: 0 | AN112: 0 | AO112: 1 | AP112: 0 | AQ112: 0 | AR112: 0 | AS112: 0 | AU112: 49 | AV112: 128 | AW112: 10 | AZ112: 420049128 | BA112: 420 | BC112: BENJAMIN BANNEKER | BD112: 128 | BE112: HAVERHILL | BF112: 1
A113: 420 | B113: 420049153 | C113: BENJAMIN BANNEKER | D113: 0 | E113: 0 | F113: 1 | G113: 2 | H113: 0 | I113: 0 | J113: 0 | K113: 0.1179 | M113: 0 | N113: 0 | O113: 0 | P113: 1 | Q113: 10 | R113: 3 | AA113: 420 | AB113: 420049153 | AC113: BENJAMIN BANNEKER | AD113: 0 | AE113: 0 | AF113: 1 | AG113: 2 | AH113: 0 | AI113: 0 | AJ113: 0 | AK113: 0 | AL113: 0 | AM113: 0 | AN113: 0 | AO113: 1 | AP113: 0 | AQ113: 0 | AR113: 0 | AS113: 0 | AU113: 49 | AV113: 153 | AW113: 10 | AZ113: 420049153 | BA113: 420 | BC113: BENJAMIN BANNEKER | BD113: 153 | BE113: LEOMINSTER | BF113: 3
A114: 420 | B114: 420049155 | C114: BENJAMIN BANNEKER | D114: 1 | E114: 0 | F114: 0 | G114: 0 | H114: 0 | I114: 0 | J114: 0 | K114: 0 | M114: 0 | N114: 0 | O114: 0 | P114: 1 | Q114: 2 | R114: 1 | AA114: 420 | AB114: 420049155 | AC114: BENJAMIN BANNEKER | AD114: 1 | AE114: 0 | AF114: 0 | AG114: 0 | AH114: 0 | AI114: 0 | AJ114: 0 | AK114: 0 | AL114: 0 | AM114: 0 | AN114: 0 | AO114: 0 | AP114: 1 | AQ114: 0 | AR114: 0 | AS114: 0 | AU114: 49 | AV114: 155 | AW114: 2 | AZ114: 420049155 | BA114: 420 | BC114: BENJAMIN BANNEKER | BD114: 155 | BE114: LEXINGTON | BF114: 1
A115: 420 | B115: 420049163 | C115: BENJAMIN BANNEKER | D115: 0 | E115: 0 | F115: 0 | G115: 1 | H115: 0 | I115: 0 | J115: 0 | K115: 0.0393 | M115: 0 | N115: 0 | O115: 0 | P115: 0 | Q115: 11 | R115: 1 | AA115: 420 | AB115: 420049163 | AC115: BENJAMIN BANNEKER | AD115: 0 | AE115: 0 | AF115: 0 | AG115: 1 | AH115: 0 | AI115: 0 | AJ115: 0 | AK115: 0 | AL115: 0 | AM115: 0 | AN115: 0 | AO115: 0 | AP115: 0 | AQ115: 0 | AR115: 0 | AS115: 0 | AU115: 49 | AV115: 163 | AW115: 11 | AZ115: 420049163 | BA115: 420 | BC115: BENJAMIN BANNEKER | BD115: 163 | BE115: LYNN | BF115: 1
A116: 420 | B116: 420049165 | C116: BENJAMIN BANNEKER | D116: 1 | E116: 0 | F116: 1 | G116: 8 | H116: 1 | I116: 0 | J116: 0 | K116: 0.393 | M116: 0 | N116: 0 | O116: 0 | P116: 5 | Q116: 10 | R116: 11 | AA116: 420 | AB116: 420049165 | AC116: BENJAMIN BANNEKER | AD116: 1 | AE116: 0 | AF116: 1 | AG116: 8 | AH116: 1 | AI116: 0 | AJ116: 0 | AK116: 0 | AL116: 0 | AM116: 0 | AN116: 0 | AO116: 5 | AP116: 0 | AQ116: 0 | AR116: 0 | AS116: 0 | AU116: 49 | AV116: 165 | AW116: 10 | AZ116: 420049165 | BA116: 420 | BC116: BENJAMIN BANNEKER | BD116: 165 | BE116: MALDEN | BF116: 11
A117: 420 | B117: 420049174 | C117: BENJAMIN BANNEKER | D117: 0 | E117: 0 | F117: 0 | G117: 2 | H117: 0 | I117: 0 | J117: 0 | K117: 0.0786 | M117: 0 | N117: 0 | O117: 0 | P117: 0 | Q117: 5 | R117: 2 | AA117: 420 | AB117: 420049174 | AC117: BENJAMIN BANNEKER | AD117: 0 | AE117: 0 | AF117: 0 | AG117: 2 | AH117: 0 | AI117: 0 | AJ117: 0 | AK117: 0 | AL117: 0 | AM117: 0 | AN117: 0 | AO117: 0 | AP117: 0 | AQ117: 0 | AR117: 0 | AS117: 0 | AU117: 49 | AV117: 174 | AW117: 5 | AZ117: 420049174 | BA117: 420 | BC117: BENJAMIN BANNEKER | BD117: 174 | BE117: MAYNARD | BF117: 2
A118: 420 | B118: 420049176 | C118: BENJAMIN BANNEKER | D118: 0 | E118: 0 | F118: 3 | G118: 9 | H118: 1 | I118: 0 | J118: 0 | K118: 0.5109 | M118: 1 | N118: 0 | O118: 0 | P118: 3 | Q118: 8 | R118: 13 | AA118: 420 | AB118: 420049176 | AC118: BENJAMIN BANNEKER | AD118: 0 | AE118: 0 | AF118: 3 | AG118: 9 | AH118: 1 | AI118: 0 | AJ118: 0 | AK118: 0 | AL118: 1 | AM118: 0 | AN118: 0 | AO118: 3 | AP118: 0 | AQ118: 0 | AR118: 0 | AS118: 0 | AU118: 49 | AV118: 176 | AW118: 8 | AZ118: 420049176 | BA118: 420 | BC118: BENJAMIN BANNEKER | BD118: 176 | BE118: MEDFORD | BF118: 13
A119: 420 | B119: 420049181 | C119: BENJAMIN BANNEKER | D119: 0 | E119: 0 | F119: 0 | G119: 1 | H119: 0 | I119: 0 | J119: 0 | K119: 0.0393 | M119: 0 | N119: 0 | O119: 0 | P119: 1 | Q119: 10 | R119: 1 | AA119: 420 | AB119: 420049181 | AC119: BENJAMIN BANNEKER | AD119: 0 | AE119: 0 | AF119: 0 | AG119: 1 | AH119: 0 | AI119: 0 | AJ119: 0 | AK119: 0 | AL119: 0 | AM119: 0 | AN119: 0 | AO119: 1 | AP119: 0 | AQ119: 0 | AR119: 0 | AS119: 0 | AU119: 49 | AV119: 181 | AW119: 10 | AZ119: 420049181 | BA119: 420 | BC119: BENJAMIN BANNEKER | BD119: 181 | BE119: METHUEN | BF119: 1
A120: 420 | B120: 420049199 | C120: BENJAMIN BANNEKER | D120: 0 | E120: 0 | F120: 0 | G120: 1 | H120: 0 | I120: 0 | J120: 0 | K120: 0.0393 | M120: 0 | N120: 0 | O120: 0 | P120: 1 | Q120: 2 | R120: 1 | AA120: 420 | AB120: 420049199 | AC120: BENJAMIN BANNEKER | AD120: 0 | AE120: 0 | AF120: 0 | AG120: 1 | AH120: 0 | AI120: 0 | AJ120: 0 | AK120: 0 | AL120: 0 | AM120: 0 | AN120: 0 | AO120: 1 | AP120: 0 | AQ120: 0 | AR120: 0 | AS120: 0 | AU120: 49 | AV120: 199 | AW120: 2 | AZ120: 420049199 | BA120: 420 | BC120: BENJAMIN BANNEKER | BD120: 199 | BE120: NEEDHAM | BF120: 1
A121: 420 | B121: 420049207 | C121: BENJAMIN BANNEKER | D121: 0 | E121: 0 | F121: 0 | G121: 0 | H121: 1 | I121: 0 | J121: 0 | K121: 0.0393 | M121: 0 | N121: 0 | O121: 0 | P121: 0 | Q121: 3 | R121: 1 | AA121: 420 | AB121: 420049207 | AC121: BENJAMIN BANNEKER | AD121: 0 | AE121: 0 | AF121: 0 | AG121: 0 | AH121: 1 | AI121: 0 | AJ121: 0 | AK121: 0 | AL121: 0 | AM121: 0 | AN121: 0 | AO121: 0 | AP121: 0 | AQ121: 0 | AR121: 0 | AS121: 0 | AU121: 49 | AV121: 207 | AW121: 3 | AZ121: 420049207 | BA121: 420 | BC121: BENJAMIN BANNEKER | BD121: 207 | BE121: NEWTON | BF121: 1
A122: 420 | B122: 420049243 | C122: BENJAMIN BANNEKER | D122: 0 | E122: 0 | F122: 1 | G122: 0 | H122: 0 | I122: 0 | J122: 0 | K122: 0.0393 | M122: 0 | N122: 0 | O122: 0 | P122: 0 | Q122: 9 | R122: 1 | AA122: 420 | AB122: 420049243 | AC122: BENJAMIN BANNEKER | AD122: 0 | AE122: 0 | AF122: 1 | AG122: 0 | AH122: 0 | AI122: 0 | AJ122: 0 | AK122: 0 | AL122: 0 | AM122: 0 | AN122: 0 | AO122: 0 | AP122: 0 | AQ122: 0 | AR122: 0 | AS122: 0 | AU122: 49 | AV122: 243 | AW122: 9 | AZ122: 420049243 | BA122: 420 | BC122: BENJAMIN BANNEKER | BD122: 243 | BE122: QUINCY | BF122: 1
A123: 420 | B123: 420049248 | C123: BENJAMIN BANNEKER | D123: 0 | E123: 0 | F123: 1 | G123: 6 | H123: 0 | I123: 0 | J123: 0 | K123: 0.2751 | M123: 0 | N123: 0 | O123: 0 | P123: 2 | Q123: 11 | R123: 7 | AA123: 420 | AB123: 420049248 | AC123: BENJAMIN BANNEKER | AD123: 0 | AE123: 0 | AF123: 1 | AG123: 6 | AH123: 0 | AI123: 0 | AJ123: 0 | AK123: 0 | AL123: 0 | AM123: 0 | AN123: 0 | AO123: 1 | AP123: 0 | AQ123: 0 | AR123: 1 | AS123: 0 | AU123: 49 | AV123: 248 | AW123: 11 | AZ123: 420049248 | BA123: 420 | BC123: BENJAMIN BANNEKER | BD123: 248 | BE123: REVERE | BF123: 7
A124: 420 | B124: 420049262 | C124: BENJAMIN BANNEKER | D124: 0 | E124: 0 | F124: 0 | G124: 4 | H124: 0 | I124: 0 | J124: 0 | K124: 0.1572 | M124: 0 | N124: 0 | O124: 0 | P124: 1 | Q124: 9 | R124: 4 | AA124: 420 | AB124: 420049262 | AC124: BENJAMIN BANNEKER | AD124: 0 | AE124: 0 | AF124: 0 | AG124: 4 | AH124: 0 | AI124: 0 | AJ124: 0 | AK124: 0 | AL124: 0 | AM124: 0 | AN124: 0 | AO124: 1 | AP124: 0 | AQ124: 0 | AR124: 0 | AS124: 0 | AU124: 49 | AV124: 262 | AW124: 9 | AZ124: 420049262 | BA124: 420 | BC124: BENJAMIN BANNEKER | BD124: 262 | BE124: SAUGUS | BF124: 4
A125: 420 | B125: 420049284 | C125: BENJAMIN BANNEKER | D125: 0 | E125: 0 | F125: 0 | G125: 2 | H125: 0 | I125: 0 | J125: 0 | K125: 0.0786 | M125: 0 | N125: 0 | O125: 0 | P125: 2 | Q125: 5 | R125: 2 | AA125: 420 | AB125: 420049284 | AC125: BENJAMIN BANNEKER | AD125: 0 | AE125: 0 | AF125: 0 | AG125: 2 | AH125: 0 | AI125: 0 | AJ125: 0 | AK125: 0 | AL125: 0 | AM125: 0 | AN125: 0 | AO125: 2 | AP125: 0 | AQ125: 0 | AR125: 0 | AS125: 0 | AU125: 49 | AV125: 284 | AW125: 5 | AZ125: 420049284 | BA125: 420 | BC125: BENJAMIN BANNEKER | BD125: 284 | BE125: STONEHAM | BF125: 2
A126: 420 | B126: 420049295 | C126: BENJAMIN BANNEKER | D126: 0 | E126: 0 | F126: 1 | G126: 0 | H126: 1 | I126: 0 | J126: 0 | K126: 0.0786 | M126: 0 | N126: 0 | O126: 0 | P126: 2 | Q126: 5 | R126: 2 | AA126: 420 | AB126: 420049295 | AC126: BENJAMIN BANNEKER | AD126: 0 | AE126: 0 | AF126: 1 | AG126: 0 | AH126: 1 | AI126: 0 | AJ126: 0 | AK126: 0 | AL126: 0 | AM126: 0 | AN126: 0 | AO126: 1 | AP126: 0 | AQ126: 0 | AR126: 1 | AS126: 0 | AU126: 49 | AV126: 295 | AW126: 5 | AZ126: 420049295 | BA126: 420 | BC126: BENJAMIN BANNEKER | BD126: 295 | BE126: TEWKSBURY | BF126: 2
A127: 420 | B127: 420049305 | C127: BENJAMIN BANNEKER | D127: 0 | E127: 0 | F127: 0 | G127: 1 | H127: 0 | I127: 0 | J127: 0 | K127: 0.0393 | M127: 0 | N127: 0 | O127: 0 | P127: 0 | Q127: 4 | R127: 1 | AA127: 420 | AB127: 420049305 | AC127: BENJAMIN BANNEKER | AD127: 0 | AE127: 0 | AF127: 0 | AG127: 1 | AH127: 0 | AI127: 0 | AJ127: 0 | AK127: 0 | AL127: 0 | AM127: 0 | AN127: 0 | AO127: 0 | AP127: 0 | AQ127: 0 | AR127: 0 | AS127: 0 | AU127: 49 | AV127: 305 | AW127: 4 | AZ127: 420049305 | BA127: 420 | BC127: BENJAMIN BANNEKER | BD127: 305 | BE127: WAKEFIELD | BF127: 1
A128: 420 | B128: 420049344 | C128: BENJAMIN BANNEKER | D128: 0 | E128: 0 | F128: 0 | G128: 1 | H128: 0 | I128: 0 | J128: 0 | K128: 0.0393 | M128: 0 | N128: 0 | O128: 0 | P128: 1 | Q128: 2 | R128: 1 | AA128: 420 | AB128: 420049344 | AC128: BENJAMIN BANNEKER | AD128: 0 | AE128: 0 | AF128: 0 | AG128: 1 | AH128: 0 | AI128: 0 | AJ128: 0 | AK128: 0 | AL128: 0 | AM128: 0 | AN128: 0 | AO128: 1 | AP128: 0 | AQ128: 0 | AR128: 0 | AS128: 0 | AU128: 49 | AV128: 344 | AW128: 2 | AZ128: 420049344 | BA128: 420 | BC128: BENJAMIN BANNEKER | BD128: 344 | BE128: WINCHESTER | BF128: 1
A129: 420 | B129: 420049346 | C129: BENJAMIN BANNEKER | D129: 0 | E129: 0 | F129: 1 | G129: 0 | H129: 0 | I129: 0 | J129: 0 | K129: 0.0393 | M129: 0 | N129: 0 | O129: 0 | P129: 0 | Q129: 8 | R129: 1 | AA129: 420 | AB129: 420049346 | AC129: BENJAMIN BANNEKER | AD129: 0 | AE129: 0 | AF129: 1 | AG129: 0 | AH129: 0 | AI129: 0 | AJ129: 0 | AK129: 0 | AL129: 0 | AM129: 0 | AN129: 0 | AO129: 0 | AP129: 0 | AQ129: 0 | AR129: 0 | AS129: 0 | AU129: 49 | AV129: 346 | AW129: 8 | AZ129: 420049346 | BA129: 420 | BC129: BENJAMIN BANNEKER | BD129: 346 | BE129: WINTHROP | BF129: 1
A130: 420 | B130: 420049347 | C130: BENJAMIN BANNEKER | D130: 0 | E130: 0 | F130: 1 | G130: 2 | H130: 0 | I130: 0 | J130: 0 | K130: 0.1179 | M130: 0 | N130: 0 | O130: 0 | P130: 3 | Q130: 8 | R130: 3 | AA130: 420 | AB130: 420049347 | AC130: BENJAMIN BANNEKER | AD130: 0 | AE130: 0 | AF130: 1 | AG130: 2 | AH130: 0 | AI130: 0 | AJ130: 0 | AK130: 0 | AL130: 0 | AM130: 0 | AN130: 0 | AO130: 2 | AP130: 0 | AQ130: 0 | AR130: 1 | AS130: 0 | AU130: 49 | AV130: 347 | AW130: 8 | AZ130: 420049347 | BA130: 420 | BC130: BENJAMIN BANNEKER | BD130: 347 | BE130: WOBURN | BF130: 3
A131: 420 | B131: 420049616 | C131: BENJAMIN BANNEKER | D131: 0 | E131: 0 | F131: 1 | G131: 1 | H131: 0 | I131: 0 | J131: 0 | K131: 0.0786 | M131: 0 | N131: 0 | O131: 0 | P131: 2 | Q131: 7 | R131: 2 | AA131: 420 | AB131: 420049616 | AC131: BENJAMIN BANNEKER | AD131: 0 | AE131: 0 | AF131: 1 | AG131: 1 | AH131: 0 | AI131: 0 | AJ131: 0 | AK131: 0 | AL131: 0 | AM131: 0 | AN131: 0 | AO131: 1 | AP131: 0 | AQ131: 0 | AR131: 1 | AS131: 0 | AU131: 49 | AV131: 616 | AW131: 7 | AZ131: 420049616 | BA131: 420 | BC131: BENJAMIN BANNEKER | BD131: 616 | BE131: AYER SHIRLEY | BF131: 2
A132: 420 | B132: 420049625 | C132: BENJAMIN BANNEKER | D132: 0 | E132: 0 | F132: 0 | G132: 1 | H132: 0 | I132: 0 | J132: 0 | K132: 0.0393 | M132: 0 | N132: 0 | O132: 0 | P132: 0 | Q132: 6 | R132: 1 | AA132: 420 | AB132: 420049625 | AC132: BENJAMIN BANNEKER | AD132: 0 | AE132: 0 | AF132: 0 | AG132: 1 | AH132: 0 | AI132: 0 | AJ132: 0 | AK132: 0 | AL132: 0 | AM132: 0 | AN132: 0 | AO132: 0 | AP132: 0 | AQ132: 0 | AR132: 0 | AS132: 0 | AU132: 49 | AV132: 625 | AW132: 6 | AZ132: 420049625 | BA132: 420 | BC132: BENJAMIN BANNEKER | BD132: 625 | BE132: BRIDGEWATER RAYNHAM | BF132: 1
A133: 428 | B133: 428035016 | C133: BROOKE | D133: 0 | E133: 0 | F133: 0 | G133: 0 | H133: 2 | I133: 1 | J133: 0 | K133: 0.1179 | M133: 0 | N133: 0 | O133: 0 | P133: 0 | Q133: 8 | R133: 3 | AA133: 428 | AB133: 428035016 | AC133: BROOKE | AD133: 0 | AE133: 0 | AF133: 0 | AG133: 0 | AH133: 2 | AI133: 1 | AJ133: 0 | AK133: 0 | AL133: 0 | AM133: 0 | AN133: 0 | AO133: 0 | AP133: 0 | AQ133: 0 | AR133: 0 | AS133: 0 | AU133: 35 | AV133: 16 | AW133: 8 | AZ133: 428035016 | BA133: 428 | BC133: BROOKE | BD133: 16 | BE133: ATTLEBORO | BF133: 3
A134: 428 | B134: 428035018 | C134: BROOKE | D134: 0 | E134: 0 | F134: 1 | G134: 0 | H134: 0 | I134: 0 | J134: 0 | K134: 0.0393 | M134: 0 | N134: 0 | O134: 0 | P134: 1 | Q134: 9 | R134: 1 | AA134: 428 | AB134: 428035018 | AC134: BROOKE | AD134: 0 | AE134: 0 | AF134: 1 | AG134: 0 | AH134: 0 | AI134: 0 | AJ134: 0 | AK134: 0 | AL134: 0 | AM134: 0 | AN134: 0 | AO134: 0 | AP134: 0 | AQ134: 0 | AR134: 1 | AS134: 0 | AU134: 35 | AV134: 18 | AW134: 9 | AZ134: 428035018 | BA134: 428 | BC134: BROOKE | BD134: 18 | BE134: AVON | BF134: 1
A135: 428 | B135: 428035035 | C135: BROOKE | D135: 0 | E135: 0 | F135: 169 | G135: 809 | H135: 456 | I135: 431 | J135: 0 | K135: 73.2945 | M135: 134 | N135: 25 | O135: 12 | P135: 1337 | Q135: 11 | R135: 1865 | AA135: 428 | AB135: 428035035 | AC135: BROOKE | AD135: 0 | AE135: 0 | AF135: 169 | AG135: 809 | AH135: 456 | AI135: 431 | AJ135: 0 | AK135: 0 | AL135: 134 | AM135: 25 | AN135: 12 | AO135: 917 | AP135: 0 | AQ135: 0 | AR135: 126 | AS135: 294 | AU135: 35 | AV135: 35 | AW135: 11 | AZ135: 428035035 | BA135: 428 | BC135: BROOKE | BD135: 35 | BE135: BOSTON | BF135: 1865
A136: 428 | B136: 428035044 | C136: BROOKE | D136: 0 | E136: 0 | F136: 0 | G136: 12 | H136: 6 | I136: 13 | J136: 0 | K136: 1.2183 | M136: 2 | N136: 1 | O136: 1 | P136: 18 | Q136: 11 | R136: 31 | AA136: 428 | AB136: 428035044 | AC136: BROOKE | AD136: 0 | AE136: 0 | AF136: 0 | AG136: 12 | AH136: 6 | AI136: 13 | AJ136: 0 | AK136: 0 | AL136: 2 | AM136: 1 | AN136: 1 | AO136: 11 | AP136: 0 | AQ136: 0 | AR136: 0 | AS136: 7 | AU136: 35 | AV136: 44 | AW136: 11 | AZ136: 428035044 | BA136: 428 | BC136: BROOKE | BD136: 44 | BE136: BROCKTON | BF136: 31
A137: 428 | B137: 428035057 | C137: BROOKE | D137: 0 | E137: 0 | F137: 18 | G137: 87 | H137: 46 | I137: 28 | J137: 0 | K137: 7.0347 | M137: 32 | N137: 1 | O137: 0 | P137: 130 | Q137: 12 | R137: 179 | AA137: 428 | AB137: 428035057 | AC137: BROOKE | AD137: 0 | AE137: 0 | AF137: 18 | AG137: 87 | AH137: 46 | AI137: 28 | AJ137: 0 | AK137: 0 | AL137: 32 | AM137: 1 | AN137: 0 | AO137: 98 | AP137: 0 | AQ137: 0 | AR137: 14 | AS137: 18 | AU137: 35 | AV137: 57 | AW137: 12 | AZ137: 428035057 | BA137: 428 | BC137: BROOKE | BD137: 57 | BE137: CHELSEA | BF137: 179
A138: 428 | B138: 428035073 | C138: BROOKE | D138: 0 | E138: 0 | F138: 0 | G138: 7 | H138: 4 | I138: 6 | J138: 0 | K138: 0.6681 | M138: 0 | N138: 0 | O138: 0 | P138: 11 | Q138: 6 | R138: 17 | AA138: 428 | AB138: 428035073 | AC138: BROOKE | AD138: 0 | AE138: 0 | AF138: 0 | AG138: 7 | AH138: 4 | AI138: 6 | AJ138: 0 | AK138: 0 | AL138: 0 | AM138: 0 | AN138: 0 | AO138: 8 | AP138: 0 | AQ138: 0 | AR138: 0 | AS138: 3 | AU138: 35 | AV138: 73 | AW138: 6 | AZ138: 428035073 | BA138: 428 | BC138: BROOKE | BD138: 73 | BE138: =VLOOKUP(BD138,distinfo,2,FALSE) -> DEDHAM | BF138: 17
A139: 428 | B139: 428035093 | C139: BROOKE | D139: =ROUND(AD139,0) -> 0 | E139: =ROUND(AE139,0) -> 0 | F139: =ROUND(AF139,0) -> 1 | G139: =ROUND(AG139,0) -> 4 | H139: =ROUND(AH139,0) -> 1 | I139: =ROUND(AI139,0)-J139 -> 1 | J139: =ROUND(AJ139,0) -> 0 | K139: =ROUND($K$2*(SUM(AF139:AI139)+(AE139*0.5))+$K$5*AJ139,4) -> 0.2751 | M139: =ROUND(AL139+(AK139*0.5),0) -> 1 | N139: =ROUND(AM139,0) -> 0 | O139: =ROUND(AN139,0) -> 0 | P139: =ROUND(((AP139+AQ139)*0.5)+AO139+AR139+AS139,0) -> 7 | Q139: =AW139 -> 11 | R139: =SUM(F139:I139)+ROUND(D139*0.5,0)+ROUND(J139,0) -> 7 | AA139: 428 | AB139: 428035093 | AC139: BROOKE | AD139: 0 | AE139: 0 | AF139: 1 | AG139: 4 | AH139: 1 | AI139: 1 | AJ139: 0 | AK139: 0 | AL139: 1 | AM139: 0 | AN139: 0 | AO139: 5 | AP139: 0 | AQ139: 0 | AR139: 1 | AS139: 1 | AU139: 35 | AV139: 93 | AW139: 11 | AZ139: =AB139 -> 428035093 | BA139: =AA139 -> 428 | BC139: =AC139 -> BROOKE | BD139: =AV139 -> 93 | BE139: EVERETT | BF139: =SUM(AD139:AJ139) -> 7
A140: 428 | B140: 428035128 | C140: BROOKE | D140: 0 | E140: 0 | F140: 0 | G140: 1 | H140: 0 | I140: 0 | J140: 0 | K140: 0.0393 | M140: 0 | N140: 0 | O140: 0 | P140: 0 | Q140: 10 | R140: 1 | AA140: 428 | AB140: 428035128 | AC140: BROOKE | AD140: 0 | AE140: 0 | AF140: 0 | AG140: 1 | AH140: 0 | AI140: 0 | AJ140: 0 | AK140: 0 | AL140: 0 | AM140: 0 | AN140: 0 | AO140: 0 | AP140: 0 | AQ140: 0 | AR140: 0 | AS140: 0 | AU140: 35 | AV140: 128 | AW140: 10 | AZ140: 428035128 | BA140: 428 | BC140: BROOKE | BD140: 128 | BE140: HAVERHILL | BF140: 1
A141: 428 | B141: 428035133 | C141: BROOKE | D141: 0 | E141: 0 | F141: 0 | G141: 0 | H141: 1 | I141: 1 | J141: 0 | K141: 0.0786 | M141: 0 | N141: 0 | O141: 0 | P141: 1 | Q141: 9 | R141: 2 | AA141: 428 | AB141: 428035133 | AC141: BROOKE | AD141: 0 | AE141: 0 | AF141: 0 | AG141: 0 | AH141: 1 | AI141: 1 | AJ141: 0 | AK141: 0 | AL141: 0 | AM141: 0 | AN141: 0 | AO141: 1 | AP141: 0 | AQ141: 0 | AR141: 0 | AS141: 0 | AU141: 35 | AV141: 133 | AW141: 9 | AZ141: 428035133 | BA141: 428 | BC141: BROOKE | BD141: 133 | BE141: HOLBROOK | BF141: 2
A142: 428 | B142: 428035163 | C142: BROOKE | D142: 0 | E142: 0 | F142: 2 | G142: 6 | H142: 2 | I142: 4 | J142: 0 | K142: 0.5502 | M142: 0 | N142: 0 | O142: 0 | P142: 10 | Q142: 11 | R142: 14 | AA142: 428 | AB142: 428035163 | AC142: BROOKE | AD142: 0 | AE142: 0 | AF142: 2 | AG142: 6 | AH142: 2 | AI142: 4 | AJ142: 0 | AK142: 0 | AL142: 0 | AM142: 0 | AN142: 0 | AO142: 6 | AP142: 0 | AQ142: 0 | AR142: 1 | AS142: 3 | AU142: 35 | AV142: 163 | AW142: 11 | AZ142: 428035163 | BA142: 428 | BC142: BROOKE | BD142: 163 | BE142: LYNN | BF142: 14
A143: 428 | B143: 428035165 | C143: BROOKE | D143: 0 | E143: 0 | F143: 0 | G143: 3 | H143: 5 | I143: 0 | J143: 0 | K143: 0.3144 | M143: 0 | N143: 0 | O143: 0 | P143: 8 | Q143: 10 | R143: 8 | AA143: 428 | AB143: 428035165 | AC143: BROOKE | AD143: 0 | AE143: 0 | AF143: 0 | AG143: 3 | AH143: 5 | AI143: 0 | AJ143: 0 | AK143: 0 | AL143: 0 | AM143: 0 | AN143: 0 | AO143: 8 | AP143: 0 | AQ143: 0 | AR143: 0 | AS143: 0 | AU143: 35 | AV143: 165 | AW143: 10 | AZ143: 428035165 | BA143: 428 | BC143: BROOKE | BD143: 165 | BE143: MALDEN | BF143: 8
A144: 428 | B144: 428035220 | C144: BROOKE | D144: 0 | E144: 0 | F144: 0 | G144: 2 | H144: 4 | I144: 3 | J144: 0 | K144: 0.3537 | M144: 2 | N144: 0 | O144: 0 | P144: 7 | Q144: 8 | R144: 9 | AA144: 428 | AB144: 428035220 | AC144: BROOKE | AD144: 0 | AE144: 0 | AF144: 0 | AG144: 2 | AH144: 4 | AI144: 3 | AJ144: 0 | AK144: 0 | AL144: 2 | AM144: 0 | AN144: 0 | AO144: 5 | AP144: 0 | AQ144: 0 | AR144: 0 | AS144: 2 | AU144: 35 | AV144: 220 | AW144: 8 | AZ144: 428035220 | BA144: 428 | BC144: BROOKE | BD144: 220 | BE144: NORWOOD | BF144: 9
A145: 428 | B145: 428035243 | C145: BROOKE | D145: 0 | E145: 0 | F145: 1 | G145: 1 | H145: 0 | I145: 1 | J145: 0 | K145: 0.1179 | M145: 0 | N145: 0 | O145: 0 | P145: 3 | Q145: 9 | R145: 3 | AA145: 428 | AB145: 428035243 | AC145: BROOKE | AD145: 0 | AE145: 0 | AF145: 1 | AG145: 1 | AH145: 0 | AI145: 1 | AJ145: 0 | AK145: 0 | AL145: 0 | AM145: 0 | AN145: 0 | AO145: 1 | AP145: 0 | AQ145: 0 | AR145: 1 | AS145: 1 | AU145: 35 | AV145: 243 | AW145: 9 | AZ145: 428035243 | BA145: 428 | BC145: BROOKE | BD145: 243 | BE145: QUINCY | BF145: 3
A146: 428 | B146: 428035244 | C146: BROOKE | D146: 0 | E146: 0 | F146: 0 | G146: 7 | H146: 7 | I146: 10 | J146: 0 | K146: 0.9432 | M146: 1 | N146: 0 | O146: 0 | P146: 7 | Q146: 10 | R146: 24 | AA146: 428 | AB146: 428035244 | AC146: BROOKE | AD146: 0 | AE146: 0 | AF146: 0 | AG146: 7 | AH146: 7 | AI146: 10 | AJ146: 0 | AK146: 0 | AL146: 1 | AM146: 0 | AN146: 0 | AO146: 4 | AP146: 0 | AQ146: 0 | AR146: 0 | AS146: 3 | AU146: 35 | AV146: 244 | AW146: 10 | AZ146: 428035244 | BA146: 428 | BC146: BROOKE | BD146: 244 | BE146: RANDOLPH | BF146: 24
A147: 428 | B147: 428035248 | C147: BROOKE | D147: 0 | E147: 0 | F147: 1 | G147: 10 | H147: 5 | I147: 5 | J147: 0 | K147: 0.8253 | M147: 5 | N147: 0 | O147: 0 | P147: 12 | Q147: 11 | R147: 21 | AA147: 428 | AB147: 428035248 | AC147: BROOKE | AD147: 0 | AE147: 0 | AF147: 1 | AG147: 10 | AH147: 5 | AI147: 5 | AJ147: 0 | AK147: 0 | AL147: 5 | AM147: 0 | AN147: 0 | AO147: 10 | AP147: 0 | AQ147: 0 | AR147: 0 | AS147: 2 | AU147: 35 | AV147: 248 | AW147: 11 | AZ147: 428035248 | BA147: 428 | BC147: BROOKE | BD147: 248 | BE147: REVERE | BF147: 21
A148: 428 | B148: 428035258 | C148: BROOKE | D148: 0 | E148: 0 | F148: 0 | G148: 1 | H148: 0 | I148: 1 | J148: 0 | K148: 0.0786 | M148: 0 | N148: 0 | O148: 0 | P148: 2 | Q148: 10 | R148: 2 | AA148: 428 | AB148: 428035258 | AC148: BROOKE | AD148: 0 | AE148: 0 | AF148: 0 | AG148: 1 | AH148: 0 | AI148: 1 | AJ148: 0 | AK148: 0 | AL148: 0 | AM148: 0 | AN148: 0 | AO148: 1 | AP148: 0 | AQ148: 0 | AR148: 0 | AS148: 1 | AU148: 35 | AV148: 258 | AW148: 10 | AZ148: 428035258 | BA148: 428 | BC148: BROOKE | BD148: 258 | BE148: SALEM | BF148: 2
A149: 428 | B149: 428035262 | C149: BROOKE | D149: 0 | E149: 0 | F149: 0 | G149: 1 | H149: 1 | I149: 1 | J149: 0 | K149: 0.1179 | M149: 0 | N149: 0 | O149: 0 | P149: 3 | Q149: 9 | R149: 3 | AA149: 428 | AB149: 428035262 | AC149: BROOKE | AD149: 0 | AE149: 0 | AF149: 0 | AG149: 1 | AH149: 1 | AI149: 1 | AJ149: 0 | AK149: 0 | AL149: 0 | AM149: 0 | AN149: 0 | AO149: 2 | AP149: 0 | AQ149: 0 | AR149: 0 | AS149: 1 | AU149: 35 | AV149: 262 | AW149: 9 | AZ149: 428035262 | BA149: 428 | BC149: BROOKE | BD149: 262 | BE149: SAUGUS | BF149: 3
A150: 428 | B150: 428035285 | C150: BROOKE | D150: 0 | E150: 0 | F150: 0 | G150: 0 | H150: 1 | I150: 1 | J150: 0 | K150: 0.0786 | M150: 0 | N150: 0 | O150: 0 | P150: 0 | Q150: 9 | R150: 2 | AA150: 428 | AB150: 428035285 | AC150: BROOKE | AD150: 0 | AE150: 0 | AF150: 0 | AG150: 0 | AH150: 1 | AI150: 1 | AJ150: 0 | AK150: 0 | AL150: 0 | AM150: 0 | AN150: 0 | AO150: 0 | AP150: 0 | AQ150: 0 | AR150: 0 | AS150: 0 | AU150: 35 | AV150: 285 | AW150: 9 | AZ150: 428035285 | BA150: 428 | BC150: BROOKE | BD150: 285 | BE150: STOUGHTON | BF150: 2
A151: 428 | B151: 428035293 | C151: BROOKE | D151: 0 | E151: 0 | F151: 0 | G151: 0 | H151: 1 | I151: 1 | J151: 0 | K151: 0.0786 | M151: 0 | N151: 0 | O151: 0 | P151: 2 | Q151: 10 | R151: 2 | AA151: 428 | AB151: 428035293 | AC151: BROOKE | AD151: 0 | AE151: 0 | AF151: 0 | AG151: 0 | AH151: 1 | AI151: 1 | AJ151: 0 | AK151: 0 | AL151: 0 | AM151: 0 | AN151: 0 | AO151: 1 | AP151: 0 | AQ151: 0 | AR151: 0 | AS151: 1 | AU151: 35 | AV151: 293 | AW151: 10 | AZ151: 428035293 | BA151: 428 | BC151: BROOKE | BD151: 293 | BE151: TAUNTON | BF151: 2
A152: 428 | B152: 428035314 | C152: BROOKE | D152: 0 | E152: 0 | F152: 0 | G152: 2 | H152: 0 | I152: 0 | J152: 0 | K152: 0.0786 | M152: 0 | N152: 0 | O152: 0 | P152: 0 | Q152: 7 | R152: 2 | AA152: 428 | AB152: 428035314 | AC152: BROOKE | AD152: 0 | AE152: 0 | AF152: 0 | AG152: 2 | AH152: 0 | AI152: 0 | AJ152: 0 | AK152: 0 | AL152: 0 | AM152: 0 | AN152: 0 | AO152: 0 | AP152: 0 | AQ152: 0 | AR152: 0 | AS152: 0 | AU152: 35 | AV152: 314 | AW152: 7 | AZ152: 428035314 | BA152: 428 | BC152: BROOKE | BD152: 314 | BE152: WATERTOWN | BF152: 2
A153: 428 | B153: 428035336 | C153: BROOKE | D153: 0 | E153: 0 | F153: 0 | G153: 1 | H153: 1 | I153: 0 | J153: 0 | K153: 0.0786 | M153: 0 | N153: 0 | O153: 0 | P153: 1 | Q153: 8 | R153: 2 | AA153: 428 | AB153: 428035336 | AC153: BROOKE | AD153: 0 | AE153: 0 | AF153: 0 | AG153: 1 | AH153: 1 | AI153: 0 | AJ153: 0 | AK153: 0 | AL153: 0 | AM153: 0 | AN153: 0 | AO153: 1 | AP153: 0 | AQ153: 0 | AR153: 0 | AS153: 0 | AU153: 35 | AV153: 336 | AW153: 8 | AZ153: 428035336 | BA153: 428 | BC153: BROOKE | BD153: 336 | BE153: WEYMOUTH | BF153: 2
A154: 428 | B154: 428035346 | C154: BROOKE | D154: 0 | E154: 0 | F154: 0 | G154: 5 | H154: 1 | I154: 3 | J154: 0 | K154: 0.3537 | M154: 1 | N154: 0 | O154: 0 | P154: 4 | Q154: 8 | R154: 9 | AA154: 428 | AB154: 428035346 | AC154: BROOKE | AD154: 0 | AE154: 0 | AF154: 0 | AG154: 5 | AH154: 1 | AI154: 3 | AJ154: 0 | AK154: 0 | AL154: 1 | AM154: 0 | AN154: 0 | AO154: 3 | AP154: 0 | AQ154: 0 | AR154: 0 | AS154: 1 | AU154: 35 | AV154: 346 | AW154: 8 | AZ154: 428035346 | BA154: 428 | BC154: BROOKE | BD154: 346 | BE154: WINTHROP | BF154: 9
A155: 428 | B155: 428035350 | C155: BROOKE | D155: 0 | E155: 0 | F155: 0 | G155: 1 | H155: 0 | I155: 0 | J155: 0 | K155: 0.0393 | M155: 0 | N155: 0 | O155: 0 | P155: 1 | Q155: 3 | R155: 1 | AA155: 428 | AB155: 428035350 | AC155: BROOKE | AD155: 0 | AE155: 0 | AF155: 0 | AG155: 1 | AH155: 0 | AI155: 0 | AJ155: 0 | AK155: 0 | AL155: 0 | AM155: 0 | AN155: 0 | AO155: 1 | AP155: 0 | AQ155: 0 | AR155: 0 | AS155: 0 | AU155: 35 | AV155: 350 | AW155: 3 | AZ155: 428035350 | BA155: 428 | BC155: BROOKE | BD155: 350 | BE155: WRENTHAM | BF155: 1
A156: 429 | B156: 429163030 | C156: KIPP ACADEMY LYNN | D156: 0 | E156: 0 | F156: 0 | G156: 0 | H156: 0 | I156: 2 | J156: 0 | K156: 0.0786 | M156: 0 | N156: 0 | O156: 0 | P156: 2 | Q156: 7 | R156: 2 | AA156: 429 | AB156: 429163030 | AC156: KIPP ACADEMY LYNN | AD156: 0 | AE156: 0 | AF156: 0 | AG156: 0 | AH156: 0 | AI156: 2 | AJ156: 0 | AK156: 0 | AL156: 0 | AM156: 0 | AN156: 0 | AO156: 0 | AP156: 0 | AQ156: 0 | AR156: 0 | AS156: 2 | AU156: 163 | AV156: 30 | AW156: 7 | AZ156: 429163030 | BA156: 429 | BC156: KIPP ACADEMY LYNN | BD156: 30 | BE156: BEVERLY | BF156: 2
A157: 429 | B157: 429163035 | C157: KIPP ACADEMY LYNN | D157: 0 | E157: 0 | F157: 0 | G157: 0 | H157: 0 | I157: 1 | J157: 0 | K157: 0.0393 | M157: 0 | N157: 0 | O157: 0 | P157: 1 | Q157: 11 | R157: 1 | AA157: 429 | AB157: 429163035 | AC157: KIPP ACADEMY LYNN | AD157: 0 | AE157: 0 | AF157: 0 | AG157: 0 | AH157: 0 | AI157: 1 | AJ157: 0 | AK157: 0 | AL157: 0 | AM157: 0 | AN157: 0 | AO157: 0 | AP157: 0 | AQ157: 0 | AR157: 0 | AS157: 1 | AU157: 163 | AV157: 35 | AW157: 11 | AZ157: 429163035 | BA157: 429 | BC157: KIPP ACADEMY LYNN | BD157: 35 | BE157: BOSTON | BF157: 1
A158: 429 | B158: 429163057 | C158: KIPP ACADEMY LYNN | D158: 0 | E158: 0 | F158: 0 | G158: 0 | H158: 0 | I158: 1 | J158: 0 | K158: 0.0393 | M158: 0 | N158: 0 | O158: 0 | P158: 1 | Q158: 12 | R158: 1 | AA158: 429 | AB158: 429163057 | AC158: KIPP ACADEMY LYNN | AD158: 0 | AE158: 0 | AF158: 0 | AG158: 0 | AH158: 0 | AI158: 1 | AJ158: 0 | AK158: 0 | AL158: 0 | AM158: 0 | AN158: 0 | AO158: 0 | AP158: 0 | AQ158: 0 | AR158: 0 | AS158: 1 | AU158: 163 | AV158: 57 | AW158: 12 | AZ158: 429163057 | BA158: 429 | BC158: KIPP ACADEMY LYNN | BD158: 57 | BE158: CHELSEA | BF158: 1
A159: 429 | B159: 429163071 | C159: KIPP ACADEMY LYNN | D159: 0 | E159: 0 | F159: 0 | G159: 1 | H159: 0 | I159: 3 | J159: 0 | K159: 0.1572 | M159: 0 | N159: 0 | O159: 0 | P159: 4 | Q159: 5 | R159: 4 | AA159: 429 | AB159: 429163071 | AC159: KIPP ACADEMY LYNN | AD159: 0 | AE159: 0 | AF159: 0 | AG159: 1 | AH159: 0 | AI159: 3 | AJ159: 0 | AK159: 0 | AL159: 0 | AM159: 0 | AN159: 0 | AO159: 1 | AP159: 0 | AQ159: 0 | AR159: 0 | AS159: 3 | AU159: 163 | AV159: 71 | AW159: 5 | AZ159: 429163071 | BA159: 429 | BC159: KIPP ACADEMY LYNN | BD159: 71 | BE159: DANVERS | BF159: 4
A160: 429 | B160: 429163128 | C160: KIPP ACADEMY LYNN | D160: 0 | E160: 0 | F160: 0 | G160: 1 | H160: 0 | I160: 0 | J160: 0 | K160: 0.0393 | M160: 0 | N160: 0 | O160: 0 | P160: 1 | Q160: 10 | R160: 1 | AA160: 429 | AB160: 429163128 | AC160: KIPP ACADEMY LYNN | AD160: 0 | AE160: 0 | AF160: 0 | AG160: 1 | AH160: 0 | AI160: 0 | AJ160: 0 | AK160: 0 | AL160: 0 | AM160: 0 | AN160: 0 | AO160: 1 | AP160: 0 | AQ160: 0 | AR160: 0 | AS160: 0 | AU160: 163 | AV160: 128 | AW160: 10 | AZ160: 429163128 | BA160: 429 | BC160: KIPP ACADEMY LYNN | BD160: 128 | BE160: HAVERHILL | BF160: 1
A161: 429 | B161: 429163160 | C161: KIPP ACADEMY LYNN | D161: 0 | E161: 0 | F161: 0 | G161: 0 | H161: 0 | I161: 2 | J161: 0 | K161: 0.0786 | M161: 0 | N161: 0 | O161: 0 | P161: 2 | Q161: 11 | R161: 2 | AA161: 429 | AB161: 429163160 | AC161: KIPP ACADEMY LYNN | AD161: 0 | AE161: 0 | AF161: 0 | AG161: 0 | AH161: 0 | AI161: 2 | AJ161: 0 | AK161: 0 | AL161: 0 | AM161: 0 | AN161: 0 | AO161: 0 | AP161: 0 | AQ161: 0 | AR161: 0 | AS161: 2 | AU161: 163 | AV161: 160 | AW161: 11 | AZ161: 429163160 | BA161: 429 | BC161: KIPP ACADEMY LYNN | BD161: 160 | BE161: LOWELL | BF161: 2
A162: 429 | B162: 429163163 | C162: KIPP ACADEMY LYNN | D162: 0 | E162: 0 | F162: 120 | G162: 596 | H162: 355 | I162: 470 | J162: 0 | K162: 60.5613 | M162: 179 | N162: 34 | O162: 23 | P162: 1112 | Q162: 11 | R162: 1541 | AA162: 429 | AB162: 429163163 | AC162: KIPP ACADEMY LYNN | AD162: 0 | AE162: 0 | AF162: 120 | AG162: 596 | AH162: 355 | AI162: 470 | AJ162: 0 | AK162: 0 | AL162: 179 | AM162: 34 | AN162: 23 | AO162: 693 | AP162: 0 | AQ162: 0 | AR162: 86 | AS162: 333 | AU162: 163 | AV162: 163 | AW162: 11 | AZ162: 429163163 | BA162: 429 | BC162: KIPP ACADEMY LYNN | BD162: 163 | BE162: LYNN | BF162: 1541
A163: 429 | B163: 429163165 | C163: KIPP ACADEMY LYNN | D163: 0 | E163: 0 | F163: 0 | G163: 0 | H163: 1 | I163: 0 | J163: 0 | K163: 0.0393 | M163: 0 | N163: 0 | O163: 0 | P163: 1 | Q163: 10 | R163: 1 | AA163: 429 | AB163: 429163165 | AC163: KIPP ACADEMY LYNN | AD163: 0 | AE163: 0 | AF163: 0 | AG163: 0 | AH163: 1 | AI163: 0 | AJ163: 0 | AK163: 0 | AL163: 0 | AM163: 0 | AN163: 0 | AO163: 1 | AP163: 0 | AQ163: 0 | AR163: 0 | AS163: 0 | AU163: 163 | AV163: 165 | AW163: 10 | AZ163: 429163165 | BA163: 429 | BC163: KIPP ACADEMY LYNN | BD163: 165 | BE163: MALDEN | BF163: 1
A164: 429 | B164: 429163168 | C164: KIPP ACADEMY LYNN | D164: 0 | E164: 0 | F164: 0 | G164: 2 | H164: 1 | I164: 0 | J164: 0 | K164: 0.1179 | M164: 1 | N164: 0 | O164: 0 | P164: 3 | Q164: 3 | R164: 3 | AA164: 429 | AB164: 429163168 | AC164: KIPP ACADEMY LYNN | AD164: 0 | AE164: 0 | AF164: 0 | AG164: 2 | AH164: 1 | AI164: 0 | AJ164: 0 | AK164: 0 | AL164: 1 | AM164: 0 | AN164: 0 | AO164: 3 | AP164: 0 | AQ164: 0 | AR164: 0 | AS164: 0 | AU164: 163 | AV164: 168 | AW164: 3 | AZ164: 429163168 | BA164: 429 | BC164: KIPP ACADEMY LYNN | BD164: 168 | BE164: MARBLEHEAD | BF164: 3
A165: 429 | B165: 429163181 | C165: KIPP ACADEMY LYNN | D165: 0 | E165: 0 | F165: 0 | G165: 0 | H165: 0 | I165: 2 | J165: 0 | K165: 0.0786 | M165: 0 | N165: 0 | O165: 0 | P165: 2 | Q165: 10 | R165: 2 | AA165: 429 | AB165: 429163181 | AC165: KIPP ACADEMY LYNN | AD165: 0 | AE165: 0 | AF165: 0 | AG165: 0 | AH165: 0 | AI165: 2 | AJ165: 0 | AK165: 0 | AL165: 0 | AM165: 0 | AN165: 0 | AO165: 0 | AP165: 0 | AQ165: 0 | AR165: 0 | AS165: 2 | AU165: 163 | AV165: 181 | AW165: 10 | AZ165: 429163181 | BA165: 429 | BC165: KIPP ACADEMY LYNN | BD165: 181 | BE165: METHUEN | BF165: 2
A166: 429 | B166: 429163229 | C166: KIPP ACADEMY LYNN | D166: 0 | E166: 0 | F166: 0 | G166: 2 | H166: 3 | I166: 4 | J166: 0 | K166: 0.3537 | M166: 0 | N166: 1 | O166: 0 | P166: 4 | Q166: 9 | R166: 9 | AA166: 429 | AB166: 429163229 | AC166: KIPP ACADEMY LYNN | AD166: 0 | AE166: 0 | AF166: 0 | AG166: 2 | AH166: 3 | AI166: 4 | AJ166: 0 | AK166: 0 | AL166: 0 | AM166: 1 | AN166: 0 | AO166: 1 | AP166: 0 | AQ166: 0 | AR166: 0 | AS166: 3 | AU166: 163 | AV166: 229 | AW166: 9 | AZ166: 429163229 | BA166: 429 | BC166: KIPP ACADEMY LYNN | BD166: 229 | BE166: PEABODY | BF166: 9
A167: 429 | B167: 429163246 | C167: KIPP ACADEMY LYNN | D167: 0 | E167: 0 | F167: 0 | G167: 0 | H167: 0 | I167: 1 | J167: 0 | K167: 0.0393 | M167: 0 | N167: 0 | O167: 0 | P167: 1 | Q167: 3 | R167: 1 | AA167: 429 | AB167: 429163246 | AC167: KIPP ACADEMY LYNN | AD167: 0 | AE167: 0 | AF167: 0 | AG167: 0 | AH167: 0 | AI167: 1 | AJ167: 0 | AK167: 0 | AL167: 0 | AM167: 0 | AN167: 0 | AO167: 0 | AP167: 0 | AQ167: 0 | AR167: 0 | AS167: 1 | AU167: 163 | AV167: 246 | AW167: 3 | AZ167: 429163246 | BA167: 429 | BC167: KIPP ACADEMY LYNN | BD167: 246 | BE167: READING | BF167: 1
A168: 429 | B168: 429163248 | C168: KIPP ACADEMY LYNN | D168: 0 | E168: 0 | F168: 0 | G168: 0 | H168: 2 | I168: 1 | J168: 0 | K168: 0.1179 | M168: 0 | N168: 0 | O168: 0 | P168: 3 | Q168: 11 | R168: 3 | AA168: 429 | AB168: 429163248 | AC168: KIPP ACADEMY LYNN | AD168: 0 | AE168: 0 | AF168: 0 | AG168: 0 | AH168: 2 | AI168: 1 | AJ168: 0 | AK168: 0 | AL168: 0 | AM168: 0 | AN168: 0 | AO168: 2 | AP168: 0 | AQ168: 0 | AR168: 0 | AS168: 1 | AU168: 163 | AV168: 248 | AW168: 11 | AZ168: 429163248 | BA168: 429 | BC168: KIPP ACADEMY LYNN | BD168: 248 | BE168: REVERE | BF168: 3
A169: 429 | B169: 429163258 | C169: KIPP ACADEMY LYNN | D169: 0 | E169: 0 | F169: 1 | G169: 13 | H169: 4 | I169: 6 | J169: 0 | K169: 0.9432 | M169: 3 | N169: 0 | O169: 0 | P169: 18 | Q169: 10 | R169: 24 | AA169: 429 | AB169: 429163258 | AC169: KIPP ACADEMY LYNN | AD169: 0 | AE169: 0 | AF169: 1 | AG169: 13 | AH169: 4 | AI169: 6 | AJ169: 0 | AK169: 0 | AL169: 3 | AM169: 0 | AN169: 0 | AO169: 13 | AP169: 0 | AQ169: 0 | AR169: 1 | AS169: 4 | AU169: 163 | AV169: 258 | AW169: 10 | AZ169: 429163258 | BA169: 429 | BC169: KIPP ACADEMY LYNN | BD169: 258 | BE169: SALEM | BF169: 24
A170: 429 | B170: 429163262 | C170: KIPP ACADEMY LYNN | D170: 0 | E170: 0 | F170: 2 | G170: 6 | H170: 3 | I170: 3 | J170: 0 | K170: 0.5502 | M170: 2 | N170: 0 | O170: 0 | P170: 13 | Q170: 9 | R170: 14 | AA170: 429 | AB170: 429163262 | AC170: KIPP ACADEMY LYNN | AD170: 0 | AE170: 0 | AF170: 2 | AG170: 6 | AH170: 3 | AI170: 3 | AJ170: 0 | AK170: 0 | AL170: 2 | AM170: 0 | AN170: 0 | AO170: 9 | AP170: 0 | AQ170: 0 | AR170: 2 | AS170: 2 | AU170: 163 | AV170: 262 | AW170: 9 | AZ170: 429163262 | BA170: 429 | BC170: KIPP ACADEMY LYNN | BD170: 262 | BE170: SAUGUS | BF170: 14
A171: 429 | B171: 429163291 | C171: KIPP ACADEMY LYNN | D171: 0 | E171: 0 | F171: 0 | G171: 1 | H171: 1 | I171: 2 | J171: 0 | K171: 0.1572 | M171: 1 | N171: 0 | O171: 0 | P171: 4 | Q171: 5 | R171: 4 | AA171: 429 | AB171: 429163291 | AC171: KIPP ACADEMY LYNN | AD171: 0 | AE171: 0 | AF171: 0 | AG171: 1 | AH171: 1 | AI171: 2 | AJ171: 0 | AK171: 0 | AL171: 1 | AM171: 0 | AN171: 0 | AO171: 2 | AP171: 0 | AQ171: 0 | AR171: 0 | AS171: 2 | AU171: 163 | AV171: 291 | AW171: 5 | AZ171: 429163291 | BA171: 429 | BC171: KIPP ACADEMY LYNN | BD171: 291 | BE171: SWAMPSCOTT | BF171: 4
A172: 429 | B172: 429163305 | C172: KIPP ACADEMY LYNN | D172: 0 | E172: 0 | F172: 0 | G172: 0 | H172: 0 | I172: 1 | J172: 0 | K172: 0.0393 | M172: 0 | N172: 0 | O172: 0 | P172: 1 | Q172: 4 | R172: 1 | AA172: 429 | AB172: 429163305 | AC172: KIPP ACADEMY LYNN | AD172: 0 | AE172: 0 | AF172: 0 | AG172: 0 | AH172: 0 | AI172: 1 | AJ172: 0 | AK172: 0 | AL172: 0 | AM172: 0 | AN172: 0 | AO172: 0 | AP172: 0 | AQ172: 0 | AR172: 0 | AS172: 1 | AU172: 163 | AV172: 305 | AW172: 4 | AZ172: 429163305 | BA172: 429 | BC172: KIPP ACADEMY LYNN | BD172: 305 | BE172: WAKEFIELD | BF172: 1
A173: 429 | B173: 429163347 | C173: KIPP ACADEMY LYNN | D173: 0 | E173: 0 | F173: 0 | G173: 1 | H173: 0 | I173: 0 | J173: 0 | K173: 0.0393 | M173: 0 | N173: 0 | O173: 0 | P173: 1 | Q173: 8 | R173: 1 | AA173: 429 | AB173: 429163347 | AC173: KIPP ACADEMY LYNN | AD173: 0 | AE173: 0 | AF173: 0 | AG173: 1 | AH173: 0 | AI173: 0 | AJ173: 0 | AK173: 0 | AL173: 0 | AM173: 0 | AN173: 0 | AO173: 1 | AP173: 0 | AQ173: 0 | AR173: 0 | AS173: 0 | AU173: 163 | AV173: 347 | AW173: 8 | AZ173: 429163347 | BA173: 429 | BC173: KIPP ACADEMY LYNN | BD173: 347 | BE173: WOBURN | BF173: 1
A174: 430 | B174: 430170025 | C174: ADVANCED MATH AND SCIENCE ACADEMY | D174: 0 | E174: 0 | F174: 0 | G174: 0 | H174: 0 | I174: 1 | J174: 0 | K174: 0.0393 | M174: 0 | N174: 0 | O174: 0 | P174: 0 | Q174: 6 | R174: 1 | AA174: 430 | AB174: 430170025 | AC174: ADVANCED MATH AND SCIENCE ACADEMY | AD174: 0 | AE174: 0 | AF174: 0 | AG174: 0 | AH174: 0 | AI174: 1 | AJ174: 0 | AK174: 0 | AL174: 0 | AM174: 0 | AN174: 0 | AO174: 0 | AP174: 0 | AQ174: 0 | AR174: 0 | AS174: 0 | AU174: 170 | AV174: 25 | AW174: 6 | AZ174: 430170025 | BA174: 430 | BC174: ADVANCED MATH AND SCIENCE ACADEMY | BD174: 25 | BE174: BELLINGHAM | BF174: 1
A175: 430 | B175: 430170064 | C175: ADVANCED MATH AND SCIENCE ACADEMY | D175: 0 | E175: 0 | F175: 0 | G175: 0 | H175: 27 | I175: 48 | J175: 0 | K175: 2.9475 | M175: 0 | N175: 0 | O175: 0 | P175: 19 | Q175: 10 | R175: 75 | AA175: 430 | AB175: 430170064 | AC175: ADVANCED MATH AND SCIENCE ACADEMY | AD175: 0 | AE175: 0 | AF175: 0 | AG175: 0 | AH175: 27 | AI175: 48 | AJ175: 0 | AK175: 0 | AL175: 0 | AM175: 0 | AN175: 0 | AO175: 4 | AP175: 0 | AQ175: 0 | AR175: 0 | AS175: 15 | AU175: 170 | AV175: 64 | AW175: 10 | AZ175: 430170064 | BA175: 430 | BC175: ADVANCED MATH AND SCIENCE ACADEMY | BD175: 64 | BE175: CLINTON | BF175: 75
A176: 430 | B176: 430170100 | C176: ADVANCED MATH AND SCIENCE ACADEMY | D176: 0 | E176: 0 | F176: 0 | G176: 0 | H176: 0 | I176: 9 | J176: 0 | K176: 0.3537 | M176: 0 | N176: 0 | O176: 0 | P176: 0 | Q176: 10 | R176: 9 | AA176: 430 | AB176: 430170100 | AC176: ADVANCED MATH AND SCIENCE ACADEMY | AD176: 0 | AE176: 0 | AF176: 0 | AG176: 0 | AH176: 0 | AI176: 9 | AJ176: 0 | AK176: 0 | AL176: 0 | AM176: 0 | AN176: 0 | AO176: 0 | AP176: 0 | AQ176: 0 | AR176: 0 | AS176: 0 | AU176: 170 | AV176: 100 | AW176: 10 | AZ176: 430170100 | BA176: 430 | BC176: ADVANCED MATH AND SCIENCE ACADEMY | BD176: 100 | BE176: FRAMINGHAM | BF176: 9
A177: 430 | B177: 430170101 | C177: ADVANCED MATH AND SCIENCE ACADEMY | D177: 0 | E177: 0 | F177: 0 | G177: 0 | H177: 1 | I177: 1 | J177: 0 | K177: 0.0786 | M177: 0 | N177: 0 | O177: 0 | P177: 0 | Q177: 3 | R177: 2 | AA177: 430 | AB177: 430170101 | AC177: ADVANCED MATH AND SCIENCE ACADEMY | AD177: 0 | AE177: 0 | AF177: 0 | AG177: 0 | AH177: 1 | AI177: 1 | AJ177: 0 | AK177: 0 | AL177: 0 | AM177: 0 | AN177: 0 | AO177: 0 | AP177: 0 | AQ177: 0 | AR177: 0 | AS177: 0 | AU177: 170 | AV177: 101 | AW177: 3 | AZ177: 430170101 | BA177: 430 | BC177: ADVANCED MATH AND SCIENCE ACADEMY | BD177: 101 | BE177: FRANKLIN | BF177: 2
A178: 430 | B178: 430170110 | C178: ADVANCED MATH AND SCIENCE ACADEMY | D178: 0 | E178: 0 | F178: 0 | G178: 0 | H178: 1 | I178: 7 | J178: 0 | K178: 0.3144 | M178: 0 | N178: 0 | O178: 0 | P178: 0 | Q178: 4 | R178: 8 | AA178: 430 | AB178: 430170110 | AC178: ADVANCED MATH AND SCIENCE ACADEMY | AD178: 0 | AE178: 0 | AF178: 0 | AG178: 0 | AH178: 1 | AI178: 7 | AJ178: 0 | AK178: 0 | AL178: 0 | AM178: 0 | AN178: 0 | AO178: 0 | AP178: 0 | AQ178: 0 | AR178: 0 | AS178: 0 | AU178: 170 | AV178: 110 | AW178: 4 | AZ178: 430170110 | BA178: 430 | BC178: ADVANCED MATH AND SCIENCE ACADEMY | BD178: 110 | BE178: GRAFTON | BF178: 8
A179: 430 | B179: 430170136 | C179: ADVANCED MATH AND SCIENCE ACADEMY | D179: 0 | E179: 0 | F179: 0 | G179: 0 | H179: 0 | I179: 2 | J179: 0 | K179: 0.0786 | M179: 0 | N179: 0 | O179: 0 | P179: 0 | Q179: 3 | R179: 2 | AA179: 430 | AB179: 430170136 | AC179: ADVANCED MATH AND SCIENCE ACADEMY | AD179: 0 | AE179: 0 | AF179: 0 | AG179: 0 | AH179: 0 | AI179: 2 | AJ179: 0 | AK179: 0 | AL179: 0 | AM179: 0 | AN179: 0 | AO179: 0 | AP179: 0 | AQ179: 0 | AR179: 0 | AS179: 0 | AU179: 170 | AV179: 136 | AW179: 3 | AZ179: 430170136 | BA179: 430 | BC179: ADVANCED MATH AND SCIENCE ACADEMY | BD179: 136 | BE179: HOLLISTON | BF179: 2
A180: 430 | B180: 430170139 | C180: ADVANCED MATH AND SCIENCE ACADEMY | D180: 0 | E180: 0 | F180: 0 | G180: 0 | H180: 0 | I180: 3 | J180: 0 | K180: 0.1179 | M180: 0 | N180: 0 | O180: 0 | P180: 0 | Q180: 2 | R180: 3 | AA180: 430 | AB180: 430170139 | AC180: ADVANCED MATH AND SCIENCE ACADEMY | AD180: 0 | AE180: 0 | AF180: 0 | AG180: 0 | AH180: 0 | AI180: 3 | AJ180: 0 | AK180: 0 | AL180: 0 | AM180: 0 | AN180: 0 | AO180: 0 | AP180: 0 | AQ180: 0 | AR180: 0 | AS180: 0 | AU180: 170 | AV180: 139 | AW180: 2 | AZ180: 430170139 | BA180: 430 | BC180: ADVANCED MATH AND SCIENCE ACADEMY | BD180: 139 | BE180: HOPKINTON | BF180: 3
A181: 430 | B181: 430170141 | C181: ADVANCED MATH AND SCIENCE ACADEMY | D181: 0 | E181: 0 | F181: 0 | G181: 0 | H181: 94 | I181: 107 | J181: 0 | K181: 7.8993 | M181: 0 | N181: 4 | O181: 0 | P181: 32 | Q181: 7 | R181: 201 | AA181: 430 | AB181: 430170141 | AC181: ADVANCED MATH AND SCIENCE ACADEMY | AD181: 0 | AE181: 0 | AF181: 0 | AG181: 0 | AH181: 94 | AI181: 107 | AJ181: 0 | AK181: 0 | AL181: 0 | AM181: 4 | AN181: 0 | AO181: 13 | AP181: 0 | AQ181: 0 | AR181: 0 | AS181: 19 | AU181: 170 | AV181: 141 | AW181: 7 | AZ181: 430170141 | BA181: 430 | BC181: ADVANCED MATH AND SCIENCE ACADEMY | BD181: 141 | BE181: HUDSON | BF181: 201
A182: 430 | B182: 430170153 | C182: ADVANCED MATH AND SCIENCE ACADEMY | D182: 0 | E182: 0 | F182: 0 | G182: 0 | H182: 1 | I182: 2 | J182: 0 | K182: 0.1179 | M182: 0 | N182: 0 | O182: 0 | P182: 2 | Q182: 10 | R182: 3 | AA182: 430 | AB182: 430170153 | AC182: ADVANCED MATH AND SCIENCE ACADEMY | AD182: 0 | AE182: 0 | AF182: 0 | AG182: 0 | AH182: 1 | AI182: 2 | AJ182: 0 | AK182: 0 | AL182: 0 | AM182: 0 | AN182: 0 | AO182: 0 | AP182: 0 | AQ182: 0 | AR182: 0 | AS182: 2 | AU182: 170 | AV182: 153 | AW182: 10 | AZ182: 430170153 | BA182: 430 | BC182: ADVANCED MATH AND SCIENCE ACADEMY | BD182: 153 | BE182: LEOMINSTER | BF182: 3
A183: 430 | B183: 430170162 | C183: ADVANCED MATH AND SCIENCE ACADEMY | D183: 0 | E183: 0 | F183: 0 | G183: 0 | H183: 0 | I183: 1 | J183: 0 | K183: 0.0393 | M183: 0 | N183: 0 | O183: 0 | P183: 0 | Q183: 5 | R183: 1 | AA183: 430 | AB183: 430170162 | AC183: ADVANCED MATH AND SCIENCE ACADEMY | AD183: 0 | AE183: 0 | AF183: 0 | AG183: 0 | AH183: 0 | AI183: 1 | AJ183: 0 | AK183: 0 | AL183: 0 | AM183: 0 | AN183: 0 | AO183: 0 | AP183: 0 | AQ183: 0 | AR183: 0 | AS183: 0 | AU183: 170 | AV183: 162 | AW183: 5 | AZ183: 430170162 | BA183: 430 | BC183: ADVANCED MATH AND SCIENCE ACADEMY | BD183: 162 | BE183: LUNENBURG | BF183: 1
A184: 430 | B184: 430170170 | C184: ADVANCED MATH AND SCIENCE ACADEMY | D184: 0 | E184: 0 | F184: 0 | G184: 0 | H184: 263 | I184: 261 | J184: 0 | K184: 20.5932 | M184: 0 | N184: 32 | O184: 9 | P184: 134 | Q184: 10 | R184: 524 | AA184: 430 | AB184: 430170170 | AC184: ADVANCED MATH AND SCIENCE ACADEMY | AD184: 0 | AE184: 0 | AF184: 0 | AG184: 0 | AH184: 263 | AI184: 261 | AJ184: 0 | AK184: 0 | AL184: 0 | AM184: 32 | AN184: 9 | AO184: 83 | AP184: 0 | AQ184: 0 | AR184: 0 | AS184: 51 | AU184: 170 | AV184: 170 | AW184: 10 | AZ184: 430170170 | BA184: 430 | BC184: ADVANCED MATH AND SCIENCE ACADEMY | BD184: 170 | BE184: MARLBOROUGH | BF184: 524
A185: 430 | B185: 430170174 | C185: ADVANCED MATH AND SCIENCE ACADEMY | D185: 0 | E185: 0 | F185: 0 | G185: 0 | H185: 27 | I185: 35 | J185: 0 | K185: 2.4366 | M185: 0 | N185: 0 | O185: 0 | P185: 2 | Q185: 5 | R185: 62 | AA185: 430 | AB185: 430170174 | AC185: ADVANCED MATH AND SCIENCE ACADEMY | AD185: 0 | AE185: 0 | AF185: 0 | AG185: 0 | AH185: 27 | AI185: 35 | AJ185: 0 | AK185: 0 | AL185: 0 | AM185: 0 | AN185: 0 | AO185: 1 | AP185: 0 | AQ185: 0 | AR185: 0 | AS185: 1 | AU185: 170 | AV185: 174 | AW185: 5 | AZ185: 430170174 | BA185: 430 | BC185: ADVANCED MATH AND SCIENCE ACADEMY | BD185: 174 | BE185: MAYNARD | BF185: 62
A186: 430 | B186: 430170185 | C186: ADVANCED MATH AND SCIENCE ACADEMY | D186: 0 | E186: 0 | F186: 0 | G186: 0 | H186: 1 | I186: 1 | J186: 0 | K186: 0.0786 | M186: 0 | N186: 0 | O186: 0 | P186: 2 | Q186: 10 | R186: 2 | AA186: 430 | AB186: 430170185 | AC186: ADVANCED MATH AND SCIENCE ACADEMY | AD186: 0 | AE186: 0 | AF186: 0 | AG186: 0 | AH186: 1 | AI186: 1 | AJ186: 0 | AK186: 0 | AL186: 0 | AM186: 0 | AN186: 0 | AO186: 1 | AP186: 0 | AQ186: 0 | AR186: 0 | AS186: 1 | AU186: 170 | AV186: 185 | AW186: 10 | AZ186: 430170185 | BA186: 430 | BC186: ADVANCED MATH AND SCIENCE ACADEMY | BD186: 185 | BE186: MILFORD | BF186: 2
A187: 430 | B187: 430170186 | C187: ADVANCED MATH AND SCIENCE ACADEMY | D187: 0 | E187: 0 | F187: 0 | G187: 0 | H187: 0 | I187: 1 | J187: 0 | K187: 0.0393 | M187: 0 | N187: 0 | O187: 0 | P187: 0 | Q187: 7 | R187: 1 | AA187: 430 | AB187: 430170186 | AC187: ADVANCED MATH AND SCIENCE ACADEMY | AD187: 0 | AE187: 0 | AF187: 0 | AG187: 0 | AH187: 0 | AI187: 1 | AJ187: 0 | AK187: 0 | AL187: 0 | AM187: 0 | AN187: 0 | AO187: 0 | AP187: 0 | AQ187: 0 | AR187: 0 | AS187: 0 | AU187: 170 | AV187: 186 | AW187: 7 | AZ187: 430170186 | BA187: 430 | BC187: ADVANCED MATH AND SCIENCE ACADEMY | BD187: 186 | BE187: MILLBURY | BF187: 1
A188: 430 | B188: 430170198 | C188: ADVANCED MATH AND SCIENCE ACADEMY | D188: 0 | E188: 0 | F188: 0 | G188: 0 | H188: 0 | I188: 3 | J188: 0 | K188: 0.1179 | M188: 0 | N188: 0 | O188: 0 | P188: 0 | Q188: 3 | R188: 3 | AA188: 430 | AB188: 430170198 | AC188: ADVANCED MATH AND SCIENCE ACADEMY | AD188: 0 | AE188: 0 | AF188: 0 | AG188: 0 | AH188: 0 | AI188: 3 | AJ188: 0 | AK188: 0 | AL188: 0 | AM188: 0 | AN188: 0 | AO188: 0 | AP188: 0 | AQ188: 0 | AR188: 0 | AS188: 0 | AU188: 170 | AV188: 198 | AW188: 3 | AZ188: 430170198 | BA188: 430 | BC188: ADVANCED MATH AND SCIENCE ACADEMY | BD188: 198 | BE188: NATICK | BF188: 3
A189: 430 | B189: 430170271 | C189: ADVANCED MATH AND SCIENCE ACADEMY | D189: 0 | E189: 0 | F189: 0 | G189: 0 | H189: 2 | I189: 13 | J189: 0 | K189: 0.5895 | M189: 0 | N189: 0 | O189: 0 | P189: 0 | Q189: 4 | R189: 15 | AA189: 430 | AB189: 430170271 | AC189: ADVANCED MATH AND SCIENCE ACADEMY | AD189: 0 | AE189: 0 | AF189: 0 | AG189: 0 | AH189: 2 | AI189: 13 | AJ189: 0 | AK189: 0 | AL189: 0 | AM189: 0 | AN189: 0 | AO189: 0 | AP189: 0 | AQ189: 0 | AR189: 0 | AS189: 0 | AU189: 170 | AV189: 271 | AW189: 4 | AZ189: 430170271 | BA189: 430 | BC189: ADVANCED MATH AND SCIENCE ACADEMY | BD189: 271 | BE189: SHREWSBURY | BF189: 15
A190: 430 | B190: 430170314 | C190: ADVANCED MATH AND SCIENCE ACADEMY | D190: 0 | E190: 0 | F190: 0 | G190: 0 | H190: 1 | I190: 0 | J190: 0 | K190: 0.0393 | M190: 0 | N190: 0 | O190: 0 | P190: 0 | Q190: 7 | R190: 1 | AA190: 430 | AB190: 430170314 | AC190: ADVANCED MATH AND SCIENCE ACADEMY | AD190: 0 | AE190: 0 | AF190: 0 | AG190: 0 | AH190: 1 | AI190: 0 | AJ190: 0 | AK190: 0 | AL190: 0 | AM190: 0 | AN190: 0 | AO190: 0 | AP190: 0 | AQ190: 0 | AR190: 0 | AS190: 0 | AU190: 170 | AV190: 314 | AW190: 7 | AZ190: 430170314 | BA190: 430 | BC190: ADVANCED MATH AND SCIENCE ACADEMY | BD190: 314 | BE190: WATERTOWN | BF190: 1
A191: 430 | B191: 430170321 | C191: ADVANCED MATH AND SCIENCE ACADEMY | D191: 0 | E191: 0 | F191: 0 | G191: 0 | H191: 2 | I191: 6 | J191: 0 | K191: 0.3144 | M191: 0 | N191: 0 | O191: 0 | P191: 5 | Q191: 4 | R191: 8 | AA191: 430 | AB191: 430170321 | AC191: ADVANCED MATH AND SCIENCE ACADEMY | AD191: 0 | AE191: 0 | AF191: 0 | AG191: 0 | AH191: 2 | AI191: 6 | AJ191: 0 | AK191: 0 | AL191: 0 | AM191: 0 | AN191: 0 | AO191: 1 | AP191: 0 | AQ191: 0 | AR191: 0 | AS191: 4 | AU191: 170 | AV191: 321 | AW191: 4 | AZ191: 430170321 | BA191: 430 | BC191: ADVANCED MATH AND SCIENCE ACADEMY | BD191: 321 | BE191: WESTBOROUGH | BF191: 8
A192: 430 | B192: 430170348 | C192: ADVANCED MATH AND SCIENCE ACADEMY | D192: 0 | E192: 0 | F192: 0 | G192: 0 | H192: 0 | I192: 6 | J192: 0 | K192: 0.2358 | M192: 0 | N192: 0 | O192: 0 | P192: 4 | Q192: 11 | R192: 6 | AA192: 430 | AB192: 430170348 | AC192: ADVANCED MATH AND SCIENCE ACADEMY | AD192: 0 | AE192: 0 | AF192: 0 | AG192: 0 | AH192: 0 | AI192: 6 | AJ192: 0 | AK192: 0 | AL192: 0 | AM192: 0 | AN192: 0 | AO192: 0 | AP192: 0 | AQ192: 0 | AR192: 0 | AS192: 4 | AU192: 170 | AV192: 348 | AW192: 11 | AZ192: 430170348 | BA192: 430 | BC192: ADVANCED MATH AND SCIENCE ACADEMY | BD192: 348 | BE192: WORCESTER | BF192: 6
A193: 430 | B193: 430170600 | C193: ADVANCED MATH AND SCIENCE ACADEMY | D193: 0 | E193: 0 | F193: 0 | G193: 0 | H193: 0 | I193: 1 | J193: 0 | K193: 0.0393 | M193: 0 | N193: 0 | O193: 0 | P193: 1 | Q193: 3 | R193: 1 | AA193: 430 | AB193: 430170600 | AC193: ADVANCED MATH AND SCIENCE ACADEMY | AD193: 0 | AE193: 0 | AF193: 0 | AG193: 0 | AH193: 0 | AI193: 1 | AJ193: 0 | AK193: 0 | AL193: 0 | AM193: 0 | AN193: 0 | AO193: 0 | AP193: 0 | AQ193: 0 | AR193: 0 | AS193: 1 | AU193: 170 | AV193: 600 | AW193: 3 | AZ193: 430170600 | BA193: 430 | BC193: ADVANCED MATH AND SCIENCE ACADEMY | BD193: 600 | BE193: ACTON BOXBOROUGH | BF193: 1
A194: 430 | B194: 430170616 | C194: ADVANCED MATH AND SCIENCE ACADEMY | D194: 0 | E194: 0 | F194: 0 | G194: 0 | H194: 1 | I194: 1 | J194: 0 | K194: 0.0786 | M194: 0 | N194: 0 | O194: 0 | P194: 0 | Q194: 7 | R194: 2 | AA194: 430 | AB194: 430170616 | AC194: ADVANCED MATH AND SCIENCE ACADEMY | AD194: 0 | AE194: 0 | AF194: 0 | AG194: 0 | AH194: 1 | AI194: 1 | AJ194: 0 | AK194: 0 | AL194: 0 | AM194: 0 | AN194: 0 | AO194: 0 | AP194: 0 | AQ194: 0 | AR194: 0 | AS194: 0 | AU194: 170 | AV194: 616 | AW194: 7 | AZ194: 430170616 | BA194: 430 | BC194: ADVANCED MATH AND SCIENCE ACADEMY | BD194: 616 | BE194: AYER SHIRLEY | BF194: 2
A195: 430 | B195: 430170620 | C195: ADVANCED MATH AND SCIENCE ACADEMY | D195: 0 | E195: 0 | F195: 0 | G195: 0 | H195: 5 | I195: 5 | J195: 0 | K195: 0.393 | M195: 0 | N195: 0 | O195: 0 | P195: 4 | Q195: 4 | R195: 10 | AA195: 430 | AB195: 430170620 | AC195: ADVANCED MATH AND SCIENCE ACADEMY | AD195: 0 | AE195: 0 | AF195: 0 | AG195: 0 | AH195: 5 | AI195: 5 | AJ195: 0 | AK195: 0 | AL195: 0 | AM195: 0 | AN195: 0 | AO195: 2 | AP195: 0 | AQ195: 0 | AR195: 0 | AS195: 2 | AU195: 170 | AV195: 620 | AW195: 4 | AZ195: 430170620 | BA195: 430 | BC195: ADVANCED MATH AND SCIENCE ACADEMY | BD195: 620 | BE195: BERLIN BOYLSTON | BF195: 10
A196: 430 | B196: 430170673 | C196: ADVANCED MATH AND SCIENCE ACADEMY | D196: 0 | E196: 0 | F196: 0 | G196: 0 | H196: 0 | I196: 1 | J196: 0 | K196: 0.0393 | M196: 0 | N196: 0 | O196: 0 | P196: 0 | Q196: 2 | R196: 1 | AA196: 430 | AB196: 430170673 | AC196: ADVANCED MATH AND SCIENCE ACADEMY | AD196: 0 | AE196: 0 | AF196: 0 | AG196: 0 | AH196: 0 | AI196: 1 | AJ196: 0 | AK196: 0 | AL196: 0 | AM196: 0 | AN196: 0 | AO196: 0 | AP196: 0 | AQ196: 0 | AR196: 0 | AS196: 0 | AU196: 170 | AV196: 673 | AW196: 2 | AZ196: 430170673 | BA196: 430 | BC196: ADVANCED MATH AND SCIENCE ACADEMY | BD196: 673 | BE196: GROTON DUNSTABLE | BF196: 1
A197: 430 | B197: 430170690 | C197: ADVANCED MATH AND SCIENCE ACADEMY | D197: 0 | E197: 0 | F197: 0 | G197: 0 | H197: 0 | I197: 2 | J197: 0 | K197: 0.0786 | M197: 0 | N197: 0 | O197: 0 | P197: 0 | Q197: 4 | R197: 2 | AA197: 430 | AB197: 430170690 | AC197: ADVANCED MATH AND SCIENCE ACADEMY | AD197: 0 | AE197: 0 | AF197: 0 | AG197: 0 | AH197: 0 | AI197: 2 | AJ197: 0 | AK197: 0 | AL197: 0 | AM197: 0 | AN197: 0 | AO197: 0 | AP197: 0 | AQ197: 0 | AR197: 0 | AS197: 0 | AU197: 170 | AV197: 690 | AW197: 4 | AZ197: 430170690 | BA197: 430 | BC197: ADVANCED MATH AND SCIENCE ACADEMY | BD197: 690 | BE197: KING PHILIP | BF197: 2
A198: 430 | B198: 430170710 | C198: ADVANCED MATH AND SCIENCE ACADEMY | D198: 0 | E198: 0 | F198: 0 | G198: 0 | H198: 0 | I198: 2 | J198: 0 | K198: 0.0786 | M198: 0 | N198: 0 | O198: 0 | P198: 0 | Q198: 3 | R198: 2 | AA198: 430 | AB198: 430170710 | AC198: ADVANCED MATH AND SCIENCE ACADEMY | AD198: 0 | AE198: 0 | AF198: 0 | AG198: 0 | AH198: 0 | AI198: 2 | AJ198: 0 | AK198: 0 | AL198: 0 | AM198: 0 | AN198: 0 | AO198: 0 | AP198: 0 | AQ198: 0 | AR198: 0 | AS198: 0 | AU198: 170 | AV198: 710 | AW198: 3 | AZ198: 430170710 | BA198: 430 | BC198: ADVANCED MATH AND SCIENCE ACADEMY | BD198: 710 | BE198: MENDON UPTON | BF198: 2
A199: 430 | B199: 430170725 | C199: ADVANCED MATH AND SCIENCE ACADEMY | D199: 0 | E199: 0 | F199: 0 | G199: 0 | H199: 3 | I199: 6 | J199: 0 | K199: 0.3537 | M199: 0 | N199: 0 | O199: 0 | P199: 0 | Q199: 3 | R199: 9 | AA199: 430 | AB199: 430170725 | AC199: ADVANCED MATH AND SCIENCE ACADEMY | AD199: 0 | AE199: 0 | AF199: 0 | AG199: 0 | AH199: 3 | AI199: 6 | AJ199: 0 | AK199: 0 | AL199: 0 | AM199: 0 | AN199: 0 | AO199: 0 | AP199: 0 | AQ199: 0 | AR199: 0 | AS199: 0 | AU199: 170 | AV199: 725 | AW199: 3 | AZ199: 430170725 | BA199: 430 | BC199: ADVANCED MATH AND SCIENCE ACADEMY | BD199: 725 | BE199: NASHOBA | BF199: 9
A200: 430 | B200: 430170730 | C200: ADVANCED MATH AND SCIENCE ACADEMY | D200: 0 | E200: 0 | F200: 0 | G200: 0 | H200: 0 | I200: 5 | J200: 0 | K200: 0.1965 | M200: 0 | N200: 0 | O200: 0 | P200: 0 | Q200: 3 | R200: 5 | AA200: 430 | AB200: 430170730 | AC200: ADVANCED MATH AND SCIENCE ACADEMY | AD200: 0 | AE200: 0 | AF200: 0 | AG200: 0 | AH200: 0 | AI200: 5 | AJ200: 0 | AK200: 0 | AL200: 0 | AM200: 0 | AN200: 0 | AO200: 0 | AP200: 0 | AQ200: 0 | AR200: 0 | AS200: 0 | AU200: 170 | AV200: 730 | AW200: 3 | AZ200: 430170730 | BA200: 430 | BC200: ADVANCED MATH AND SCIENCE ACADEMY | BD200: 730 | BE200: NORTHBORO SOUTHBORO | BF200: 5
A201: 430 | B201: 430170735 | C201: ADVANCED MATH AND SCIENCE ACADEMY | D201: 0 | E201: 0 | F201: 0 | G201: 0 | H201: 0 | I201: 2 | J201: 0 | K201: 0.0786 | M201: 0 | N201: 0 | O201: 0 | P201: 0 | Q201: 6 | R201: 2 | AA201: 430 | AB201: 430170735 | AC201: ADVANCED MATH AND SCIENCE ACADEMY | AD201: 0 | AE201: 0 | AF201: 0 | AG201: 0 | AH201: 0 | AI201: 2 | AJ201: 0 | AK201: 0 | AL201: 0 | AM201: 0 | AN201: 0 | AO201: 0 | AP201: 0 | AQ201: 0 | AR201: 0 | AS201: 0 | AU201: 170 | AV201: 735 | AW201: 6 | AZ201: 430170735 | BA201: 430 | BC201: ADVANCED MATH AND SCIENCE ACADEMY | BD201: 735 | BE201: NORTH MIDDLESEX | BF201: 2
A202: 430 | B202: 430170775 | C202: ADVANCED MATH AND SCIENCE ACADEMY | D202: 0 | E202: 0 | F202: 0 | G202: 0 | H202: 1 | I202: 4 | J202: 0 | K202: 0.1965 | M202: 0 | N202: 0 | O202: 0 | P202: 3 | Q202: 4 | R202: 5 | AA202: 430 | AB202: 430170775 | AC202: ADVANCED MATH AND SCIENCE ACADEMY | AD202: 0 | AE202: 0 | AF202: 0 | AG202: 0 | AH202: 1 | AI202: 4 | AJ202: 0 | AK202: 0 | AL202: 0 | AM202: 0 | AN202: 0 | AO202: 1 | AP202: 0 | AQ202: 0 | AR202: 0 | AS202: 2 | AU202: 170 | AV202: 775 | AW202: 4 | AZ202: 430170775 | BA202: 430 | BC202: ADVANCED MATH AND SCIENCE ACADEMY | BD202: 775 | BE202: =VLOOKUP(BD202,distinfo,2,FALSE) -> WACHUSETT | BF202: 5
... 870 more rows

Sheet dist enro (hidden)
A1: Source: found24_updated.xlsm on 3/23/23 | AA1: Source: found24_updated.xlsm on 3/23/23 | BA1: compare
AB2: dist435
A4: 1 | B4: 2 | C4: 3 | D4: 4 | E4: 5 | F4: 6 | G4: 7 | H4: 8 | I4: 9 | J4: 10 | K4: 11 | L4: 12 | M4: 13 | N4: 14 | O4: 15 | P4: 16 | Q4: 17
A6: FOUNDATION ENROLLMENT | AA6: a | AB6: b | AC6: 4 | AD6: 5 | AE6: 6 | AF6: 7 | AG6: 8 | AH6: 9 | AI6: 10 | AJ6: 11 | AK6: 12 | AL6: 13 | AM6: 14 | AN6: 15 | AO6: 16 | AP6: 17 | AQ6: 18 | AR6: 19 | AS6: 20 | AT6: 21 | AU6: 22 | AV6: 23
C7: A l l P u p i l s | I7: Voke | J7: Sped | L7: ELL | O7: EcoDis | P7: Fnd Enro | BC7: A l l P u p i l s | BI7: Voke | BJ7: Sped | BL7: ELL | BO7: EcoDis | BP7: Fnd Enro
A8: LEA | B8: District | C8: PK | D8: K2 | E8: K | F8: G1-5 | G8: G6-8 | H8: G9-12 | I8: Reg | J8: In | K8: Tuit | L8: PK - 5 | M8: Middle | N8: High | O8: All | P8: Total | AA8: LEA | AB8: District Name | AC8: PK | AD8: K Half | AE8: K Full | AF8: Elem | AG8: Jr/Middle | AH8: High School | AI8: blank | AJ8: blank | AK8: blank | AL8: Vocational | AM8: Assumed Special Ed In-District | AN8: Assumed Special Ed Tuition | AO8: EL PK-5 | AP8: EL 6-8 | AQ8: EL high school | AR8: blank | AS8: blank | AT8: blank | AU8: Low Income | AV8: blank | AW8: Total Foundation Enrollment | AX8: WAF | BA8: LEA | BB8: District | BC8: PK | BD8: K2 | BE8: K | BF8: G1-5 | BG8: G6-8 | BH8: G9-12 | BI8: Reg | BJ8: In | BK8: Tuit | BL8: PK - 5 | BM8: Middle | BN8: High | BO8: All | BP8: Total
A10: 1 | B10: ABINGTON | C10: 24 | D10: 0 | E10: 186 | F10: 893 | G10: 493 | H10: 614 | I10: 4 | J10: 86 | K10: 22 | L10: 157 | M10: 40 | N10: 52 | O10: 816 | P10: 2202 | AA10: 1 | AB10: ABINGTON | AC10: 24 | AD10: 0 | AE10: 186 | AF10: 893 | AG10: 493 | AH10: 614 | AL10: 4 | AM10: 86 | AN10: 22 | AO10: 157 | AP10: 40 | AQ10: 52 | AU10: 816 | AW10: 2202 | AX10: 1.033 | BA10: =A10=AA10 -> TRUE | BB10: =B10=AB10 -> TRUE | BC10: TRUE | BD10: TRUE | BE10: TRUE | BF10: TRUE | BG10: TRUE | BH10: TRUE | BI10: =I10=AL10 -> TRUE | BJ10: TRUE | BK10: TRUE | BL10: TRUE | BM10: TRUE | BN10: TRUE | BO10: =O10=AU10 -> TRUE | BP10: =P10=AW10 -> TRUE
A11: 2 | B11: ACTON | C11: 0 | D11: 0 | E11: 0 | F11: 0 | G11: 0 | H11: 0 | I11: 0 | J11: 0 | K11: 0 | L11: 0 | M11: 0 | N11: 0 | O11: 0 | P11: 0 | AA11: 2 | AB11: ACTON | AC11: 0 | AD11: 0 | AE11: 0 | AF11: 0 | AG11: 0 | AH11: 0 | AL11: 0 | AM11: 0 | AN11: 0 | AO11: 0 | AP11: 0 | AQ11: 0 | AU11: 0 | AW11: 0 | AX11: 1.057 | BA11: =A11=AA11 -> TRUE | BB11: =B11=AB11 -> TRUE | BC11: =C11=AC11 -> TRUE | BD11: =D11=AD11 -> TRUE | BE11: =E11=AE11 -> TRUE | BF11: =F11=AF11 -> TRUE | BG11: =G11=AG11 -> TRUE | BH11: =H11=AH11 -> TRUE | BI11: =I11=AL11 -> TRUE | BJ11: =J11=AM11 -> TRUE | BK11: =K11=AN11 -> TRUE | BL11: =L11=AO11 -> TRUE | BM11: =M11=AP11 -> TRUE | BN11: =N11=AQ11 -> TRUE | BO11: =O11=AU11 -> TRUE | BP11: =P11=AW11 -> TRUE
A12: 3 | B12: ACUSHNET | C12: 24 | D12: 0 | E12: 102 | F12: 511 | G12: 309 | H12: 239 | I12: 0 | J12: 46 | K12: 12 | L12: 1 | M12: 0 | N12: 0 | O12: 336 | P12: 1173 | AA12: 3 | AB12: ACUSHNET | AC12: 24 | AD12: 0 | AE12: 102 | AF12: 511 | AG12: 309 | AH12: 239 | AL12: 0 | AM12: 46 | AN12: 12 | AO12: 1 | AP12: 0 | AQ12: 0 | AU12: 336 | AW12: 1173 | AX12: 1 | BA12: TRUE | BB12: TRUE | BC12: TRUE | BD12: TRUE | BE12: TRUE | BF12: TRUE | BG12: TRUE | BH12: TRUE | BI12: TRUE | BJ12: TRUE | BK12: TRUE | BL12: TRUE | BM12: TRUE | BN12: TRUE | BO12: TRUE | BP12: TRUE
A13: 4 | B13: ADAMS | C13: 0 | D13: 0 | E13: 0 | F13: 0 | G13: 0 | H13: 0 | I13: 0 | J13: 0 | K13: 0 | L13: 0 | M13: 0 | N13: 0 | O13: 0 | P13: 0 | AA13: 4 | AB13: ADAMS | AC13: 0 | AD13: 0 | AE13: 0 | AF13: 0 | AG13: 0 | AH13: 0 | AL13: 0 | AM13: 0 | AN13: 0 | AO13: 0 | AP13: 0 | AQ13: 0 | AU13: 0 | AW13: 0 | AX13: 1 | BA13: TRUE | BB13: TRUE | BC13: TRUE | BD13: TRUE | BE13: TRUE | BF13: TRUE | BG13: TRUE | BH13: TRUE | BI13: TRUE | BJ13: TRUE | BK13: TRUE | BL13: TRUE | BM13: TRUE | BN13: TRUE | BO13: TRUE | BP13: TRUE
A14: 5 | B14: AGAWAM | C14: 60 | D14: 0 | E14: 233 | F14: 1291 | G14: 815 | H14: 974 | I14: 143 | J14: 137 | K14: 33 | L14: 188 | M14: 45 | N14: 34 | O14: 1633 | P14: 3486 | AA14: 5 | AB14: AGAWAM | AC14: 60 | AD14: 0 | AE14: 233 | AF14: 1291 | AG14: 815 | AH14: 974 | AL14: 143 | AM14: 137 | AN14: 33 | AO14: 188 | AP14: 45 | AQ14: 34 | AU14: 1633 | AW14: 3486 | AX14: 1 | BA14: TRUE | BB14: TRUE | BC14: TRUE | BD14: TRUE | BE14: TRUE | BF14: TRUE | BG14: TRUE | BH14: TRUE | BI14: TRUE | BJ14: TRUE | BK14: TRUE | BL14: TRUE | BM14: TRUE | BN14: TRUE | BO14: TRUE | BP14: TRUE
A15: 6 | B15: ALFORD | C15: 0 | D15: 0 | E15: 0 | F15: 0 | G15: 0 | H15: 0 | I15: 0 | J15: 0 | K15: 0 | L15: 0 | M15: 0 | N15: 0 | O15: 0 | P15: 0 | AA15: 6 | AB15: ALFORD | AC15: 0 | AD15: 0 | AE15: 0 | AF15: 0 | AG15: 0 | AH15: 0 | AL15: 0 | AM15: 0 | AN15: 0 | AO15: 0 | AP15: 0 | AQ15: 0 | AU15: 0 | AW15: 0 | AX15: 1 | BA15: TRUE | BB15: TRUE | BC15: TRUE | BD15: TRUE | BE15: TRUE | BF15: TRUE | BG15: TRUE | BH15: TRUE | BI15: TRUE | BJ15: TRUE | BK15: TRUE | BL15: TRUE | BM15: TRUE | BN15: TRUE | BO15: TRUE | BP15: TRUE
A16: 7 | B16: AMESBURY | C16: 33 | D16: 0 | E16: 156 | F16: 727 | G16: 455 | H16: 533 | I16: 10 | J16: 74 | K16: 19 | L16: 29 | M16: 2 | N16: 13 | O16: 681 | P16: 1898 | AA16: 7 | AB16: AMESBURY | AC16: 33 | AD16: 0 | AE16: 156 | AF16: 727 | AG16: 455 | AH16: 533 | AL16: 10 | AM16: 74 | AN16: 19 | AO16: 29 | AP16: 2 | AQ16: 13 | AU16: 681 | AW16: 1898 | AX16: 1 | BA16: TRUE | BB16: TRUE | BC16: TRUE | BD16: TRUE | BE16: TRUE | BF16: TRUE | BG16: TRUE | BH16: TRUE | BI16: TRUE | BJ16: TRUE | BK16: TRUE | BL16: TRUE | BM16: TRUE | BN16: TRUE | BO16: TRUE | BP16: TRUE
A17: 8 | B17: AMHERST | C17: 62 | D17: 0 | E17: 114 | F17: 704 | G17: 135 | H17: 0 | I17: 0 | J17: 37 | K17: 10 | L17: 117 | M17: 15 | N17: 0 | O17: 362 | P17: 984 | AA17: 8 | AB17: AMHERST | AC17: 62 | AD17: 0 | AE17: 114 | AF17: 704 | AG17: 135 | AH17: 0 | AL17: 0 | AM17: 37 | AN17: 10 | AO17: 117 | AP17: 15 | AQ17: 0 | AU17: 362 | AW17: 984 | AX17: 1 | BA17: TRUE | BB17: TRUE | BC17: TRUE | BD17: TRUE | BE17: TRUE | BF17: TRUE | BG17: TRUE | BH17: TRUE | BI17: TRUE | BJ17: TRUE | BK17: TRUE | BL17: TRUE | BM17: TRUE | BN17: TRUE | BO17: TRUE | BP17: TRUE
A18: 9 | B18: ANDOVER | C18: 83 | D18: 0 | E18: 333 | F18: 2076 | G18: 1305 | H18: 1705 | I18: 4 | J18: 213 | K18: 54 | L18: 146 | M18: 25 | N18: 25 | O18: 768 | P18: 5465 | AA18: 9 | AB18: ANDOVER | AC18: 83 | AD18: 0 | AE18: 333 | AF18: 2076 | AG18: 1305 | AH18: 1705 | AL18: 4 | AM18: 213 | AN18: 54 | AO18: 146 | AP18: 25 | AQ18: 25 | AU18: 768 | AW18: 5465 | AX18: 1.077 | BA18: TRUE | BB18: TRUE | BC18: TRUE | BD18: TRUE | BE18: TRUE | BF18: TRUE | BG18: TRUE | BH18: TRUE | BI18: TRUE | BJ18: TRUE | BK18: TRUE | BL18: TRUE | BM18: TRUE | BN18: TRUE | BO18: TRUE | BP18: TRUE
A19: 10 | B19: ARLINGTON | C19: 36 | D19: 0 | E19: 438 | F19: 2486 | G19: 1435 | H19: 1643 | I19: 1 | J19: 236 | K19: 60 | L19: 232 | M19: 49 | N19: 28 | O19: 740 | P19: 6021 | AA19: 10 | AB19: ARLINGTON | AC19: 36 | AD19: 0 | AE19: 438 | AF19: 2486 | AG19: 1435 | AH19: 1643 | AL19: 1 | AM19: 236 | AN19: 60 | AO19: 232 | AP19: 49 | AQ19: 28 | AU19: 740 | AW19: 6021 | AX19: 1.043 | BA19: TRUE | BB19: TRUE | BC19: TRUE | BD19: TRUE | BE19: TRUE | BF19: TRUE | BG19: TRUE | BH19: TRUE | BI19: TRUE | BJ19: TRUE | BK19: TRUE | BL19: TRUE | BM19: TRUE | BN19: TRUE | BO19: TRUE | BP19: TRUE
A20: 11 | B20: ASHBURNHAM | C20: 0 | D20: 0 | E20: 0 | F20: 0 | G20: 0 | H20: 0 | I20: 0 | J20: 0 | K20: 0 | L20: 0 | M20: 0 | N20: 0 | O20: 0 | P20: 0 | AA20: 11 | AB20: ASHBURNHAM | AC20: 0 | AD20: 0 | AE20: 0 | AF20: 0 | AG20: 0 | AH20: 0 | AL20: 0 | AM20: 0 | AN20: 0 | AO20: 0 | AP20: 0 | AQ20: 0 | AU20: 0 | AW20: 0 | AX20: 1 | BA20: TRUE | BB20: TRUE | BC20: TRUE | BD20: TRUE | BE20: TRUE | BF20: TRUE | BG20: TRUE | BH20: TRUE | BI20: TRUE | BJ20: TRUE | BK20: TRUE | BL20: TRUE | BM20: TRUE | BN20: TRUE | BO20: TRUE | BP20: TRUE
A21: 12 | B21: ASHBY | C21: 0 | D21: 0 | E21: 0 | F21: 0 | G21: 0 | H21: 0 | I21: 0 | J21: 0 | K21: 0 | L21: 0 | M21: 0 | N21: 0 | O21: 0 | P21: 0 | AA21: 12 | AB21: ASHBY | AC21: 0 | AD21: 0 | AE21: 0 | AF21: 0 | AG21: 0 | AH21: 0 | AL21: 0 | AM21: 0 | AN21: 0 | AO21: 0 | AP21: 0 | AQ21: 0 | AU21: 0 | AW21: 0 | AX21: 1 | BA21: TRUE | BB21: TRUE | BC21: TRUE | BD21: TRUE | BE21: TRUE | BF21: TRUE | BG21: TRUE | BH21: TRUE | BI21: TRUE | BJ21: TRUE | BK21: TRUE | BL21: TRUE | BM21: TRUE | BN21: TRUE | BO21: TRUE | BP21: TRUE
A22: 13 | B22: ASHFIELD | C22: 0 | D22: 0 | E22: 0 | F22: 0 | G22: 0 | H22: 0 | I22: 11 | J22: 1 | K22: 0 | L22: 0 | M22: 0 | N22: 0 | O22: 0 | P22: 11 | AA22: 13 | AB22: ASHFIELD | AC22: 0 | AD22: 0 | AE22: 0 | AF22: 0 | AG22: 0 | AH22: 0 | AL22: 11 | AM22: 1 | AN22: 0 | AO22: 0 | AP22: 0 | AQ22: 0 | AU22: 0 | AW22: 11 | AX22: 1 | BA22: TRUE | BB22: TRUE | BC22: TRUE | BD22: TRUE | BE22: TRUE | BF22: TRUE | BG22: TRUE | BH22: TRUE | BI22: TRUE | BJ22: TRUE | BK22: TRUE | BL22: TRUE | BM22: TRUE | BN22: TRUE | BO22: TRUE | BP22: TRUE
A23: 14 | B23: ASHLAND | C23: 25 | D23: 0 | E23: 218 | F23: 1065 | G23: 684 | H23: 875 | I23: 2 | J23: 112 | K23: 28 | L23: 122 | M23: 31 | N23: 39 | O23: 719 | P23: 2857 | AA23: 14 | AB23: ASHLAND | AC23: 25 | AD23: 0 | AE23: 218 | AF23: 1065 | AG23: 684 | AH23: 875 | AL23: 2 | AM23: 112 | AN23: 28 | AO23: 122 | AP23: 31 | AQ23: 39 | AU23: 719 | AW23: 2857 | AX23: 1 | BA23: TRUE | BB23: TRUE | BC23: TRUE | BD23: TRUE | BE23: TRUE | BF23: TRUE | BG23: TRUE | BH23: TRUE | BI23: TRUE | BJ23: TRUE | BK23: TRUE | BL23: TRUE | BM23: TRUE | BN23: TRUE | BO23: TRUE | BP23: TRUE
A24: 15 | B24: ATHOL | C24: 0 | D24: 0 | E24: 0 | F24: 0 | G24: 0 | H24: 0 | I24: 0 | J24: 0 | K24: 0 | L24: 0 | M24: 0 | N24: 0 | O24: 0 | P24: 0 | AA24: 15 | AB24: ATHOL | AC24: 0 | AD24: 0 | AE24: 0 | AF24: 0 | AG24: 0 | AH24: 0 | AL24: 0 | AM24: 0 | AN24: 0 | AO24: 0 | AP24: 0 | AQ24: 0 | AU24: 0 | AW24: 0 | AX24: 1 | BA24: TRUE | BB24: TRUE | BC24: TRUE | BD24: TRUE | BE24: TRUE | BF24: TRUE | BG24: TRUE | BH24: TRUE | BI24: TRUE | BJ24: TRUE | BK24: TRUE | BL24: TRUE | BM24: TRUE | BN24: TRUE | BO24: TRUE | BP24: TRUE
A25: 16 | B25: ATTLEBORO | C25: 233 | D25: 0 | E25: 414 | F25: 2211 | G25: 1429 | H25: 573 | I25: 1569 | J25: 259 | K25: 46 | L25: 311 | M25: 62 | N25: 81 | O25: 2781 | P25: 6313 | AA25: 16 | AB25: ATTLEBORO | AC25: 233 | AD25: 0 | AE25: 414 | AF25: 2211 | AG25: 1429 | AH25: 573 | AL25: 1569 | AM25: 259 | AN25: 46 | AO25: 311 | AP25: 62 | AQ25: 81 | AU25: 2781 | AW25: 6313 | AX25: 1 | BA25: TRUE | BB25: TRUE | BC25: TRUE | BD25: TRUE | BE25: TRUE | BF25: TRUE | BG25: TRUE | BH25: TRUE | BI25: TRUE | BJ25: TRUE | BK25: TRUE | BL25: TRUE | BM25: TRUE | BN25: TRUE | BO25: TRUE | BP25: TRUE
A26: 17 | B26: AUBURN | C26: 18 | D26: 1 | E26: 144 | F26: 918 | G26: 606 | H26: 688 | I26: 1 | J26: 93 | K26: 24 | L26: 43 | M26: 20 | N26: 21 | O26: 805 | P26: 2367 | AA26: 17 | AB26: AUBURN | AC26: 18 | AD26: 1 | AE26: 144 | AF26: 918 | AG26: 606 | AH26: 688 | AL26: 1 | AM26: 93 | AN26: 24 | AO26: 43 | AP26: 20 | AQ26: 21 | AU26: 805 | AW26: 2367 | AX26: 1 | BA26: TRUE | BB26: TRUE | BC26: TRUE | BD26: TRUE | BE26: TRUE | BF26: TRUE | BG26: TRUE | BH26: TRUE | BI26: TRUE | BJ26: TRUE | BK26: TRUE | BL26: TRUE | BM26: TRUE | BN26: TRUE | BO26: TRUE | BP26: TRUE
A27: 18 | B27: AVON | C27: 17 | D27: 0 | E27: 41 | F27: 220 | G27: 152 | H27: 150 | I27: 0 | J27: 22 | K27: 6 | L27: 55 | M27: 15 | N27: 22 | O27: 379 | P27: 572 | AA27: 18 | AB27: AVON | AC27: 17 | AD27: 0 | AE27: 41 | AF27: 220 | AG27: 152 | AH27: 150 | AL27: 0 | AM27: 22 | AN27: 6 | AO27: 55 | AP27: 15 | AQ27: 22 | AU27: 379 | AW27: 572 | AX27: 1 | BA27: TRUE | BB27: TRUE | BC27: TRUE | BD27: TRUE | BE27: TRUE | BF27: TRUE | BG27: TRUE | BH27: TRUE | BI27: TRUE | BJ27: TRUE | BK27: TRUE | BL27: TRUE | BM27: TRUE | BN27: TRUE | BO27: TRUE | BP27: TRUE
A28: 19 | B28: AYER | C28: 0 | D28: 0 | E28: 0 | F28: 0 | G28: 0 | H28: 0 | I28: 0 | J28: 0 | K28: 0 | L28: 0 | M28: 0 | N28: 0 | O28: 0 | P28: 0 | AA28: 19 | AB28: AYER | AC28: 0 | AD28: 0 | AE28: 0 | AF28: 0 | AG28: 0 | AH28: 0 | AL28: 0 | AM28: 0 | AN28: 0 | AO28: 0 | AP28: 0 | AQ28: 0 | AU28: 0 | AW28: 0 | AX28: 1 | BA28: TRUE | BB28: TRUE | BC28: TRUE | BD28: TRUE | BE28: TRUE | BF28: TRUE | BG28: TRUE | BH28: TRUE | BI28: TRUE | BJ28: TRUE | BK28: TRUE | BL28: TRUE | BM28: TRUE | BN28: TRUE | BO28: TRUE | BP28: TRUE
A29: 20 | B29: BARNSTABLE | C29: 153 | D29: 0 | E29: 376 | F29: 1944 | G29: 1160 | H29: 1603 | I29: 146 | J29: 207 | K29: 51 | L29: 669 | M29: 198 | N29: 242 | O29: 3074 | P29: 5306 | AA29: 20 | AB29: BARNSTABLE | AC29: 153 | AD29: 0 | AE29: 376 | AF29: 1944 | AG29: 1160 | AH29: 1603 | AL29: 146 | AM29: 207 | AN29: 51 | AO29: 669 | AP29: 198 | AQ29: 242 | AU29: 3074 | AW29: 5306 | AX29: 1 | BA29: TRUE | BB29: TRUE | BC29: TRUE | BD29: TRUE | BE29: TRUE | BF29: TRUE | BG29: TRUE | BH29: TRUE | BI29: TRUE | BJ29: TRUE | BK29: TRUE | BL29: TRUE | BM29: TRUE | BN29: TRUE | BO29: TRUE | BP29: TRUE
A30: 21 | B30: BARRE | C30: 0 | D30: 0 | E30: 0 | F30: 0 | G30: 0 | H30: 0 | I30: 0 | J30: 0 | K30: 0 | L30: 0 | M30: 0 | N30: 0 | O30: 0 | P30: 0 | AA30: 21 | AB30: BARRE | AC30: 0 | AD30: 0 | AE30: 0 | AF30: 0 | AG30: 0 | AH30: 0 | AL30: 0 | AM30: 0 | AN30: 0 | AO30: 0 | AP30: 0 | AQ30: 0 | AU30: 0 | AW30: 0 | AX30: 1 | BA30: TRUE | BB30: TRUE | BC30: TRUE | BD30: TRUE | BE30: TRUE | BF30: TRUE | BG30: TRUE | BH30: TRUE | BI30: TRUE | BJ30: TRUE | BK30: TRUE | BL30: TRUE | BM30: TRUE | BN30: TRUE | BO30: TRUE | BP30: TRUE
A31: 22 | B31: BECKET | C31: 0 | D31: 0 | E31: 0 | F31: 0 | G31: 0 | H31: 0 | I31: 13 | J31: 1 | K31: 0 | L31: 0 | M31: 0 | N31: 0 | O31: 0 | P31: 13 | AA31: 22 | AB31: BECKET | AC31: 0 | AD31: 0 | AE31: 0 | AF31: 0 | AG31: 0 | AH31: 0 | AL31: 13 | AM31: 1 | AN31: 0 | AO31: 0 | AP31: 0 | AQ31: 0 | AU31: 0 | AW31: 13 | AX31: 1 | BA31: TRUE | BB31: TRUE | BC31: TRUE | BD31: TRUE | BE31: TRUE | BF31: TRUE | BG31: TRUE | BH31: TRUE | BI31: TRUE | BJ31: TRUE | BK31: TRUE | BL31: TRUE | BM31: TRUE | BN31: TRUE | BO31: TRUE | BP31: TRUE
A32: 23 | B32: BEDFORD | C32: 25 | D32: 0 | E32: 159 | F32: 888 | G32: 619 | H32: 899 | I32: 1 | J32: 101 | K32: 26 | L32: 100 | M32: 20 | N32: 22 | O32: 385 | P32: 2579 | AA32: 23 | AB32: BEDFORD | AC32: 25 | AD32: 0 | AE32: 159 | AF32: 888 | AG32: 619 | AH32: 899 | AL32: 1 | AM32: 101 | AN32: 26 | AO32: 100 | AP32: 20 | AQ32: 22 | AU32: 385 | AW32: 2579 | AX32: 1.082 | BA32: TRUE | BB32: TRUE | BC32: TRUE | BD32: TRUE | BE32: TRUE | BF32: TRUE | BG32: TRUE | BH32: TRUE | BI32: TRUE | BJ32: TRUE | BK32: TRUE | BL32: TRUE | BM32: TRUE | BN32: TRUE | BO32: TRUE | BP32: TRUE
A33: 24 | B33: BELCHERTOWN | C33: 64 | D33: 0 | E33: 134 | F33: 805 | G33: 510 | H33: 610 | I33: 15 | J33: 82 | K33: 21 | L33: 40 | M33: 5 | N33: 12 | O33: 585 | P33: 2106 | AA33: 24 | AB33: BELCHERTOWN | AC33: 64 | AD33: 0 | AE33: 134 | AF33: 805 | AG33: 510 | AH33: 610 | AL33: 15 | AM33: 82 | AN33: 21 | AO33: 40 | AP33: 5 | AQ33: 12 | AU33: 585 | AW33: 2106 | AX33: 1 | BA33: TRUE | BB33: TRUE | BC33: TRUE | BD33: TRUE | BE33: TRUE | BF33: TRUE | BG33: TRUE | BH33: TRUE | BI33: TRUE | BJ33: TRUE | BK33: TRUE | BL33: TRUE | BM33: TRUE | BN33: TRUE | BO33: TRUE | BP33: TRUE
A34: 25 | B34: BELLINGHAM | C34: 55 | D34: 1 | E34: 153 | F34: 803 | G34: 508 | H34: 663 | I34: 19 | J34: 85 | K34: 21 | L34: 78 | M34: 13 | N34: 11 | O34: 746 | P34: 2175 | AA34: 25 | AB34: BELLINGHAM | AC34: 55 | AD34: 1 | AE34: 153 | AF34: 803 | AG34: 508 | AH34: 663 | AL34: 19 | AM34: 85 | AN34: 21 | AO34: 78 | AP34: 13 | AQ34: 11 | AU34: 746 | AW34: 2175 | AX34: 1 | BA34: TRUE | BB34: TRUE | BC34: TRUE | BD34: TRUE | BE34: TRUE | BF34: TRUE | BG34: TRUE | BH34: TRUE | BI34: TRUE | BJ34: TRUE | BK34: TRUE | BL34: TRUE | BM34: TRUE | BN34: TRUE | BO34: TRUE | BP34: TRUE
A35: 26 | B35: BELMONT | C35: 36 | D35: 0 | E35: 239 | F35: 1661 | G35: 1063 | H35: 1528 | I35: 12 | J35: 177 | K35: 45 | L35: 331 | M35: 53 | N35: 47 | O35: 604 | P35: 4521 | AA35: 26 | AB35: BELMONT | AC35: 36 | AD35: 0 | AE35: 239 | AF35: 1661 | AG35: 1063 | AH35: 1528 | AL35: 12 | AM35: 177 | AN35: 45 | AO35: 331 | AP35: 53 | AQ35: 47 | AU35: 604 | AW35: 4521 | AX35: 1.043 | BA35: TRUE | BB35: TRUE | BC35: TRUE | BD35: TRUE | BE35: TRUE | BF35: TRUE | BG35: TRUE | BH35: TRUE | BI35: TRUE | BJ35: TRUE | BK35: TRUE | BL35: TRUE | BM35: TRUE | BN35: TRUE | BO35: TRUE | BP35: TRUE
A36: 27 | B36: BERKLEY | C36: 40 | D36: 0 | E36: 60 | F36: 357 | G36: 245 | H36: 0 | I36: 0 | J36: 26 | K36: 7 | L36: 11 | M36: 3 | N36: 0 | O36: 239 | P36: 682 | AA36: 27 | AB36: BERKLEY | AC36: 40 | AD36: 0 | AE36: 60 | AF36: 357 | AG36: 245 | AH36: 0 | AL36: 0 | AM36: 26 | AN36: 7 | AO36: 11 | AP36: 3 | AQ36: 0 | AU36: 239 | AW36: 682 | AX36: 1 | BA36: TRUE | BB36: TRUE | BC36: TRUE | BD36: TRUE | BE36: TRUE | BF36: TRUE | BG36: TRUE | BH36: TRUE | BI36: TRUE | BJ36: TRUE | BK36: TRUE | BL36: TRUE | BM36: TRUE | BN36: TRUE | BO36: TRUE | BP36: TRUE
A37: 28 | B37: BERLIN | C37: 0 | D37: 0 | E37: 0 | F37: 0 | G37: 0 | H37: 0 | I37: 0 | J37: 0 | K37: 0 | L37: 0 | M37: 0 | N37: 0 | O37: 0 | P37: 0 | AA37: 28 | AB37: BERLIN | AC37: 0 | AD37: 0 | AE37: 0 | AF37: 0 | AG37: 0 | AH37: 0 | AL37: 0 | AM37: 0 | AN37: 0 | AO37: 0 | AP37: 0 | AQ37: 0 | AU37: 0 | AW37: 0 | AX37: 1.026 | BA37: TRUE | BB37: TRUE | BC37: TRUE | BD37: TRUE | BE37: TRUE | BF37: TRUE | BG37: TRUE | BH37: TRUE | BI37: TRUE | BJ37: TRUE | BK37: TRUE | BL37: TRUE | BM37: TRUE | BN37: TRUE | BO37: TRUE | BP37: TRUE
A38: 29 | B38: BERNARDSTON | C38: 0 | D38: 0 | E38: 0 | F38: 0 | G38: 0 | H38: 0 | I38: 0 | J38: 0 | K38: 0 | L38: 0 | M38: 0 | N38: 0 | O38: 0 | P38: 0 | AA38: 29 | AB38: BERNARDSTON | AC38: 0 | AD38: 0 | AE38: 0 | AF38: 0 | AG38: 0 | AH38: 0 | AL38: 0 | AM38: 0 | AN38: 0 | AO38: 0 | AP38: 0 | AQ38: 0 | AU38: 0 | AW38: 0 | AX38: 1 | BA38: TRUE | BB38: TRUE | BC38: TRUE | BD38: TRUE | BE38: TRUE | BF38: TRUE | BG38: TRUE | BH38: TRUE | BI38: TRUE | BJ38: TRUE | BK38: TRUE | BL38: TRUE | BM38: TRUE | BN38: TRUE | BO38: TRUE | BP38: TRUE
A39: 30 | B39: BEVERLY | C39: 112 | D39: 0 | E39: 332 | F39: 1784 | G39: 1010 | H39: 1265 | I39: 19 | J39: 174 | K39: 44 | L39: 147 | M39: 40 | N39: 48 | O39: 1597 | P39: 4466 | AA39: 30 | AB39: BEVERLY | AC39: 112 | AD39: 0 | AE39: 332 | AF39: 1784 | AG39: 1010 | AH39: 1265 | AL39: 19 | AM39: 174 | AN39: 44 | AO39: 147 | AP39: 40 | AQ39: 48 | AU39: 1597 | AW39: 4466 | AX39: 1 | BA39: TRUE | BB39: TRUE | BC39: TRUE | BD39: TRUE | BE39: TRUE | BF39: TRUE | BG39: TRUE | BH39: TRUE | BI39: TRUE | BJ39: TRUE | BK39: TRUE | BL39: TRUE | BM39: TRUE | BN39: TRUE | BO39: TRUE | BP39: TRUE
A40: 31 | B40: BILLERICA | C40: 107 | D40: 0 | E40: 381 | F40: 2014 | G40: 1195 | H40: 1280 | I40: 1 | J40: 191 | K40: 49 | L40: 116 | M40: 18 | N40: 43 | O40: 1437 | P40: 4925 | AA40: 31 | AB40: BILLERICA | AC40: 107 | AD40: 0 | AE40: 381 | AF40: 2014 | AG40: 1195 | AH40: 1280 | AL40: 1 | AM40: 191 | AN40: 49 | AO40: 116 | AP40: 18 | AQ40: 43 | AU40: 1437 | AW40: 4925 | AX40: 1 | BA40: TRUE | BB40: TRUE | BC40: TRUE | BD40: TRUE | BE40: TRUE | BF40: TRUE | BG40: TRUE | BH40: TRUE | BI40: TRUE | BJ40: TRUE | BK40: TRUE | BL40: TRUE | BM40: TRUE | BN40: TRUE | BO40: TRUE | BP40: TRUE
A41: 32 | B41: BLACKSTONE | C41: 0 | D41: 0 | E41: 0 | F41: 0 | G41: 0 | H41: 0 | I41: 17 | J41: 1 | K41: 0 | L41: 0 | M41: 0 | N41: 0 | O41: 0 | P41: 17 | AA41: 32 | AB41: BLACKSTONE | AC41: 0 | AD41: 0 | AE41: 0 | AF41: 0 | AG41: 0 | AH41: 0 | AL41: 17 | AM41: 1 | AN41: 0 | AO41: 0 | AP41: 0 | AQ41: 0 | AU41: 0 | AW41: 17 | AX41: 1 | BA41: TRUE | BB41: TRUE | BC41: TRUE | BD41: TRUE | BE41: TRUE | BF41: TRUE | BG41: TRUE | BH41: TRUE | BI41: TRUE | BJ41: TRUE | BK41: TRUE | BL41: TRUE | BM41: TRUE | BN41: TRUE | BO41: TRUE | BP41: TRUE
A42: 33 | B42: BLANDFORD | C42: 0 | D42: 0 | E42: 0 | F42: 0 | G42: 0 | H42: 0 | I42: 13 | J42: 1 | K42: 0 | L42: 0 | M42: 0 | N42: 0 | O42: 0 | P42: 13 | AA42: 33 | AB42: BLANDFORD | AC42: 0 | AD42: 0 | AE42: 0 | AF42: 0 | AG42: 0 | AH42: 0 | AL42: 13 | AM42: 1 | AN42: 0 | AO42: 0 | AP42: 0 | AQ42: 0 | AU42: 0 | AW42: 13 | AX42: 1 | BA42: TRUE | BB42: TRUE | BC42: TRUE | BD42: TRUE | BE42: TRUE | BF42: TRUE | BG42: TRUE | BH42: TRUE | BI42: TRUE | BJ42: TRUE | BK42: TRUE | BL42: TRUE | BM42: TRUE | BN42: TRUE | BO42: TRUE | BP42: TRUE
A43: 34 | B43: BOLTON | C43: 0 | D43: 0 | E43: 0 | F43: 0 | G43: 0 | H43: 0 | I43: 0 | J43: 0 | K43: 0 | L43: 0 | M43: 0 | N43: 0 | O43: 0 | P43: 0 | AA43: 34 | AB43: BOLTON | AC43: 0 | AD43: 0 | AE43: 0 | AF43: 0 | AG43: 0 | AH43: 0 | AL43: 0 | AM43: 0 | AN43: 0 | AO43: 0 | AP43: 0 | AQ43: 0 | AU43: 0 | AW43: 0 | AX43: 1.04 | BA43: TRUE | BB43: TRUE | BC43: TRUE | BD43: TRUE | BE43: TRUE | BF43: TRUE | BG43: TRUE | BH43: TRUE | BI43: TRUE | BJ43: TRUE | BK43: TRUE | BL43: TRUE | BM43: TRUE | BN43: TRUE | BO43: TRUE | BP43: TRUE
A44: 35 | B44: BOSTON | C44: 3375 | D44: 0 | E44: 3993 | F44: 20214 | G44: 12298 | H44: 17393 | I44: 1783 | J44: 2206 | K44: 539 | L44: 9523 | M44: 2752 | N44: 4283 | O44: 42576 | P44: 57369 | AA44: 35 | AB44: BOSTON | AC44: 3375 | AD44: 0 | AE44: 3993 | AF44: 20214 | AG44: 12298 | AH44: 17393 | AL44: 1783 | AM44: 2206 | AN44: 539 | AO44: 9523 | AP44: 2752 | AQ44: 4283 | AU44: 42576 | AW44: 57369 | AX44: 1.087 | BA44: TRUE | BB44: TRUE | BC44: TRUE | BD44: TRUE | BE44: TRUE | BF44: TRUE | BG44: TRUE | BH44: TRUE | BI44: TRUE | BJ44: TRUE | BK44: TRUE | BL44: TRUE | BM44: TRUE | BN44: TRUE | BO44: TRUE | BP44: TRUE
A45: 36 | B45: BOURNE | C45: 56 | D45: 0 | E45: 133 | F45: 641 | G45: 443 | H45: 453 | I45: 0 | J45: 66 | K45: 17 | L45: 49 | M45: 17 | N45: 10 | O45: 684 | P45: 1698 | AA45: 36 | AB45: BOURNE | AC45: 56 | AD45: 0 | AE45: 133 | AF45: 641 | AG45: 443 | AH45: 453 | AL45: 0 | AM45: 66 | AN45: 17 | AO45: 49 | AP45: 17 | AQ45: 10 | AU45: 684 | AW45: 1698 | AX45: 1 | BA45: TRUE | BB45: TRUE | BC45: TRUE | BD45: TRUE | BE45: TRUE | BF45: TRUE | BG45: TRUE | BH45: TRUE | BI45: TRUE | BJ45: TRUE | BK45: TRUE | BL45: TRUE | BM45: TRUE | BN45: TRUE | BO45: TRUE | BP45: TRUE
A46: 37 | B46: BOXBOROUGH | C46: 0 | D46: 0 | E46: 0 | F46: 0 | G46: 0 | H46: 0 | I46: 5 | J46: 0 | K46: 0 | L46: 0 | M46: 0 | N46: 0 | O46: 0 | P46: 5 | AA46: 37 | AB46: BOXBOROUGH | AC46: 0 | AD46: 0 | AE46: 0 | AF46: 0 | AG46: 0 | AH46: 0 | AL46: 5 | AM46: 0 | AN46: 0 | AO46: 0 | AP46: 0 | AQ46: 0 | AU46: 0 | AW46: 5 | AX46: 1.099 | BA46: TRUE | BB46: TRUE | BC46: TRUE | BD46: TRUE | BE46: TRUE | BF46: TRUE | BG46: TRUE | BH46: TRUE | BI46: TRUE | BJ46: TRUE | BK46: TRUE | BL46: TRUE | BM46: TRUE | BN46: TRUE | BO46: TRUE | BP46: TRUE
A47: 38 | B47: BOXFORD | C47: 42 | D47: 0 | E47: 115 | F47: 511 | G47: 98 | H47: 0 | I47: 0 | J47: 28 | K47: 7 | L47: 7 | M47: 0 | N47: 0 | O47: 72 | P47: 745 | AA47: 38 | AB47: BOXFORD | AC47: 42 | AD47: 0 | AE47: 115 | AF47: 511 | AG47: 98 | AH47: 0 | AL47: 0 | AM47: 28 | AN47: 7 | AO47: 7 | AP47: 0 | AQ47: 0 | AU47: 72 | AW47: 745 | AX47: 1.042 | BA47: TRUE | BB47: TRUE | BC47: TRUE | BD47: TRUE | BE47: TRUE | BF47: TRUE | BG47: TRUE | BH47: TRUE | BI47: TRUE | BJ47: TRUE | BK47: TRUE | BL47: TRUE | BM47: TRUE | BN47: TRUE | BO47: TRUE | BP47: TRUE
A48: 39 | B48: BOYLSTON | C48: 0 | D48: 0 | E48: 0 | F48: 0 | G48: 0 | H48: 0 | I48: 14 | J48: 1 | K48: 0 | L48: 0 | M48: 0 | N48: 0 | O48: 0 | P48: 14 | AA48: 39 | AB48: BOYLSTON | AC48: 0 | AD48: 0 | AE48: 0 | AF48: 0 | AG48: 0 | AH48: 0 | AL48: 14 | AM48: 1 | AN48: 0 | AO48: 0 | AP48: 0 | AQ48: 0 | AU48: 0 | AW48: 14 | AX48: 1 | BA48: TRUE | BB48: TRUE | BC48: TRUE | BD48: TRUE | BE48: TRUE | BF48: TRUE | BG48: TRUE | BH48: TRUE | BI48: TRUE | BJ48: TRUE | BK48: TRUE | BL48: TRUE | BM48: TRUE | BN48: TRUE | BO48: TRUE | BP48: TRUE
A49: 40 | B49: BRAINTREE | C49: 112 | D49: 311 | E49: 29 | F49: 2049 | G49: 1232 | H49: 1659 | I49: 0 | J49: 201 | K49: 51 | L49: 273 | M49: 40 | N49: 48 | O49: 1607 | P49: 5181 | AA49: 40 | AB49: BRAINTREE | AC49: 112 | AD49: 311 | AE49: 29 | AF49: 2049 | AG49: 1232 | AH49: 1659 | AL49: 0 | AM49: 201 | AN49: 51 | AO49: 273 | AP49: 40 | AQ49: 48 | AU49: 1607 | AW49: 5181 | AX49: 1.048 | BA49: TRUE | BB49: TRUE | BC49: TRUE | BD49: TRUE | BE49: TRUE | BF49: TRUE | BG49: TRUE | BH49: TRUE | BI49: TRUE | BJ49: TRUE | BK49: TRUE | BL49: TRUE | BM49: TRUE | BN49: TRUE | BO49: TRUE | BP49: TRUE
A50: 41 | B50: BREWSTER | C50: 19 | D50: 0 | E50: 60 | F50: 351 | G50: 0 | H50: 0 | I50: 0 | J50: 16 | K50: 4 | L50: 21 | M50: 0 | N50: 0 | O50: 182 | P50: 421 | AA50: 41 | AB50: BREWSTER | AC50: 19 | AD50: 0 | AE50: 60 | AF50: 351 | AG50: 0 | AH50: 0 | AL50: 0 | AM50: 16 | AN50: 4 | AO50: 21 | AP50: 0 | AQ50: 0 | AU50: 182 | AW50: 421 | AX50: 1 | BA50: TRUE | BB50: TRUE | BC50: TRUE | BD50: TRUE | BE50: TRUE | BF50: TRUE | BG50: TRUE | BH50: TRUE | BI50: TRUE | BJ50: TRUE | BK50: TRUE | BL50: TRUE | BM50: TRUE | BN50: TRUE | BO50: TRUE | BP50: TRUE
A51: 42 | B51: BRIDGEWATER | C51: 0 | D51: 0 | E51: 0 | F51: 0 | G51: 0 | H51: 0 | I51: 18 | J51: 1 | K51: 0 | L51: 0 | M51: 0 | N51: 0 | O51: 0 | P51: 18 | AA51: 42 | AB51: BRIDGEWATER | AC51: 0 | AD51: 0 | AE51: 0 | AF51: 0 | AG51: 0 | AH51: 0 | AL51: 18 | AM51: 1 | AN51: 0 | AO51: 0 | AP51: 0 | AQ51: 0 | AU51: 0 | AW51: 18 | AX51: 1 | BA51: TRUE | BB51: TRUE | BC51: TRUE | BD51: TRUE | BE51: TRUE | BF51: TRUE | BG51: TRUE | BH51: TRUE | BI51: TRUE | BJ51: TRUE | BK51: TRUE | BL51: TRUE | BM51: TRUE | BN51: TRUE | BO51: TRUE | BP51: TRUE
A52: 43 | B52: BRIMFIELD | C52: 4 | D52: 0 | E52: 38 | F52: 182 | G52: 46 | H52: 0 | I52: 2 | J52: 10 | K52: 3 | L52: 3 | M52: 0 | N52: 0 | O52: 101 | P52: 270 | AA52: 43 | AB52: BRIMFIELD | AC52: 4 | AD52: 0 | AE52: 38 | AF52: 182 | AG52: 46 | AH52: 0 | AL52: 2 | AM52: 10 | AN52: 3 | AO52: 3 | AP52: 0 | AQ52: 0 | AU52: 101 | AW52: 270 | AX52: 1 | BA52: TRUE | BB52: TRUE | BC52: TRUE | BD52: TRUE | BE52: TRUE | BF52: TRUE | BG52: TRUE | BH52: TRUE | BI52: TRUE | BJ52: TRUE | BK52: TRUE | BL52: TRUE | BM52: TRUE | BN52: TRUE | BO52: TRUE | BP52: TRUE
A53: 44 | B53: BROCKTON | C53: 497 | D53: 0 | E53: 1255 | F53: 6308 | G53: 3970 | H53: 4508 | I53: 485 | J53: 654 | K53: 160 | L53: 2516 | M53: 991 | N53: 1340 | O53: 12795 | P53: 16775 | AA53: 44 | AB53: BROCKTON | AC53: 497 | AD53: 0 | AE53: 1255 | AF53: 6308 | AG53: 3970 | AH53: 4508 | AL53: 485 | AM53: 654 | AN53: 160 | AO53: 2516 | AP53: 991 | AQ53: 1340 | AU53: 12795 | AW53: 16775 | AX53: 1 | BA53: TRUE | BB53: TRUE | BC53: TRUE | BD53: TRUE | BE53: TRUE | BF53: TRUE | BG53: TRUE | BH53: TRUE | BI53: TRUE | BJ53: TRUE | BK53: TRUE | BL53: TRUE | BM53: TRUE | BN53: TRUE | BO53: TRUE | BP53: TRUE
A54: 45 | B54: BROOKFIELD | C54: 2 | D54: 0 | E54: 24 | F54: 169 | G54: 31 | H54: 0 | I54: 0 | J54: 9 | K54: 2 | L54: 3 | M54: 0 | N54: 0 | O54: 115 | P54: 225 | AA54: 45 | AB54: BROOKFIELD | AC54: 2 | AD54: 0 | AE54: 24 | AF54: 169 | AG54: 31 | AH54: 0 | AL54: 0 | AM54: 9 | AN54: 2 | AO54: 3 | AP54: 0 | AQ54: 0 | AU54: 115 | AW54: 225 | AX54: 1 | BA54: TRUE | BB54: TRUE | BC54: TRUE | BD54: TRUE | BE54: TRUE | BF54: TRUE | BG54: TRUE | BH54: TRUE | BI54: TRUE | BJ54: TRUE | BK54: TRUE | BL54: TRUE | BM54: TRUE | BN54: TRUE | BO54: TRUE | BP54: TRUE
